{"text_format":"1","workbook":"xlsx","n_sheets":21,"sheets":["Title Page","Index","INPUT","OUTPUT","Critical Design Assumptions","O&M Assumptions","Indirect Assumptions","Offgas Assumptions","Basin Constraints","Offgas","Pumps Pipe Structure","Instrumentation and Control","O&M","HVAC","Indirect","Standard Inputs","Cost Equations","Cost Coefficients","Cost Data","Engineering Data","Lookup Tables"],"not_rendered":{"charts":0,"images":0,"macros":1,"external_links":0,"defined_names":741,"comments":15,"pivot_tables":0},"unopened":[],"bounds":{"document_bytes":16777216,"sheet_cells":100000,"rows_first":2000,"rows_last":500,"rows_between":2000,"halvings":0,"cell_chars":16384,"cell_head_chars":4096},"cells_cut":0,"cells_raw":0,"read":"whole","date_system":"1900"}

{"sheet":"Title Page","index":0,"n_rows":12,"n_cols":1,"rows_kept":12,"cut":false,"hidden":false,"merged":[]}
["U.S. EPA Office of Ground Water and Drinking Water"]
["Work Breakdown Structure (WBS) Model for Multi-Stage Bubble Aeration (MSBA) Treatment"]
["Release Date: December 30, 2017"]
["· This model is designed to assist EPA in estimating national compliance costs for drinking water regulations."]
["· As such, the costs are intended to be representative of typical facilities."]
["· The costs, however, do not account for all of the site-specific factors that could affect the cost of any given individual facility."]
["· Use of this model requires Excel 2007 or later."]
["· The model should be opened as Read-only, so that any changes you make are saved under a new file name."]
["· To function properly, macros (\"active content\") must be enabled. If a security warning appears, click \"options\" and \"enable this content.\""]
["· For further information see the following document distributed with this file:"]
["USEPA. 2017. Work Breakdown Structure-Based Cost Model for Multi-Stage Bubble Aeration (MSBA) Drinking Water Treatment. Office of Water."]
["· To begin using the model, go to the INPUT sheet."]

{"sheet":"Index","index":1,"n_rows":211,"n_cols":2,"rows_kept":211,"cut":false,"hidden":false,"merged":[]}
["INDEX"]
["This page provides an index to all user-adjustable inputs and assumptions.  Click on a variable name to go directly to the adjustable cells."]
[]
["User-adjustable Input or Assumption","Variable Name and Link"]
["Access space per pump/blower for custom designed systems","space_pumps_cust"]
["Access space per pump/blower for pre-engineered packages","space_pumps_pre"]
["Additional blower head above water depth","add_blow_head"]
["Additional building after…","add_2nd_building"]
["Administrative LOE as a percent of average technical labor ","Clerical_percent"]
["Air conditioning EER","EER"]
["Air to water ratio","air_water_ratio"]
["Always include NEPA compliance costs?","include_NEPA"]
["Annual cooling degree days","cool_DD"]
["Annual heating degree days","heat_DD"]
["Average Flow","average_flow_I"]
["Basin excavation depth above which deeper boreholes are needed","deep_bore_need"]
["Bedding depth below pipe","bedding_depth"]
["Bedding depth surrounding the pipe","bedding_pct"]
["Blower efficiency","blower_effcy"]
["Blower safety factor","blower_safety_factor"]
["Borehole depth (package systems)","bore_depth_p"]
["Borehole depth for deep basins","bore_depth_max"]
["Borehole depth for shallow basins","bore_depth_min"]
["Borehole needed every x square feet","hole_per_sf"]
["Boreholes per job","hole_per_job"]
["Buffer space around other sides of buildings","non_fire_buffer"]
["Builder's risk insurance percentage","br_ins_pct"]
["Building height","Building_height"]
["Coefficient of passive pressure","Coeff_Kp"]
["Component level","component_level_I"]
["Computer workstations per x operators","workstation_ratio"]
["Concrete pad thickness","pad_thick"]
["Concrete pad thickness for small systems","pad_thick_small"]
["Concrete thickness","conc_thick"]
["Cooling table for buildings 500 square feet or greater","cooling_table"]
["Cooling table for buildings less than 500 ft2","cooling_table_shed"]
["Cooling ventilation/infiltration load","cool_viload"]
["Cost for parts & maintenance for pumps and blowers","pump_maint_rate"]
["Density of air","PA"]
["Design Flow","design_flow_I"]
["Design safety factor for standby power","std_safety_factor"]
["Design Type","design_type_I"]
["Diffuser access space","diffuser_access_space"]
["Drive controllers per blower","S_blower"]
["Drive controllers per booster pump","S_booster_pump"]
["Drive controllers per catalytic oxidizer","S_CO"]
["Drive controllers per thermal oxidizer","S_TO"]
["Efficiency of pumps","pump_effcy"]
["Electric resistance heating efficiency","resist_eff"]
["Electrical percentage","elect_pct"]
["Engineering percentage for large systems","eng_pct_large"]
["Engineering percentage for medium systems","eng_pct_medium"]
["Engineering percentage for small systems","eng_pct_small"]
["Ethernet modules","plc_ethernet "]
["Excess air required","CO_ex_air"]
["Excess air required","TO_ex_air"]
["External air piping","air_pipe_add"]
["Financing percentage","finance_pct"]
["Financing percentage for small systems","finance_pct_small"]
["Fire truck buffer requirements","fire_buffer"]
["Flow meters for air line per contact basin","fm_air"]
["Flow meters for influent and treated water line","tot_fm_in"]
["Flow meters for process line per contact basin","fm_proc"]
["Freeboard","freeboard"]
["Frost depth","frost"]
["GAC bed life","og_opt3"]
["GAC Density","GAC_density"]
["Heat pump cooling mode EER","hp_EER"]
["Heat pump heating coefficient of performance","COP"]
["Heat recovery type","og_opt1_I"]
["Heating Oil Heat Content","diesel_heat_content"]
["Heating table for buildings 500 square feet or greater","heating_table"]
["Heating table for buildings less than 500 ft2","heating_table_shed"]
["Heating ventilation/infiltration load","heat_viload"]
["High/Low alarms per contact basin","alarm_basin"]
["I/O port table","port_table"]
["Include architectural fee for small systems?","include_arch_small"]
["Include architectural fee?","include_arch"]
["Include buildings in total capital cost?","include_buildings"]
["Include concrete pad in total capital cost?","include_pad"]
["Include construction management cost for pre-engineered packages?","include_cm_pre"]
["Include construction management cost?","include_cm"]
["Include contingency costs for high cost systems?","include_conting_high"]
["Include contingency costs for low cost systems?","include_conting_low"]
["Include contingency costs for medium cost systems?","include_conting_medium"]
["Include cooling in standby power","need_cool"]
["Include geotechnical costs for high cost custom systems?","include_geo_high_g"]
["Include geotechnical costs for high cost systems?","include_geo_high"]
["Include geotechnical costs for low cost custom systems?","include_geo_low_g"]
["Include geotechnical costs for low cost systems?","include_geo_low"]
["Include geotechnical costs for medium cost custom systems?","include_geo_medium_g"]
["Include geotechnical costs for medium cost systems?","include_geo_medium"]
["Include heating in standby power","need_heat"]
["Include land costs?","include_land"]
["Include performance bond cost?","include_bond"]
["Include permit costs?","include_permits"]
["Include pilot study costs?","include_pilot"]
["Include sitework costs?","include_sitework"]
["Include standby power costs for small systems?","include_standby_small"]
["Include standby power costs?","include_standby"]
["Include yard piping costs?","include_yardpipe"]
["Influent water concentration","influent_conc"]
["Installation, Transportatation, and O&P percentage","inst_pct"]
["Instrumentation and control percentage","i_c_pct"]
["Legal percentage","legal_pct"]
["Lighting power per sf, high-quality buildings","lighting_power_high"]
["Lighting power per sf, low-quality buildings and sheds","lighting_power_low"]
["Lighting power per sf, mid-quality buildings","lighting_power_mid"]
["Linear feet bored per day","hole_per_day"]
["Maintenance LOE for instruments (includes calibration)","uloe_inst_maint"]
["Maintenance LOE for pumps","uloe_pump_maint"]
["Maintenance LOE for valves","uloe_valve_maint"]
["Makeup carbon for off-site regeneration","makeup_rate_off"]
["Mangerial LOE as a percent of average technical labor ","Manager_percent"]
["Maximum access space per vessel or tank for custom designed systems","max_space_vessels_cust"]
["Maximum access space per vessel or tank for pre-engineered systems","max_space_vessels_pre"]
["Maximum air surface loading intensity","max_air_load"]
["Maximum basin length (custom design)","max_length_custom"]
["Maximum basin length (pre-engineered package)","max_length_package"]
["Maximum water depth","max_h2odepth"]
["Mid-efficiency oil furnace efficiency","diesel_eff"]
["Miles to non-hazardous solid waste disposal site","non_haz_miles"]
["Minimum average flow as percentage of design","min_avg_flow"]
["Minimum basin length to width ratio","max_ratio"]
["Minimum number of boreholes","min_holes"]
["Minimum standby power generator size","min_standby"]
["Minimum trench depth to top of pipe","min_trench_depth"]
["Miscellaneous allowance percentage","misc_pct"]
["Mobilization percentage for large systems","mob_pct_large"]
["Mobilization percentage for medium systems","mob_pct_medium"]
["Mobilization percentage for pre-engineered packages","mob_pct_pre"]
["Mobilization percentage for small systems","mob_pct_small"]
["Natural gas condensing furnace efficiency","gas_eff"]
["Natural gas non-condensing furnace efficiency","gas_non_eff"]
["Number of blowers","num_blowers_I"]
["Number of booster pumps","num_pumps_I"]
["Number of check valves on bypass line","tot_bp_chv"]
["Number of check valves on process line per booster pump","proc_chv_pump"]
["Number of check valves on treated water line","tot_in_chv"]
["Number of CPUs","plc_cpu"]
["Number of electrical enclosures","elec_encl"]
["Number of manual valves on influent and treated water line","tot_man_valves"]
["Number of mechanical ventilation days per year 2nd building (large system)","fan_days_build2_large"]
["Number of mechanical ventilation days per year 2nd building (medium system)","fan_days_build2_medium"]
["Number of mechanical ventilation days per year 2nd building (small system)","fan_days_build2_small"]
["Number of mechanical ventilation days per year first building (large system)","fan_days_build1_large"]
["Number of mechanical ventilation days per year first building (medium system)","fan_days_build1_medium"]
["Number of mechanical ventilation days per year first building (small system)","fan_days_build1_small"]
["Number of operating basins","num_op_tanks"]
["Number of pressure gauges per blower","gauges_blower"]
["Number of redundant basins","NRD_tanks"]
["Number of redundant basins to be added","NRD_I"]
["Number of redundant blowers","NRD_blowers"]
["Number of redundant pumps","NRD_pumps"]
["Number of shifts","shifts_day"]
["Number of stages","stages"]
["Off-gas pollution control technology","Offgas_Tech_I"]
["Office space per employee","space_office"]
["Office space per employee","space_office_small"]
["Operatin gLOE, minutes per valve per week","uloe_valve"]
["Operating LOE, hours per media changeout","uloe_throwaway"]
["Operating LOE, minutes per 100 sf per day","uloe_fp"]
["Operating LOE, minutes per instrument per day","uloe_inst"]
["Operating LOE, minutes per pump, blower, and offgas unit per day","uloe_pump"]
["Operating LOE, recording operating paramenters for automated systems","uloe_inst_auto"]
["Operating temperature","T"]
["Operator interfaces","plc_interface"]
["Overexcavation for concrete basins","overexcavate"]
["Oxidation loss during on-site regeneration","GHG_GAC_oxidation_loss"]
["Percent of Total Flow that is Bypassed","bp_pct"]
["Percent removal","P_REM_I"]
["pH_meters","tot_ph"]
["Pilot air intensity","pilot_phi"]
["Pilot rate constant","pilot_k"]
["Pipe length from water source to the boundary of the 10 foot buffer","yard_in"]
["Pipe length the boundary of the 10 foot buffer to distribution network","yard_out"]
["Pressure drop across the fan","Fan_pressure_drop"]
["Printers per x computer workstations","printer_ratio"]
["Pump head","pump_head"]
["Quiescent chamber length as a proportion of stage length","qchamber_ratio"]
["Recuperative system heat recovery","CO_rec_eff"]
["Recuperative system heat recovery","TO_rec_eff"]
["Reduction factor","Reduction"]
["Redundant CO units","NRD_CO"]
["Redundant GAC beds","NRD_GAC"]
["Redundant TO units","NRD_TO"]
["Regenerative system heat recovery","CO_reg_eff"]
["Regenerative system heat recovery","TO_reg_eff"]
["R-value for ceilings","R_ceiling"]
["R-value for walls","R_wall"]
["Safety factor for pumps","pump_safety_factor"]
["Sales tax percentage","tax_pct"]
["Soil density","soil_dens"]
["Specific heat of air","cpa"]
["Spent GAC regeneration","og_opt2_I"]
["Standard oil furnace efficiency","diesel_non_eff"]
["System automation","manual_I"]
["Technology complexity factor","complexity"]
["Technology footprint above which boreholes are needed","bore_need"]
["Test pit depth","pit_depth"]
["Test pit length","pit_length"]
["Test pit width","pit_width"]
["Trench inside angle","trench_angle"]
["UPSs","ups"]
["Use curve fit for costs","curve"]
["Valve table","valve_table"]
["Ventilation air change rate for chemical storage","Air_changes_chem_storage"]
["Ventilation air change rate for contactor","Air_changes_contactor"]
["Ventilation air change rate for offices","Air_changes_office"]
["Ventilation air change rate for pump room","Air_changes_pump"]
["VOC release at which air pollution control system is needed","max_VOC_release"]

{"sheet":"INPUT","index":2,"n_rows":76,"n_cols":9,"rows_kept":76,"cut":false,"hidden":false,"merged":[[16,6,17,7],[27,8,27,11],[13,7,14,7]]}
["MULTI-STAGE BUBBLE AERATION SYSTEM DESIGN AND COST INPUT"]
[]
[null,null,null,null,"STEP 1"]
[null,null,null,null,"Select Contaminant",null,null,{"$f":"IF(contam<>1,\"For VOCs, default designs available up to 1 MGD only, because information on using MSBA for these contaminants in larger systems is limited\",\"\")","v":""}]
[]
[null,null,null,null,"STEP 2:",null,null,{"$f":"IF(OR('Standard Inputs'!AA9,'Standard Inputs'!AA17,'Standard Inputs'!AA25,'Standard Inputs'!AA33,'Standard Inputs'!AA41,'Standard Inputs'!AA49,'Standard Inputs'!AA57,'Standard Inputs'!AA65,'Standard Inputs'!AA73,'Standard Inputs'!AA81,'Standard Inputs'!AA89,'Standard Inputs'!AA97,'Standard Inputs'!AA105,'Standard Inputs'!AA113,'Standard Inputs'!AA121),\"<- Using this design\",IF(OR('Standard Inputs'!AB9,'Standard Inputs'!AB17,'Standard Inputs'!AB25,'Standard Inputs'!AB33,'Standard Inputs'!AB41,'Standard Inputs'!AB49,'Standard Inputs'!AB57,'Standard Inputs'!AB65,'Standard Inputs'!AB73,'Standard Inputs'!AB81,'Standard Inputs'!AB97,'Standard Inputs'!AB105,'Standard Inputs'!AB113,'Standard Inputs'!AB121),\"<- You modified this design\",\"\"))","v":""},{"$f":"IF(contam=10,\" Note: standard designs not defined for other contaminants.  Use manual input or set designs on Standard Inputs page.\",\"\")","v":""}]
[null,null,null,null,"Select one of the eight standard designs at right",null,null,{"$f":"IF(OR('Standard Inputs'!AA10,'Standard Inputs'!AA18,'Standard Inputs'!AA26,'Standard Inputs'!AA34,'Standard Inputs'!AA42,'Standard Inputs'!AA50,'Standard Inputs'!AA58,'Standard Inputs'!AA66,'Standard Inputs'!AA74,'Standard Inputs'!AA82,'Standard Inputs'!AA90,'Standard Inputs'!AA98,'Standard Inputs'!AA106,'Standard Inputs'!AA114,'Standard Inputs'!AA122),\"<- Using this design\",IF(OR('Standard Inputs'!AB10,'Standard Inputs'!AB18,'Standard Inputs'!AB26,'Standard Inputs'!AB34,'Standard Inputs'!AB42,'Standard Inputs'!AB50,'Standard Inputs'!AB58,'Standard Inputs'!AB66,'Standard Inputs'!AB74,'Standard Inputs'!AB82,'Standard Inputs'!AB98,'Standard Inputs'!AB106,'Standard Inputs'!AB114,'Standard Inputs'!AB122),\"<- You modified this design\",\"\"))","v":""}]
[null,null,null,null,null,null,null,{"$f":"IF(OR('Standard Inputs'!AA11,'Standard Inputs'!AA19,'Standard Inputs'!AA27,'Standard Inputs'!AA35,'Standard Inputs'!AA43,'Standard Inputs'!AA51,'Standard Inputs'!AA59,'Standard Inputs'!AA67,'Standard Inputs'!AA75,'Standard Inputs'!AA83,'Standard Inputs'!AA91,'Standard Inputs'!AA99,'Standard Inputs'!AA107,'Standard Inputs'!AA115,'Standard Inputs'!AA123),\"<- Using this design\",IF(OR('Standard Inputs'!AB11,'Standard Inputs'!AB19,'Standard Inputs'!AB27,'Standard Inputs'!AB35,'Standard Inputs'!AB43,'Standard Inputs'!AB51,'Standard Inputs'!AB59,'Standard Inputs'!AB67,'Standard Inputs'!AB75,'Standard Inputs'!AB83,'Standard Inputs'!AB99,'Standard Inputs'!AB107,'Standard Inputs'!AB115,'Standard Inputs'!AB123),\"<- You modified this design\",\"\"))","v":"<- Using this design"}]
[null,null,null,null,"OR",null,null,{"$f":"IF(OR('Standard Inputs'!AA12,'Standard Inputs'!AA20,'Standard Inputs'!AA28,'Standard Inputs'!AA36,'Standard Inputs'!AA44,'Standard Inputs'!AA52,'Standard Inputs'!AA60,'Standard Inputs'!AA68,'Standard Inputs'!AA76,'Standard Inputs'!AA84,'Standard Inputs'!AA92,'Standard Inputs'!AA100,'Standard Inputs'!AA108,'Standard Inputs'!AA116,'Standard Inputs'!AA124),\"<- Using this design\",IF(OR('Standard Inputs'!AB12,'Standard Inputs'!AB20,'Standard Inputs'!AB28,'Standard Inputs'!AB36,'Standard Inputs'!AB44,'Standard Inputs'!AB52,'Standard Inputs'!AB60,'Standard Inputs'!AB68,'Standard Inputs'!AB76,'Standard Inputs'!AB84,'Standard Inputs'!AB100,'Standard Inputs'!AB108,'Standard Inputs'!AB116,'Standard Inputs'!AB124),\"<- You modified this design\",\"\"))","v":""}]
[null,null,null,null,null,null,null,{"$f":"IF(OR('Standard Inputs'!AA13,'Standard Inputs'!AA21,'Standard Inputs'!AA29,'Standard Inputs'!AA37,'Standard Inputs'!AA45,'Standard Inputs'!AA53,'Standard Inputs'!AA61,'Standard Inputs'!AA69,'Standard Inputs'!AA77,'Standard Inputs'!AA85,'Standard Inputs'!AA93,'Standard Inputs'!AA101,'Standard Inputs'!AA109,'Standard Inputs'!AA117,'Standard Inputs'!AA125),\"<- Using this design\",IF(OR('Standard Inputs'!AB13,'Standard Inputs'!AB21,'Standard Inputs'!AB29,'Standard Inputs'!AB37,'Standard Inputs'!AB45,'Standard Inputs'!AB53,'Standard Inputs'!AB61,'Standard Inputs'!AB69,'Standard Inputs'!AB77,'Standard Inputs'!AB85,'Standard Inputs'!AB101,'Standard Inputs'!AB109,'Standard Inputs'!AB117,'Standard Inputs'!AB125),\"<- You modified this design\",\"\"))","v":""}," See model documentation for more information on standard designs"]
[null,null,null,null,"Select \"CLEAR FOR MANUAL ENTRY\"",null,null,{"$f":"IF(OR('Standard Inputs'!AA14,'Standard Inputs'!AA22,'Standard Inputs'!AA30,'Standard Inputs'!AA38,'Standard Inputs'!AA46,'Standard Inputs'!AA54,'Standard Inputs'!AA62,'Standard Inputs'!AA70,'Standard Inputs'!AA78,'Standard Inputs'!AA86,'Standard Inputs'!AA94,'Standard Inputs'!AA102,'Standard Inputs'!AA110,'Standard Inputs'!AA118,'Standard Inputs'!AA126),\"<- Using this design\",IF(OR('Standard Inputs'!AB14,'Standard Inputs'!AB22,'Standard Inputs'!AB30,'Standard Inputs'!AB38,'Standard Inputs'!AB46,'Standard Inputs'!AB54,'Standard Inputs'!AB62,'Standard Inputs'!AB70,'Standard Inputs'!AB78,'Standard Inputs'!AB86,'Standard Inputs'!AB102,'Standard Inputs'!AB110,'Standard Inputs'!AB118,'Standard Inputs'!AB126),\"<- You modified this design\",\"\"))","v":""}]
[null,null,null,null,null,null,null,{"$f":"IF(OR('Standard Inputs'!AA15,'Standard Inputs'!AA23,'Standard Inputs'!AA31,'Standard Inputs'!AA39,'Standard Inputs'!AA47,'Standard Inputs'!AA55,'Standard Inputs'!AA63,'Standard Inputs'!AA71,'Standard Inputs'!AA79,'Standard Inputs'!AA87,'Standard Inputs'!AA95,'Standard Inputs'!AA103,'Standard Inputs'!AA111,'Standard Inputs'!AA119,'Standard Inputs'!AA127),\"<- Using this design\",IF(OR('Standard Inputs'!AB15,'Standard Inputs'!AB23,'Standard Inputs'!AB31,'Standard Inputs'!AB39,'Standard Inputs'!AB47,'Standard Inputs'!AB55,'Standard Inputs'!AB63,'Standard Inputs'!AB71,'Standard Inputs'!AB79,'Standard Inputs'!AB87,'Standard Inputs'!AB103,'Standard Inputs'!AB111,'Standard Inputs'!AB119,'Standard Inputs'!AB127),\"<- You modified this design\",\"\"))","v":""}]
[null,null,null,null,null,null,null,{"$f":"IF(OR('Standard Inputs'!AA16,'Standard Inputs'!AA24,'Standard Inputs'!AA32,'Standard Inputs'!AA40,'Standard Inputs'!AA48,'Standard Inputs'!AA56,'Standard Inputs'!AA64,'Standard Inputs'!AA72,'Standard Inputs'!AA80,'Standard Inputs'!AA88,'Standard Inputs'!AA96,'Standard Inputs'!AA104,'Standard Inputs'!AA112,'Standard Inputs'!AA120,'Standard Inputs'!AA128),\"<- Using this design\",IF(OR('Standard Inputs'!AB16,'Standard Inputs'!AB24,'Standard Inputs'!AB32,'Standard Inputs'!AB40,'Standard Inputs'!AB48,'Standard Inputs'!AB56,'Standard Inputs'!AB64,'Standard Inputs'!AB72,'Standard Inputs'!AB80,'Standard Inputs'!AB88,'Standard Inputs'!AB104,'Standard Inputs'!AB112,'Standard Inputs'!AB120,'Standard Inputs'!AB128),\"<- You modified this design\",\"\"))","v":""}]
[null,null,null,null,null,null,null,{"$f":"IF(COUNTIF(H6:H13,\"\")=8,\"Using a manual design\",\"\")","v":""}]
[null,"Used?","Valid Input?","Invalid Reason"]
[null,null,null,null,"STEP 3:"]
[null,null,null,null,"(Optional for standard designs)",null,{"$f":"IF(C18,IF('Standard Inputs'!AA131,\"Input Complete -- Results Ready\",\"Input Complete -- Press 'Generate Results'\"),\"Input Incomplete -- Check for Error Messages Below\")","v":"Input Complete -- Results Ready"}]
[null,null,{"$f":"AND(C19:C76)","v":true},null,"Enter or change values in the gold and blue cells below, under \"Manual Inputs\""]
[]
[null,null,null,null,"STEP 4:",null,null,null,"Results summary (see OUTPUT sheet for details)"]
[null,null,null,null,null,null,null,null,{"$f":"\"Direct Capital Cost: \" & IF(input_status<>\"input complete -- results ready\",\"Input incomplete\",IF(Missing_Cost,\"Missing cost!\",IF(cost_buildup_error,\"Cost buildup error!\",IF(ISERROR(direct_cost),\"Calculation error!\",TEXT(direct_cost,\"$0,0\")))))","v":"Direct Capital Cost: $143,345"}]
[null,null,null,null,{"$f":"IF(G17=\"input complete -- results ready\",\"Results are ready (no need to click button)\",\"Click here to generate results -->\")","v":"Results are ready (no need to click button)"},null,null,null,{"$f":"\"Total Capital Cost: \" & IF(input_status<>\"input complete -- results ready\",\"Input incomplete\",IF(Missing_Cost,\"Missing cost!\",IF(cost_buildup_error,\"Cost buildup error!\",IF(ISERROR(system_cost),\"Calculation error!\",TEXT(system_cost,\"$0,0\")))))","v":"Total Capital Cost: $226,052"}]
[null,null,null,null,null,null,null,null,{"$f":"\"Annual O&M Cost: \"&IF(G17=\"input complete -- results ready\",IF(ISERROR(om_cost),\"Calculation error!\",TEXT(om_cost,\"$0,0\")),\"Input incomplete\")","v":"Annual O&M Cost: $22,608"}]
[null,null,null,null,null,null,null,null,{"$f":"\"Annualized Cost: \"&IF(input_status<>\"input complete -- results ready\",\"Input incomplete\",IF(Missing_Cost,\"Missing Price!\",IF(cost_buildup_error,\"Cost buildup error!\",IF(ISERROR(Annualized_Cost),\"Calculation error!\",TEXT(Annualized_Cost,\"$0,0\")&\" (\"&useful_life&\" years at \"&Discount_rate*100&\"%)\"))))","v":"Annualized Cost: $44,423 (19.1 years at 7%)"}]
[null,null,null,null,"MANUAL INPUTS",null,null,null,{"$f":"IF(input_status=\"Input Incomplete -- check for error messages below\",\"\",IF(Missing_Cost,\"A price is not available for at least one required component. See Use? column on OUTPUT sheet.\",IF(cost_buildup_error,\"There is an Excel error in the price for at least one component. Please see the Use? column on OUTPUT sheet.\",\"\")))","v":""}]
[null,null,null,null,"Cells in gold are required; cells in blue are optional"]
[null,null,null,null,null,null,null,"Select units"]
[null,null,null,null,"Design Flow","design_flow_I",0.30499999999999999,"MGD"]
[null,null,null,null,"Average Flow","average_flow_I",9.4E-2,"MGD"]
[null,null,null,null,"For information:"]
[null,null,null,null,"Treatment system design flow",null,{"$f":"IF(ISERROR(design_flow),\"\",IF(df_units=\"gpm\",design_flow_rate, design_flow))","v":0.30499999999999999},{"$f":"IF(df_units=\"\",\"\",df_units)","v":"MGD"}]
[null,null,null,null,"Bypass design flow",null,{"$f":"IF(ISERROR(design_flow),\"\",IF(df_units=\"gpm\",bp_flow_rate, bp_flow_rate*60*24/10^6))","v":0},{"$f":"IF(df_units=\"\",\"\",df_units)","v":"MGD"},{"$f":"\"Current bypass percentage is \"&TEXT(bp_pct,\"0%\")&\".  Go to Critical Design Assumptions to change this value.\"","v":"Current bypass percentage is 0%.  Go to Critical Design Assumptions to change this value."}]
[null,null,{"$f":"IF(OR(df_units=\"\",af_units=\"\"),FALSE,IF(OR(average_flow<min_avg_flow * design_flow,average_flow>design_flow),FALSE,IF(OR(design_flow_I=0,average_flow_I=0),FALSE,TRUE)))","v":true},{"$f":"IF(OR(df_units=\"\",af_units=\"\"),\"Choose units for design and average flow\",IF(average_flow>design_flow,\"The average flow should not be greater than the design flow\",IF(average_flow<design_flow*min_avg_flow,\"The average flow must be at least \" & min_avg_flow & \" times design flow\",IF(OR(design_flow_I=0,average_flow_I=0),\"Input incomplete\",\"OK\"))))","v":"OK"},null,null,null,{"$f":"IF(C33,\"Flow Input OK\",D33)","v":"Flow Input OK"},"Adjust bypass percentage"]
[]
[null,null,{"$f":"IF(design_type_I=\"\",FALSE,TRUE)","v":true},null,"Design Type","design_type_I","pre-engineered package","<--- pick one",{"$f":"IF(design_type=1,\"Vendor packages include aboveground stainless steel, plastic, or fiberglass basins and typically are used by small systems\",IF(design_type=2,\"Custom designs use in-ground concrete basins and typically are applicable for large systems\",\"\"))","v":"Vendor packages include aboveground stainless steel, plastic, or fiberglass basins and typically are used by small systems"}]
[null,null,{"$f":"IF(num_op_tanks=\"\",FALSE,TRUE)","v":true},null,"Number of operating basins","num_op_tanks",1,"units"]
[null,null,{"$f":"IF(air_water_ratio=\"\",FALSE,TRUE)","v":true},null,"Air to water ratio","air_water_ratio",20,null,{"$f":"IF(contam=1,\"Gudiance: air to water ratios between 11:1 and 30:1 needed to obtain high radon removals (Drago, 2000). 3:1 to 30:1 will cover removal rates from 70% to 99.9% (Lowry peer review comments)\",\"Guidance: For  VOCs, typical air to water ratios are between 10:1 and 300:1\")","v":"Gudiance: air to water ratios between 11:1 and 30:1 needed to obtain high radon removals (Drago, 2000). 3:1 to 30:1 will cover removal rates from 70% to 99.9% (Lowry peer review comments)"}]
[null,null,{"$f":"IF(max_h2odepth=\"\",FALSE,TRUE)","v":true},null,"Maximum water depth","max_h2odepth",3,"feet",{"$f":"IF(contam=1,\"Guidance: practical water depths for radon removal are 2 to 3 feet; 4 feet can increase removal, but is less economical (Lowry peer review comments)\",\"Guidance: VOCs require no more than 2 to 3 feet water depth, beyond this depth no significant gain is realized (Lowry peer review comments)\")","v":"Guidance: practical water depths for radon removal are 2 to 3 feet; 4 feet can increase removal, but is less economical (Lowry peer review comments)"}]
[null,null,{"$f":"IF(stages=\"\",FALSE,TRUE)","v":true},null,"Number of stages","stages",6,null,{"$f":"IF(contam=1,\"Guidance: practical designs for radon removal use 3 to 8 stages; recommend 6 stages (Lowry and Drago peer review comments)\",\"Guidance: for VOCs, minimum of 6 stages, maximum of 12 stages, vendor uses 8 stages for most applications (Lowry peer review comments)\")","v":"Guidance: practical designs for radon removal use 3 to 8 stages; recommend 6 stages (Lowry and Drago peer review comments)"}]
[null,null,null,null,"Pilot rate constant","pilot_k",null,"1/min"]
[null,null,null,null,"Pilot air intensity","pilot_phi",null,"cfm/cubic ft"]
[null,null,null,null,"For information:"]
[null,null,null,null,"Theoretical Percent Removal",null,{"$f":"IF(NOT(C51),\"\",p_rem)","v":0.99569335511465951},null,{"$f":"IF(AND(contam<>1,OR(pilot_k=\"\",pilot_phi=\"\")),\"Enter pilot rate constant and air intensity to estimate percent removal\",\"Estimate only, based on \"&IF(contam=1,\"equation presented in Drago (2000)\",\"pilot rate constant and air intensity\")&\". To increase, increase air to water ratio and/or number of stages\")","v":"Estimate only, based on equation presented in Drago (2000). To increase, increase air to water ratio and/or number of stages"}]
[null,null,null,null,"Number of Basins (including redundancy)",null,{"$f":"IF(NOT(C51),\"\",num_tanks)","v":1},"units"]
[null,null,null,null,"Basin Length (including quiescent chamber)",null,{"$f":"IF(NOT(C51),\"\",tank_length)","v":8},"feet"]
[null,null,null,null,"Basin Width",null,{"$f":"IF(NOT(C51),\"\",tank_width)","v":5},"feet"]
[null,null,null,null,"Basin Height (including freeboard)",null,{"$f":"IF(NOT(C51),\"\",tank_depth)","v":5},"feet","Adjust freeboard"]
[null,null,null,null,"Diffusers per stage",null,{"$f":"IF(NOT(C51),\"\",diffusers_per_stage)","v":3},"units"]
[null,null,null,null,"Total diffusers",null,{"$f":"IF(NOT(C51),\"\",total_diffusers)","v":18},"units"]
[null,null,{"$f":"IF(design_type_I=\"\",\"\",IF(ISERROR(tank_length),\"\",IF(tank_length>max_length,FALSE,TRUE)))","v":true},{"$f":"IF(NOT(AND(C35:C39)),\"\",IF(NOT(C50),\"Hint:\"&IF(design_type=1,\" use custom design or\",\"\")&\" increase number of basins or decrease air to water ratio\",\"\"))","v":""},null,null,null,{"$f":"D50","v":""},"Adjust basin length constraints"]
[null,null,{"$f":"AND(C35:C50)","v":true},{"$f":"IF(NOT(AND(C35:C39)),\"Basin inputs incomplete\",IF(NOT(C50),\"Warning: basins too long\",\"OK\"))","v":"OK"},null,null,null,{"$f":"IF(C51,\"Basin Inputs OK\",D51)","v":"Basin Inputs OK"},"Adjust diffuser access space requirements"]
[]
[null,null,{"$f":"IF(contam=1,TRUE,NOT(influent_conc=\"\"))","v":true},null,"Influent water concentration","influent_conc",null,{"$f":"IF(contam=1,\"not required\",\"ug/L\")","v":"not required"},"Used only to determine whether air pollution control might be required; not part of system design"]
[null,null,{"$f":"IF(contam=1,TRUE,OR(P_REM_I<>\"\",AND(pilot_k<>\"\",pilot_phi<>\"\")))","v":true},null,"Percent removal","P_REM_I",null,{"$f":"IF(OR(contam=1,AND(pilot_k<>\"\",pilot_phi<>\"\")),\"not required\",\"\")","v":"not required"},{"$f":"IF(H54=\"not required\",\"Using theoretical removal from above\",\"Used only to determine whether air pollution control might be required; not part of system design\")","v":"Using theoretical removal from above"}]
[null,null,{"$f":"IF(contam=1,TRUE,NOT(max_VOC_release=\"\"))","v":true},null,"VOC release at which air pollution control system is needed","max_VOC_release",null,{"$f":"IF(contam=1,\"not required\",\"lbs/day\")","v":"not required"},"CMRP (2000) states this is the maximum emission level for all VOCs for California South Coast AQMD, but other districts may require different emissions standards based on location of the site and regional ambient air quality."]
[null,null,null,null,"For information:",null,{"$f":"IF(contam=1,\"Available off-gas control options not relevant for radon\",IF(max_VOC_release=\"\",\"\",IF(VOC_Release>max_VOC_release,\"Off-gas control system may be required if contaminant is a VOC\",\"Off-gas control system may not be required\")))","v":"Available off-gas control options not relevant for radon"}]
[]
[null,null,{"$f":"IF(contam=1,TRUE,NOT(Offgas_Tech_I=\"\"))","v":true},null,"Off-gas pollution control technology","Offgas_Tech_I",null,{"$f":"IF(contam=1,\"not required\",\"<--- pick one\")","v":"not required"}]
[null,{"$f":"OR(Offgas_Tech=2,Offgas_Tech=3)","v":false},{"$f":"IF(B59,NOT(og_opt1_I=\"\"),TRUE)","v":true},null,"Heat recovery type","og_opt1_I",null,{"$f":"IF(NOT(B59),\"not required\",\"<--- pick one\")","v":"not required"}]
[null,{"$f":"Offgas_Tech=1","v":false},{"$f":"IF(B60,NOT(og_opt2_I=\"\"),TRUE)","v":true},null,"Spent GAC regeneration","og_opt2_I",null,{"$f":"IF(NOT(B60),\"not required\",\"<--- pick one\")","v":"not required"}]
[null,{"$f":"Offgas_Tech=1","v":false},{"$f":"IF(B60,NOT(og_opt3=\"\"),TRUE)","v":true},null,"GAC bed life","og_opt3",null,{"$f":"IF(NOT(B61),\"not required\",\"months\")","v":"not required"}]
[null,null,{"$f":"IF(NOT(AND(C53:C55,C58:C61)),FALSE,TRUE)","v":true},{"$f":"IF(NOT(C62),\"Offgas Inputs Incomplete\",\"OK\")","v":"OK"},null,null,null,{"$f":"IF(C62,\"Off-gas Inputs OK\",D62)","v":"Off-gas Inputs OK"}]
[]
[null,null,null,null,"Number of booster pumps","num_pumps_I",null,"pumps","Enter 0 to exclude booster pumps (i.e., use existing pumps). Clear cell to accept model defaults (included for all sizes in this technology)"]
[null,null,{"$f":"IF(ISERROR(pump_rating),FALSE,IF(pump_rating>max_pump_size,FALSE,TRUE))","v":true},{"$f":"IF(NOT(C65),\"Warning: insufficient number of pumps\",\"\")","v":""},"For information: # of booster pumps",null,{"$f":"IF(ISERROR(total_pumps),\"\",total_pumps)","v":2},"pumps"]
[null,null,null,null,"Number of blowers","num_blowers_I",null,"blowers","Designs should always include at least one blower. Leave blank to accept model default calculations."]
[null,null,{"$f":"IF(ISERROR(blower_rating),FALSE,IF(blower_rating>max_blow_size,FALSE,TRUE))","v":true},{"$f":"IF(NOT(C67),\"Warning: insufficient number of blowers\",\"\")","v":""},"For information: # of blowers (including redundancy)",null,{"$f":"IF(ISERROR(total_blowers),\"\",total_blowers)","v":2},"blowers","Adjust number of redundant blowers"]
[null,null,null,null,"Number of redundant basins to be added","NRD_I",null,"units","Leave blank to accept redundancy specified in critical design assumptions"]
[null,null,null,null,"For information: Redundant basins",null,{"$f":"IF(NRD_I=\"\",NRD_tanks,NRD_I)","v":0},"units"]
[null,null,null,null,"Component level","component_level_I",null,"<-- pick or leave blank","Leave blank to use low cost components"]
[null,null,null,null,"System automation","manual_I",null,"<-- pick or leave blank","Leave blank to allow model to pick based on component level"]
[null,null,null,null,"For information: Component level",null,{"$f":"IF(component_level=2,\"high cost\",IF(component_level=1,\"mid cost\",\"low cost\"))","v":"low cost"}]
[null,null,null,null,"Automation",null,{"$f":"IF(manual=1,\"manual\",IF(manual=2,\"semi-automated\",IF(manual=3,\"fully automated\")))","v":"manual"}]
[null,null,null,null,null,null,null,{"$f":"D65","v":""}]
[null,null,null,null,null,null,null,{"$f":"D67","v":""}]
[null,null,{"$f":"IF(NOT(AND(C65,C67)),FALSE,TRUE)","v":true},{"$f":"IF(NOT(C76),\"Optional Inputs Incomplete\",\"OK\")","v":"OK"},null,null,null,{"$f":"IF(C76,\"Optional Inputs OK\",D76)","v":"Optional Inputs OK"}]

{"sheet":"OUTPUT","index":3,"n_rows":299,"n_cols":25,"rows_kept":299,"cut":false,"hidden":false,"merged":[[27,0,29,0],[27,1,29,1],[232,8,232,11],[228,2,228,3],[27,11,29,11],[27,2,29,3],[27,4,29,5],[27,6,29,7],[27,8,29,8],[27,9,29,9],[27,10,29,10],[27,22,28,23],[228,4,228,5],[27,12,29,12],[27,13,27,21],[28,13,28,15],[28,16,28,18],[28,19,28,21]]}
["OUTPUT SUMMARY"]
[null,"Parameter","Value","Units"]
[null,"Technology","MSBA"]
[null,"Contaminant Type",{"$f":"VLOOKUP(contam,contaminant_lookup,2,FALSE)","v":"Radon"}]
[null,"System Size Category",{"$f":"IF(design_flow<1,\"small\",\"large\")","v":"small"}]
[null,"Design Flow",{"$f":"design_flow","v":0.30499999999999999},"MGD (excludes bypass flow)"]
[null,"Average Flow",{"$f":"average_flow","v":9.4E-2},"MGD (excludes bypass flow)"]
[null,"Number of Basins ",{"$f":"num_tanks","v":1},"units"]
[null,"Number of Stages per Basin",{"$f":"stages","v":6},"stages"]
[null,"Basin Length",{"$f":"tank_length","v":8},"feet"]
[null,"Basin Width",{"$f":"tank_width","v":5},"feet"]
[null,"Basin Height",{"$f":"tank_depth","v":5},"feet"]
[null,"Diffusers per Stage",{"$f":"diffusers_per_stage","v":3},"units"]
[null,"Total diffusers",{"$f":"total_diffusers","v":18},"units"]
[null,"Off-Gas Treatment",{"$f":"IF(Offgas_Tech_I=\"\",\"none\",Offgas_Tech_I)","v":"none"}]
[null,{"$f":"\"Resulting Costs (in year \"&TEXT(current_year_cl,0)&\" dollars)\"","v":"Resulting Costs (in year 2016 dollars)"}]
[null,"Direct Capital Cost",{"$f":"IF(input_status<>\"input complete -- results ready\",\"Input incomplete\",IF(Missing_Cost,\"Missing cost!\",IF(cost_buildup_error,\"Error in buildup!\",direct_cost)))","v":143345.28554286377},"Details"]
[null,"Add-on Cost",{"$f":"IF(input_status<>\"input complete -- results ready\",\"Input incomplete\",addon_cost)","v":16305.900030771289},"Details"]
[null,"Indirect Capital Cost",{"$f":"IF(input_status<>\"input complete -- results ready\",\"Input incomplete\",C216)","v":66400.913458610914},"Details"]
[null,"Total Capital Cost",{"$f":"IF(input_status<>\"input complete -- results ready\",\"Input incomplete\",IF(Missing_Cost,\"Missing cost!\",IF(cost_buildup_error,\"Error in buildup!\",C226)))","v":226052.09903224598},"Details"]
[null,"Annual O&M Cost",{"$f":"IF(input_status<>\"input complete -- results ready\",\"Input incomplete\",om_cost)","v":22608.077837023131},"Details"]
[null,{"$f":"\"Annualized Cost \"&IF(OR(input_status<>\"input complete -- results ready\",Missing_Cost,cost_buildup_error),\"\",\"(\"&useful_life&\" years at \"&Discount_rate*100&\"%)\")","v":"Annualized Cost (19.1 years at 7%)"},{"$f":"IF(input_status<>\"input complete -- results ready\",\"Input incomplete\",IF(Missing_Cost,\"Missing cost!\",IF(cost_buildup_error,\"Error in buildup!\",Annualized_Cost)))","v":44422.993303663257},"Details"]
[null,"Per 1,000 gallons average flow",{"$f":"IF(input_status<>\"input complete -- results ready\",\"Input incomplete\",IF(Missing_Cost,\"Missing cost!\",IF(cost_buildup_error,\"Error in buildup!\",C273)))","v":1.2947535209461749}]
[null,"Per household per year",{"$f":"IF(input_status<>\"input complete -- results ready\",\"Input incomplete\",IF(Missing_Cost,\"Missing cost!\",IF(cost_buildup_error,\"Error in buildup!\",C274)))","v":154.74166689159708}]
[]
[]
["Direct Capital Cost Details (items in italics, without a 1 in the \"Use?\" column, represent alternate costs and are excluded from total)"]
["WBS #","Item","Design Quantity",null,"Design Size",null,"Size used in estimate",null,"Unit Cost","Total Cost","Useful Life","Use?","Full Line Item Name","Priority selection",null,null,null,null,null,null,null,null,"Useful Life"]
[null,null,null,null,null,null,null,null,null,null,null,null,null,"Small (<1 mgd)",null,null,"Medium (1-10 mgd)",null,null,"Large (>10 mgd)"]
[null,null,null,null,null,null,null,null,null,null,null,null,null,"Low","Mid","High","Low","Mid","High","Low","Mid","High","Count?","Depreciation"]
["1.","Aeration Basins"]
["1.1","Custom Designed"]
["1.1.1","Concrete",{"$f":"IF(design_type=1,0,num_tanks)","v":0},"units",{"$f":"IF(C33=0,\"NA\",tank_vol)","v":"NA"},{"$f":"IF(C33=0,\"\",\"gal/basin\")","v":""},{"$f":"IF(C33=0,\"NA\",tank_vol)","v":"NA"},{"$f":"IF(C33=0,\"\",\"gal/basin\")","v":""},{"$f":"IF(C33=0,\"NA\",conc_volume/num_tanks*VLOOKUP(0,conc_basin_cost_cl,3))","v":"NA"},{"$f":"IF(C33=0,\"--\",IF(I33=\"contact vendor\",\"--\",C33*I33))","v":"--"},{"$f":"IF(C33=0,\"NA\",VLOOKUP(0,conc_basin_cost_cl,IF(ss_cat=\"large\",4,5)))","v":"NA"},null,{"$f":"$B$31&\" - \"&$B$32&\" - \"&B33","v":"Aeration Basins - Custom Designed - Concrete"},1,1,1,1,1,1,1,1,1,{"$f":"IF(ISERROR(K33*L33),0,IF(K33<1,0,L33))","v":0},{"$f":"IF(W33,J33/K33,0)","v":0}]
["1.1.2","Excavation",{"$f":"IF(design_type=1,0,excavation_vol)","v":0},"cy","NA",null,"NA",null,{"$f":"IF(C34=0,\"NA\",VLOOKUP(0,excavate_cost_cl,3))","v":"NA"},{"$f":"IF(C34=0,\"--\",IF(I34=\"contact vendor\",\"--\",C34*I34))","v":"--"},{"$f":"IF(C34=0,\"NA\",VLOOKUP(0,conc_basin_cost_cl,IF(ss_cat=\"large\",4,5)))","v":"NA"},null,{"$f":"$B$31&\" - \"&$B$32&\" - \"&B34","v":"Aeration Basins - Custom Designed - Excavation"},1,1,1,1,1,1,1,1,1,0,0]
["1.1.3","Backfill and Compaction",{"$f":"IF(design_type=1,0,backfill_vol)","v":0},"cy","NA",null,"NA",null,{"$f":"IF(C35=0,\"NA\",VLOOKUP(0,backfill_cost_cl,3))","v":"NA"},{"$f":"IF(C35=0,\"--\",IF(I35=\"contact vendor\",\"--\",C35*I35))","v":"--"},{"$f":"IF(C35=0,\"NA\",VLOOKUP(0,conc_basin_cost_cl,IF(ss_cat=\"large\",4,5)))","v":"NA"},null,{"$f":"$B$31&\" - \"&$B$32&\" - \"&B35","v":"Aeration Basins - Custom Designed - Backfill and Compaction"},1,1,1,1,1,1,1,1,1,0,0]
["1.1.4","Steel Cover",{"$f":"IF(design_type=1,0,cover_sf)","v":0},"sf","NA",null,"NA",null,{"$f":"IF(C36=0,\"NA\",VLOOKUP(\"checkered plate platform\",metal_cost_cl,3))","v":"NA"},{"$f":"IF(C36=0,\"--\",IF(I36=\"contact vendor\",\"--\",C36*I36))","v":"--"},{"$f":"IF(C36=0,\"NA\",VLOOKUP(\"checkered plate platform\",metal_cost_cl,IF(ss_cat=\"large\",4,5)))","v":"NA"},null,{"$f":"$B$31&\" - \"&$B$32&\" - \"&B36","v":"Aeration Basins - Custom Designed - Steel Cover"},1,1,1,1,1,1,1,1,1,0,0]
["1.1.5","Membrane Baffles",{"$f":"IF(design_type=1,0,num_baffles)","v":0},"units",{"$f":"IF(C37=0,\"NA\",baffle_area)","v":"NA"},{"$f":"IF($C37=0,\"\",\"sf/baffle\")","v":""},{"$f":"IF(C37=0,\"NA\",IF(curve=1,baffle_area,VLOOKUP(baffle_area,baffle_cost_cl,2)))","v":"NA"},{"$f":"IF($C37=0,\"\",\"sf/baffle\")","v":""},{"$f":"IF(C37=0,\"NA\",IF(curve=1,baffle_eq,VLOOKUP(baffle_area,baffle_cost_cl,3)))","v":"NA"},{"$f":"IF(C37=0,\"--\",IF(I37=\"contact vendor\",\"--\",C37*I37))","v":"--"},{"$f":"IF(C37=0,\"NA\",VLOOKUP(baffle_area,baffle_cost_cl,IF(ss_cat=\"large\",4,5)))","v":"NA"},null,{"$f":"$B$31&\" - \"&$B$32&\" - \"&B37","v":"Aeration Basins - Custom Designed - Membrane Baffles"},1,1,1,1,1,1,1,1,1,{"$f":"IF(ISERROR(K37*L37),0,IF(K37<1,0,L37))","v":0},{"$f":"IF(W37,J37/K37,0)","v":0}]
["1.2","Pre-engineered Package",null,null,null,null,null,null,null,null,null,null,null,null,null,null,null,null,null,null,null,null,0,0]
["1.2.1","Stainless Steel",{"$f":"IF(design_type=1,num_tanks,0)","v":1},"units",{"$f":"IF(C39=0,\"NA\",tank_sf)","v":360},{"$f":"IF(C39=0,\"\",\"sf\")","v":"sf"},{"$f":"IF(C39=0,\"NA\",IF(curve=1,tank_sf,VLOOKUP(tank_sf,ss_basin_cost_cl,2)))","v":360},{"$f":"IF(C39=0,\"\",\"sf\")","v":"sf"},{"$f":"IF(C39=0,\"NA\",IF(curve=1,ss_tank_eq,VLOOKUP(tank_sf,ss_basin_cost_cl,3)))","v":34947.51163572001},{"$f":"IF(C39=0,\"--\",IF(I39=\"contact vendor\",\"--\",C39*I39))","v":34947.51163572001},{"$f":"IF(C39=0,\"NA\",VLOOKUP(tank_sf,ss_basin_cost_cl,IF(ss_cat=\"large\",4,5)))","v":30},0,{"$f":"$B$31&\" - \"&$B$38&\" - \"&B39","v":"Aeration Basins - Pre-engineered Package - Stainless Steel"},3,2,1,3,2,1,3,2,1,0,0]
["1.2.1","Plastic",{"$f":"IF(design_type=1,num_tanks,0)","v":1},"units",{"$f":"IF(C40=0,\"NA\",tank_sf)","v":360},{"$f":"IF(C40=0,\"\",\"sf\")","v":"sf"},{"$f":"IF(C40=0,\"NA\",IF(curve=1,tank_sf,VLOOKUP(tank_sf,pl_basin_cost_cl,2)))","v":360},{"$f":"IF(C40=0,\"\",\"sf\")","v":"sf"},{"$f":"IF(C40=0,\"NA\",IF(curve=1,pl_tank_eq,VLOOKUP(tank_sf,pl_basin_cost_cl,3)))","v":"contact vendor"},"--",{"$f":"IF(C40=0,\"NA\",VLOOKUP(tank_sf,pl_basin_cost_cl,IF(ss_cat=\"large\",4,5)))","v":20},0,{"$f":"$B$31&\" - \"&$B$38&\" - \"&B40","v":"Aeration Basins - Pre-engineered Package - Plastic"},1,3,3,1,3,3,1,3,3,0,0]
["1.2.1","Fiberglass",{"$f":"IF(design_type=1,num_tanks,0)","v":1},"units",{"$f":"IF(C41=0,\"NA\",tank_sf)","v":360},"sf",{"$f":"IF(C41=0,\"NA\",IF(curve=1,tank_sf,VLOOKUP(tank_vol,fg_basin_cost_cl,2)))","v":360},"sf",{"$f":"IF(C41=0,\"NA\",IF(curve=1,fg_tank_eq,VLOOKUP(tank_sf,fg_basin_cost_cl,3)))","v":17989.949379603644},17989.949379603644,{"$f":"IF(C41=0,\"NA\",VLOOKUP(tank_sf,fg_basin_cost_cl,IF(ss_cat=\"large\",4,5)))","v":20},1,{"$f":"$B$31&\" - \"&$B$38&\" - \"&B41","v":"Aeration Basins - Pre-engineered Package - Fiberglass"},2,1,2,2,1,2,2,1,2,1,899.49746898018225]
["1.3","Aerators",null,null,null,null,null,null,null,null,null,null,null,null,null,null,null,null,null,null,null,null,0,0]
["1.3.1","Diffusers",{"$f":"total_diffusers","v":18},"units",{"$f":"diffuser_size","v":31.462500825245925},"cfm",{"$f":"IF(curve=1,diffuser_size,VLOOKUP(diffuser_size,diffuser_cost_cl,2))","v":31.462500825245925},"cfm",{"$f":"IF(curve=1,diffuser_eq,VLOOKUP(diffuser_size,diffuser_cost_cl,3))","v":55.471022139220096},{"$f":"IF(C43=0,\"--\",IF(I43=\"contact vendor\",\"--\",C43*I43))","v":998.47839850596176},{"$f":"VLOOKUP(diffuser_size,diffuser_cost_cl,IF(ss_cat=\"large\",4,5))","v":10},1,{"$f":"$B$31&\" - \"&$B$42&\" - \"&B43","v":"Aeration Basins - Aerators - Diffusers"},1,1,1,1,1,1,1,1,1,1,99.847839850596174]
["2.","Pumps and Blowers",null,null,null,null,null,null,null,null,null,null,null,null,null,null,null,null,null,null,null,null,0,0]
[2.1,"Booster Pumps",{"$f":"total_pumps","v":2},"units",{"$f":"IF(C45=0,\"NA\",pump_rating)","v":132.37847222222223},{"$f":"IF(C45=0,\"\",\"gpm\")","v":"gpm"},{"$f":"IF(C45=0,\"NA\",IF(curve=1,pump_rating,VLOOKUP(pump_rating,dis75_pump_cost_cl,2)))","v":132.37847222222223},{"$f":"IF(C45=0,\"\",\"gpm\")","v":"gpm"},{"$f":"IF(C45=0,\"NA\",IF(curve=1,pump_eq,VLOOKUP(pump_rating,dis75_pump_cost_cl,3)))","v":7411.6140247768999},{"$f":"IF(C45=0,\"--\",IF(I45=\"contact vendor\",\"--\",C45*I45))","v":14823.2280495538},{"$f":"IF(C45=0,\"NA\",VLOOKUP(pump_rating,dis75_pump_cost_cl,IF(ss_cat=\"large\",4,5)))","v":17},1,{"$f":"B44&\" - \"&B45","v":"Pumps and Blowers - Booster Pumps"},1,1,1,1,1,1,1,1,1,1,871.95459115022356]
[2.2000000000000002,"Centrifugal Blowers",{"$f":"total_blowers","v":2},"units",{"$f":"blower_rating","v":707.90626856803328},"cfm",{"$f":"IF(curve=1,blower_rating,VLOOKUP(blower_rating,cent_blow_cost_cl,2))","v":707.90626856803328},"cfm",{"$f":"IF(curve=1,cent_blow_eq,VLOOKUP(blower_rating,cent_blow_cost_cl,3))","v":39675.071836783944},79350.143673567887,{"$f":"VLOOKUP(blower_rating,cent_blow_cost_cl,IF(ss_cat=\"large\",4,5))","v":20},1,{"$f":"B44&\" - \"&B46","v":"Pumps and Blowers - Centrifugal Blowers"},1,1,1,1,1,1,1,1,1,1,3967.5071836783945]
["3.","Piping",null,null,null,null,null,null,null,null,null,null,null,null,null,null,null,null,null,null,null,null,0,0]
["3.1","Process Piping",null,null,null,null,null,null,null,null,null,null,null,null,null,null,null,null,null,null,null,null,0,0]
["3.1.1","Ductile Iron",{"$f":"h2o_pipe_length","v":40},"lf",{"$f":"h2o_pipe_diam","v":4},"in. diam",{"$f":"IF(curve=1,h2o_pipe_diam,VLOOKUP(h2o_pipe_diam,di_pipe_cost_cl,2))","v":4},"in. diam",{"$f":"IF(curve=1,di_pipe_eq_h2o,VLOOKUP(h2o_pipe_diam,di_pipe_cost_cl,3))","v":32.406244669000003},{"$f":"IF(C49=0,\"--\",IF(I49=\"contact vendor\",\"--\",C49*I49))","v":1296.24978676},{"$f":"VLOOKUP(h2o_pipe_diam,di_pipe_cost_cl,IF(ss_cat=\"large\",4,5))","v":35},0,{"$f":"$B$48&\" - \"&B49","v":"Process Piping - Ductile Iron"},3,3,3,3,3,3,3,3,3,0,0]
["3.1.1","CPVC",{"$f":"h2o_pipe_length","v":40},"lf",{"$f":"h2o_pipe_diam","v":4},"in. diam",{"$f":"IF(curve=1,h2o_pipe_diam,VLOOKUP(h2o_pipe_diam,cpvc_pipe_cost_cl,2))","v":4},"in. diam",{"$f":"IF(curve=1,cpvc_pipe_eq_h2o,VLOOKUP(h2o_pipe_diam,cpvc_pipe_cost_cl,3))","v":22.326215179000002},893.04860716000007,{"$f":"VLOOKUP(h2o_pipe_diam,cpvc_pipe_cost_cl,IF(ss_cat=\"large\",4,5))","v":17},0,{"$f":"$B$48&\" - \"&B50","v":"Process Piping - CPVC"},2,1,4,2,1,4,2,1,4,0,0]
["3.1.1","PVC",{"$f":"h2o_pipe_length","v":40},"lf",{"$f":"h2o_pipe_diam","v":4},"in. diam",{"$f":"IF(curve=1,h2o_pipe_diam,VLOOKUP(h2o_pipe_diam,pvc_pipe_cost_cl,2))","v":4},"in. diam",{"$f":"IF(curve=1,pvc_pipe_eq_h2o,VLOOKUP(h2o_pipe_diam,pvc_pipe_cost_cl,3))","v":4.7955001090000007},191.82000436000004,{"$f":"VLOOKUP(h2o_pipe_diam,pvc_pipe_cost_cl,IF(ss_cat=\"large\",4,5))","v":17},1,{"$f":"$B$48&\" - \"&B51","v":"Process Piping - PVC"},1,2,5,1,2,5,1,2,5,1,11.283529668235296]
["3.1.1","Stainless Steel",{"$f":"h2o_pipe_length","v":40},"lf",{"$f":"h2o_pipe_diam","v":4},"in. diam",{"$f":"IF(curve=1,h2o_pipe_diam,VLOOKUP(h2o_pipe_diam,ss_pipe_cost_cl,2))","v":4},"in. diam",{"$f":"IF(curve=1,ss_pipe_eq_h2o,VLOOKUP(h2o_pipe_diam,ss_pipe_cost_cl,3))","v":119.13106183815646},4765.2424735262584,{"$f":"VLOOKUP(h2o_pipe_diam,ss_pipe_cost_cl,IF(ss_cat=\"large\",4,5))","v":40},0,{"$f":"$B$48&\" - \"&B52","v":"Process Piping - Stainless Steel"},5,5,1,5,5,1,5,5,1,0,0]
["3.1.1","Steel",{"$f":"h2o_pipe_length","v":40},"lf",{"$f":"h2o_pipe_diam","v":4},"in. diam",{"$f":"IF(curve=1,h2o_pipe_diam,VLOOKUP(h2o_pipe_diam,st_pipe_cost_cl,2))","v":4},"in. diam",{"$f":"IF(curve=1,st_pipe_eq_h2o,VLOOKUP(h2o_pipe_diam,st_pipe_cost_cl,3))","v":69.323338454999998},2772.9335381999999,{"$f":"VLOOKUP(h2o_pipe_diam,st_pipe_cost_cl,IF(ss_cat=\"large\",4,5))","v":33},0,{"$f":"$B$48&\" - \"&B53","v":"Process Piping - Steel"},4,4,2,4,4,2,4,4,2,0,0]
["3.2","Air Piping",null,null,null,null,null,null,null,null,null,null,null,null,null,null,null,null,null,null,null,null,0,0]
["3.2.1","Ductile Iron",{"$f":"air_pipe_length","v":82},"lf",{"$f":"air_pipe_diam","v":4},"in. diam",{"$f":"IF(curve=1,air_pipe_diam,VLOOKUP(air_pipe_diam,di_pipe_cost_cl,2))","v":4},"in. diam",{"$f":"IF(curve=1,di_pipe_eq_air,VLOOKUP(air_pipe_diam,di_pipe_cost_cl,3))","v":32.406244669000003},{"$f":"IF(C55=0,\"--\",IF(I55=\"contact vendor\",\"--\",C55*I55))","v":2657.3120628580004},{"$f":"VLOOKUP(air_pipe_diam,di_pipe_cost_cl,IF(ss_cat=\"large\",4,5))","v":35},0,{"$f":"$B$54&\" - \"&B55","v":"Air Piping - Ductile Iron"},3,3,3,3,3,3,3,3,3,0,0]
["3.2.1","CPVC",{"$f":"air_pipe_length","v":82},"lf",{"$f":"air_pipe_diam","v":4},"in. diam",{"$f":"IF(curve=1,air_pipe_diam,VLOOKUP(air_pipe_diam,cpvc_pipe_cost_cl,2))","v":4},"in. diam",{"$f":"IF(curve=1,cpvc_pipe_eq_air,VLOOKUP(air_pipe_diam,cpvc_pipe_cost_cl,3))","v":22.326215179000002},1830.7496446780001,{"$f":"VLOOKUP(air_pipe_diam,cpvc_pipe_cost_cl,IF(ss_cat=\"large\",4,5))","v":17},0,{"$f":"$B$54&\" - \"&B56","v":"Air Piping - CPVC"},2,1,4,2,1,4,2,1,4,0,0]
["3.2.1","PVC",{"$f":"air_pipe_length","v":82},"lf",{"$f":"air_pipe_diam","v":4},"in. diam",{"$f":"IF(curve=1,air_pipe_diam,VLOOKUP(air_pipe_diam,pvc_pipe_cost_cl,2))","v":4},"in. diam",{"$f":"IF(curve=1,pvc_pipe_eq_air,VLOOKUP(air_pipe_diam,pvc_pipe_cost_cl,3))","v":4.7955001090000007},393.23100893800006,{"$f":"VLOOKUP(air_pipe_diam,pvc_pipe_cost_cl,IF(ss_cat=\"large\",4,5))","v":17},1,{"$f":"$B$54&\" - \"&B57","v":"Air Piping - PVC"},1,2,5,1,2,5,1,2,5,1,23.131235819882356]
["3.2.1","Stainless Steel",{"$f":"air_pipe_length","v":82},"lf",{"$f":"air_pipe_diam","v":4},"in. diam",{"$f":"IF(curve=1,air_pipe_diam,VLOOKUP(air_pipe_diam,ss_pipe_cost_cl,2))","v":4},"in. diam",{"$f":"IF(curve=1,ss_pipe_eq_air,VLOOKUP(air_pipe_diam,ss_pipe_cost_cl,3))","v":119.13106183815646},9768.7470707288285,{"$f":"VLOOKUP(air_pipe_diam,ss_pipe_cost_cl,IF(ss_cat=\"large\",4,5))","v":40},0,{"$f":"$B$54&\" - \"&B58","v":"Air Piping - Stainless Steel"},5,5,1,5,5,1,5,5,1,0,0]
["3.2.1","Steel",{"$f":"air_pipe_length","v":82},"lf",{"$f":"air_pipe_diam","v":4},"in. diam",{"$f":"IF(curve=1,air_pipe_diam,VLOOKUP(air_pipe_diam,st_pipe_cost_cl,2))","v":4},"in. diam",{"$f":"IF(curve=1,st_pipe_eq_air,VLOOKUP(air_pipe_diam,st_pipe_cost_cl,3))","v":69.323338454999998},5684.5137533099996,{"$f":"VLOOKUP(air_pipe_diam,st_pipe_cost_cl,IF(ss_cat=\"large\",4,5))","v":33},0,{"$f":"$B$54&\" - \"&B59","v":"Air Piping - Steel"},4,4,2,4,4,2,4,4,2,0,0]
["3.3","Inlet and Outlet Piping",null,null,null,null,null,null,null,null,null,null,null,null,null,null,null,null,null,null,null,null,0,0]
["3.3.1","Ductile Iron",{"$f":"in_out_pipe_length","v":40},"lf",{"$f":"in_out_pipe_diam","v":4},"in. diam",{"$f":"IF(curve=1,in_out_pipe_diam,VLOOKUP(in_out_pipe_diam,di_pipe_cost_cl,2))","v":4},"in. diam",{"$f":"IF(curve=1,di_pipe_eq_in_out,VLOOKUP(in_out_pipe_diam,di_pipe_cost_cl,3))","v":32.406244669000003},{"$f":"IF(C61=0,\"--\",IF(I61=\"contact vendor\",\"--\",C61*I61))","v":1296.24978676},{"$f":"VLOOKUP(in_out_pipe_diam,di_pipe_cost_cl,IF(ss_cat=\"large\",4,5))","v":35},0,{"$f":"$B$60&\" - \"&B61","v":"Inlet and Outlet Piping - Ductile Iron"},3,3,3,3,3,3,3,3,3,0,0]
["3.3.1","CPVC",{"$f":"in_out_pipe_length","v":40},"lf",{"$f":"in_out_pipe_diam","v":4},"in. diam",{"$f":"IF(curve=1,in_out_pipe_diam,VLOOKUP(in_out_pipe_diam,cpvc_pipe_cost_cl,2))","v":4},"in. diam",{"$f":"IF(curve=1,cpvc_pipe_eq_in_out,VLOOKUP(in_out_pipe_diam,cpvc_pipe_cost_cl,3))","v":22.326215179000002},893.04860716000007,{"$f":"VLOOKUP(in_out_pipe_diam,cpvc_pipe_cost_cl,IF(ss_cat=\"large\",4,5))","v":17},0,{"$f":"$B$60&\" - \"&B62","v":"Inlet and Outlet Piping - CPVC"},2,1,4,2,1,4,2,1,4,0,0]
["3.3.1","PVC",{"$f":"in_out_pipe_length","v":40},"lf",{"$f":"in_out_pipe_diam","v":4},"in. diam",{"$f":"IF(curve=1,in_out_pipe_diam,VLOOKUP(in_out_pipe_diam,pvc_pipe_cost_cl,2))","v":4},"in. diam",{"$f":"IF(curve=1,pvc_pipe_eq_in_out,VLOOKUP(in_out_pipe_diam,pvc_pipe_cost_cl,3))","v":4.7955001090000007},191.82000436000004,{"$f":"VLOOKUP(in_out_pipe_diam,pvc_pipe_cost_cl,IF(ss_cat=\"large\",4,5))","v":17},1,{"$f":"$B$60&\" - \"&B63","v":"Inlet and Outlet Piping - PVC"},1,2,5,1,2,5,1,2,5,1,11.283529668235296]
["3.3.1","Stainless Steel",{"$f":"in_out_pipe_length","v":40},"lf",{"$f":"in_out_pipe_diam","v":4},"in. diam",{"$f":"IF(curve=1,in_out_pipe_diam,VLOOKUP(in_out_pipe_diam,ss_pipe_cost_cl,2))","v":4},"in. diam",{"$f":"IF(curve=1,ss_pipe_eq_in_out,VLOOKUP(in_out_pipe_diam,ss_pipe_cost_cl,3))","v":119.13106183815646},4765.2424735262584,{"$f":"VLOOKUP(in_out_pipe_diam,ss_pipe_cost_cl,IF(ss_cat=\"large\",4,5))","v":40},0,{"$f":"$B$60&\" - \"&B64","v":"Inlet and Outlet Piping - Stainless Steel"},5,5,1,5,5,1,5,5,1,{"$f":"IF(ISERROR(K64*L64),0,IF(K64<1,0,L64))","v":0},{"$f":"IF(W64,J64/K64,0)","v":0}]
["3.3.1","Steel",{"$f":"in_out_pipe_length","v":40},"lf",{"$f":"in_out_pipe_diam","v":4},"in. diam",{"$f":"IF(curve=1,in_out_pipe_diam,VLOOKUP(in_out_pipe_diam,st_pipe_cost_cl,2))","v":4},"in. diam",{"$f":"IF(curve=1,st_pipe_eq_in_out,VLOOKUP(in_out_pipe_diam,st_pipe_cost_cl,3))","v":69.323338454999998},2772.9335381999999,{"$f":"VLOOKUP(in_out_pipe_diam,st_pipe_cost_cl,IF(ss_cat=\"large\",4,5))","v":33},0,{"$f":"$B$60&\" - \"&B65","v":"Inlet and Outlet Piping - Steel"},4,4,2,4,4,2,4,4,2,0,0]
["3.4","Bypass Piping",null,null,null,null,null,null,null,null,null,null,null,null,null,null,null,null,null,null,null,null,0,0]
["3.4.1","Ductile Iron",{"$f":"bp_pipe_length","v":0},"lf",{"$f":"IF(C67=0,\"NA\",bp_pipe_diam)","v":"NA"},{"$f":"IF(C67=0,\"\",\"in. diam\")","v":""},{"$f":"IF(C67=0,\"NA\",IF(curve=1,bp_pipe_diam,VLOOKUP(bp_pipe_diam,di_pipe_cost_cl,2)))","v":"NA"},{"$f":"IF(C67=0,\"\",\"in. diam\")","v":""},{"$f":"IF(C67=0,\"NA\",IF(curve=1,di_pipe_eq_bp,VLOOKUP(bp_pipe_diam,di_pipe_cost_cl,3)))","v":"NA"},{"$f":"IF(C67=0,\"--\",IF(I67=\"contact vendor\",\"--\",C67*I67))","v":"--"},{"$f":"IF(C67=0,\"NA\",VLOOKUP(bp_pipe_diam,di_pipe_cost_cl,IF(ss_cat=\"large\",4,5)))","v":"NA"},null,{"$f":"$B$66&\" - \"&B67","v":"Bypass Piping - Ductile Iron"},3,3,3,3,3,3,3,3,3,0,0]
["3.4.1","CPVC",{"$f":"bp_pipe_length","v":0},"lf",{"$f":"IF(C68=0,\"NA\",bp_pipe_diam)","v":"NA"},{"$f":"IF(C68=0,\"\",\"in. diam\")","v":""},{"$f":"IF(C68=0,\"NA\",IF(curve=1,bp_pipe_diam,VLOOKUP(bp_pipe_diam,cpvc_pipe_cost_cl,2)))","v":"NA"},{"$f":"IF(C68=0,\"\",\"in. diam\")","v":""},{"$f":"IF(C68=0,\"NA\",IF(curve=1,cpvc_pipe_eq_bp,VLOOKUP(bp_pipe_diam,cpvc_pipe_cost_cl,3)))","v":"NA"},"--",{"$f":"IF(C68=0,\"NA\",VLOOKUP(bp_pipe_diam,cpvc_pipe_cost_cl,IF(ss_cat=\"large\",4,5)))","v":"NA"},null,{"$f":"$B$66&\" - \"&B68","v":"Bypass Piping - CPVC"},2,1,4,2,1,4,2,1,4,0,0]
["3.4.1","PVC",{"$f":"bp_pipe_length","v":0},"lf",{"$f":"IF(C69=0,\"NA\",bp_pipe_diam)","v":"NA"},"",{"$f":"IF(C69=0,\"NA\",IF(curve=1,bp_pipe_diam,VLOOKUP(bp_pipe_diam,pvc_pipe_cost_cl,2)))","v":"NA"},{"$f":"IF(C69=0,\"\",\"in. diam\")","v":""},{"$f":"IF(C69=0,\"NA\",IF(curve=1,pvc_pipe_eq_bp,VLOOKUP(bp_pipe_diam,pvc_pipe_cost_cl,3)))","v":"NA"},"--",{"$f":"IF(C69=0,\"NA\",VLOOKUP(bp_pipe_diam,pvc_pipe_cost_cl,IF(ss_cat=\"large\",4,5)))","v":"NA"},null,{"$f":"$B$66&\" - \"&B69","v":"Bypass Piping - PVC"},1,2,5,1,2,5,1,2,5,0,0]
["3.4.1","Stainless Steel",{"$f":"bp_pipe_length","v":0},"lf",{"$f":"IF(C70=0,\"NA\",bp_pipe_diam)","v":"NA"},"",{"$f":"IF(C70=0,\"NA\",IF(curve=1,bp_pipe_diam,VLOOKUP(bp_pipe_diam,ss_pipe_cost_cl,2)))","v":"NA"},{"$f":"IF(C70=0,\"\",\"in. diam\")","v":""},{"$f":"IF(C70=0,\"NA\",IF(curve=1,ss_pipe_eq_bp,VLOOKUP(bp_pipe_diam,ss_pipe_cost_cl,3)))","v":"NA"},"--",{"$f":"IF(C70=0,\"NA\",VLOOKUP(bp_pipe_diam,ss_pipe_cost_cl,IF(ss_cat=\"large\",4,5)))","v":"NA"},null,{"$f":"$B$66&\" - \"&B70","v":"Bypass Piping - Stainless Steel"},5,5,1,5,5,1,5,5,1,0,0]
["3.4.1","Steel",{"$f":"bp_pipe_length","v":0},"lf",{"$f":"IF(C71=0,\"NA\",bp_pipe_diam)","v":"NA"},"",{"$f":"IF(C71=0,\"NA\",IF(curve=1,bp_pipe_diam,VLOOKUP(bp_pipe_diam,st_pipe_cost_cl,2)))","v":"NA"},{"$f":"IF(C71=0,\"\",\"in. diam\")","v":""},{"$f":"IF(C71=0,\"NA\",IF(curve=1,st_pipe_eq_bp,VLOOKUP(bp_pipe_diam,st_pipe_cost_cl,3)))","v":"NA"},"--",{"$f":"IF(C71=0,\"NA\",VLOOKUP(bp_pipe_diam,st_pipe_cost_cl,IF(ss_cat=\"large\",4,5)))","v":"NA"},null,{"$f":"$B$66&\" - \"&B71","v":"Bypass Piping - Steel"},4,4,2,4,4,2,4,4,2,0,0]
["4.","Valves",null,null,null,null,null,null,null,null,null,null,null,null,null,null,null,null,null,null,null,null,0,0]
["4.1","Motor/Air Operated",null,null,null,null,null,null,null,null,null,null,null,null,null,null,null,null,null,null,null,null,0,0]
["4.1.1","Process - Polypropylene/PVC",{"$f":"tot_proc_MOVs","v":0},"units",{"$f":"IF(C74=0,\"NA\",tank_valve_size)","v":"NA"},{"$f":"IF($C74=0,\"\",\"in. diam\")","v":""},{"$f":"IF(C74=0,\"NA\",IF(curve=1,tank_valve_size,VLOOKUP(tank_valve_size,pp_mov_cost_cl,2)))","v":"NA"},{"$f":"IF($C74=0,\"\",\"in. diam\")","v":""},{"$f":"IF(C74=0,\"NA\",IF(curve=1,pp_mov_eq_tank,VLOOKUP(tank_valve_size,pp_mov_cost_cl,3)))","v":"NA"},{"$f":"IF(C74=0,\"--\",IF(I74=\"contact vendor\",\"--\",C74*I74))","v":"--"},{"$f":"IF(C74=0,\"NA\",VLOOKUP(tank_valve_size,pp_mov_cost_cl,IF(ss_cat=\"large\",4,5)))","v":"NA"},null,{"$f":"$B$72&\" - \"&$B$73&\" - \"&B74","v":"Valves - Motor/Air Operated - Process - Polypropylene/PVC"},1,2,3,1,2,3,1,2,3,0,0]
["4.1.1","Process - Stainless Steel",{"$f":"tot_proc_MOVs","v":0},"units",{"$f":"IF(C75=0,\"NA\",tank_valve_size)","v":"NA"},{"$f":"IF($C75=0,\"\",\"in. diam\")","v":""},{"$f":"IF(C75=0,\"NA\",IF(curve=1,tank_valve_size,VLOOKUP(tank_valve_size,ss_mov_cost_cl,2)))","v":"NA"},"",{"$f":"IF(C75=0,\"NA\",IF(curve=1,ss_mov_eq_tank,VLOOKUP(tank_valve_size,ss_mov_cost_cl,3)))","v":"NA"},"--",{"$f":"IF(C75=0,\"NA\",VLOOKUP(tank_valve_size,ss_mov_cost_cl,IF(ss_cat=\"large\",4,5)))","v":"NA"},null,"Valves - Motor/Air Operated - Process - Stainless Steel",3,3,1,3,3,1,3,3,1,0,0]
["4.1.1","Process - Cast Iron",{"$f":"tot_proc_MOVs","v":0},"units",{"$f":"IF(C76=0,\"NA\",tank_valve_size)","v":"NA"},"",{"$f":"IF(C76=0,\"NA\",IF(curve=1,tank_valve_size,VLOOKUP(tank_valve_size,ci_mov_cost_cl,2)))","v":"NA"},"",{"$f":"IF(C76=0,\"NA\",IF(curve=1,ci_mov_eq_tank,VLOOKUP(tank_valve_size,ci_mov_cost_cl,3)))","v":"NA"},"--",{"$f":"IF(C76=0,\"NA\",VLOOKUP(tank_valve_size,ci_mov_cost_cl,IF(ss_cat=\"large\",4,5)))","v":"NA"},null,"Valves - Motor/Air Operated - Process - Cast Iron",2,1,2,2,1,2,2,1,2,0,0]
["4.1.2","Air - Polypropylene/PVC",{"$f":"tot_air_MOVs","v":0},"units",{"$f":"IF(C77=0,\"NA\",air_valve_size)","v":"NA"},"",{"$f":"IF(C77=0,\"NA\",IF(curve=1,air_valve_size,VLOOKUP(air_valve_size,pp_mov_cost_cl,2)))","v":"NA"},"",{"$f":"IF(C77=0,\"NA\",IF(curve=1,pp_mov_eq_air,VLOOKUP(air_valve_size,pp_mov_cost_cl,3)))","v":"NA"},"--",{"$f":"IF(C77=0,\"NA\",VLOOKUP(air_valve_size,pp_mov_cost_cl,IF(ss_cat=\"large\",4,5)))","v":"NA"},null,"Valves - Motor/Air Operated - Air - Polypropylene/PVC",1,2,3,1,2,3,1,2,3,0,0]
["4.1.2","Air - Stainless Steel",{"$f":"tot_air_MOVs","v":0},"units",{"$f":"IF(C78=0,\"NA\",air_valve_size)","v":"NA"},"",{"$f":"IF(C78=0,\"NA\",IF(curve=1,air_valve_size,VLOOKUP(air_valve_size,ss_mov_cost_cl,2)))","v":"NA"},"",{"$f":"IF(C78=0,\"NA\",IF(curve=1,ss_mov_eq_air,VLOOKUP(air_valve_size,ss_mov_cost_cl,3)))","v":"NA"},"--",{"$f":"IF(C78=0,\"NA\",VLOOKUP(air_valve_size,ss_mov_cost_cl,IF(ss_cat=\"large\",4,5)))","v":"NA"},null,"Valves - Motor/Air Operated - Air - Stainless Steel",3,3,1,3,3,1,3,3,1,0,0]
["4.1.2","Air - Cast Iron",{"$f":"tot_air_MOVs","v":0},"units",{"$f":"IF(C79=0,\"NA\",air_valve_size)","v":"NA"},"",{"$f":"IF(C79=0,\"NA\",IF(curve=1,air_valve_size,VLOOKUP(air_valve_size,ci_mov_cost_cl,2)))","v":"NA"},"",{"$f":"IF(C79=0,\"NA\",IF(curve=1,ci_mov_eq_air,VLOOKUP(air_valve_size,ci_mov_cost_cl,3)))","v":"NA"},"--",{"$f":"IF(C79=0,\"NA\",VLOOKUP(air_valve_size,ci_mov_cost_cl,IF(ss_cat=\"large\",4,5)))","v":"NA"},null,"Valves - Motor/Air Operated - Air - Cast Iron",2,1,2,2,1,2,2,1,2,0,0]
["4.1.3","Bypass - Polypropylene/PVC",{"$f":"tot_bp_MOVs","v":0},"units",{"$f":"IF(C80=0,\"NA\",bypass_valve_size)","v":"NA"},"",{"$f":"IF(C80=0,\"NA\",IF(curve=1,bypass_valve_size,VLOOKUP(bypass_valve_size,pp_mov_cost_cl,2)))","v":"NA"},"",{"$f":"IF(C80=0,\"NA\",IF(curve=1,pp_mov_eq_bp,VLOOKUP(bypass_valve_size,pp_mov_cost_cl,3)))","v":"NA"},"--",{"$f":"IF(C80=0,\"NA\",VLOOKUP(bypass_valve_size,pp_mov_cost_cl,IF(ss_cat=\"large\",4,5)))","v":"NA"},null,{"$f":"$B$72&\" - \"&$B$73&\" - \"&B80","v":"Valves - Motor/Air Operated - Bypass - Polypropylene/PVC"},1,2,3,1,2,3,1,2,3,0,0]
["4.1.3","Bypass - Stainless Steel",{"$f":"tot_bp_MOVs","v":0},"units",{"$f":"IF(C81=0,\"NA\",bypass_valve_size)","v":"NA"},"",{"$f":"IF(C81=0,\"NA\",IF(curve=1,bypass_valve_size,VLOOKUP(bypass_valve_size,ss_mov_cost_cl,2)))","v":"NA"},"",{"$f":"IF(C81=0,\"NA\",IF(curve=1,ss_mov_eq_bp,VLOOKUP(bypass_valve_size,ss_mov_cost_cl,3)))","v":"NA"},"--",{"$f":"IF(C81=0,\"NA\",VLOOKUP(bypass_valve_size,ss_mov_cost_cl,IF(ss_cat=\"large\",4,5)))","v":"NA"},null,{"$f":"$B$72&\" - \"&$B$73&\" - \"&B81","v":"Valves - Motor/Air Operated - Bypass - Stainless Steel"},3,3,1,3,3,1,3,3,1,0,0]
["4.1.3","Bypass - Cast Iron",{"$f":"tot_bp_MOVs","v":0},"units",{"$f":"IF(C82=0,\"NA\",bypass_valve_size)","v":"NA"},"",{"$f":"IF(C82=0,\"NA\",IF(curve=1,bypass_valve_size,VLOOKUP(bypass_valve_size,ci_mov_cost_cl,2)))","v":"NA"},"",{"$f":"IF(C82=0,\"NA\",IF(curve=1,ci_mov_eq_bp,VLOOKUP(bypass_valve_size,ci_mov_cost_cl,3)))","v":"NA"},"--",{"$f":"IF(C82=0,\"NA\",VLOOKUP(bypass_valve_size,ci_mov_cost_cl,IF(ss_cat=\"large\",4,5)))","v":"NA"},null,{"$f":"$B$72&\" - \"&$B$73&\" - \"&B82","v":"Valves - Motor/Air Operated - Bypass - Cast Iron"},2,1,2,2,1,2,2,1,2,0,0]
["4.2","Manual",null,null,null,null,null,null,null,null,null,null,null,null,null,null,null,null,null,null,null,null,0,0]
["4.2.1","Inlet and outlet - Polypropylene/PVC",{"$f":"tot_man_valves","v":2},"units",{"$f":"in_valve_size","v":4},"in. diam",{"$f":"IF(curve=1,in_valve_size,VLOOKUP(in_valve_size,pp_man_cost_cl,2))","v":4},"in. diam",{"$f":"IF(curve=1,pp_man_eq,VLOOKUP(in_valve_size,pp_man_cost_cl,3))","v":445.98257081700001},{"$f":"IF(C84=0,\"--\",IF(I84=\"contact vendor\",\"--\",C84*I84))","v":891.96514163400002},{"$f":"VLOOKUP(in_valve_size,pp_man_cost_cl,IF(ss_cat=\"large\",4,5))","v":20},1,{"$f":"$B$72&\" - \"&$B$83&\" - \"&B84","v":"Valves - Manual - Inlet and outlet - Polypropylene/PVC"},1,2,3,1,2,3,1,2,3,1,44.598257081699998]
["4.2.1","Inlet and outlet - Stainless Steel",{"$f":"tot_man_valves","v":2},"units",{"$f":"in_valve_size","v":4},"in. diam",{"$f":"IF(curve=1,in_valve_size,VLOOKUP(in_valve_size,ss_man_cost_cl,2))","v":4},"in. diam",{"$f":"IF(curve=1,ss_man_eq,VLOOKUP(in_valve_size,ss_man_cost_cl,3))","v":2273.0662210826185},4546.1324421652371,{"$f":"VLOOKUP(in_valve_size,ss_man_cost_cl,IF(ss_cat=\"large\",4,5))","v":20},0,{"$f":"$B$72&\" - \"&$B$83&\" - \"&B85","v":"Valves - Manual - Inlet and outlet - Stainless Steel"},3,3,1,3,3,1,3,3,1,0,0]
["4.2.1","Inlet and outlet - Cast Iron",{"$f":"tot_man_valves","v":2},"units",{"$f":"in_valve_size","v":4},"in. diam",{"$f":"IF(curve=1,in_valve_size,VLOOKUP(in_valve_size,ci_bfv_cost_cl,2))","v":4},"in. diam",{"$f":"IF(curve=1,ci_bfv_eq,VLOOKUP(in_valve_size,ci_bfv_cost_cl,3))","v":692.69121776000009},1385.3824355200002,{"$f":"VLOOKUP(in_valve_size,ci_bfv_cost_cl,IF(ss_cat=\"large\",4,5))","v":20},0,{"$f":"$B$72&\" - \"&$B$83&\" - \"&B86","v":"Valves - Manual - Inlet and outlet - Cast Iron"},2,1,2,2,1,2,2,1,2,0,0]
["4.2.2","Process - Polypropylene/PVC",{"$f":"tot_proc_man","v":6},"units",{"$f":"IF(C87=0,\"NA\",tank_valve_size)","v":4},{"$f":"IF($C87=0,\"\",\"in. diam\")","v":"in. diam"},{"$f":"IF(C87=0,\"NA\",IF(curve=1,tank_valve_size,VLOOKUP(tank_valve_size,pp_man_cost_cl,2)))","v":4},{"$f":"IF($C87=0,\"\",\"in. diam\")","v":"in. diam"},{"$f":"IF(C87=0,\"NA\",IF(curve=1,pp_man_eq_tank,VLOOKUP(tank_valve_size,pp_man_cost_cl,3)))","v":445.98257081700001},2675.8954249019998,{"$f":"IF(C87=0,\"NA\",VLOOKUP(tank_valve_size,pp_man_cost_cl,IF(ss_cat=\"large\",4,5)))","v":20},1,{"$f":"$B$72&\" - \"&$B$83&\" - \"&B87","v":"Valves - Manual - Process - Polypropylene/PVC"},1,2,3,1,2,3,1,2,3,1,133.79477124509998]
["4.2.2","Process - Stainless Steel",{"$f":"tot_proc_man","v":6},"units",{"$f":"IF(C88=0,\"NA\",tank_valve_size)","v":4},{"$f":"IF($C88=0,\"\",\"in. diam\")","v":"in. diam"},{"$f":"IF(C88=0,\"NA\",IF(curve=1,tank_valve_size,VLOOKUP(tank_valve_size,ss_man_cost_cl,2)))","v":4},"in. diam",{"$f":"IF(C88=0,\"NA\",IF(curve=1,ss_man_eq_tank,VLOOKUP(tank_valve_size,ss_man_cost_cl,3)))","v":2273.0662210826185},13638.397326495711,{"$f":"IF(C88=0,\"NA\",VLOOKUP(tank_valve_size,ss_man_cost_cl,IF(ss_cat=\"large\",4,5)))","v":20},0,"Valves - Manual - Process - Stainless Steel",3,3,1,3,3,1,3,3,1,0,0]
["4.2.2","Process - Cast Iron",{"$f":"tot_proc_man","v":6},"units",{"$f":"IF(C89=0,\"NA\",tank_valve_size)","v":4},"in. diam",{"$f":"IF(C89=0,\"NA\",IF(curve=1,tank_valve_size,VLOOKUP(tank_valve_size,ci_bfv_cost_cl,2)))","v":4},"in. diam",{"$f":"IF(C89=0,\"NA\",IF(curve=1,ci_bfv_eq_tank,VLOOKUP(tank_valve_size,ci_bfv_cost_cl,3)))","v":692.69121776000009},4156.1473065600003,{"$f":"IF(C89=0,\"NA\",VLOOKUP(tank_valve_size,ci_bfv_cost_cl,IF(ss_cat=\"large\",4,5)))","v":20},0,"Valves - Manual - Process - Cast Iron",2,1,2,2,1,2,2,1,2,0,0]
["4.2.3","Air - Polypropylene/PVC",{"$f":"tot_air_man","v":2},"units",{"$f":"IF(C90=0,\"NA\",air_valve_size)","v":4},"in. diam",{"$f":"IF(C90=0,\"NA\",IF(curve=1,air_valve_size,VLOOKUP(air_valve_size,pp_man_cost_cl,2)))","v":4},"in. diam",{"$f":"IF(C90=0,\"NA\",IF(curve=1,pp_man_eq_air,VLOOKUP(air_valve_size,pp_man_cost_cl,3)))","v":445.98257081700001},891.96514163400002,{"$f":"IF(C90=0,\"NA\",VLOOKUP(air_valve_size,pp_man_cost_cl,IF(ss_cat=\"large\",4,5)))","v":20},1,"Valves - Manual - Air - Polypropylene/PVC",1,2,3,1,2,3,1,2,3,1,44.598257081699998]
["4.2.3","Air - Stainless Steel",{"$f":"tot_air_man","v":2},"units",{"$f":"IF(C91=0,\"NA\",air_valve_size)","v":4},"in. diam",{"$f":"IF(C91=0,\"NA\",IF(curve=1,air_valve_size,VLOOKUP(air_valve_size,ss_man_cost_cl,2)))","v":4},"in. diam",{"$f":"IF(C91=0,\"NA\",IF(curve=1,ss_man_eq_air,VLOOKUP(air_valve_size,ss_man_cost_cl,3)))","v":2273.0662210826185},4546.1324421652371,{"$f":"IF(C91=0,\"NA\",VLOOKUP(air_valve_size,ss_man_cost_cl,IF(ss_cat=\"large\",4,5)))","v":20},0,"Valves - Manual - Air - Stainless Steel",3,3,1,3,3,1,3,3,1,0,0]
["4.2.3","Air - Cast Iron",{"$f":"tot_air_man","v":2},"units",{"$f":"IF(C92=0,\"NA\",air_valve_size)","v":4},"in. diam",{"$f":"IF(C92=0,\"NA\",IF(curve=1,air_valve_size,VLOOKUP(air_valve_size,ci_bfv_cost_cl,2)))","v":4},"in. diam",{"$f":"IF(C92=0,\"NA\",IF(curve=1,ci_bfv_eq_air,VLOOKUP(air_valve_size,ci_bfv_cost_cl,3)))","v":692.69121776000009},1385.3824355200002,{"$f":"IF(C92=0,\"NA\",VLOOKUP(air_valve_size,ci_bfv_cost_cl,IF(ss_cat=\"large\",4,5)))","v":20},0,"Valves - Manual - Air - Cast Iron",2,1,2,2,1,2,2,1,2,0,0]
["4.2.4","Bypass - Polypropylene/PVC",{"$f":"tot_bp_man","v":0},"units",{"$f":"IF(C93=0,\"NA\",bypass_valve_size)","v":"NA"},"",{"$f":"IF(C93=0,\"NA\",IF(curve=1,bypass_valve_size,VLOOKUP(bypass_valve_size,pp_man_cost_cl,2)))","v":"NA"},"",{"$f":"IF(C93=0,\"NA\",IF(curve=1,pp_man_eq_bp,VLOOKUP(bypass_valve_size,pp_man_cost_cl,3)))","v":"NA"},"--",{"$f":"IF(C93=0,\"NA\",VLOOKUP(bypass_valve_size,pp_man_cost_cl,IF(ss_cat=\"large\",4,5)))","v":"NA"},null,{"$f":"$B$72&\" - \"&$B$83&\" - \"&B93","v":"Valves - Manual - Bypass - Polypropylene/PVC"},1,2,3,1,2,3,1,2,3,0,0]
["4.2.4","Bypass - Stainless Steel",{"$f":"tot_bp_man","v":0},"units",{"$f":"IF(C94=0,\"NA\",bypass_valve_size)","v":"NA"},"",{"$f":"IF(C94=0,\"NA\",IF(curve=1,bypass_valve_size,VLOOKUP(bypass_valve_size,ss_man_cost_cl,2)))","v":"NA"},"",{"$f":"IF(C94=0,\"NA\",IF(curve=1,ss_man_eq_bp,VLOOKUP(bypass_valve_size,ss_man_cost_cl,3)))","v":"NA"},"--",{"$f":"IF(C94=0,\"NA\",VLOOKUP(bypass_valve_size,ss_man_cost_cl,IF(ss_cat=\"large\",4,5)))","v":"NA"},null,{"$f":"$B$72&\" - \"&$B$83&\" - \"&B94","v":"Valves - Manual - Bypass - Stainless Steel"},3,3,1,3,3,1,3,3,1,0,0]
["4.2.4","Bypass - Cast Iron",{"$f":"tot_bp_man","v":0},"units",{"$f":"IF(C95=0,\"NA\",bypass_valve_size)","v":"NA"},"",{"$f":"IF(C95=0,\"NA\",IF(curve=1,bypass_valve_size,VLOOKUP(bypass_valve_size,ci_bfv_cost_cl,2)))","v":"NA"},"",{"$f":"IF(C95=0,\"NA\",IF(curve=1,ci_man_eq_bp,VLOOKUP(bypass_valve_size,ci_bfv_cost_cl,3)))","v":"NA"},"--",{"$f":"IF(C95=0,\"NA\",VLOOKUP(bypass_valve_size,ci_bfv_cost_cl,IF(ss_cat=\"large\",4,5)))","v":"NA"},null,{"$f":"$B$72&\" - \"&$B$83&\" - \"&B95","v":"Valves - Manual - Bypass - Cast Iron"},2,1,2,2,1,2,2,1,2,0,0]
[4.3,"Check Valves",null,null,null,null,null,null,null,null,null,null,null,null,null,null,null,null,null,null,null,null,{"$f":"IF(ISERROR(K96*L96),0,IF(K96<1,0,L96))","v":0},{"$f":"IF(W96,J96/K96,0)","v":0}]
["4.3.1","Outlet - Polypropylene/PVC",{"$f":"tot_in_chv","v":1},"units",{"$f":"in_valve_size","v":4},"in. diam",{"$f":"IF(curve=1,in_valve_size,VLOOKUP(in_valve_size,pp_chv_cost_cl,2))","v":4},"in. diam",{"$f":"IF(curve=1,pp_chv_eq,VLOOKUP(in_valve_size,pp_chv_cost_cl,3))","v":671.53562907499997},671.53562907499997,{"$f":"VLOOKUP(in_valve_size,pp_chv_cost_cl,IF(ss_cat=\"large\",4,5))","v":20},1,{"$f":"$B$72&\" - \"&$B$96&\" - \"&B97","v":"Valves - Check Valves - Outlet - Polypropylene/PVC"},1,2,3,1,2,3,1,2,3,1,33.576781453750002]
["4.3.1","Outlet - Stainless Steel",{"$f":"tot_in_chv","v":1},"units",{"$f":"in_valve_size","v":4},"in. diam",{"$f":"IF(curve=1,in_valve_size,VLOOKUP(in_valve_size,ss_chv_cost_cl,2))","v":4},"in. diam",{"$f":"IF(curve=1,ss_chv_eq,VLOOKUP(in_valve_size,ss_chv_cost_cl,3))","v":1798.4960475039998},1798.4960475039998,{"$f":"VLOOKUP(in_valve_size,ss_chv_cost_cl,IF(ss_cat=\"large\",4,5))","v":20},0,{"$f":"$B$72&\" - \"&$B$96&\" - \"&B98","v":"Valves - Check Valves - Outlet - Stainless Steel"},3,3,1,3,3,1,3,3,1,0,0]
["4.3.1","Outlet - Cast Iron",{"$f":"tot_in_chv","v":1},"units",{"$f":"in_valve_size","v":4},"in. diam",{"$f":"IF(curve=1,in_valve_size,VLOOKUP(in_valve_size,ci_chv_cost_cl,2))","v":4},"in. diam",{"$f":"IF(curve=1,ci_chv_eq,VLOOKUP(in_valve_size,ci_chv_cost_cl,3))","v":1066.7369679929998},1066.7369679929998,{"$f":"VLOOKUP(in_valve_size,ci_chv_cost_cl,IF(ss_cat=\"large\",4,5))","v":20},0,"Valves - Check Valves - Outlet - Cast Iron",2,1,2,2,1,2,2,1,2,0,0]
["4.3.2","Process - Polypropylene/PVC",{"$f":"tot_proc_chv","v":2},"units",{"$f":"IF(C100=0,\"NA\",tank_valve_size)","v":4},{"$f":"IF($C100=0,\"\",\"in. diam\")","v":"in. diam"},{"$f":"IF(C100=0,\"NA\",IF(curve=1,tank_valve_size,VLOOKUP(tank_valve_size,pp_chv_cost_cl,2)))","v":4},{"$f":"IF($C100=0,\"\",\"in. diam\")","v":"in. diam"},{"$f":"IF(C100=0,\"NA\",IF(curve=1,pp_chv_eq_proc,VLOOKUP(tank_valve_size,pp_chv_cost_cl,3)))","v":671.53562907499997},1343.0712581499999,{"$f":"IF(C100=0,\"NA\",VLOOKUP(tank_valve_size,pp_chv_cost_cl,IF(ss_cat=\"large\",4,5)))","v":20},1,"Valves - Check Valves - Process - Polypropylene/PVC",1,2,3,1,2,3,1,2,3,1,67.153562907500003]
["4.3.2","Process - Stainless Steel",{"$f":"tot_proc_chv","v":2},"units",{"$f":"IF(C101=0,\"NA\",tank_valve_size)","v":4},{"$f":"IF($C101=0,\"\",\"in. diam\")","v":"in. diam"},{"$f":"IF(C101=0,\"NA\",IF(curve=1,tank_valve_size,VLOOKUP(tank_valve_size,ss_chv_cost_cl,2)))","v":4},{"$f":"IF($C101=0,\"\",\"in. diam\")","v":"in. diam"},{"$f":"IF(C101=0,\"NA\",IF(curve=1,ss_chv_eq_proc,VLOOKUP(tank_valve_size,ss_chv_cost_cl,3)))","v":1798.4960475039998},3596.9920950079995,{"$f":"IF(C101=0,\"NA\",VLOOKUP(tank_valve_size,ss_chv_cost_cl,IF(ss_cat=\"large\",4,5)))","v":20},0,"Valves - Check Valves - Process - Stainless Steel",3,3,1,3,3,1,3,3,1,0,0]
["4.3.2","Process - Cast Iron",{"$f":"tot_proc_chv","v":2},"units",{"$f":"IF(C102=0,\"NA\",tank_valve_size)","v":4},{"$f":"IF($C102=0,\"\",\"in. diam\")","v":"in. diam"},{"$f":"IF(C102=0,\"NA\",IF(curve=1,tank_valve_size,VLOOKUP(tank_valve_size,ci_chv_cost_cl,2)))","v":4},{"$f":"IF($C102=0,\"\",\"in. diam\")","v":"in. diam"},{"$f":"IF(C102=0,\"NA\",IF(curve=1,ci_chv_eq_proc,VLOOKUP(tank_valve_size,ci_chv_cost_cl,3)))","v":1066.7369679929998},2133.4739359859996,{"$f":"IF(C102=0,\"NA\",VLOOKUP(tank_valve_size,ci_chv_cost_cl,IF(ss_cat=\"large\",4,5)))","v":20},0,"Valves - Check Valves - Process - Cast Iron",2,1,2,2,1,2,2,1,2,0,0]
["4.3.3","Bypass - Polypropylene/PVC",{"$f":"IF(bp_pct=0,0,tot_bp_chv)","v":0},"units",{"$f":"IF(bp_pct=0,\"NA\",bypass_valve_size)","v":"NA"},{"$f":"IF(bp_pct=0,\" \",\"in. diam\")","v":" "},{"$f":"IF(bp_pct=0,\"NA\",(IF(curve=1,bypass_valve_size,VLOOKUP(bypass_valve_size,pp_chv_cost_cl,2))))","v":"NA"},{"$f":"IF(bp_pct=0,\" \",\"in. diam\")","v":" "},{"$f":"IF(bp_pct=0,\"NA\",(IF(curve=1,pp_chv_eq_bp,VLOOKUP(bypass_valve_size,pp_chv_cost_cl,3))))","v":"NA"},"--",{"$f":"IF(C103=0,\"NA\",VLOOKUP(E103,pp_chv_cost_cl,IF(ss_cat=\"large\",4,5)))","v":"NA"},null,"Valves - Check Valves - Bypass - Polypropylene/PVC",1,2,3,1,2,3,1,2,3,0,0]
["4.3.3","Bypass - Stainless Steel",{"$f":"IF(bp_pct=0,0,tot_bp_chv)","v":0},"units",{"$f":"IF(bp_pct=0,\"NA\",bypass_valve_size)","v":"NA"},{"$f":"IF(bp_pct=0,\" \",\"in. diam\")","v":" "},{"$f":"IF(bp_pct=0,\"NA\",(IF(curve=1,bypass_valve_size,VLOOKUP(bypass_valve_size,ss_chv_cost_cl,2))))","v":"NA"},{"$f":"IF(bp_pct=0,\" \",\"in. diam\")","v":" "},{"$f":"IF(bp_pct=0,\"NA\",(IF(curve=1,ss_chv_eq_bp,VLOOKUP(bypass_valve_size,ss_chv_cost_cl,3))))","v":"NA"},"--",{"$f":"IF(C104=0,\"NA\",VLOOKUP(E104,ss_chv_cost_cl,IF(ss_cat=\"large\",4,5)))","v":"NA"},null,"Valves - Check Valves - Bypass - Stainless Steel",3,3,1,3,3,1,3,3,1,0,0]
["4.3.3","Bypass - Cast Iron",{"$f":"IF(bp_pct=0,0,tot_bp_chv)","v":0},"units",{"$f":"IF(bp_pct=0,\"NA\",bypass_valve_size)","v":"NA"},{"$f":"IF(bp_pct=0,\" \",\"in. diam\")","v":" "},{"$f":"IF(bp_pct=0,\"NA\",(IF(curve=1,bypass_valve_size,VLOOKUP(bypass_valve_size,ci_chv_cost_cl,2))))","v":"NA"},{"$f":"IF(bp_pct=0,\" \",\"in. diam\")","v":" "},{"$f":"IF(bp_pct=0,\"NA\",(IF(curve=1,ci_chv_eq_bp,VLOOKUP(bypass_valve_size,ci_chv_cost_cl,3))))","v":"NA"},"--",{"$f":"IF(C105=0,\"NA\",VLOOKUP(E105,ci_chv_cost_cl,IF(ss_cat=\"large\",4,5)))","v":"NA"},null,"Valves - Check Valves - Bypass - Cast Iron",2,1,2,2,1,2,2,1,2,0,0]
["5.","Instrumentation",null,null,null,null,null,null,null,null,null,null,null,null,null,null,null,null,null,null,null,null,0,0]
["5.1","Flow Meters - Inlet and Outlet",null,null,null,null,null,null,null,null,null,null,null,null,null,null,null,null,null,null,null,null,0,0]
["5.1.1","Orifice Plate",{"$f":"tot_fm_in","v":1},"units",{"$f":"in_meter_size","v":4},"in. diam",{"$f":"IF(curve=1,in_meter_size,VLOOKUP(in_meter_size,op_fm_cost_cl,2))","v":4},"in. diam",{"$f":"IF(curve=1,op_fm_eq_in,VLOOKUP(in_meter_size,op_fm_cost_cl,3))","v":3896.6768649380001},{"$f":"IF(I108=\"contact vendor\",\"--\",C108*I108)","v":3896.6768649380001},{"$f":"VLOOKUP(in_meter_size,op_fm_cost_cl,IF(ss_cat=\"large\",4,5))","v":14},0,{"$f":"$B$106&\" - \"&$B$107&\" - \"&B108","v":"Instrumentation - Flow Meters - Inlet and Outlet - Orifice Plate"},3,4,4,3,4,4,3,3,4,0,0]
["5.1.1","Propeller",{"$f":"tot_fm_in","v":1},"units",{"$f":"in_meter_size","v":4},"in. diam",{"$f":"IF(curve=1,in_meter_size,VLOOKUP(in_meter_size,prop_fm_cost_cl,2))","v":4},"in. diam",{"$f":"IF(curve=1,prop_fm_eq_in,VLOOKUP(in_meter_size,prop_fm_cost_cl,3))","v":3570.9842611929994},{"$f":"IF(I109=\"contact vendor\",\"--\",C109*I109)","v":3570.9842611929994},{"$f":"VLOOKUP(in_meter_size,prop_fm_cost_cl,IF(ss_cat=\"large\",4,5))","v":14},1,{"$f":"$B$106&\" - \"&$B$107&\" - \"&B109","v":"Instrumentation - Flow Meters - Inlet and Outlet - Propeller"},1,2,3,1,2,3,4,4,2,1,255.07030437092854]
["5.1.1","Venturi",{"$f":"tot_fm_in","v":1},"units",{"$f":"in_meter_size","v":4},"in. diam",{"$f":"IF(curve=1,in_meter_size,VLOOKUP(in_meter_size,ven_fm_cost_cl,2))","v":4},"in. diam",{"$f":"IF(curve=1,ven_fm_eq_in,VLOOKUP(in_meter_size,ven_fm_cost_cl,3))","v":9485.8524846820001},{"$f":"IF(I110=\"contact vendor\",\"--\",C110*I110)","v":9485.8524846820001},{"$f":"VLOOKUP(in_meter_size,ven_fm_cost_cl,IF(ss_cat=\"large\",4,5))","v":14},0,{"$f":"$B$106&\" - \"&$B$107&\" - \"&B110","v":"Instrumentation - Flow Meters - Inlet and Outlet - Venturi"},2,1,2,2,1,2,1,2,3,0,0]
["5.1.1","Magnetic",{"$f":"tot_fm_in","v":1},"units",{"$f":"in_meter_size","v":4},"in. diam",{"$f":"IF(curve=1,in_meter_size,VLOOKUP(in_meter_size,mag_fm_cost_cl,2))","v":4},"in. diam",{"$f":"IF(curve=1,mag_fm_eq_in,VLOOKUP(in_meter_size,mag_fm_cost_cl,3))","v":5194.1199590280003},{"$f":"IF(I111=\"contact vendor\",\"--\",C111*I111)","v":5194.1199590280003},{"$f":"VLOOKUP(in_meter_size,mag_fm_cost_cl,IF(ss_cat=\"large\",4,5))","v":14},0,{"$f":"$B$106&\" - \"&$B$107&\" - \"&B111","v":"Instrumentation - Flow Meters - Inlet and Outlet - Magnetic"},4,3,1,4,3,1,2,1,1,0,0]
["5.2","Flow Meters - Process",null,null,null,null,null,null,null,null,null,null,null,null,null,null,null,null,null,null,null,null,0,0]
["5.2.1","Orifice Plate",{"$f":"tot_fm_proc","v":1},"units",{"$f":"proc_meter_size","v":4},"in. diam",{"$f":"IF(curve=1,proc_meter_size,VLOOKUP(proc_meter_size,op_fm_cost_cl,2))","v":4},"in. diam",{"$f":"IF(curve=1,op_fm_eq_proc,VLOOKUP(proc_meter_size,op_fm_cost_cl,3))","v":3896.6768649380001},{"$f":"IF(I113=\"contact vendor\",\"--\",C113*I113)","v":3896.6768649380001},{"$f":"VLOOKUP(proc_meter_size,op_fm_cost_cl,IF(ss_cat=\"large\",4,5))","v":14},0,{"$f":"$B$106&\" - \"&$B$112&\" - \"&B113","v":"Instrumentation - Flow Meters - Process - Orifice Plate"},3,4,4,3,4,4,3,3,4,0,0]
["5.2.1","Propeller",{"$f":"tot_fm_proc","v":1},"units",{"$f":"proc_meter_size","v":4},"in. diam",{"$f":"IF(curve=1,proc_meter_size,VLOOKUP(proc_meter_size,prop_fm_cost_cl,2))","v":4},"in. diam",{"$f":"IF(curve=1,prop_fm_eq_proc,VLOOKUP(proc_meter_size,prop_fm_cost_cl,3))","v":3570.9842611929994},{"$f":"IF(I114=\"contact vendor\",\"--\",C114*I114)","v":3570.9842611929994},{"$f":"VLOOKUP(proc_meter_size,prop_fm_cost_cl,IF(ss_cat=\"large\",4,5))","v":14},1,{"$f":"$B$106&\" - \"&$B$112&\" - \"&B114","v":"Instrumentation - Flow Meters - Process - Propeller"},1,2,3,1,2,3,4,4,2,1,255.07030437092854]
["5.2.1","Venturi",{"$f":"tot_fm_proc","v":1},"units",{"$f":"proc_meter_size","v":4},"in. diam",{"$f":"IF(curve=1,proc_meter_size,VLOOKUP(proc_meter_size,ven_fm_cost_cl,2))","v":4},"in. diam",{"$f":"IF(curve=1,ven_fm_eq_proc,VLOOKUP(proc_meter_size,ven_fm_cost_cl,3))","v":9485.8524846820001},{"$f":"IF(I115=\"contact vendor\",\"--\",C115*I115)","v":9485.8524846820001},{"$f":"VLOOKUP(proc_meter_size,ven_fm_cost_cl,IF(ss_cat=\"large\",4,5))","v":14},0,{"$f":"$B$106&\" - \"&$B$112&\" - \"&B115","v":"Instrumentation - Flow Meters - Process - Venturi"},2,1,2,2,1,2,1,2,3,0,0]
["5.2.1","Magnetic",{"$f":"tot_fm_proc","v":1},"units",{"$f":"proc_meter_size","v":4},"in. diam",{"$f":"IF(curve=1,proc_meter_size,VLOOKUP(proc_meter_size,mag_fm_cost_cl,2))","v":4},"in. diam",{"$f":"IF(curve=1,mag_fm_eq_proc,VLOOKUP(proc_meter_size,mag_fm_cost_cl,3))","v":5194.1199590280003},{"$f":"IF(I116=\"contact vendor\",\"--\",C116*I116)","v":5194.1199590280003},{"$f":"VLOOKUP(proc_meter_size,mag_fm_cost_cl,IF(ss_cat=\"large\",4,5))","v":14},0,{"$f":"$B$106&\" - \"&$B$112&\" - \"&B116","v":"Instrumentation - Flow Meters - Process - Magnetic"},4,3,1,4,3,1,2,1,1,0,0]
["5.3","Air Flow Meters",null,null,null,null,null,null,null,null,null,null,null,null,null,null,null,null,null,null,null,null,0,0]
["5.3.1","Rotameter",{"$f":"tot_fm_air","v":1},"units","NA",null,"NA",null,{"$f":"VLOOKUP(0,gas_fm_cost_cl,3)","v":2320.9866720792493},{"$f":"IF(I118=\"contact vendor\",\"--\",C118*I118)","v":2320.9866720792493},{"$f":"VLOOKUP(0,gas_fm_cost_cl,IF(ss_cat=\"large\",4,5))","v":14},1,{"$f":"$B$106&\" - \"&$B$117&\" - \"&B118","v":"Instrumentation - Air Flow Meters - Rotameter"},1,1,1,1,1,1,1,1,1,1,165.78476229137496]
[5.4,"High/low alarms (for contact basins)",{"$f":"tot_basin_alarm","v":1},"units","NA",null,"NA",null,{"$f":"VLOOKUP(0,alarm_cost_cl,3)","v":580.58711311592128},{"$f":"IF(I119=\"contact vendor\",\"--\",C119*I119)","v":580.58711311592128},{"$f":"VLOOKUP(0,alarm_cost_cl,IF(ss_cat=\"large\",4,5))","v":14},1,{"$f":"$B$106&\" - \"&B119","v":"Instrumentation - High/low alarms (for contact basins)"},1,1,1,1,1,1,1,1,1,1,41.470508079708665]
[5.5,"pH Meters",{"$f":"tot_ph","v":2},"units","NA",null,"NA",null,{"$f":"IF(C120=0,\"NA\",VLOOKUP(0,pH_meter_cost_cl,3))","v":2579.2658773019957},{"$f":"IF(OR(I120=\"contact vendor\",I120=\"NA\"),\"--\",C120*I120)","v":5158.5317546039914},{"$f":"IF(C120=0,\"NA\",VLOOKUP(0,pH_meter_cost_cl,IF(ss_cat=\"large\",4,5)))","v":14},1,{"$f":"$B$106&\" - \"&B120","v":"Instrumentation - pH Meters"},1,1,1,1,1,1,1,1,1,1,368.46655390028508]
[5.6,"Pressure Gauges",{"$f":"tot_gauges","v":4},"units","NA",null,"NA",null,{"$f":"IF(C121=0,\"NA\",VLOOKUP(0,gauge_cost_cl,3))","v":282.8233199189691},{"$f":"IF(OR(I121=\"contact vendor\",I121=\"NA\"),\"--\",C121*I121)","v":1131.2932796758764},{"$f":"IF(C121=0,\"NA\",VLOOKUP(0,gauge_cost_cl,IF(ss_cat=\"large\",4,5)))","v":14},1,{"$f":"$B$106&\" - \"&B121","v":"Instrumentation - Pressure Gauges"},1,1,1,1,1,1,1,1,1,1,80.806662833991169]
[5.7,"Electrical Enclosure",{"$f":"elec_encl","v":0},"units","NA",null,"NA",null,{"$f":"IF(C122=0,\"NA\",VLOOKUP(0,elec_encl_cost_cl,3))","v":"NA"},{"$f":"IF(C122=0,\"--\",IF(I122=\"contact vendor\",\"--\",C122*I122))","v":"--"},{"$f":"IF(C122=0,\"NA\",VLOOKUP(0,elec_encl_cost_cl,IF(ss_cat=\"large\",4,5)))","v":"NA"},null,{"$f":"$B$106&\" - \"&B122","v":"Instrumentation - Electrical Enclosure"},1,1,1,1,1,1,1,1,1,0,0]
["6.","System Controls",null,null,null,null,null,null,null,null,null,null,null,null,null,null,null,null,null,null,null,null,0,0]
[6.1,"PLC Units",null,null,null,null,null,null,null,null,null,null,null,null,null,null,null,null,null,null,null,null,0,0]
["6.1.1","PLC racks/power supplies",{"$f":"IF(manual=1,0,plc_rack)","v":0},"units","NA",null,"NA",null,{"$f":"IF(C125=0,\"NA\",VLOOKUP(0,plc_rack_cost_cl,3))","v":"NA"},{"$f":"IF(C125=0,\"--\",IF(I125=\"contact vendor\",\"--\",C125*I125))","v":"--"},{"$f":"IF(C125=0,\"NA\",VLOOKUP(0,plc_rack_cost_cl,IF(ss_cat=\"large\",4,5)))","v":"NA"},null,{"$f":"$B$123&\" - \"&$B$124&\" - \"&B125","v":"System Controls - PLC Units - PLC racks/power supplies"},1,1,1,1,1,1,1,1,1,0,0]
["6.1.2","CPUs",{"$f":"IF(manual=1,0,plc_cpu)","v":0},"units","NA",null,"NA",null,{"$f":"IF(C126=0,\"NA\",VLOOKUP(0,plc_cpu_cost_cl,3))","v":"NA"},"--",{"$f":"IF(C126=0,\"NA\",VLOOKUP(0,plc_cpu_cost_cl,IF(ss_cat=\"large\",4,5)))","v":"NA"},null,{"$f":"$B$123&\" - \"&$B$124&\" - \"&B126","v":"System Controls - PLC Units - CPUs"},1,1,1,1,1,1,1,1,1,0,0]
["6.1.3","I/O discrete input modules",{"$f":"IF(manual=1,0,plc_discrete_input)","v":0},"units","NA",null,"NA",null,{"$f":"IF(C127=0,\"NA\",VLOOKUP(0,plc_discrete_input_cost_cl,3))","v":"NA"},"--",{"$f":"IF(C127=0,\"NA\",VLOOKUP(0,plc_discrete_input_cost_cl,IF(ss_cat=\"large\",4,5)))","v":"NA"},null,"System Controls - PLC Units - I/O discrete input modules",1,1,1,1,1,1,1,1,1,0,0]
["6.1.4","I/O discrete output modules",{"$f":"IF(manual=1,0,plc_discrete_output)","v":0},"units","NA",null,"NA",null,{"$f":"IF(C128=0,\"NA\",VLOOKUP(0,plc_discrete_output_cost_cl,3))","v":"NA"},"--",{"$f":"IF(C128=0,\"NA\",VLOOKUP(0,plc_discrete_output_cost_cl,IF(ss_cat=\"large\",4,5)))","v":"NA"},null,"System Controls - PLC Units - I/O discrete output modules",1,1,1,1,1,1,1,1,1,{"$f":"IF(ISERROR(K128*L128),0,IF(K128<1,0,L128))","v":0},{"$f":"IF(W128,J128/K128,0)","v":0}]
["6.1.5","I/O combination analog modules",{"$f":"IF(manual=1,0,plc_combination_analog)","v":0},"units","NA",null,"NA",null,{"$f":"IF(C129=0,\"NA\",VLOOKUP(0,plc_combination_analog_cost_cl,3))","v":"NA"},"--",{"$f":"IF(C129=0,\"NA\",VLOOKUP(0,plc_combination_analog_cost_cl,IF(ss_cat=\"large\",4,5)))","v":"NA"},null,"System Controls - PLC Units - I/O combination analog modules",1,1,1,1,1,1,1,1,1,0,0]
["6.1.6","Ethernet modules",{"$f":"IF(manual=1,0,plc_ethernet)","v":0},"units","NA",null,"NA",null,{"$f":"IF(C130=0,\"NA\",VLOOKUP(0,plc_ethernet_cost_cl,3))","v":"NA"},"--",{"$f":"IF(C130=0,\"NA\",VLOOKUP(0,plc_ethernet_cost_cl,IF(ss_cat=\"large\",4,5)))","v":"NA"},null,"System Controls - PLC Units - Ethernet modules",1,1,1,1,1,1,1,1,1,0,0]
["6.1.7","Base expansion modules",{"$f":"IF(manual=1,0,plc_base_expansion)","v":0},"units","NA",null,"NA",null,{"$f":"IF(C131=0,\"NA\",VLOOKUP(0,plc_base_expansion_cost_cl,3))","v":"NA"},"--",{"$f":"IF(C131=0,\"NA\",VLOOKUP(0,plc_base_expansion_cost_cl,IF(ss_cat=\"large\",4,5)))","v":"NA"},null,"System Controls - PLC Units - Base expansion modules",1,1,1,1,1,1,1,1,1,0,0]
["6.1.8","Base expansion controller modules",{"$f":"IF(manual=1,0,plc_base_expansion_controller)","v":0},"units","NA",null,"NA",null,{"$f":"IF(C132=0,\"NA\",VLOOKUP(0,plc_base_expansion_controller_cost_cl,3))","v":"NA"},"--",{"$f":"IF(C132=0,\"NA\",VLOOKUP(0,plc_base_expansion_controller_cost_cl,IF(ss_cat=\"large\",4,5)))","v":"NA"},null,"System Controls - PLC Units - Base expansion controller modules",1,1,1,1,1,1,1,1,1,0,0]
["6.1.9","UPSs",{"$f":"IF(manual=1,0,ups)","v":0},"units","NA",null,"NA",null,{"$f":"IF(C133=0,\"NA\",VLOOKUP(0,ups_cost_cl,3))","v":"NA"},"--",{"$f":"IF(C133=0,\"NA\",VLOOKUP(0,ups_cost_cl,IF(ss_cat=\"large\",4,5)))","v":"NA"},null,"System Controls - PLC Units - UPSs",1,1,1,1,1,1,1,1,1,0,0]
[6.2,"Operator equipment",null,null,null,null,null,null,null,null,null,null,null,null,null,null,null,null,null,null,null,null,0,0]
["6.2.1","Drive controllers",{"$f":"IF(manual=1,0,tot_switches)","v":0},"units","NA",null,"NA",null,{"$f":"IF(C135=0,\"NA\",VLOOKUP(0,switch_cost_cl,3))","v":"NA"},{"$f":"IF(C135=0,\"--\",IF(I135=\"contact vendor\",\"--\",C135*I135))","v":"--"},{"$f":"IF(C135=0,\"NA\",VLOOKUP(0,switch_cost_cl,IF(ss_cat=\"large\",4,5)))","v":"NA"},null,{"$f":"$B$123&\" - \"&$B$134&\" - \"&B135","v":"System Controls - Operator equipment - Drive controllers"},1,1,1,1,1,1,1,1,1,0,0]
["6.2.2","Operator interface units",{"$f":"IF(manual=1,0,plc_interface)","v":0},"units","NA",null,"NA",null,{"$f":"IF(C136=0,\"NA\",VLOOKUP(ss_cat,plc_op_interface_cost_cl,3,FALSE))","v":"NA"},"--",{"$f":"IF(C136=0,\"NA\",VLOOKUP(ss_cat,plc_op_interface_cost_cl,IF(ss_cat=\"large\",4,5),FALSE))","v":"NA"},null,{"$f":"$B$123&\" - \"&$B$134&\" - \"&B136","v":"System Controls - Operator equipment - Operator interface units"},1,1,1,1,1,1,1,1,1,0,0]
["6.2.3","PC Workstations",{"$f":"IF(OR(manual=1,ss_cat=\"small\"),0,workstations)","v":0},"units","NA",null,"NA",null,{"$f":"IF(C137=0,\"NA\",VLOOKUP(0,pc_workstation_cost_cl,3))","v":"NA"},"--",{"$f":"IF(C137=0,\"NA\",VLOOKUP(0,pc_workstation_cost_cl,IF(ss_cat=\"large\",4,5)))","v":"NA"},null,{"$f":"$B$123&\" - \"&$B$134&\" - \"&B137","v":"System Controls - Operator equipment - PC Workstations"},1,1,1,1,1,1,1,1,1,0,0]
["6.2.4","Printers - laser jet",{"$f":"IF(OR(manual=1,ss_cat=\"small\"),0,printers)","v":0},"units","NA",null,"NA",null,{"$f":"IF(C138=0,\"NA\",VLOOKUP(0,laser_printer_cost_cl,3))","v":"NA"},"--",{"$f":"IF(C138=0,\"NA\",VLOOKUP(0,laser_printer_cost_cl,IF(ss_cat=\"large\",4,5)))","v":"NA"},null,{"$f":"$B$123&\" - \"&$B$134&\" - \"&B138","v":"System Controls - Operator equipment - Printers - laser jet"},1,1,1,1,1,1,1,1,1,0,0]
["6.2.5","Printers - dot matrix",{"$f":"IF(OR(manual=1,ss_cat=\"small\"),0,printers)","v":0},"units","NA",null,"NA",null,{"$f":"IF(C139=0,\"NA\",VLOOKUP(0,dotmatrix_printer_cost_cl,3))","v":"NA"},"--",{"$f":"IF(C139=0,\"NA\",VLOOKUP(0,dotmatrix_printer_cost_cl,IF(ss_cat=\"large\",4,5)))","v":"NA"},null,{"$f":"$B$123&\" - \"&$B$134&\" - \"&B139","v":"System Controls - Operator equipment - Printers - dot matrix"},1,1,1,1,1,1,1,1,1,0,0]
[6.3,"Controls Software",null,null,null,null,null,null,null,null,null,null,null,null,null,null,null,null,null,null,null,null,0,0]
["6.3.1","Operator interface software",{"$f":"IF(OR(manual=1,ss_cat=\"small\"),0,plc_interface)","v":0},"units","NA",null,"NA",null,{"$f":"IF(C141=0,\"NA\",VLOOKUP(0,op_interface_software_cost_cl,3))","v":"NA"},{"$f":"IF(C141=0,\"--\",IF(I141=\"contact vendor\",\"--\",C141*I141))","v":"--"},{"$f":"IF(C141=0,\"NA\",VLOOKUP(0,op_interface_software_cost_cl,IF(ss_cat=\"large\",4,5)))","v":"NA"},null,{"$f":"$B$123&\" - \"&$B$140&\" - \"&B141","v":"System Controls - Controls Software - Operator interface software"},1,1,1,1,1,1,1,1,1,0,0]
["6.3.2","PLC programming software",{"$f":"IF(OR(manual=1,ss_cat=\"small\"),0,workstations)","v":0},"units","NA",null,"NA",null,{"$f":"IF(C142=0,\"NA\",VLOOKUP(0,plc_software_cost_cl,3))","v":"NA"},"--",{"$f":"IF(C142=0,\"NA\",VLOOKUP(0,plc_software_cost_cl,IF(ss_cat=\"large\",4,5)))","v":"NA"},null,{"$f":"$B$123&\" - \"&$B$140&\" - \"&B142","v":"System Controls - Controls Software - PLC programming software"},1,1,1,1,1,1,1,1,1,0,0]
["6.3.3","PLC data collection software",{"$f":"IF(OR(manual=1,ss_cat=\"small\"),0,workstations)","v":0},"units","NA",null,"NA",null,{"$f":"IF(C143=0,\"NA\",VLOOKUP(0,plc_data_software_cost_cl,3))","v":"NA"},"--",{"$f":"IF(C143=0,\"NA\",VLOOKUP(0,plc_data_software_cost_cl,IF(ss_cat=\"large\",4,5)))","v":"NA"},null,{"$f":"$B$123&\" - \"&$B$140&\" - \"&B143","v":"System Controls - Controls Software - PLC data collection software"},1,1,1,1,1,1,1,1,1,0,0]
["6.3.4","Plant intelligence software",{"$f":"IF(OR(manual=1,ss_cat=\"small\"),0,workstations)","v":0},"units","NA",null,"NA",null,{"$f":"IF(C144=0,\"NA\",VLOOKUP(0,plant_intel_software_cost_cl,3))","v":"NA"},"--",{"$f":"IF(C144=0,\"NA\",VLOOKUP(0,plant_intel_software_cost_cl,IF(ss_cat=\"large\",4,5)))","v":"NA"},null,{"$f":"$B$123&\" - \"&$B$140&\" - \"&B144","v":"System Controls - Controls Software - Plant intelligence software"},1,1,1,1,1,1,1,1,1,0,0]
["7.","Offgas Pollution Control Equipment",null,null,null,null,null,null,null,null,null,null,null,null,null,null,null,null,null,null,null,null,0,0]
[7.1,"Thermal Oxidizer - No Heat Recovery",{"$f":"IF(og_opt1<>0,0,tot_TOs)","v":0},"units",{"$f":"IF(C146=0,\"NA\",TO_size)","v":"NA"},{"$f":"IF(C146=0,\"\",\"cfm\")","v":""},{"$f":"IF(C146=0,\"NA\",IF(curve=1,TO_size,VLOOKUP(TO_size,og_to_cost_cl,2)))","v":"NA"},{"$f":"IF(C146=0,\"\",\"cfm\")","v":""},{"$f":"IF(C146=0,\"NA\",IF(curve=1,og_TO_eq,VLOOKUP(TO_size,og_to_cost_cl,3)))","v":"NA"},{"$f":"IF(C146=0,\"--\",IF(I146=\"contact vendor\",\"--\",C146*I146))","v":"--"},{"$f":"IF(C146=0,\"NA\",VLOOKUP(TO_size,og_to_cost_cl,IF(ss_cat=\"large\",4,5)))","v":"NA"},null,{"$f":"$B$145&\" - \"&B146","v":"Offgas Pollution Control Equipment - Thermal Oxidizer - No Heat Recovery"},1,1,1,1,1,1,1,1,1,0,0]
[7.1,"Thermal Oxidizer - Recuperative",{"$f":"IF(og_opt1<>1,0,tot_TOs)","v":0},"units",{"$f":"IF(C147=0,\"NA\",TO_size)","v":"NA"},"",{"$f":"IF(C147=0,\"NA\",IF(curve=1,TO_size,VLOOKUP(TO_size,og_torec_cost_cl,2)))","v":"NA"},"",{"$f":"IF(C147=0,\"NA\",IF(curve=1,og_torec_eq,VLOOKUP(TO_size,og_torec_cost_cl,3)))","v":"NA"},"--",{"$f":"IF(C147=0,\"NA\",VLOOKUP(TO_size,og_torec_cost_cl,IF(ss_cat=\"large\",4,5)))","v":"NA"},null,"Offgas Pollution Control Equipment - Thermal Oxidizer - Recuperative",1,1,1,1,1,1,1,1,1,0,0]
[7.1,"Thermal Oxidizer - Regenerative/Flameless",{"$f":"IF(og_opt1<>2,0,tot_TOs)","v":0},"units",{"$f":"IF(C148=0,\"NA\",TO_size)","v":"NA"},"",{"$f":"IF(C148=0,\"NA\",IF(curve=1,TO_size,VLOOKUP(TO_size,og_toreg_cost_cl,2)))","v":"NA"},"",{"$f":"IF(C148=0,\"NA\",IF(curve=1,og_toreg_eq,VLOOKUP(TO_size,og_toreg_cost_cl,3)))","v":"NA"},"--",{"$f":"IF(C148=0,\"NA\",VLOOKUP(TO_size,og_toreg_cost_cl,IF(ss_cat=\"large\",4,5)))","v":"NA"},null,"Offgas Pollution Control Equipment - Thermal Oxidizer - Regenerative/Flameless",1,1,1,1,1,1,1,1,1,0,0]
[7.1,"Catalytic Oxidizer - No Heat Recovery",{"$f":"IF(og_opt1<>0,0,tot_COs)","v":0},"units",{"$f":"IF(C149=0,\"NA\",CO_size)","v":"NA"},"",{"$f":"IF(C149=0,\"NA\",IF(curve=1,CO_size,VLOOKUP(CO_size,og_co_cost_cl,2)))","v":"NA"},"",{"$f":"IF(C149=0,\"NA\",IF(curve=1,og_co_eq,VLOOKUP(CO_size,og_co_cost_cl,3)))","v":"NA"},"--",{"$f":"IF(C149=0,\"NA\",VLOOKUP(CO_size,og_co_cost_cl,IF(ss_cat=\"large\",4,5)))","v":"NA"},null,"Offgas Pollution Control Equipment - Catalytic Oxidizer - No Heat Recovery",1,1,1,1,1,1,1,1,1,0,0]
[7.1,"Catalytic Oxidizer - Recuperative",{"$f":"IF(og_opt1<>1,0,tot_COs)","v":0},"units",{"$f":"IF(C150=0,\"NA\",CO_size)","v":"NA"},"",{"$f":"IF(C150=0,\"NA\",IF(curve=1,CO_size,VLOOKUP(CO_size,og_corec_cost_cl,2)))","v":"NA"},"",{"$f":"IF(C150=0,\"NA\",IF(curve=1,og_corec_eq,VLOOKUP(CO_size,og_corec_cost_cl,3)))","v":"NA"},"--",{"$f":"IF(C150=0,\"NA\",VLOOKUP(CO_size,og_corec_cost_cl,IF(ss_cat=\"large\",4,5)))","v":"NA"},null,"Offgas Pollution Control Equipment - Catalytic Oxidizer - Recuperative",1,1,1,1,1,1,1,1,1,0,0]
[7.1,"Catalytic Oxidizer - Regenerative",{"$f":"IF(og_opt1<>2,0,tot_COs)","v":0},"units",{"$f":"IF(C151=0,\"NA\",CO_size)","v":"NA"},"",{"$f":"IF(C151=0,\"NA\",IF(curve=1,CO_size,VLOOKUP(CO_size,og_coreg_cost_cl,2)))","v":"NA"},"",{"$f":"IF(C151=0,\"NA\",IF(curve=1,og_coreg_eq,VLOOKUP(CO_size,og_coreg_cost_cl,3)))","v":"NA"},"--",{"$f":"IF(C151=0,\"NA\",VLOOKUP(CO_size,og_coreg_cost_cl,IF(ss_cat=\"large\",4,5)))","v":"NA"},null,"Offgas Pollution Control Equipment - Catalytic Oxidizer - Regenerative",1,1,1,1,1,1,1,1,1,0,0]
[7.1,"Gas-phase GAC Adsorber",{"$f":"tot_GAC_beds","v":0},"units",{"$f":"IF(C152=0,\"NA\",GAC_bed_size)","v":"NA"},{"$f":"IF(C152=0,\"\",\"cu. ft\")","v":""},{"$f":"IF(C152=0,\"NA\",IF(curve=1,GAC_bed_size,VLOOKUP(GAC_bed_size,og_gac_cost_cl,2)))","v":"NA"},{"$f":"IF(C152=0,\"\",\"cu. ft\")","v":""},{"$f":"IF(C152=0,\"NA\",IF(curve=1,og_gac_eq,VLOOKUP(GAC_bed_size,og_gac_cost_cl,3)))","v":"NA"},"--",{"$f":"IF(C152=0,\"NA\",VLOOKUP(GAC_bed_size,og_gac_cost_cl,IF(ss_cat=\"large\",4,5)))","v":"NA"},null,{"$f":"$B$145&\" - \"&B152","v":"Offgas Pollution Control Equipment - Gas-phase GAC Adsorber"},1,1,1,1,1,1,1,1,1,{"$f":"IF(ISERROR(K152*L152),0,IF(K152<1,0,L152))","v":0},{"$f":"IF(W152,J152/K152,0)","v":0}]
[7.2,"Initial GAC Charge",{"$f":"GAC","v":0},"lbs","NA",null,"NA",null,{"$f":"IF(C153=0,\"NA\",IF(curve=1,gac_eq,VLOOKUP(GAC,gac_cost_cl,3)))","v":"NA"},"--",{"$f":"IF(C153=0,\"NA\",VLOOKUP(GAC,gac_cost_cl,IF(ss_cat=\"large\",4,5)))","v":"NA"},null,{"$f":"$B$145&\" - \"&B153","v":"Offgas Pollution Control Equipment - Initial GAC Charge"},1,1,1,1,1,1,1,1,1,{"$f":"IF(ISERROR(K153*L153),0,IF(K153<1,0,L153))","v":0},{"$f":"IF(W153,J153/K153,0)","v":0}]
["8.","Building Structures and HVAC",null,null,null,null,null,null,null,null,null,null,null,null,null,null,null,null,null,null,null,null,0,0]
[8.1,"Building 1",null,null,null,null,null,null,null,null,null,null,null,null,null,null,null,null,null,null,null,null,0,0]
["8.1.1","Small Low Cost Shed",{"$f":"IF(AND(build1_fp>0,build1_fp<500),1,0)","v":1},"units",{"$f":"build1_fp","v":120},"sf",{"$f":"build1_fp","v":120},"sf",{"$f":"IF(C156=0,\"NA\",VLOOKUP(build1_fp,bldg_shed_cost_cl,3))","v":44.535049010481643},{"$f":"IF(OR(I156=\"NA\",I156=\"contact vendor\"),\"--\",G156*I156)","v":5344.205881257797},{"$f":"IF($C156=0,\"N/A\",VLOOKUP(build1_fp,bldg_shed_cost_cl,IF(ss_cat=\"large\",4,5)))","v":20},1,{"$f":"B154&\" - \"&B155&\" - \"&B156","v":"Building Structures and HVAC - Building 1 - Small Low Cost Shed"},{"$f":"IF(include_buildings=1,2,0)","v":2},2,2,2,2,2,2,2,2,1,267.21029406288983,{"$f":"IF(W156,K156,0)","v":20}]
["8.1.1","Low Quality",{"$f":"IF(build1_fp>=500,1,0)","v":0},"units",{"$f":"build1_fp","v":120},"sf",{"$f":"build1_fp","v":120},"sf",{"$f":"IF(C157=0,\"NA\",IF(curve=1,bldg_lo_eq_1,VLOOKUP(build1_fp, bldg_lo_cost_cl,3)))","v":"NA"},{"$f":"IF(OR(I157=\"NA\",I157=\"contact vendor\"),\"--\",G157*I157)","v":"--"},{"$f":"IF($C157=0,\"N/A\",VLOOKUP(build1_fp,bldg_lo_cost_cl,IF(ss_cat=\"large\",4,5)))","v":"N/A"},0,{"$f":"B154&\" - \"&B155&\" - \"&B157","v":"Building Structures and HVAC - Building 1 - Low Quality"},{"$f":"include_buildings","v":1},null,null,{"$f":"include_buildings","v":1},null,null,{"$f":"include_buildings","v":1},null,null,0,0,{"$f":"IF(W157,K157,0)","v":0}]
["8.1.1","Medium Quality",{"$f":"IF(build1_fp>=500,1,0)","v":0},"units",{"$f":"build1_fp","v":120},"sf",{"$f":"build1_fp","v":120},"sf",{"$f":"IF(C158=0,\"NA\",IF(curve=1,bldg_mid_eq_1,VLOOKUP(build1_fp, bldg_mid_cost_cl,3)))","v":"NA"},{"$f":"IF(OR(I158=\"NA\",I158=\"contact vendor\"),\"--\",G158*I158)","v":"--"},{"$f":"IF($C158=0,\"N/A\",VLOOKUP(build1_fp,bldg_mid_cost_cl,IF(ss_cat=\"large\",4,5)))","v":"N/A"},0,{"$f":"B154&\" - \"&B155&\" - \"&B158","v":"Building Structures and HVAC - Building 1 - Medium Quality"},null,{"$f":"include_buildings","v":1},null,null,{"$f":"include_buildings","v":1},null,null,{"$f":"include_buildings","v":1},null,0,0,{"$f":"IF(W158,K158,0)","v":0}]
["8.1.1","High Quality",{"$f":"IF(build1_fp>=500,1,0)","v":0},"units",{"$f":"build1_fp","v":120},"sf",{"$f":"build1_fp","v":120},"sf",{"$f":"IF(C159=0,\"NA\",IF(curve=1,bldg_hi_eq_1,VLOOKUP(build1_fp, bldg_hi_cost_cl,3)))","v":"NA"},"--",{"$f":"IF($C159=0,\"N/A\",VLOOKUP(build1_fp,bldg_hi_cost_cl,IF(ss_cat=\"large\",4,5)))","v":"N/A"},0,{"$f":"B154&\" - \"&B155&\" - \"&B159","v":"Building Structures and HVAC - Building 1 - High Quality"},null,null,{"$f":"include_buildings","v":1},null,null,{"$f":"include_buildings","v":1},null,null,{"$f":"include_buildings","v":1},0,0,{"$f":"IF(W159,K159,0)","v":0}]
[8.1999999999999993,{"$f":"\"Heating System\"&IF(build1_heat=\"heat pump\",\" (included with cooling system)\",\"\")","v":"Heating System"},null,null,null,null,null,null,null,null,null,null,null,null,null,null,null,null,null,null,null,null,0,0]
["8.2.1","Electric resistance",{"$f":"IF(build1_heat=\"heat pump\",\"NA\",IF(build1_need_heat,build1_zones,\"NA\"))","v":"NA"},{"$f":"IF(C161=\"NA\",\"\",\"zones\")","v":""},{"$f":"IF(C161=\"NA\",\"NA\",build1_heat_mbh)","v":"NA"},{"$f":"IF(C161=\"NA\",\"\",\"MBH\")","v":""},{"$f":"IF(C161=\"NA\",\"NA\",IF(curve=1,build1_heat_mbh,VLOOKUP(build1_heat_mbh,hvac_elec_cost_cl,2)))","v":"NA"},{"$f":"IF(C161=\"NA\",\"\",\"MBH\")","v":""},{"$f":"IF(C161=\"NA\",\"NA\",IF(curve=1,hvac_elec_eq_1,VLOOKUP(build1_heat_mbh,hvac_elec_cost_cl,3)))","v":"NA"},{"$f":"IF(OR(I161=\"NA\",I161=\"contact vendor\"),\"--\",C161*I161)","v":"--"},{"$f":"IF(C161=\"NA\",\"NA\",VLOOKUP(build1_heat_mbh,hvac_elec_cost_cl,IF(ss_cat=\"large\",4,5)))","v":"NA"},null,{"$f":"B154&\" - \"&B155&\" - \"&B160&\" - \"&B161","v":"Building Structures and HVAC - Building 1 - Heating System - Electric resistance"},{"$f":"IF(include_buildings=0,0,IF(build1_heat=$B161,1,\"\"))","v":""},"","","","","","","","",{"$f":"IF(ISERROR(K161*L161),0,IF(K161<1,0,L161))","v":0},{"$f":"IF(W161,J161/K161,0)","v":0}]
["8.2.1","Natural gas non-condensing furnace",{"$f":"IF(build1_heat=\"heat pump\",\"NA\",IF(build1_need_heat,build1_zones,\"NA\"))","v":"NA"},{"$f":"IF(C162=\"NA\",\"\",\"zones\")","v":""},{"$f":"IF(C162=\"NA\",\"NA\",build1_heat_mbh)","v":"NA"},{"$f":"IF(C162=\"NA\",\"\",\"MBH\")","v":""},{"$f":"IF(C162=\"NA\",\"NA\",IF(curve=1,build1_heat_mbh,VLOOKUP(build1_heat_mbh,hvac_gas_non_cost_cl,2)))","v":"NA"},{"$f":"IF(C162=\"NA\",\"\",\"MBH\")","v":""},{"$f":"IF(C162=\"NA\",\"NA\",IF(curve=1,hvac_gas_non_eq_1,VLOOKUP(build1_heat_mbh,hvac_gas_non_cost_cl,3)))","v":"NA"},{"$f":"IF(OR(I162=\"NA\",I162=\"contact vendor\"),\"--\",C162*I162)","v":"--"},{"$f":"IF(C162=\"NA\",\"NA\",VLOOKUP(build1_heat_mbh,hvac_gas_non_cost_cl,IF(ss_cat=\"large\",4,5)))","v":"NA"},null,{"$f":"B154&\" - \"&B155&\" - \"&B160&\" - \"&B162","v":"Building Structures and HVAC - Building 1 - Heating System - Natural gas non-condensing furnace"},"","","","","","","","","",0,0]
["8.2.1","Natural gas condensing furnace",{"$f":"IF(build1_heat=\"heat pump\",\"NA\",IF(build1_need_heat,build1_zones,\"NA\"))","v":"NA"},{"$f":"IF(C163=\"NA\",\"\",\"zones\")","v":""},{"$f":"IF(C163=\"NA\",\"NA\",build1_heat_mbh)","v":"NA"},{"$f":"IF(C163=\"NA\",\"\",\"MBH\")","v":""},{"$f":"IF(C163=\"NA\",\"NA\",IF(curve=1,build1_heat_mbh,VLOOKUP(build1_heat_mbh,hvac_gas_cost_cl,2)))","v":"NA"},{"$f":"IF(C163=\"NA\",\"\",\"MBH\")","v":""},{"$f":"IF(C163=\"NA\",\"NA\",IF(curve=1,hvac_gas_eq_1,VLOOKUP(build1_heat_mbh,hvac_gas_cost_cl,3)))","v":"NA"},{"$f":"IF(OR(I163=\"NA\",I163=\"contact vendor\"),\"--\",C163*I163)","v":"--"},{"$f":"IF(C163=\"NA\",\"NA\",VLOOKUP(build1_heat_mbh,hvac_gas_cost_cl,IF(ss_cat=\"large\",4,5)))","v":"NA"},null,{"$f":"B154&\" - \"&B155&\" - \"&B160&\" - \"&B163","v":"Building Structures and HVAC - Building 1 - Heating System - Natural gas condensing furnace"},"","","","","","","","","",0,0]
["8.2.1","Standard efficiency oil furnace",{"$f":"IF(build1_heat=\"heat pump\",\"NA\",IF(build1_need_heat,build1_zones,\"NA\"))","v":"NA"},{"$f":"IF(C164=\"NA\",\"\",\"zones\")","v":""},{"$f":"IF(C164=\"NA\",\"NA\",build1_heat_mbh)","v":"NA"},{"$f":"IF(C164=\"NA\",\"\",\"MBH\")","v":""},{"$f":"IF(C164=\"NA\",\"NA\",IF(curve=1,build1_heat_mbh,VLOOKUP(E164,hvac_oil_std_cost_cl,2)))","v":"NA"},{"$f":"IF(C164=\"NA\",\"\",\"MBH\")","v":""},{"$f":"IF(C164=\"NA\",\"NA\",IF(curve=1,hvac_oil_std_eq_1,VLOOKUP(build1_heat_mbh,hvac_oil_std_cost_cl,3)))","v":"NA"},{"$f":"IF(OR(I164=\"NA\",I164=\"contact vendor\"),\"--\",C164*I164)","v":"--"},{"$f":"IF(C164=\"NA\",\"NA\",VLOOKUP(build1_heat_mbh,hvac_oil_std_cost_cl,IF(ss_cat=\"large\",4,5)))","v":"NA"},null,{"$f":"B154&\" - \"&B155&\" - \"&B160&\" - \"&B164","v":"Building Structures and HVAC - Building 1 - Heating System - Standard efficiency oil furnace"},"","","","","","","","","",0,0]
["8.2.1","Mid-efficiency oil furnace",{"$f":"IF(build1_heat=\"heat pump\",\"NA\",IF(build1_need_heat,build1_zones,\"NA\"))","v":"NA"},{"$f":"IF(C165=\"NA\",\"\",\"zones\")","v":""},{"$f":"IF(C165=\"NA\",\"NA\",build1_heat_mbh)","v":"NA"},{"$f":"IF(C165=\"NA\",\"\",\"MBH\")","v":""},{"$f":"IF(C165=\"NA\",\"NA\",IF(curve=1,build1_heat_mbh,VLOOKUP(build1_heat_mbh,hvac_oil_mid_cost_cl,2)))","v":"NA"},{"$f":"IF(C165=\"NA\",\"\",\"MBH\")","v":""},{"$f":"IF(C165=\"NA\",\"NA\",IF(curve=1,hvac_oil_mid_eq_1,VLOOKUP(build1_heat_mbh,hvac_oil_mid_cost_cl,3)))","v":"NA"},{"$f":"IF(OR(I165=\"NA\",I165=\"contact vendor\"),\"--\",C165*I165)","v":"--"},{"$f":"IF(C165=\"NA\",\"NA\",VLOOKUP(build1_heat_mbh,hvac_oil_mid_cost_cl,IF(ss_cat=\"large\",4,5)))","v":"NA"},null,{"$f":"B154&\" - \"&B155&\" - \"&B160&\" - \"&B165","v":"Building Structures and HVAC - Building 1 - Heating System - Mid-efficiency oil furnace"},"","","","","","","","","",0,0]
[8.3000000000000007,{"$f":"IF(build1_heat=\"heat pump\",\"Heating and \",\"\")&\"Cooling System\"","v":"Cooling System"},null,null,null,null,null,null,null,null,null,null,null,null,null,null,null,null,null,null,null,null,0,0]
["8.3.1","Air conditioner",{"$f":"IF(build1_need_cool,build1_zones,\"NA\")","v":"NA"},{"$f":"IF(C167=\"NA\",\"\",\"zones\")","v":""},{"$f":"IF(C167=\"NA\",\"NA\",build1_cooling_tons)","v":"NA"},{"$f":"IF(C167=\"NA\",\"\",\"tons\")","v":""},{"$f":"IF(C167=\"NA\",\"NA\",IF(curve=1,build1_cooling_tons,VLOOKUP(build1_cooling_tons,hvac_ac_cost_cl,2)))","v":"NA"},{"$f":"IF(C167=\"NA\",\"\",\"tons\")","v":""},{"$f":"IF(C167=\"NA\",\"NA\",IF(curve=1,hvac_ac_eq_1,VLOOKUP(build1_cooling_tons,hvac_ac_cost_cl,3)))","v":"NA"},{"$f":"IF(OR(I167=\"NA\",I167=\"contact vendor\"),\"--\",C167*I167)","v":"--"},{"$f":"IF(C167=\"NA\",\"NA\",VLOOKUP(build1_cooling_tons,hvac_ac_cost_cl,IF(ss_cat=\"large\",4,5)))","v":"NA"},null,{"$f":"B154&\" - \"&B155&\" - \"&B166&\" - \"&B167","v":"Building Structures and HVAC - Building 1 - Cooling System - Air conditioner"},{"$f":"IF(build1_cool=$B167,1,\"\")","v":""},{"$f":"IF(include_buildings=0,0,IF(build1_cool=$B167,1,\"\"))","v":""},"","","","","","","",0,0]
["8.3.1","Heat pump",{"$f":"IF(AND(hp_ok_1,build1_need_cool),build1_zones,\"NA\")","v":"NA"},{"$f":"IF(C168=\"NA\",\"\",\"zones\")","v":""},{"$f":"IF(C168=\"NA\",\"NA\",build1_cooling_tons)","v":"NA"},{"$f":"IF(C168=\"NA\",\"\",\"tons\")","v":""},{"$f":"IF(C168=\"NA\",\"NA\",IF(curve=1,build1_cooling_tons,VLOOKUP(build1_cooling_tons,hvac_hp_cost_cl,2)))","v":"NA"},{"$f":"IF(C168=\"NA\",\"\",\"tons\")","v":""},{"$f":"IF(C168=\"NA\",\"NA\",IF(curve=1,hvac_hp_eq_1,VLOOKUP(build1_cooling_tons,hvac_hp_cost_cl,3)))","v":"NA"},{"$f":"IF(OR(I168=\"NA\",I168=\"contact vendor\"),\"--\",C168*I168)","v":"--"},{"$f":"IF(C168=\"NA\",\"NA\",VLOOKUP(build1_cooling_tons,hvac_hp_cost_cl,IF(ss_cat=\"large\",4,5)))","v":"NA"},null,{"$f":"B154&\" - \"&B155&\" - \"&B166&\" - \"&B168","v":"Building Structures and HVAC - Building 1 - Cooling System - Heat pump"},"","","","","","","","","",0,0]
[8.4,"Building 2",null,null,null,null,null,null,null,null,null,null,null,null,null,null,null,null,null,null,null,null,0,0]
["8.4.1","Small Low Cost Shed",{"$f":"IF(AND(build2_fp>0,build2_fp<500),1,0)","v":0},"units",{"$f":"build2_fp","v":0},"sf",{"$f":"build2_fp","v":0},"sf",{"$f":"IF(C170=0,\"NA\",VLOOKUP(build2_fp,bldg_shed_cost_cl,3))","v":"NA"},{"$f":"IF(OR(I170=\"NA\",I170=\"contact vendor\"),\"--\",G170*I170)","v":"--"},{"$f":"IF($C170=0,\"N/A\",VLOOKUP(build2_fp,bldg_shed_cost_cl,IF(ss_cat=\"large\",4,5)))","v":"N/A"},null,{"$f":"B154&\" - \"&B169&\" - \"&B170","v":"Building Structures and HVAC - Building 2 - Small Low Cost Shed"},{"$f":"IF(include_buildings=1,2,0)","v":2},2,2,2,2,2,2,2,2,0,0,{"$f":"IF(W170,K170,0)","v":0}]
["8.4.1","Low Quality",{"$f":"IF(build2_fp>=500,1,0)","v":0},"units",{"$f":"build2_fp","v":0},"sf",{"$f":"build2_fp","v":0},"sf",{"$f":"IF(C171=0,\"NA\",IF(curve=1,bldg_lo_eq_2,VLOOKUP(build2_fp, bldg_lo_cost_cl,3)))","v":"NA"},"--",{"$f":"IF($C171=0,\"N/A\",VLOOKUP(build2_fp,bldg_lo_cost_cl,IF(ss_cat=\"large\",4,5)))","v":"N/A"},null,{"$f":"B154&\" - \"&B169&\" - \"&B171","v":"Building Structures and HVAC - Building 2 - Low Quality"},{"$f":"include_buildings","v":1},null,null,{"$f":"include_buildings","v":1},null,null,{"$f":"include_buildings","v":1},null,null,0,0,{"$f":"IF(W171,K171,0)","v":0}]
["8.4.1","Medium Quality",{"$f":"IF(build2_fp>=500,1,0)","v":0},"units",{"$f":"build2_fp","v":0},"sf",{"$f":"build2_fp","v":0},"sf",{"$f":"IF(C172=0,\"NA\",IF(curve=1,bldg_mid_eq_2,VLOOKUP(build2_fp, bldg_mid_cost_cl,3)))","v":"NA"},"--",{"$f":"IF($C172=0,\"N/A\",VLOOKUP(build2_fp,bldg_mid_cost_cl,IF(ss_cat=\"large\",4,5)))","v":"N/A"},null,{"$f":"B154&\" - \"&B169&\" - \"&B172","v":"Building Structures and HVAC - Building 2 - Medium Quality"},null,{"$f":"include_buildings","v":1},null,null,{"$f":"include_buildings","v":1},null,null,{"$f":"include_buildings","v":1},null,0,0,{"$f":"IF(W172,K172,0)","v":0}]
["8.4.1","High Quality",{"$f":"IF(build2_fp>=500,1,0)","v":0},"units",{"$f":"build2_fp","v":0},"sf",{"$f":"build2_fp","v":0},"sf",{"$f":"IF(C173=0,\"NA\",IF(curve=1,bldg_hi_eq_2,VLOOKUP(build2_fp, bldg_hi_cost_cl,3)))","v":"NA"},"--",{"$f":"IF($C173=0,\"N/A\",VLOOKUP(build2_fp,bldg_hi_cost_cl,IF(ss_cat=\"large\",4,5)))","v":"N/A"},null,{"$f":"B154&\" - \"&B169&\" - \"&B173","v":"Building Structures and HVAC - Building 2 - High Quality"},null,null,{"$f":"include_buildings","v":1},null,null,{"$f":"include_buildings","v":1},null,null,{"$f":"include_buildings","v":1},0,0,{"$f":"IF(W173,K173,0)","v":0}]
[8.5,{"$f":"\"Heating System\"&IF(build2_heat=\"heat pump\",\" (included with cooling system)\",\"\")","v":"Heating System"},null,null,null,null,null,null,null,null,null,null,null,null,null,null,null,null,null,null,null,null,0,0]
["8.5.1","Electric resistance",{"$f":"IF(build2_heat=\"heat pump\",\"NA\",IF(build2_need_heat,build2_zones,\"NA\"))","v":"NA"},{"$f":"IF(C175=\"NA\",\"\",\"zones\")","v":""},{"$f":"IF(C175=\"NA\",\"NA\",build2_heat_mbh)","v":"NA"},{"$f":"IF(C175=\"NA\",\"\",\"MBH\")","v":""},{"$f":"IF(C175=\"NA\",\"NA\",IF(curve=1,build2_heat_mbh,VLOOKUP(build2_heat_mbh,hvac_elec_cost_cl,2)))","v":"NA"},{"$f":"IF(C175=\"NA\",\"\",\"MBH\")","v":""},{"$f":"IF(C175=\"NA\",\"NA\",IF(curve=1,hvac_elec_eq_2,VLOOKUP(build2_heat_mbh,hvac_elec_cost_cl,3)))","v":"NA"},{"$f":"IF(OR(I175=\"NA\",I175=\"contact vendor\"),\"--\",C175*I175)","v":"--"},{"$f":"IF(C175=\"NA\",\"NA\",VLOOKUP(build2_heat_mbh,hvac_elec_cost_cl,IF(ss_cat=\"large\",4,5)))","v":"NA"},null,{"$f":"B154&\" - \"&B169&\" - \"&B174&\" - \"&B175","v":"Building Structures and HVAC - Building 2 - Heating System - Electric resistance"},{"$f":"IF(include_buildings=0,0,IF(build2_heat=$B175,1,\"\"))","v":""},"","","","","","","","",0,0]
["8.5.1","Natural gas non-condensing furnace",{"$f":"IF(build2_heat=\"heat pump\",\"NA\",IF(build2_need_heat,build2_zones,\"NA\"))","v":"NA"},{"$f":"IF(C176=\"NA\",\"\",\"zones\")","v":""},{"$f":"IF(C176=\"NA\",\"NA\",build2_heat_mbh)","v":"NA"},{"$f":"IF(C176=\"NA\",\"\",\"MBH\")","v":""},{"$f":"IF(C176=\"NA\",\"NA\",IF(curve=1,build2_heat_mbh,VLOOKUP(build2_heat_mbh,hvac_gas_non_cost_cl,2)))","v":"NA"},{"$f":"IF(C176=\"NA\",\"\",\"MBH\")","v":""},{"$f":"IF(C176=\"NA\",\"NA\",IF(curve=1,hvac_gas_non_eq_2,VLOOKUP(build2_heat_mbh,hvac_gas_non_cost_cl,3)))","v":"NA"},{"$f":"IF(OR(I176=\"NA\",I176=\"contact vendor\"),\"--\",C176*I176)","v":"--"},{"$f":"IF(C176=\"NA\",\"NA\",VLOOKUP(build2_heat_mbh,hvac_gas_non_cost_cl,IF(ss_cat=\"large\",4,5)))","v":"NA"},null,{"$f":"B154&\" - \"&B169&\" - \"&B174&\" - \"&B176","v":"Building Structures and HVAC - Building 2 - Heating System - Natural gas non-condensing furnace"},"","","","","","","","","",0,0]
["8.5.1","Natural gas condensing furnace",{"$f":"IF(build2_heat=\"heat pump\",\"NA\",IF(build2_need_heat,build2_zones,\"NA\"))","v":"NA"},{"$f":"IF(C177=\"NA\",\"\",\"zones\")","v":""},{"$f":"IF(C177=\"NA\",\"NA\",build2_heat_mbh)","v":"NA"},{"$f":"IF(C177=\"NA\",\"\",\"MBH\")","v":""},{"$f":"IF(C177=\"NA\",\"NA\",IF(curve=1,build2_heat_mbh,VLOOKUP(build2_heat_mbh,hvac_gas_cost_cl,2)))","v":"NA"},{"$f":"IF(C177=\"NA\",\"\",\"MBH\")","v":""},{"$f":"IF(C177=\"NA\",\"NA\",IF(curve=1,hvac_gas_eq_2,VLOOKUP(build2_heat_mbh,hvac_gas_cost_cl,3)))","v":"NA"},{"$f":"IF(OR(I177=\"NA\",I177=\"contact vendor\"),\"--\",C177*I177)","v":"--"},{"$f":"IF(C177=\"NA\",\"NA\",VLOOKUP(build2_heat_mbh,hvac_gas_cost_cl,IF(ss_cat=\"large\",4,5)))","v":"NA"},null,{"$f":"B154&\" - \"&B169&\" - \"&B174&\" - \"&B177","v":"Building Structures and HVAC - Building 2 - Heating System - Natural gas condensing furnace"},"","","","","","","","","",0,0]
["8.5.1","Standard efficiency oil furnace",{"$f":"IF(build2_heat=\"heat pump\",\"NA\",IF(build2_need_heat,build2_zones,\"NA\"))","v":"NA"},{"$f":"IF(C178=\"NA\",\"\",\"zones\")","v":""},{"$f":"IF(C178=\"NA\",\"NA\",build2_heat_mbh)","v":"NA"},{"$f":"IF(C178=\"NA\",\"\",\"MBH\")","v":""},{"$f":"IF(C178=\"NA\",\"NA\",IF(curve=1,build2_heat_mbh,VLOOKUP(E178,hvac_oil_std_cost_cl,2)))","v":"NA"},{"$f":"IF(C178=\"NA\",\"\",\"MBH\")","v":""},{"$f":"IF(C178=\"NA\",\"NA\",IF(curve=1,hvac_oil_std_eq_2,VLOOKUP(build2_heat_mbh,hvac_oil_std_cost_cl,3)))","v":"NA"},{"$f":"IF(OR(I178=\"NA\",I178=\"contact vendor\"),\"--\",C178*I178)","v":"--"},{"$f":"IF(C178=\"NA\",\"NA\",VLOOKUP(build2_heat_mbh,hvac_oil_std_cost_cl,IF(ss_cat=\"large\",4,5)))","v":"NA"},null,{"$f":"B154&\" - \"&B169&\" - \"&B174&\" - \"&B178","v":"Building Structures and HVAC - Building 2 - Heating System - Standard efficiency oil furnace"},"","","","","","","","","",0,0]
["8.5.1","Mid-efficiency oil furnace",{"$f":"IF(build2_heat=\"heat pump\",\"NA\",IF(build2_need_heat,build2_zones,\"NA\"))","v":"NA"},{"$f":"IF(C179=\"NA\",\"\",\"zones\")","v":""},{"$f":"IF(C179=\"NA\",\"NA\",build2_heat_mbh)","v":"NA"},{"$f":"IF(C179=\"NA\",\"\",\"MBH\")","v":""},{"$f":"IF(C179=\"NA\",\"NA\",IF(curve=1,build2_heat_mbh,VLOOKUP(build2_heat_mbh,hvac_oil_mid_cost_cl,2)))","v":"NA"},{"$f":"IF(C179=\"NA\",\"\",\"MBH\")","v":""},{"$f":"IF(C179=\"NA\",\"NA\",IF(curve=1,hvac_oil_mid_eq_2,VLOOKUP(build2_heat_mbh,hvac_oil_mid_cost_cl,3)))","v":"NA"},{"$f":"IF(OR(I179=\"NA\",I179=\"contact vendor\"),\"--\",C179*I179)","v":"--"},{"$f":"IF(C179=\"NA\",\"NA\",VLOOKUP(build2_heat_mbh,hvac_oil_mid_cost_cl,IF(ss_cat=\"large\",4,5)))","v":"NA"},null,{"$f":"B154&\" - \"&B169&\" - \"&B174&\" - \"&B179","v":"Building Structures and HVAC - Building 2 - Heating System - Mid-efficiency oil furnace"},"","","","","","","","","",0,0]
[8.6,{"$f":"IF(build2_heat=\"heat pump\",\"Heating and \",\"\")&\"Cooling System\"","v":"Cooling System"},null,null,null,null,null,null,null,null,null,null,null,null,null,null,null,null,null,null,null,null,0,0]
["8.6.1","Air conditioner",{"$f":"IF(build2_need_cool,build2_zones,\"NA\")","v":"NA"},{"$f":"IF(C181=\"NA\",\"\",\"zones\")","v":""},{"$f":"IF(C181=\"NA\",\"NA\",build2_cooling_tons)","v":"NA"},{"$f":"IF(C181=\"NA\",\"\",\"tons\")","v":""},{"$f":"IF(C181=\"NA\",\"NA\",IF(curve=1,build2_cooling_tons,VLOOKUP(build2_cooling_tons,hvac_ac_cost_cl,2)))","v":"NA"},{"$f":"IF(C181=\"NA\",\"\",\"tons\")","v":""},{"$f":"IF(C181=\"NA\",\"NA\",IF(curve=1,hvac_ac_eq_2,VLOOKUP(build2_cooling_tons,hvac_ac_cost_cl,3)))","v":"NA"},{"$f":"IF(OR(I181=\"NA\",I181=\"contact vendor\"),\"--\",C181*I181)","v":"--"},{"$f":"IF(C181=\"NA\",\"NA\",VLOOKUP(build2_cooling_tons,hvac_ac_cost_cl,IF(ss_cat=\"large\",4,5)))","v":"NA"},null,{"$f":"B154&\" - \"&B169&\" - \"&B180&\" - \"&B181","v":"Building Structures and HVAC - Building 2 - Cooling System - Air conditioner"},{"$f":"IF(include_buildings=0,0,IF(build2_cool=$B181,1,\"\"))","v":""},"","","","","","","","",0,0]
["8.6.1","Heat pump",{"$f":"IF(AND(hp_ok_2,build2_need_cool),build2_zones,\"NA\")","v":"NA"},{"$f":"IF(C182=\"NA\",\"\",\"zones\")","v":""},{"$f":"IF(C182=\"NA\",\"NA\",build2_cooling_tons)","v":"NA"},{"$f":"IF(C182=\"NA\",\"\",\"tons\")","v":""},{"$f":"IF(C182=\"NA\",\"NA\",IF(curve=1,build2_cooling_tons,VLOOKUP(build2_cooling_tons,hvac_hp_cost_cl,2)))","v":"NA"},{"$f":"IF(C182=\"NA\",\"\",\"tons\")","v":""},{"$f":"IF(C182=\"NA\",\"NA\",IF(curve=1,hvac_hp_eq_2,VLOOKUP(build2_cooling_tons,hvac_hp_cost_cl,3)))","v":"NA"},{"$f":"IF(OR(I182=\"NA\",I182=\"contact vendor\"),\"--\",C182*I182)","v":"--"},{"$f":"IF(C182=\"NA\",\"NA\",VLOOKUP(build2_cooling_tons,hvac_hp_cost_cl,IF(ss_cat=\"large\",4,5)))","v":"NA"},null,{"$f":"B154&\" - \"&B169&\" - \"&B180&\" - \"&B182","v":"Building Structures and HVAC - Building 2 - Cooling System - Heat pump"},"","","","","","","","","",0,0]
[8.6999999999999993,"Concrete Pad",1,"units",{"$f":"concrete","v":2},"cy",{"$f":"concrete","v":2},"cy",{"$f":"VLOOKUP(0,conc_pad_cost_cl,3)","v":627.3046027303194},{"$f":"IF(I183=\"contact vendor\",\"--\",E183*I183)","v":1254.6092054606388},{"$f":"VLOOKUP(0,conc_pad_cost_cl,IF(ss_cat=\"large\",4,5))","v":37},1,{"$f":"B154&\" - \"&B183","v":"Building Structures and HVAC - Concrete Pad"},{"$f":"include_pad","v":1},1,1,1,1,1,1,1,1,1,33.908356904341588]
[null,null,null,null,null,null,null,null,null,null,null,null,null,null,null,null,null,null,null,null,null,null,"direct_for_UL","total_direct_depreciation","build_UL"]
["Total of direct line items above:",null,null,null,null,null,null,null,null,null,null,null,null,null,null,null,null,null,null,null,null,null,{"$f":"SUMPRODUCT(W33:W183,J33:J183)","v":143345.28554286377},{"$f":"SUM(X33:X183)","v":7676.014755399945},{"$f":"MAX(Y156:Y159,Y170:Y173)","v":20}]
[null,"Direct cost category","Total","Guidance"]
[null,"Process costs",{"$f":"SUMPRODUCT(J33:J153,L33:L153)","v":136746.47045614533},"Excludes alternate cost line items in italics, without a 1 in the \"Use?\" column. Includes installation, transportation, and O&P"]
[null,"Building costs",{"$f":"SUMPRODUCT(J154:J183,L154:L183)","v":6598.8150867184359},"See indirect assumptions sheet to exclude buildings"]
[null,"Total direct capital cost",{"$f":"process_cost+Building_cost","v":143345.28554286377},"Total of process and building costs"]
[]
["Add-on Cost Details (See indirect assumptions sheet to exclude individual add-on items)"]
[null,"Add-on Line Item","Total","Guidance"]
[null,"Permits",{"$f":"include_permits*permit_cost","v":125.25}]
[null,"Pilot Study",{"$f":"include_pilot*VLOOKUP(tech_name,CHOOSE(ss_cat2,pilot_cost_small_cl,pilot_cost_medium_cl,pilot_cost_large_cl),2,FALSE)","v":15474.928381613428}]
[null,"Land Cost",{"$f":"include_land*land_required*land_cost","v":705.72164915786095},{"$f":"\"For \"&TEXT(land_required,\"#0.00\")&\" acres\"","v":"For 0.04 acres"}]
[null,"Total add-on costs",{"$f":"SUM(C193:C195)","v":16305.900030771289},"Total of permits, piloting, and land"]
[]
["Indirect Capital Cost Details (See indirect assumptions sheet to exclude individual indirect items)"]
[null,"Indirect Line Item","Total","Percent","Guidance"]
[null,"Mobilization and Demobilization",{"$f":"(direct_cost+C202+C203+C204+C205+C206+C207+C208+C211)*D200","v":0},{"$f":"IF(design_type=1,mob_pct_pre,CHOOSE(ss_cat2,mob_pct_small,mob_pct_medium,mob_pct_large))","v":0},"Excluded for pre-engineered packages"]
[null,"Architectural Fees for Treatment Building",{"$f":"IF(ss_cat2=1,include_arch_small,include_arch)*Building_cost*D201","v":0},{"$f":"VLOOKUP(Building_cost,architectural_table_cl,3)","v":0.09},"Excluded by default for small systems"]
[null,"Installation, Transportatation, and O&P",{"$f":"direct_cost*D202","v":0},{"$f":"inst_pct","v":0}]
[null,"Site Work",{"$f":"include_sitework*sitework_cost","v":1488.7912087912089},null,"Calculated based on system requirements."]
[null,"Yard Piping",{"$f":"include_yardpipe*yard_cost","v":1729.4305765000674},null,"Calculated based on system requirements."]
[null,"Geotechnical",{"$f":"IF(design_type=1,IF(component_level=\"\",include_geo_low,IF(component_level=1,include_geo_medium,include_geo_high)),IF(component_level=\"\",include_geo_low_g,IF(component_level=1,include_geo_medium_g,include_geo_high_g)))*geotech_cost","v":0},null,"Calculated based on system requirements."]
[null,"Standby Power",{"$f":"IF(ss_cat2=1,include_standby_small,include_standby)*std_power_cost","v":0},null,"Calculated based on system requirements.  Excluded by default for small systems."]
[null,"Electrical (including yard wiring)",{"$f":"process_cost*D207","v":13674.647045614533},{"$f":"elect_pct","v":0.1},"Percentage is applied only to process cost. Building direct costs include electrical components."]
[null,"Instrumentation and Control",{"$f":"direct_cost*D208","v":0},{"$f":"i_c_pct","v":0}]
[null,"Contingency",{"$f":"IF(component_level=\"\",include_conting_low,IF(component_level=1,include_conting_medium,include_conting_high))*(direct_cost+addon_cost+SUM(C200:C208,C210:C215))*D209","v":0},{"$f":"IF(component_level=\"\",include_conting_low,IF(component_level=1,include_conting_medium,include_conting_high))*VLOOKUP(direct_cost,contingency_table_cl,3)*complexity","v":0},"Included for high cost systems only."]
[null,"Process Engineering",28669.057108572757,{"$f":"CHOOSE(ss_cat2,eng_pct_small,eng_pct_medium,eng_pct_large)","v":0.2}]
[null,"Miscellaneous Allowance",14334.528554286378,{"$f":"misc_pct","v":0.1}]
[null,"Legal, Fiscal, and Administrative",2866.9057108572756,{"$f":"legal_pct","v":0.02}]
[null,"Sales Tax",0,{"$f":"tax_pct","v":0}]
[null,"Financing during Construction",0,{"$f":"IF(ss_cat2=1,finance_pct_small,finance_pct)","v":0}]
[null,"Construction Management and GC Overhead",{"$f":"cm_cost","v":3637.5532539886935},null,"Includes bond and insurance only for pre-engineered packages"]
[null,"Total indirect capital cost",{"$f":"indirect_cost_mult*direct_cost+indirect_cost_add","v":66400.913458610914},null,"Total of indirect line items"]
[]
["TOTAL CAPITAL COST DETAILS"]
[null,"Assumption","Value","Guidance"]
[null,"City Index",1,"User adjustable. Can be used to adjust estimated costs to be more reflective of a specific geographical location"]
[]
[null,"Capital Cost Category","Total"]
[null,"Total Direct Capital Cost (from above)",{"$f":"direct_cost","v":143345.28554286377}]
[null,"Total Add-on Cost (from above)",{"$f":"addon_cost","v":16305.900030771289}]
[null,"Total Indirect Cost (from above)",{"$f":"C216","v":66400.913458610914}]
[null,"Grand total capital cost (incorporating city index)",{"$f":"(direct_cost*(1+SUM(cul_indir_mult_table))+SUM(cul_indir_add_table))*C220","v":226052.09903224598}]
[]
["Annual Operating and Maintenance Cost Details (items in italics, without a 1 in the \"Use?\" column, represent alternate costs and are excluded from total)"]
[null,"Item","Quantity",null,"Unit Cost",null,"Total Cost ($/yr)","Use?","Guidance"]
[null,"Labor"]
[null,"Manager",{"$f":"Manager_LOE","v":38.871666666666677},"hrs/yr",{"$f":"VLOOKUP(design_flow,labor_table_cl,5)","v":44.119913896197083},"/hr",{"$f":"C231*E231","v":1715.0145863350081},1]
[null,"Administrative",{"$f":"Clerical_LOE","v":38.871666666666677},"hrs/yr",{"$f":"VLOOKUP(design_flow,labor_table_cl,6)","v":29.723303037550828},"/hr",{"$f":"C232*E232","v":1155.394327907997},1]
[null,"Operator",{"$f":"Operator_LOE","v":388.71666666666675},"hrs/yr",{"$f":"VLOOKUP(design_flow,labor_table_cl,4)","v":31.124974886390817},"/hr",{"$f":"C233*E233","v":12098.796487921552},1,"Includes labor for regular operations, maintenance, etc."]
[null,"Materials"]
[null,"Materials for blowers","calculated as a percentage of capital",null,null,null,{"$f":"blower_materials","v":793.50143673567891},{"$f":"IF(G235=0,0,1)","v":1}]
[null,"Materials for pumps","calculated as a percentage of capital",null,null,null,{"$f":"pump_materials","v":148.23228049553799},{"$f":"IF(G236=0,0,1)","v":1}]
[null,"Facility maintenance (materials and labor)",{"$f":"total_fp","v":120},"sf",{"$f":"G237/C237","v":5.643390472522726},"/sf/yr",{"$f":"bldg_maint_cost","v":677.20685670272712},1]
[null,"Media and Chemicals"]
[null,{"$f":"IF(Offgas_Tech=1,IF(og_opt2=0,\"Replacement virgin GAC\",\"Makeup GAC\"),\"\")","v":""},{"$f":"GAC_makeup","v":0},"lbs/yr",{"$f":"IF(Offgas_Tech=1,IF(curve=1,replace_gac_eq,VLOOKUP(GAC_makeup_cf,gac_cost_cl,3)),0)","v":0},"/lb",{"$f":"E239*C239","v":0},{"$f":"IF(Offgas_Tech=1,1,0)","v":0}]
[null,{"$f":"IF(AND(Offgas_Tech=1,og_opt2=1),\"Off-site GAC regeneration\",\"\")","v":""},{"$f":"IF(AND(Offgas_Tech=1,og_opt2=1),regen_yr,0)","v":0},"lbs/yr",{"$f":"IF(AND(Offgas_Tech=1,og_opt2=1),IF(curve=1,off_regen_eq,VLOOKUP(regen_yr_cf,off_regen_cost_cl,3)),0)","v":0},"/lb",{"$f":"E240*C240","v":0},{"$f":"IF(AND(Offgas_Tech=1,og_opt2=1),1,0)","v":0}]
[null,"Energy"]
[null,"Energy for blowers",{"$f":"blower_energy","v":11.818367140571947},"Mwh/yr",{"$f":"energy_cost_cl","v":0.10761526717557252},"/kwh",{"$f":"E242*C242*1000","v":1271.8367374116569},{"$f":"IF(C242=0,0,1)","v":1}]
[null,"Energy for pumps",{"$f":"pump_energy","v":24.852385693815709},"Mwh/yr",{"$f":"energy_cost_cl","v":0.10761526717557252},"/kwh",{"$f":"E243*C243*1000","v":2674.4961263903538},{"$f":"IF(C243=0,0,1)","v":1}]
[null,"Energy for offgas treatment",{"$f":"CHOOSE(Offgas_Tech+1,0,0,TO_power_yr,CO_power_yr)","v":0},"Mwh/yr",{"$f":"energy_cost_cl","v":0.10761526717557252},"/kwh",{"$f":"E244*C244*1000","v":0},{"$f":"CHOOSE(Offgas_Tech+1,0,0,1,1)","v":0}]
[null,"Natural gas for offgas treatment",{"$f":"CHOOSE(Offgas_Tech+1,0,0,TO_ng_yr,CO_ng_yr)","v":0},"therms/yr",{"$f":"gas_cost_cl","v":0.64354043868972843},"/therm",{"$f":"E245*C245","v":0},{"$f":"CHOOSE(Offgas_Tech+1,0,0,1,1)","v":0}]
[null,"Energy for lighting",{"$f":"lighting","v":4.6646000000000007E-2},"Mwh/yr",{"$f":"energy_cost_cl","v":0.10761526717557252},"/kwh",{"$f":"E246*C246*1000","v":5.0198217526717563},{"$f":"IF(C246=0,0,1)","v":1}]
[null,"Energy for ventilation",{"$f":"ventilation","v":0.12358257664794969},"Mwh/yr",{"$f":"energy_cost_cl","v":0.10761526717557252},"/kwh",{"$f":"E247*C247*1000","v":13.299372004214774},{"$f":"IF(C247=0,0,1)","v":1}]
[null,"Energy for cooling"]
[null,"Air conditioning",{"$f":"cooling","v":0},"Mwh/yr",{"$f":"energy_cost_cl","v":0.10761526717557252},"/kwh",{"$f":"E249*C249*1000","v":0},{"$f":"IF(G249=0,0,1)","v":0}]
[null,"Heat pump (cooling mode)",{"$f":"cooling_hp","v":0},"Mwh/yr",{"$f":"energy_cost_cl","v":0.10761526717557252},"/kwh",{"$f":"E250*C250*1000","v":0},{"$f":"IF(G250=0,0,1)","v":0}]
[null,"Energy for heating"]
[null,"Electric resistance",{"$f":"heating","v":0},"Mwh/yr",{"$f":"energy_cost_cl","v":0.10761526717557252},"/kwh",{"$f":"E252*C252*1000","v":0},{"$f":"IF(G252=0,0,1)","v":0}]
[null,"Heat pump",{"$f":"heating_hp","v":0},"Mwh/yr",{"$f":"energy_cost_cl","v":0.10761526717557252},"/kwh",{"$f":"E253*C253*1000","v":0},0]
[null,"Natural gas non-condensing furnace",{"$f":"heating_gas_non","v":0},"therms/yr",{"$f":"gas_cost_cl","v":0.64354043868972843},"/therm",{"$f":"E254*C254","v":0},0]
[null,"Natural gas condensing furnace",{"$f":"heating_gas","v":0},"therms/yr",{"$f":"gas_cost_cl","v":0.64354043868972843},"/therm",{"$f":"E255*C255","v":0},0]
[null,"Standard efficiency oil furnace",{"$f":"heating_diesel_non","v":0},"gal/yr",{"$f":"diesel_cost_cl","v":1.9400231874222376},"/gal",{"$f":"E256*C256","v":0},0]
[null,"Mid-efficiency oil furnace",{"$f":"heating_diesel","v":0},"gal/yr",{"$f":"diesel_cost_cl","v":1.9400231874222376},"/gal",{"$f":"E257*C257","v":0},0]
[null,"Residuals Discharge/Disposal"]
[null,"Spent offgas control media disposal",{"$f":"IF(disp_freq=0,0,spent_media/disp_freq)","v":0},"ton/yr",{"$f":"IF(C259=0,0,G259/C259)","v":0},"/ton",{"$f":"disposal_fee","v":0},{"$f":"IF(C259=0,0,1)","v":0}]
[null,"Miscellaneous Allowance",{"$f":"misc_pct","v":0.1},null,null,null,{"$f":"SUMPRODUCT(G231:G259,H231:H259)*C260","v":2055.2798033657396},1]
[null,"Total Annual O&M Cost",null,null,null,null,{"$f":"SUMPRODUCT(G231:G260,H231:H260)","v":22608.077837023131}]
[]
["ANNUALIZED COSTS"]
[null,"Assumption","Value","Guidance"]
[null,"Discount rate",7.0000000000000007E-2,"User adjustable"]
[null,"Calculate households based on:","ground water","User adjustable"]
[null,"Household size (people per household)",2.6,"User adjustable"]
[]
[null,"Calculation","Value","Units"]
[null,"Useful Life (Reciprocal Weighted Average)",{"$f":"ROUND((direct_for_UL+IF(build_UL=0,0,addon_cost+indirect_cost))/(total_direct_depreciation+IF(build_UL=0,0,(addon_cost+indirect_cost)/build_UL)),1)","v":19.100000000000001},"years"]
[null,"Number of households served",{"$f":"IF(source_select=\"ground water\",(average_flow*1000/0.08558)^(1/1.0584),(average_flow*1000/0.14004)^(1/0.99703))/hh_size","v":287.07842041525504},"households"]
[null,"Annualized Cost",{"$f":"-PMT(Discount_rate,useful_life,ROUND(system_cost,0))+ROUND(om_cost,0)","v":44422.993303663257},"/year"]
[null,"Annualized cost per 1,000 gallons average flow",{"$f":"Annualized_Cost/(average_flow*365*1000)","v":1.2947535209461749},"/kgal"]
[null,"Annualized cost per household",{"$f":"Annualized_Cost/households","v":154.74166689159708},"/household/year"]
[]
["Internal use"]
[null,"Mobilization and Demobilization",{"$f":"C200","v":0}]
[null,"Architectural Fees for Treatment Building",{"$f":"C201","v":0}]
[null,"Installation, Transportatation, and O&P",{"$f":"D202","v":0}]
[null,"Site Work",{"$f":"C203","v":1488.7912087912089}]
[null,"Yard Piping",{"$f":"C204","v":1729.4305765000674}]
[null,"Geotechnical",{"$f":"C205","v":0}]
[null,"Standby Power",{"$f":"C206","v":0}]
[null,"Electrical (including yard wiring)",{"$f":"C207","v":13674.647045614533}]
[null,"Instrumentation and Control",{"$f":"D208","v":0}]
[null,"Contingency",{"$f":"C209","v":0}]
[null,"Process Engineering",{"$f":"C210","v":28669.057108572757}]
[null,"Miscellaneous Allowance",{"$f":"D211","v":0.1}]
[null,"Legal, Fiscal, and Administrative",{"$f":"D212","v":0.02}]
[null,"Sales Tax",{"$f":"D213","v":0}]
[null,"Financing during Construction",{"$f":"D214","v":0}]
[null,"Construction Management and GC Overhead",{"$f":"C215","v":3637.5532539886935}]
[null,"Indirect cost multiplier",{"$f":"SUM(cul_indir_mult_table)","v":0.12000000000000001}]
[null,"Indirect costs added",{"$f":"SUM(cul_indir_add_table)-addon_cost","v":49199.479193467254}]
[null,"Subtotal indirect and add-on cost",{"$f":"C216+addon_cost","v":82706.813489382199}]
[]
[null,"Valid inputs:",{"$f":"INPUT!C33","v":true},{"$f":"INPUT!C51","v":true},{"$f":"INPUT!C62","v":true},{"$f":"INPUT!C76","v":true}]
[null,"Missing Cost?:",{"$f":"IF(COUNTIF(use_column,\"x\")>0,TRUE,FALSE)","v":false}]
[null,"Buildup Error?:",{"$f":"IF(COUNTIF(use_column,\"ec\")+COUNTIF(use_column,\"ep\")>0,TRUE,FALSE)","v":false}]

{"sheet":"Critical Design Assumptions","index":4,"n_rows":111,"n_cols":7,"rows_kept":111,"cut":false,"hidden":false,"merged":[]}
["Default Critical Design Assumptions"]
["Users may change any of the cells in the Value column; cells in gold are most important and may vary based on contaminant treated and site-specific conditions"]
[]
["Assumption","Range Name","Value","Units","Guidance"]
["Use curve fit for costs","curve",1,"<-- enter 1 to use cost equations, leave blank to use lookup tables for component costs","Keeping this assumption with a value of 1 is strongly recommended; the cost equations method is more appropriate for national cost estimating and will be more accurate for nearly all user-specified designs"]
[]
["Bypass Flow"]
["Percent of Total Flow that is Bypassed","bp_pct",0,null,"Typically, bypass flow ranges between 0% and 50% of inflow. Enter zero to remove bypass piping and components. 0% is default consistent with the type of cost curves that EPA will need for its national cost simulation model."]
[]
["Pumps and Blowers"]
["Safety factor for pumps","pump_safety_factor",0.25]
["Number of redundant pumps","NRD_pumps",0,null,"Multiple pump approach eliminates need for redundant pumps."]
["Blower safety factor","blower_safety_factor",0.25]
["Number of redundant blowers","NRD_blowers",1,null,"One spare blower is usually provided (Drago peer review comments)"]
["Minimum average flow as percentage of design","min_avg_flow",0.1,null,"The minimum ratio of average flow to design flow. If the ratio falls below this value, it will trigger a warning on the INPUT sheet. If this value is zero, no minimum is enforced."]
[]
["Contact basin design"]
["Maximum air surface loading intensity","max_air_load",16.5,"cfm/square ft","Maximum should be <16 to 20 cfm/ft2. Recommend 16 to 17 cfm/ft2 (Lowry peer review comments)"]
["Minimum basin length to width ratio","max_ratio",1.5,null,"Basins are longer than they are wide"]
["Freeboard","freeboard",2,"feet","1 to 3 feet, assuming 2 feet (ASCE/AWWA, 1997, p. 471)"]
["Number of redundant basins","NRD_tanks",0,"units","According to TDP, basins are not considered for redundancy"]
["Maximum basin length (pre-engineered package)","max_length_package",12,"feet","Vendor packages supply aboveground basins up to 12 feet long (Lowry peer review comments)"]
["Maximum basin length (custom design)","max_length_custom",60,"feet","Vendors have custom designed in-ground concrete basins up to 60 feet long (Lowry peer review comments)"]
["Quiescent chamber length as a proportion of stage length","qchamber_ratio",0.5,null,"Based on review of vendor schematics, quiescent chamber is approximately half the length of an individual stage"]
["Concrete thickness","conc_thick",1,"feet"]
["Overexcavation for concrete basins","overexcavate",4,"ft","2 feet each side in each dimension. This assumption used only if concrete basins are used."]
["Diffuser access space","diffuser_access_space",1,"inches","Added to diffuser length and diameter to allow access"]
["External air piping","air_pipe_add",1,"times facility length","Additional air piping from blowers to basins"]
[]
["Valves and Instrumentation"]
["See the Valve Table at the bottom of this page for additional assumptions relating to valves"]
["Number of manual valves on influent and treated water line","tot_man_valves",2,"valves"]
[]
["Number of check valves on treated water line","tot_in_chv",1,"valves"]
["Number of check valves on bypass line","tot_bp_chv",1,"valves"]
["Number of check valves on process line per booster pump","proc_chv_pump",1,"valves"]
[]
["Flow meters for influent and treated water line","tot_fm_in",1,"units","Influent line only"]
["Flow meters for process line per contact basin","fm_proc",1,"units/basin"]
["Flow meters for air line per contact basin","fm_air",1,"units/basin"]
["pH_meters","tot_ph",2,"units","Included on inlet and outlet because aeration will strip CO2"]
["High/Low alarms per contact basin","alarm_basin",1,"units/basin"]
["Number of pressure gauges per blower","gauges_blower",2,"units/blower","On outlet to monitor state of aerators (fouling); on inlet to monitor air filter element (plugging)"]
["Number of electrical enclosures","elec_encl",0,"units","Required only for technologies with significant electric-powered equipment outside a building"]
[]
["System Controls"]
["See the I/O Port Table at the bottom of this page for additional assumptions relating to system controls"]
["Controllers are used only under full automation"]
["To change the degree of automation, change the number of controllers to zero for the appropriate items."]
["Drive controllers per booster pump","S_booster_pump",1]
["Drive controllers per blower","S_blower",1]
["Drive controllers per thermal oxidizer","S_TO",2,null,"One for burners, one for secondary air"]
["Drive controllers per catalytic oxidizer","S_CO",2,null,"One for burners, one for secondary air"]
[]
["Number of CPUs","plc_cpu",2,"units","One CPU is needed to run the local and expansion bases and modules (max 8192 I/O); using two to provide redundancy"]
["Ethernet modules","plc_ethernet ",2,"units","One ethernet module is needed; using two to provide redundancy"]
["Operator interfaces","plc_interface",2,"units","Two to provide redundancy in the event of SCADA node failure"]
["UPSs","ups",1,"unit","UPS protects the PLC system from undesired outages and surges that can adversely affect the performance of the PLC unit"]
["Computer workstations per x operators","workstation_ratio",1,"operator/workstation","Minimum will always be one, but larger systems will have multiple workstations to control the system"]
["Number of shifts","shifts_day",3,"shifts/day","Used to determine number of workstations"]
["Printers per x computer workstations","printer_ratio",4,"workstations/printer","Minimum will always be one, but larger systems will have multiple printers"]
[]
["Structure/Floorplan"]
["Maximum access space per vessel or tank for custom designed systems","max_space_vessels_cust",6,"feet","This is the MAXIMUM; space between vessels and tanks defaults to vessel or tank diameter, up to this maximum.  Maximum provides space for sandblasting and painting for large vessels (5-8 feet per Richard E. Hubel, Peter Keenan, American Water Works Service Company)."]
["Maximum access space per vessel or tank for pre-engineered systems","max_space_vessels_pre",1,"feet","Assumes skid-mounting with minimal access space"]
["Access space per pump/blower for custom designed systems","space_pumps_cust",4,"feet","Used for both pumps and blowers; provide a minimum of 3 ft (1 m) of clear space around each item of equipment (American Water Works Association and American Society of Civil Engineers. Water Treatment Plant Design. Third Edition. New York: McGraw Hill, 1998. Pp. 695)."]
["Access space per pump/blower for pre-engineered packages","space_pumps_pre",0,"feet","Pumps and blowers on skid for pre-engineered packages, no additional access space"]
["Fire truck buffer requirements","fire_buffer",40,"feet"]
["Buffer space around other sides of buildings","non_fire_buffer",10,"feet"]
["Building height","Building_height",20,"feet"]
["Office space per employee","space_office",100,"square ft"]
["Office space per employee","space_office_small",0,"square ft","Small systems do not require office space"]
["Concrete pad thickness","pad_thick",{"$f":"6/12","v":0.5},"feet"]
["Concrete pad thickness for small systems","pad_thick_small",{"$f":"4/12","v":0.33333333333333331},"feet"]
["Additional building after…","add_2nd_building",10000,"sf"]
[]
["Valve Table"]
["Under assumptions below, valves are motorized for fully automated systems, manual for semi-automated and manual systems"]
["To change the degree of automation, the user may replace the numbers in each of the blue columns."]
["Number of control valves of x type on y line per z","Lookup name","Manual","Semi-auto","Fully Auto","Units"]
["Motor/air operated on process line per contact basin","proc_MOV_basin",0,0,2,"valves/basin"]
["Motor/air operated on process line per booster pump ","proc_MOV_pump",0,0,2,"valves/pump"]
["Motor/air operated on air line per blower","air_MOV_basin",0,0,1,"valves/blower"]
["Motor/air operated on bypass line","tot_bp_MOVs",0,0,1,"valves"]
["Number of MOVs per offgas control unit","air_MOV_og",0,0,1,"valves/unit"]
["Additional MOVs with offgas control","add_MOV_og",0,0,1,"valve","For emergency direct venting"]
["Manual on process line per contact basin","proc_man_basin",2,2,0,"valves/basin"]
["Manual on process line per booster pump ","proc_man_pump",2,2,0,"valves/pump"]
["Manual on air line per blower","air_man_basin",1,1,0,"valves/blower"]
["Manual on bypass line","tot_bp_man",1,1,0,"valves"]
["Number of manual control valves per offgas control unit","air_man_og",1,1,0,"valves/unit"]
["Additional manual control valves with offgas control","add_man_og",1,1,0,"valve","For emergency direct venting"]
[]
["I/O Port Table"]
["Full automation includes all inputs and outputs, semi-automated uses inputs only, manual control uses neither"]
["To change the degree of automation, the user may replace the numbers in each of the blue columns."]
["I/O Ports needed per….","Lookup name","Discrete Inputs","Discrete Outputs","Analog Inputs","Analog Outputs"]
["Alarm (including level switch/alarms, high/low alarms, low alarms)","alarm",1,1,0,0]
["Catalytic oxidizer","CO",3,2,2,1,"Air flow: 2 AI, 1 AO, Temperature controller: 1 DI, 1 DO, Automated shut down: 1 DI, 1 DO, LEL sensor: 1 DI"]
["Air flow meter (rotameter)","flow_air",0,0,1,0]
["Magnetic flow meter","flow_mag",0,0,1,0]
["Orifice plate flow meter","flow_op",0,0,2,1,"Additional analog input because flow meters include pressure gauges"]
["Propeller flow meter","flow_prop",0,0,1,0]
["Venturi flow meter","flow_ven",0,0,2,1,"Additional analog input because flow meters include pressure gauges"]
["pH meter","ph",0,0,1,0]
["Pressure gauge","press",0,0,1,0]
["Drive controller","switch",3,1,0,0]
["TDS monitor","TDS",1,0,0,0]
["Temperature meter","temp",0,0,1,0]
["Thermal oxidizer","TO",3,2,2,1,"Air flow: 2 AI, 1 AO, Temperature controller: 1 DI, 1 DO, Automated shut down: 1 DI, 1 DO, LEL sensor: 1 DI"]
["Motor/air operated valve","valve",0,0,1,1]

{"sheet":"O&M Assumptions","index":5,"n_rows":58,"n_cols":5,"rows_kept":58,"cut":false,"hidden":false,"merged":[]}
["Default O&M Assumptions"]
["Users may change any of the cells in the Value column"]
[]
["Assumption","Range Name","Value","Units","Guidance"]
["Pump head","pump_head",75,"psi","Consistent with pumping to distribution at 60-90 psi (Lowry Peer Review Comments)"]
["Efficiency of pumps","pump_effcy",0.75]
["Additional blower head above water depth","add_blow_head",10,"inches"]
["Blower efficiency","blower_effcy",0.7]
["Cost for parts & maintenance for pumps and blowers","pump_maint_rate",0.01,null,"For calculating cost of actual maintenance materials; not to be confused with depreciation; 5% would be too high (Richard E. Hubel, Peter Keenan, American Water Works Service Company, Inc)"]
[]
["Operating LOE assumptions"]
["Minutes per instrument per day","uloe_inst",5,"min/day","For manual systems only"]
["Recording operating paramenters for automated systems","uloe_inst_auto",5,"min/day","For semiautomated and automated systems"]
["Minutes per pump, blower, and offgas unit per day","uloe_pump",5,"min/day","For manual and semiautomated systems"]
["Minutes per valve per week","uloe_valve",5,"min/week","For manual and semiautomated systems"]
["Minutes per 100 sf per day","uloe_fp",1,"min/100 sf/day"]
["Hours per media changeout","uloe_throwaway",4,"hours/bed/event","For systems with GAC offgas treatment"]
[]
["Mangerial LOE as a percent of average technical labor ","Manager_percent",0.1,"fraction"]
["Administrative LOE as a percent of average technical labor ","Clerical_percent",0.1,"fraction"]
[]
["Maintenance LOE assumptions"]
["For instruments (includes calibration)","uloe_inst_maint",10,"min/month"]
["For pumps","uloe_pump_maint",30.25,"hours/year","Based on vendor recommended maintenance activities; applied to large, frequently operated pumps only"]
["For valves","uloe_valve_maint",5,"min/year","Applied to main process valves only"]
[]
["Lighting and HVAC"]
["Lighting power per sf, low-quality buildings and sheds","lighting_power_low",1,"W/sf","1, 2, and 4 W/sf are the assumptions used for building capital costs."]
["Lighting power per sf, mid-quality buildings","lighting_power_mid",2,"W/sf"]
["Lighting power per sf, high-quality buildings","lighting_power_high",4,"W/sf"]
[]
["Ventilation air change rate for contactor","Air_changes_contactor",3,"air changes/hr"]
["Ventilation air change rate for pump room","Air_changes_pump",20,"air changes/hr","Could be lower (annual average 3 changes/hr) in a northern climate"]
["Ventilation air change rate for offices","Air_changes_office",2,"air changes/hr"]
["Pressure drop across the fan","Fan_pressure_drop",0.25,"lbs/ft2"]
["Number of mechanical ventilation days per year first building (small system)","fan_days_build1_small",90,"days/year","Number of days per year where natural ventilation is applicable cannot be greater than 365 days"]
["Number of mechanical ventilation days per year 2nd building (small system)","fan_days_build2_small",90,"days/year","For small systems (<1 MGD)"]
["Number of mechanical ventilation days per year first building (medium system)","fan_days_build1_medium",120,"days/year","For medium systems (1 - 10 MGD)"]
["Number of mechanical ventilation days per year 2nd building (medium system)","fan_days_build2_medium",120,"days/year"]
["Number of mechanical ventilation days per year first building (large system)","fan_days_build1_large",185,"days/year","For large systems (> 10 MGD)"]
["Number of mechanical ventilation days per year 2nd building (large system)","fan_days_build2_large",185,"days/year"]
[]
["R-value for walls","R_wall",13,"hr-sf-degF/BTU","Assumes standard building materials. If higher R-value materials are desired, user may also need to adjust the cost of building materials."]
["R-value for ceilings","R_ceiling",38,"hr-sf-degF/BTU","Assumes standard building materials. If higher R-value materials are desired, user may also need to adjust the cost of building materials."]
["Annual heating degree days","heat_DD",4923,"degree days","Heating and cooling assumptions should be consistent with one another. Assumed values are for a climate that results in a total energy usage for heating and cooling equal to the national median."]
["Annual cooling degree days","cool_DD",1697,"degree days","Heating and cooling assumptions should be consistent with one another. Assumed values are for a climate that results in a total energy usage for heating and cooling equal to the national median."]
["Heating ventilation/infiltration load","heat_viload",168679,"BTU/cfm","Heating and cooling assumptions should be consistent with one another. Assumed values are for a climate that results in a total energy usage for heating and cooling equal to the national median."]
["Cooling ventilation/infiltration load","cool_viload",51771,"BTU/cfm","Heating and cooling assumptions should be consistent with one another. Assumed values are for a climate that results in a total energy usage for heating and cooling equal to the national median."]
["Electric resistance heating efficiency","resist_eff",0.98,null,"See Appendix E"]
["Heat pump heating coefficient of performance","COP",3.2,null,"See Appendix E"]
["Natural gas non-condensing furnace efficiency","gas_non_eff",0.8,null,"See Appendix E"]
["Natural gas condensing furnace efficiency","gas_eff",0.95,null,"See Appendix E"]
["Standard oil furnace efficiency","diesel_non_eff",0.78,null,"See Appendix E"]
["Mid-efficiency oil furnace efficiency","diesel_eff",0.85,null,"See Appendix E"]
["Air conditioning EER","EER",11,"Whr/BTU","See Appendix E"]
["Heat pump cooling mode EER","hp_EER",10.1,"Whr/BTU","See Appendix E"]
[]
["Heating Oil Heat Content","diesel_heat_content",139000,"BTU/gal","U.S. DOE, Energy Information Administration."]

{"sheet":"Indirect Assumptions","index":6,"n_rows":134,"n_cols":5,"rows_kept":134,"cut":false,"hidden":false,"merged":[[112,0,113,0],[112,1,113,1],[112,2,112,4],[124,0,125,0],[124,1,125,1],[124,2,124,4]]}
["Default Assumptions for Indirect and Add-On Costs"]
["Users may change any of the cells in the Value column"]
[]
["Assumption","Range Name","Value","Units","Guidance"]
["Permits"]
["Include permit costs?","include_permits",1,"<--- enter 1 for yes, 0 for no"]
["Always include NEPA compliance costs?","include_NEPA",0,"<--- enter 1 for yes, 2 for no","Default of 0 means NEPA compliance is included in the high component cost estimate only. Selecting 1 means NEPA compliance will be included in all estimates. Selecting 0 means NEPA compliance will never be included."]
[]
["Pilot Study"]
["Include pilot study costs?","include_pilot",1,"<--- enter 1 for yes, 0 for no"]
[]
["Land"]
["Include land costs?","include_land",1,"<--- enter 1 for yes, 0 for no"]
[]
["Mobilization and Demobilization"]
["Mobilization percentage for pre-engineered packages","mob_pct_pre",0,"of direct capital cost","Typically 2-5% of the estimated construction cost. Enter 0% to exclude."]
["Mobilization percentage for small systems","mob_pct_small",0.05,"of direct capital cost"]
["Mobilization percentage for medium systems","mob_pct_medium",0.04,"of direct capital cost"]
["Mobilization percentage for large systems","mob_pct_large",0.02,"of direct capital cost"]
[]
["Architectural Fees for Treatment Building"]
["Include architectural fee?","include_arch",1,"<--- enter 1 for yes, 0 for no","Must be added to building cost. Change for special considerations. Includes structural, mechanical, and electrical engineering for building only."]
["Include architectural fee for small systems?","include_arch_small",0,"<--- enter 1 for yes, 0 for no"]
[]
["Installation, Transportatation, and O&P"]
["Installation, Transportatation, and O&P percentage","inst_pct",0,"of direct capital cost","Included in line item unit costs. Add a percentage for special considerations such as a remote site or high cost location."]
[]
["Sitework"]
["Include sitework costs?","include_sitework",1,"<--- enter 1 for yes, 0 for no"]
[]
["Yard Piping"]
["Include yard piping costs?","include_yardpipe",1,"<--- enter 1 for yes, 0 for no"]
["Frost depth","frost",38,"inches","Should be consistent with (reflect same climate as) heating and cooling assumptions on O&M assumptions page"]
["Minimum trench depth to top of pipe","min_trench_depth",36,"inches","US Army Corps of Engineers recommended minimum cover for distribution pipes of 2.5 ft in grassed areas, 3 ft if buried under pavement or roadways but not less than frost penetration depth (USACOE 1984)"]
["Soil density","soil_dens",97,"lb/cubic ft.","Based on soil density of loamy sand (1.55 gm/cc)"]
["Coefficient of passive pressure","Coeff_Kp",3]
["Reduction factor","Reduction",0.46700000000000003]
["Bedding depth below pipe","bedding_depth",6,"inches"]
["Bedding depth surrounding the pipe","bedding_pct",0.25,"of pipe diameter"]
["Trench inside angle","trench_angle",{"$f":"RADIANS(45)","v":0.78539816339744828},"radians"]
["Pipe length from water source to the boundary of the 10 foot buffer","yard_in",0,"feet","Use if technology is first step in treatment process"]
["Pipe length the boundary of the 10 foot buffer to distribution network","yard_out",0,"feet","Use if technology is last step in treatment process"]
[]
["Geotechnical"]
["Include geotechnical costs for low cost systems?","include_geo_low",0,"<--- enter 1 for yes, 0 for no"]
["Include geotechnical costs for medium cost systems?","include_geo_medium",0,"<--- enter 1 for yes, 0 for no"]
["Include geotechnical costs for high cost systems?","include_geo_high",1,"<--- enter 1 for yes, 0 for no"]
["Include geotechnical costs for low cost custom systems?","include_geo_low_g",1,"<--- enter 1 for yes, 0 for no","Geotechnical is always included for custom systems, because of basin excavation"]
["Include geotechnical costs for medium cost custom systems?","include_geo_medium_g",1,"<--- enter 1 for yes, 0 for no"]
["Include geotechnical costs for high cost custom systems?","include_geo_high_g",1,"<--- enter 1 for yes, 0 for no"]
["Test pit length","pit_length",4,"feet"]
["Test pit width","pit_width",4,"feet"]
["Test pit depth","pit_depth",7,"feet"]
["Borehole depth (package systems)","bore_depth_p",10,"feet"]
["Borehole depth for shallow basins","bore_depth_min",25,"feet"]
["Borehole depth for deep basins","bore_depth_max",50,"feet"]
["Basin excavation depth above which deeper boreholes are needed","deep_bore_need",20,"feet","Deeper basins (although unlikely for this technology) would require deeper investigation"]
["Technology footprint above which boreholes are needed","bore_need",2000,"square feet","Small system geotechnical investigation can be completed with test pits, larger systems require boreholes"]
["Minimum number of boreholes","min_holes",4]
["Borehole needed every x square feet","hole_per_sf",1000,"square feet"]
["Boreholes per job","hole_per_job",24,"boreholes/job"]
["Linear feet bored per day","hole_per_day",55.5,"l.f./day","RS Means Costworks 2001"]
[]
["Standby Power"]
["Include standby power costs?","include_standby",1,"<--- enter 1 for yes, 0 for no"]
["Include standby power costs for small systems?","include_standby_small",0,"<--- enter 1 for yes, 0 for no"]
["Design safety factor for standby power","std_safety_factor",0,null,"Default 0%. Apply a percentage to increase standby power requirements."]
["Include heating in standby power","need_heat",0,"<--- enter 1 for yes, 0 for no","If a system uses gas or diesel heat, heating will not be included in standby power, regardless of this assumption."]
["Include cooling in standby power","need_cool",0,"<--- enter 1 for yes, 0 for no","If both heating and cooling are included, standby power requirements will be based on the maximum of the two."]
["Minimum standby power generator size","min_standby",1.5,"kW"]
[]
["Electrical (including yard wiring)"]
["Electrical percentage","elect_pct",0.1,"of direct cost"]
[]
["Instrumentation and Control"]
["Instrumentation and control percentage","i_c_pct",0,"of direct cost","Included as a direct cost line item."]
[]
["Contingency"]
["Include contingency costs for low cost systems?","include_conting_low",0,"<--- enter 1 for yes, 0 for no"]
["Include contingency costs for medium cost systems?","include_conting_medium",0,"<--- enter 1 for yes, 0 for no"]
["Include contingency costs for high cost systems?","include_conting_high",1,"<--- enter 1 for yes, 0 for no"]
["Technology complexity factor","complexity",1.5,null,"Technology-specific factor. See Appendices for details. Low complexity = 0.5; Average complexity = 1.0; High complexity = 1.5; Very high complexity = 2.0."]
[]
["Process Engineering"]
["Engineering percentage for small systems","eng_pct_small",0.2,"of direct capital cost","Enter 0% to exclude"]
["Engineering percentage for medium systems","eng_pct_medium",0.12,"of direct capital cost"]
["Engineering percentage for large systems","eng_pct_large",0.08,"of direct capital cost"]
[]
["Miscellaneous Allowance"]
["Miscellaneous allowance percentage","misc_pct",0.1,"of direct capital cost","Enter 0% to exclude"]
[]
["Legal, Fiscal, and Administrative"]
["Legal percentage","legal_pct",0.02,"of direct capital cost","Enter 0% to exclude. Highly site-specific. Can range from 2-5% of equipment, installation, construction, electrical, and standby power."]
[]
["Sales Tax"]
["Sales tax percentage","tax_pct",0,"of direct capital cost","May be exempt if constructed with public funds. May be as high as 7.25% of equipment and construction, with national average 4.75%."]
[]
["Financing during Construction"]
["Financing percentage","finance_pct",0.05,"of direct capital cost","Enter 0% to exclude. Typically assumed to be one year's interest on capital cost."]
["Financing percentage for small systems","finance_pct_small",0,"of direct capital cost","Small system construction assumed to take less than one year"]
[]
["Construction Management and General Contractor Overhead"]
["Builder's risk insurance percentage","br_ins_pct",3.3999999999999998E-3,null,"Enter 0% to exclude. 0.34% is national average rate. RSMeans Building Construction Cost Data 2009, reference section R01100-070"]
["Include performance bond cost?","include_bond",1,"<--- enter 1 for yes, 0 for no"]
["Include construction management cost?","include_cm",1,"<--- enter 1 for yes, 0 for no"]
["Include construction management cost for pre-engineered packages?","include_cm_pre",0,"<--- enter 1 for yes, 0 for no"]
[]
["Buildings"]
["Include buildings in total capital cost?","include_buildings",1,"<--- enter 1 for yes, 0 for no"]
["Include concrete pad in total capital cost?","include_pad",1,"<--- enter 1 for yes, 0 for no"]
[]
["Heating Table (1=include heating in buildings and O&M, 0 = do not include heating)"]
["Component Level","Range Name","System Size"]
[null,null,"Small (<1 mgd)","Medium (1-10 mgd)","Large (>10 mgd)"]
["Buildings 500 square feet or greater"]
["low cost","heating_table",0,1,1]
["mid cost",null,1,1,1]
["high cost",null,1,1,1]
["Buildings less than 500 ft2 (other than those used for chlorine storage)"]
["low cost","heating_table_shed",0,0,1]
["mid cost",null,0,0,1]
["high cost",null,1,1,1]
[]
["Cooling Table (1=include cooling in buildings and O&M, 0 = do not include cooling)"]
["Component Level","Range Name","System Size"]
[null,null,"Small (<1 mgd)","Medium (1-10 mgd)","Large (>10 mgd)"]
["Buildings 500 square feet or greater"]
["low cost","cooling_table",0,0,1]
["mid cost",null,0,1,1]
["high cost",null,1,1,1]
["Buildings less than 500 ft2 (other than those used for chlorine storage)"]
["low cost","cooling_table_shed",0,0,0]
["mid cost",null,0,0,0]
["high cost",null,0,0,0]

{"sheet":"Offgas Assumptions","index":7,"n_rows":44,"n_cols":7,"rows_kept":44,"cut":false,"hidden":false,"merged":[[27,0,28,0],[27,1,28,1]]}
["Default Offgas Assumptions"]
["Users may change any of the cells in the Value column"]
[]
["Assumption","Range Name","Value","Units","Guidance"]
["Specific heat of air","cpa",1.01,"kJ/kg-deg C","Rough assumption to account for high temperature and relative humidity in this application"]
["Density of air","PA",1.2470000000000001,"kg/m3","Conservatively using value for 10 deg C"]
["Operating temperature","T",283,"degrees Kelvin","Equilibrium operating temperature. 283 degrees K (10 degrees C) is typical of groundwater. "]
[]
["GAC"]
["GAC Density","GAC_density",30,"lbs/cu ft","Bulk density, not particle density.  GAC density range of 22-30 lb/cubic ft; lignite GAC approximately 22 and bituminous GAC approximately 28 lb/cubic ft (Randal J. Braker, General Manager, Duck River Utility Commission)"]
["Redundant GAC beds","NRD_GAC",0,"units","Most of the unit costs are for dual bed units, which should provide sufficient redundancy."]
["Makeup carbon for off-site regeneration","makeup_rate_off",0.3,null,"Makeup carbon needs are higher for transport and regeneration off-site -- 30% (Richard E. Hubel, Peter Keenan, American Water Works Service Company)."]
["Miles to non-hazardous solid waste disposal site","non_haz_miles",10,"miles","For spent carbon disposal"]
[]
["Thermal Oxidizer"]
["Redundant TO units","NRD_TO",0,"units"]
["Excess air required","TO_ex_air",2,null,"Thermal oxidizers typically require 180% to 550% excess air (www.baaqmd.gov/pmt/handbook/s12c05ap.htm)"]
["Recuperative system heat recovery","TO_rec_eff",0.7,null,"U.S. EPA, 2006; CMRP, 2000"]
["Regenerative system heat recovery","TO_reg_eff",0.95,null,"U.S. EPA, 2006; CMRP, 2000; van der Vaart et al. 1994"]
[]
["Catalytic Oxidizer"]
["Redundant CO units","NRD_CO",0,"units"]
["Excess air required","CO_ex_air",2,null,"Thermal oxidizers typically require 180% to 550% excess air (www.baaqmd.gov/pmt/handbook/s12c05ap.htm)"]
["Recuperative system heat recovery","CO_rec_eff",0.7,null,"U.S. EPA, 2006; CMRP, 2000"]
["Regenerative system heat recovery","CO_reg_eff",0.95,null,"U.S. EPA, 2006; CMRP, 2000; van der Vaart et al. 1994"]
[]
["Contaminant-Specific Off-gas Assumptions"]
["Contaminant Number","Contaminant","Heating Value","GAC Bed Residence Time","TO Operating Temperature","CO Operating Temperature","Molecular Weight"]
[null,null,"(BTU/gal)","(sec)","(deg C)","(deg C)","(kg/kilomole)"]
[1,"Radon",0,0,0,0,"NA"]
[2,"TCE",0,6.4,1093,500,131.38999999999999]
[3,"PCE",0,6.4,1093,500,165.83]
[4,"Vinyl Chloride",0,6.4,1093,500,62.5]
[5,"Carbon Tetrachloride",0,6.4,1093,500,153.82]
[6,"Benzene",0,6.4,1093,500,78.11]
[7,"1,2-Dichloropropane",0,6.4,1093,500,112.99]
[8,"Methylene Chloride",0,6.4,1093,500,84.93]
[9,"1,2-Dichloroethane",0,6.4,1093,500,98.96]
[10,"1,3-Butadiene",0,6.4,1093,500,54.09]
[11,"1,1-Dichloroethane",0,6.4,1093,500,98.96]
[12,"1,1,1,2-Tetrachloroethane",0,6.4,1093,500,167.85]
[13,"1,1,2,2-Tetrachloroethane",0,6.4,1093,500,167.85]
[14,"1,2,3-Trichloropropane",0,6.4,1093,500,147.43]
[15,"Other"]

{"sheet":"Basin Constraints","index":8,"n_rows":49,"n_cols":5,"rows_kept":49,"cut":false,"hidden":false,"merged":[]}
["Basin Constraint Calculations"]
[]
["Calculation","Range Name","Value","Units","Guidance"]
["From Inputs"]
["Design Production Flow","design_flow",{"$f":"IF(df_units=\"gpm\",(1-bp_pct)*design_flow_I*24*60/1000000,(1-bp_pct)*design_flow_I)","v":0.30499999999999999},"MGD","From input, less bypass"]
["Average Production Flow","average_flow",{"$f":" (1-bp_pct)*IF(af_units=\"gpm\",average_flow_I*24*60/1000000,IF(af_units=\"fraction of design flow\",average_flow_I*design_flow,average_flow_I))","v":9.4E-2},"MGD","From input, less bypass"]
["Design Production Flow Rate","design_flow_rate",{"$f":"design_flow*1000000/(24*60)","v":211.80555555555554},"gpm","Design flow expressed in gpm"]
["Average Production Flow Rate","average_flow_rate",{"$f":"average_flow*1000000/(24*60)","v":65.277777777777771},"gpm","Average flow expressed in gpm"]
["Bypass Flow Rate","bp_flow_rate",{"$f":"bp_pct/(1-bp_pct)*design_flow_rate","v":0},"gpm"]
["Target Contaminant","contam",1,"<--- 1 for Radon, 2 for TCE, 3 for PCE, etc."]
[]
["Contact Basins"]
["Design type","design_type",{"$f":"IF(design_type_I=\"pre-engineered package\",1,2)","v":1},"1 = pre-engineered package, 2 = custom design"]
["Design air flow","design_air_flow",{"$f":"design_flow_rate*air_water_ratio/7.48","v":566.32501485442663},"cfm"]
["Diffusers per stage","diffusers_per_stage",{"$f":"IF(OR(stages=0,num_op_tanks=0),0,ROUNDUP(design_air_flow/(stages*num_op_tanks)/max_diffuser_size,0))","v":3}]
["Number of diffusers per tank","num_diffusers",{"$f":"diffusers_per_stage*stages","v":18},"units"]
["Total diffusers","total_diffusers",{"$f":"num_diffusers*num_tanks","v":18},"units"]
["Diffuser size","diffuser_size",{"$f":"IF(total_diffusers=0,0,design_air_flow/total_diffusers)","v":31.462500825245925},"cfm"]
["Stage length required per diffuser","diffuser_diameter",{"$f":"VLOOKUP(diffuser_size,diffuser_dim_table_cl,3)+diffuser_access_space","v":4.7},"inches","Includes access space"]
["Total stage length required for diffusers","diffuser_space",{"$f":"diffuser_diameter*diffusers_per_stage","v":14.100000000000001},"inches","Includes access space"]
["Width required for diffusers","diffuser_space_width",{"$f":"VLOOKUP(diffuser_size,diffuser_dim_table_cl,4)+diffuser_access_space","v":40},"inches","Includes access space"]
["Minimum basin area required per basin","tank_area",{"$f":"IF(num_op_tanks=0,0,design_air_flow/max_air_load/num_op_tanks)","v":34.322728172995554},"square ft","Based on maximum air surface loading intensity"]
["Width required for diffusers",null,{"$f":"diffuser_space_width/12","v":3.3333333333333335},null,"Includes access space"]
["Width required by area and ratio",null,{"$f":"(tank_area/max_ratio)^(1/2)","v":4.7834944112016098},null,"Based on minimum area and length to width ratio"]
["Basin width","tank_width",{"$f":"ROUNDUP(2*MAX(C23:C24),0)/2","v":5},"feet","Maximum of requirements above, sized in 6\" intervals"]
["Length required by area",null,{"$f":"tank_area/tank_width","v":6.8645456345991107},null,"Based on minimum area"]
["Length required by ratio",null,{"$f":"tank_width*max_ratio","v":7.5},null,"Based on length to width ratio"]
["Length required by diffusers",null,{"$f":"diffuser_space*(stages+qchamber_ratio)/12","v":7.6375000000000002},null,"Includes access space and quiescent chamber"]
["Basin length","tank_length",{"$f":"ROUNDUP(2*MAX(C26:C28),0)/2","v":8},"feet","Maximum of requirements above, sized in 6\" intervals"]
["Maximum basin length","max_length",{"$f":"IF(design_type=1,max_length_package,max_length_custom)","v":12},"feet","Depends on design type. For input sheet validation."]
["Length per stage","stage_length",{"$f":"tank_length/(stages+qchamber_ratio)*12","v":14.76923076923077},"inches"]
["Basin depth including freeboard","tank_depth",{"$f":"max_h2odepth+freeboard","v":5},"feet"]
["Total basin volume","tank_vol",{"$f":"ROUNDUP(tank_width*tank_length*tank_depth*7.48,0)","v":1496},"gal"]
["Baffle area per baffle","baffle_area",{"$f":"tank_depth*tank_width","v":25},"square ft","Conservative calculation, assumes baffle covers entire cross-sectional area"]
["Total basin surface area, including baffles","tank_sf",{"$f":"2*tank_width*tank_length+2*tank_depth*tank_width+2*tank_depth*tank_length+stages*baffle_area","v":360},"square ft","Includes cover and baffle for quiescent chamber at end of basin, assumes baffles cover entire cross-sectional area (conservative)"]
["Total number of basins","num_tanks",{"$f":"num_op_tanks+IF(NRD_I=\"\",NRD_tanks,NRD_I)","v":1},"units","Including redundancy"]
["Total number of baffles","num_baffles",{"$f":"stages*num_tanks","v":6},"units","Total for all basins, includes baffles for quiescent chamber at end of basins"]
["Basin concrete volume","conc_volume",{"$f":"IF(design_type=1,\"-\",num_tanks*(2*(tank_width+2*conc_thick)*(tank_depth+conc_thick)*conc_thick+2*(tank_length)*(tank_depth+conc_thick)*conc_thick+tank_length*tank_width*conc_thick)/27)","v":"-"},"cubic yd","For custom designs only. No common wall design in this technology, because of need for baffle and diffuser access"]
["Excavation volume","excavation_vol",{"$f":"IF(design_type=1,\"-\",num_tanks*((tank_width+2*conc_thick+overexcavate)*(tank_length+2*conc_thick+overexcavate)*(tank_depth+conc_thick+overexcavate)+0.5*(3*(tank_depth+conc_thick+overexcavate)*(tank_depth+conc_thick+overexcavate)*(tank_length+2*conc_thick+overexcavate)))/27)","v":"-"},"cubic yd","Includes ramping for moving earth out of excavated area, assumes flush with grade (conservative)"]
["Backfill volume","backfill_vol",{"$f":"IF(design_type=1,\"-\",excavation_vol-num_tanks*(tank_width+2*conc_thick)*(tank_length+2*conc_thick)*(tank_depth+conc_thick)/27)","v":"-"},"cubic yd"]
["Cover area for concrete basins","cover_sf",{"$f":"num_tanks*(tank_width+2*conc_thick)*(tank_length+2*conc_thick)","v":70},"square ft"]
["Actual air surface loading intensity",null,{"$f":"IF(OR(stages=0,num_op_tanks=0),0,design_air_flow/(stage_length/12*stages*tank_width*num_op_tanks))","v":15.337969152307386},"cfm/sq ft","For comparison purposes only"]
[]
["Removal Estimate",null,null,null,"Estimate only"]
["Basin contact volume","contact_volume",{"$f":"stage_length*stages/12*tank_width*max_h2odepth","v":110.76923076923076},"cubic ft"]
["Total detention time","contact_time",{"$f":"contact_volume*7.48*num_op_tanks/design_flow_rate","v":3.91186078184111},"minutes","Contact time is not a design parameter, but used in removal estimate"]
["Volumetric air intensity","phi",{"$f":"IF(num_op_tanks=0,0,design_air_flow/(contact_volume*num_op_tanks))","v":5.112656384102463},"cfm/cf"]
["Mass transfer rate","Kla",{"$f":"IF(contam=1,(36.9*phi^0.8)/60,IF(OR(pilot_k=\"\",pilot_phi=\"\"),\"NA\",(phi/pilot_phi)*pilot_k))","v":2.2687800778717104},"1/min","For radon, based on Drago (2000); for other contaminants, based on optional inputs for pilot data"]
["Percent removal","p_rem",{"$f":"IF(Kla<>\"NA\",1-(1+Kla*contact_time/stages)^(-stages),\"NA\")","v":0.99569335511465951}]

{"sheet":"Offgas","index":9,"n_rows":74,"n_cols":5,"rows_kept":74,"cut":false,"hidden":false,"merged":[]}
["Offgas Calculations"]
[]
["Calculation","Range Name","Value","Units","Guidance"]
["From Inputs"]
["Off-gas Pollution Control Technology","Offgas_Tech",{"$f":"IF(OR(Offgas_Tech_I=\"none\",Offgas_Tech_I=\"\"),0,IF(Offgas_Tech_I=\"GAC\",1,IF(Offgas_Tech_I=\"thermal oxidation\",2,3)))","v":0},"<--- 0 for none, 1 for GAC, 2 for Thermal Oxidation, 3 for Catalytic Oxidation"]
["Heat recovery type","og_opt1",{"$f":"IF(OR(Offgas_Tech=2,Offgas_Tech=3),IF(og_opt1_I=\"none\",0,IF(og_opt1_I=\"recuperative\",1,2)),\"\")","v":""},"<--- 0 for none, 1 for recuperative, 2 for regenerative"]
["Spent GAC regeneration","og_opt2",{"$f":"IF(Offgas_Tech=1,IF(og_opt2_I=\"throwaway\",0,1),\"\")","v":""},"<--- 0 for throwaway (no regeneration), 1 for off-site regeneration"]
["Percent removal","p_rem_og",{"$f":"IF(p_rem=\"NA\",P_REM_I,p_rem)","v":0.99569335511465951}]
[]
["Off-gas Control System"]
["Molecular Weight of Contaminant","MW",{"$f":"VLOOKUP(contam,contaminant_lookup,7)","v":"NA"},"kg/kilomole","From critical design assumptions for contaminant"]
["Contaminant heating value","BTU_contam",{"$f":"IF(Offgas_Tech=1,VLOOKUP(contam,contaminant_lookup,3),0)","v":0},"BTU/gal","From critical design assumptions for contaminant"]
["Contaminant release rate","VOC_Release ",{"$f":"(influent_conc*p_rem_og/10^6)*(design_flow*0.04583*60*60*24)*2.205","v":0},"lbs/day","Based on design flow"]
["Off-gas concentration",null,{"$f":"(influent_conc*p_rem_og/1000)*air_water_ratio","v":0},"mg/m3"]
["Off-gas concentration",null,{"$f":"IF(MW=\"NA\",0,(C14*T)/(12.187*MW))","v":0},"ppmv"]
["Off-gas concentration","C_gal",{"$f":"C15/10^6*1000*3.785","v":0},"gal/m3"]
["Off-gas flow (design)",null,{"$f":"design_air_flow","v":566.32501485442663},"cfm","Based on design flow"]
["Off-gas flow (design)","Design_air_flow_liters_min",{"$f":"C17/35.31*1000","v":16038.658024764278},"L/min"]
["Off-gas flow (average)","Average_air_flow",{"$f":"C17*average_flow/design_flow","v":174.53951277480689},"cfm","Based on average flow"]
["Off-gas flow (average)","Average_air_flow_liters_min",{"$f":"C18*average_flow/design_flow","v":4943.061817468335},"L/min"]
["Off-gas flow (average)","DAILY_AIR",{"$f":"Average_air_flow_liters_min/1000/60","v":8.2384363624472254E-2},"m3/s"]
[]
["GAC System"]
["GAC Bed Residence Time","GAC_EBCT",{"$f":"IF(Offgas_Tech=1,VLOOKUP(contam,contaminant_lookup,4),0)","v":0},"sec","From critical design assumptions for contaminant"]
["Total bed size needed","GAC_tot_bed_size",{"$f":"IF(Offgas_Tech=1,design_air_flow/60*GAC_EBCT,0)","v":0},"cf"]
["Maximum GAC unit bed size","GAC_max_bed",{"$f":"MAX(VLOOKUP(10^6,og_gac_cost_cl,1)-0.1)","v":1333.3000000000002},"cf","The largest size for which costs are available."]
["Number of units","op_GAC_beds",{"$f":"IF(Offgas_Tech=1,ROUNDUP(GAC_tot_bed_size/GAC_max_bed,0),0)","v":0},"units"]
["Total units including redundancy","tot_GAC_beds",{"$f":"op_GAC_beds+NRD_GAC","v":0},"units"]
["Bed size per unit","GAC_bed_size",{"$f":"IF(Offgas_Tech=1,GAC_tot_bed_size/op_GAC_beds,0)","v":0},"cf"]
["Total GAC Quantity","GAC",{"$f":"IF(Offgas_Tech=1,design_air_flow/60*GAC_EBCT*GAC_density,0)","v":0},"lbs"]
["Bed Life","bed_life",{"$f":"og_opt3","v":0},"months"]
["GAC use rate",null,{"$f":"IF(Offgas_Tech=1,(GAC/bed_life)/(Average_air_flow*60*24*30/1000),0)","v":0},"lb/1,000 cf of air","For comparison purposes"]
["Annual GAC use","GAC_yr",{"$f":"IF(Offgas_Tech=1,GAC*12/bed_life,0)","v":0},"lbs"]
["Annual Regenerated GAC","regen_yr",{"$f":"IF(og_opt2=1,(1-makeup_rate_off)*GAC_yr,0)","v":0},"lbs/yr"]
["Annual Regenerated GAC in cubic feet","regen_yr_cf",{"$f":"regen_yr/GAC_density","v":0},"cubic ft/yr"]
["Annual Virgin GAC","GAC_makeup",{"$f":"IF(og_opt2=1,makeup_rate_off*GAC_yr,GAC_yr)","v":0},"lbs/yr"]
["Annual Virgin GAC in cubic feet","GAC_makeup_cf",{"$f":"GAC_makeup/GAC_density","v":0},"cubic ft/yr"]
["Replacement/disposal frequency","disp_freq",{"$f":"IF(Offgas_Tech=1,12/bed_life,0)","v":0},"times per year"]
["Spent media quantity (total per event)","spent_media",{"$f":"IF(og_opt2=0,GAC/2000,0)","v":0},"tons"]
["Disposal",null,{"$f":"spent_media*disp_freq*nonhaz_disposal_cost_cl","v":0},"$/year"]
["Transportation",null,{"$f":"spent_media*disp_freq*non_haz_miles*nonhaz_transportation_cost_cl","v":0},"$/year"]
["Total annual spent media diposal fee","disposal_fee",{"$f":"C41+C40","v":0},"$/year"]
[]
["Thermal Oxidizer System"]
["Maximum TO capacity","TO_max_size",{"$f":"IF(og_opt1=0,TO_max_size_no,IF(og_opt1=1,TO_max_size_rec,TO_max_size_reg))","v":736000},"scfm"]
["Total capacity needed","TO_tot_size",{"$f":"IF(Offgas_Tech=2,design_air_flow,0)","v":0},"scfm"]
["Maximum TO capacity (no heat recovery)","TO_max_size_no",{"$f":"MAX(VLOOKUP(10^6,og_to_cost_cl,1)-1)","v":25000},"scfm","The largest size for which costs are available."]
["Maximum TO capacity (recuperative)","TO_max_size_rec",{"$f":"MAX(VLOOKUP(10^6,og_torec_cost_cl,1)-1)","v":7257},"scfm","The largest size for which costs are available."]
["Maximum TO capacity (regenerative)","TO_max_size_reg",736000,"scfm","The largest size for which costs are available."]
["Number of units","op_TOs",{"$f":"IF(Offgas_Tech=2,ROUNDUP(TO_tot_size/TO_max_size,0),0)","v":0},"units"]
["Total units including redundancy","tot_TOs",{"$f":"op_TOs+NRD_TO","v":0},"units"]
["Capacity per unit","TO_size",{"$f":"IF(Offgas_Tech=2,TO_tot_size/op_TOs,0)","v":0},"scfm"]
["TO operating temperature","TO_op_temp",{"$f":"IF(Offgas_Tech=2,VLOOKUP(contam,contaminant_lookup,5),0)","v":0},"deg C","From critical design assumptions for contaminant"]
["Fuel BTUs required (no heat recovery)",null,{"$f":"IF(Offgas_Tech=2,MAX(0,((1+TO_ex_air)*(DAILY_AIR*60*60*24*365))*PA*cpa*(TO_op_temp-(T-273))/1.0545-BTU_contam*C_gal*DAILY_AIR*60*60*24*365),0)","v":0},"BTU/yr","kJ = Q (m3/yr) * p (kg/m3) * cp (kJ/kg-deg C) * delta T (deg C).  1 BTU = 1.0545 kJ"]
["Actual fuel BTUs required",null,{"$f":"C54*(1-IF(og_opt1=1,TO_rec_eff,IF(og_opt1=2,TO_reg_eff,0)))","v":0},"BTU/yr"]
["Annual natural gas required","TO_ng_yr",{"$f":"C55/100000","v":0},"therms/yr"]
["Excess air blower power",null,{"$f":"IF(Offgas_Tech=2,TO_ex_air*(average_flow_rate*air_water_ratio/7.48)*blow_head/(229*blower_effcy),0)","v":0},"HP"]
["Excess air blower energy per year","TO_power_yr",{"$f":"(24*365*0.7457/1000)*C57","v":0},"MWhr/yr"]
[]
["Catalytic Oxidizer System"]
["Maximum CO capacity","CO_max_size",{"$f":"IF(og_opt1=0,CO_max_size_no,IF(og_opt1=1,CO_max_size_rec,CO_max_size_reg))","v":736000},"scfm"]
["Total capacity needed","CO_tot_size",{"$f":"IF(Offgas_Tech=3,design_air_flow,0)","v":0},"scfm"]
["Maximum TO capacity (no heat recovery)","CO_max_size_no",{"$f":"MAX(VLOOKUP(10^6,og_co_cost_cl,1)-1)","v":736000},"scfm","The largest size for which costs are available."]
["Maximum TO capacity (recuperative)","CO_max_size_rec",{"$f":"MAX(VLOOKUP(10^6,og_corec_cost_cl,1)-1)","v":736000},"scfm","The largest size for which costs are available."]
["Maximum TO capacity (regenerative)","CO_max_size_reg",{"$f":"MAX(VLOOKUP(10^6,og_coreg_cost_cl,1)-1)","v":736000},"scfm","The largest size for which costs are available."]
["Number of units","op_COs",{"$f":"IF(Offgas_Tech=3,ROUNDUP(CO_tot_size/CO_max_size,0),0)","v":0},"units"]
["Total units including redundancy","tot_COs",{"$f":"op_COs+NRD_CO","v":0},"units"]
["Capacity per unit","CO_size",{"$f":"IF(Offgas_Tech=3,CO_tot_size/op_COs,0)","v":0},"scfm"]
["CO operating temperature","CO_op_temp",{"$f":"IF(Offgas_Tech=3,VLOOKUP(contam,contaminant_lookup,6),0)","v":0},"deg C"]
["Fuel BTUs required (no heat recovery)",null,{"$f":"IF(Offgas_Tech=3,MAX(0,((1+CO_ex_air)*(DAILY_AIR*60*60*24*365))*PA*cpa*(CO_op_temp-(T-273))/1.0545-BTU_contam*C_gal*DAILY_AIR*60*60*24*365),0)","v":0},"BTU/yr","kJ = Q (m3/yr) * p (kg/m3) * cp (kJ/kg-deg C) * delta T (deg C).  1 BTU = 1.0545 kJ"]
["Actual fuel BTUs required",null,{"$f":"C70*(1-IF(og_opt1=1,CO_rec_eff,IF(og_opt1=2,CO_reg_eff,0)))","v":0},"BTU/yr"]
["Annual natural gas required","CO_ng_yr",{"$f":"C71/100000","v":0},"therms/yr"]
["Excess air blower power",null,{"$f":"IF(Offgas_Tech=3,CO_ex_air*(average_flow_rate*air_water_ratio/7.48)*blow_head/(229*blower_effcy),0)","v":0},"HP"]
["Excess air blower energy per year","CO_power_yr",{"$f":"(24*365*0.7457/1000)*C73","v":0},"MWhr/yr"]

{"sheet":"Pumps Pipe Structure","index":10,"n_rows":50,"n_cols":5,"rows_kept":50,"cut":false,"hidden":false,"merged":[]}
["Pumps, Piping, and Structure Calculations"]
[]
["Calculation","Range Name","Value","Units","Guidance"]
["Influent Pumping"]
["Flow of each pump","pump_rating",{"$f":"IF(num_pumps_I=\"\",MIN(MAX(average_flow_rate+bp_flow_rate*average_flow_rate/design_flow_rate,(design_flow_rate+bp_flow_rate)/2)*(1+pump_safety_factor),max_pump_size),IF(num_pumps_I=0,0,(design_flow_rate+bp_flow_rate)*(1+pump_safety_factor)/num_pumps_I))","v":132.37847222222223},"gpm","Includes safety factor"]
["Operating pumps","num_pumps",{"$f":"IF(pump_rating=0,0,ROUNDUP((design_flow_rate+bp_flow_rate)*(1+pump_safety_factor)/pump_rating,0))","v":2},"units"]
["Total pumps","total_pumps",{"$f":"IF(pump_rating=0,0,num_pumps+NRD_pumps)","v":2},"units"]
["Maximum pump size","max_pump_size",{"$f":"MAX(VLOOKUP(10^6,pump_cost_cl,1)-1,VLOOKUP(10^6,back_pump_cost_cl,1)-1)","v":10000},"gpm","The largest pump size for which costs are available.  Applies to booster pumps."]
[]
["Blowers"]
["Design air flow per basin","air_flow_per_basin",{"$f":"IF(num_op_tanks=0,0,design_air_flow*(1+blower_safety_factor)/num_op_tanks)","v":707.90626856803328},"cfm","Includes safety factor"]
["Minimum blowers per basin","blowers_per_basin",{"$f":"ROUNDUP(air_flow_per_basin/max_blow_size,0)","v":1},"units","For default calculation"]
["Operating blowers","num_blowers",{"$f":"IF(num_blowers_I=\"\",blowers_per_basin*num_tanks,num_blowers_I)","v":1},"units"]
["Flow of each blower","blower_rating",{"$f":"IF(blowers_per_basin=0,0,IF(num_blowers_I=\"\",air_flow_per_basin/blowers_per_basin,design_air_flow*(1+blower_safety_factor)/num_blowers_I))","v":707.90626856803328},"cfm"]
["Total blowers","total_blowers",{"$f":"IF(num_blowers=0,0,num_blowers+NRD_blowers)","v":2},"units"]
["Maximum blower size","max_blow_size",{"$f":"VLOOKUP(10^6,cent_blow_cost_cl,1)-1","v":5000},"cfm","The largest size for which costs are available."]
[]
["Piping"]
["Inlet and outlet pipe length","in_out_pipe_length",{"$f":"2*facil_length","v":40},"linear feet"]
["Inlet and outlet pipe flow","in_out_pipe_flow",{"$f":"design_flow_rate","v":211.80555555555554},"gpm"]
["Inlet and outlet piping diameter","in_out_pipe_diam",{"$f":"VLOOKUP(in_out_pipe_flow,pipe_size_table_cl,2)","v":4},"inches"]
["Process pipe length","h2o_pipe_length",{"$f":"2*facil_length","v":40},"linear feet"]
["Process pipe diameter","h2o_pipe_diam",{"$f":"IF(num_op_tanks=0,0,VLOOKUP(design_flow_rate/num_op_tanks,pipe_size_table_cl,2))","v":4},"inches"]
["Internal air piping","air_pipe_tank",{"$f":"ROUNDUP(tank_length*num_tanks+max_h2odepth*total_diffusers,0)","v":62},"linear feet","Internal piping spans length of basin + water depth to each diffuser (conservative, as diffuser placement may not be at the bottom)"]
["Total air pipe length","air_pipe_length",{"$f":"air_pipe_tank+air_pipe_add*facil_length+IF(Offgas_Tech=0,0,facil_length)","v":82},"linear feet","Adds external piping"]
["Air pipe diameter","air_pipe_diam",{"$f":"h2o_pipe_diam","v":4},"inches","Assume air pipe diameter is same as liquid pipe diameter"]
["Bypass piping length","bp_pipe_length",{"$f":"IF(bp_pct>0,2.5*facil_length,0)","v":0},"linear feet"]
["Bypass pipe diameter","bp_pipe_diam",{"$f":"IF(bp_pct>0,VLOOKUP(bp_flow_rate,pipe_size_table_cl,2),0)","v":0},"inches"]
[]
["Building Structure"]
["Maximum access space per basin","max_space_vessels",{"$f":"IF(ss_cat2=1,max_space_vessels_pre,max_space_vessels_cust)","v":1},"feet"]
["Access space per basin","space_vessels",{"$f":"IF(ROUNDUP(tank_width,0)>max_space_vessels,max_space_vessels,ROUNDUP(tank_width,0))","v":1},"feet"]
["Access space per pump/blower","space_pumps",{"$f":"CHOOSE(design_type,space_pumps_pre,space_pumps_cust)","v":0},"feet"]
["Maximum diffuser size","max_diffuser_size",{"$f":"MAX(VLOOKUP(10^6,diffuser_cost_cl,1)-1)","v":43.1},"cfm","The largest size for which costs are available."]
["Footprint for influent pumps","pump_fp",{"$f":"IF(total_pumps=0,0,ROUNDUP((VLOOKUP(pump_rating,pump_dim_table_cl,3)+space_pumps)*(VLOOKUP(pump_rating,pump_dim_table_cl,3)+2*space_pumps)+(total_pumps-1)*(VLOOKUP(pump_rating,pump_dim_table_cl,3)+space_pumps)*(VLOOKUP(pump_rating,pump_dim_table_cl,3)+space_pumps),0))","v":13},"square feet"]
["Footprint for blowers","blow_fp",{"$f":"IF(total_blowers=0,0,ROUNDUP((VLOOKUP(blower_rating,pump_dim_table_cl,3)+space_pumps)*(VLOOKUP(blower_rating,pump_dim_table_cl,3)+2*space_pumps)+(total_blowers-1)*(VLOOKUP(blower_rating,pump_dim_table_cl,3)+space_pumps)*(VLOOKUP(blower_rating,pump_dim_table_cl,3)+space_pumps),0))","v":29},"square feet"]
["Office space","office_fp",{"$f":"VLOOKUP(design_flow,labor_table_cl,3)*IF(ss_cat2=1,space_office_small,space_office)","v":0},"square feet"]
["Basin footprint","basin_fp",{"$f":"ROUNDUP((tank_width+2*space_vessels)*(tank_length+2*space_vessels)+(num_tanks-1)*(tank_width+space_vessels)*(tank_length+2*space_vessels),0)","v":70},"square feet"]
["Offgas treatment system footprint (GAC)",null,{"$f":"IF(Offgas_Tech=1,ROUNDUP(((GAC_bed_size/6)^(1/2)+2*space_pumps)*((GAC_bed_size/6)^(1/2)+2*space_pumps)+(tot_GAC_beds-1)*((GAC_bed_size/6)^(1/2)+2*space_pumps)*((GAC_bed_size/6)^(1/2)+space_pumps),0),0)","v":0},"square ft"]
["Offgas treatment system footprint (TO)",null,{"$f":"IF(Offgas_Tech=2,ROUNDUP((VLOOKUP(TO_size,to_dim_table_cl,5)+2*space_pumps)*(VLOOKUP(TO_size,to_dim_table_cl,6)+2*space_pumps)+(tot_TOs-1)*(VLOOKUP(TO_size,to_dim_table_cl,5)+2*space_pumps)*(VLOOKUP(TO_size,to_dim_table_cl,6)+space_pumps),0),0)","v":0},"square ft"]
["Offgas treatment system footprint (CO)",null,{"$f":"IF(Offgas_Tech=3,ROUNDUP((VLOOKUP(CO_size,co_dim_table_cl,5)+2*space_pumps)*(VLOOKUP(CO_size,co_dim_table_cl,6)+2*space_pumps)+(tot_COs-1)*(VLOOKUP(CO_size,co_dim_table_cl,5)+2*space_pumps)*(VLOOKUP(CO_size,co_dim_table_cl,6)+space_pumps),0),0)","v":0},"square ft"]
["Offgas treatment system footprint","offgas_fp",{"$f":"SUM(C39:C41)","v":0},"square ft"]
["Exact building footprint required","fp_required",{"$f":"SUM(C35:C38)","v":112},"square feet","Building does not cover offgas systems"]
["Building 1 footprint","build1_fp",{"$f":"ROUNDUP(IF(fp_required>add_2nd_building,basin_fp,fp_required),-1)","v":120},"square feet","If total footprint is large, building 1 contains basins only.  If total footprint is small, building 1 contains all equipment."]
["Building 2 footprint","build2_fp",{"$f":"ROUNDUP(IF(fp_required>add_2nd_building,pump_fp+blow_fp+office_fp,0),-1)","v":0},"square feet","If total footprint is large, a second building is used for pumps and blowers"]
["Total building footprint","total_fp",{"$f":"build1_fp+build2_fp","v":120},"square feet"]
["Concrete Class A for pad","concrete",{"$f":"ROUNDUP((pump_fp+blow_fp+IF(design_type=1,basin_fp,0)+offgas_fp)*IF(ss_cat2=1,pad_thick_small,pad_thick)/27,0)","v":2},"cubic yards","Pad underlies basins (in aboveground systems), pumps, blowers, and offgas equipment"]
["Facility dimension assumed square","facil_length",{"$f":"ROUNDUP((total_fp+offgas_fp)^0.5,-1)","v":20},"feet"]
["Land acquisition required","land_required",{"$f":"ROUNDUP(((build1_fp)^0.5+(2*non_fire_buffer))*((build1_fp)^0.5+(non_fire_buffer+fire_buffer))+IF(build2_fp=0,0,((build2_fp)^0.5+(2*non_fire_buffer))*((build2_fp)^0.5+(non_fire_buffer+fire_buffer)))+offgas_fp,-2)/43560","v":4.3617998163452708E-2},"acres"]
["Land Cost per acre","land_cost",{"$f":"VLOOKUP(design_flow,land_cost_cl,3)","v":16179.597388061276},"$/acre"]

{"sheet":"Instrumentation and Control","index":11,"n_rows":50,"n_cols":5,"rows_kept":50,"cut":false,"hidden":false,"merged":[]}
["Instrumentation and Control Calculations"]
[]
["Calculation","Range Name","Value","Units","Guidance"]
["From Inputs"]
["Component level","component_level",{"$f":"IF(component_level_I=\"high cost\",2,IF(component_level_I=\"mid cost\",1,\"\"))","v":""},"blank = low cost, 1 = mid cost, 2 = high cost"]
["Manual system controls","manual",{"$f":"IF(manual_I=\"manual\",1,IF(manual_I=\"semi-automated\",2,IF(manual_I=\"fully automated\",3,IF(component_level=\"\",1,IF(component_level=2,3,CHOOSE(ss_cat2,3,3,3))))))","v":1},"1 = fully manual system, 2 = semi-automated system, 3 = fully automated system.","Based on system size and component level (see cell comment), unless user overrides on input sheet"]
[]
["Valves and Instrumentation"]
["Size of valves for inlet and outlet lines","in_valve_size",{"$f":"in_out_pipe_diam","v":4},"inches"]
["Size of valves for process line","tank_valve_size",{"$f":"h2o_pipe_diam","v":4},"inches"]
["Size of valves for air line","air_valve_size",{"$f":"air_pipe_diam","v":4},"inches"]
["Size of valves for bypass line","bypass_valve_size",{"$f":"bp_pipe_diam","v":0},"inches"]
[]
["Number of MOVs for process line","tot_proc_MOVs",{"$f":"VLOOKUP(\"proc_MOV_basin\",valve_table,manual+1,FALSE)*num_tanks+VLOOKUP(\"proc_MOV_pump\",valve_table,manual+1,FALSE)*total_pumps","v":0},"valves"]
["Number of MOVs for air line","tot_air_MOVs",{"$f":"VLOOKUP(\"air_MOV_basin\",valve_table,manual+1,FALSE)*total_blowers+VLOOKUP(\"air_MOV_og\",valve_table,manual+1,FALSE)*CHOOSE(Offgas_Tech+1,0,tot_GAC_beds,tot_TOs,tot_COs)+IF(Offgas_Tech=0,0,VLOOKUP(\"add_MOV_og\",valve_table,manual+1,FALSE))","v":0},"valves"]
["Number of MOVs for bypass line","tot_bp_MOVs",{"$f":"IF(bp_pct=0,0,VLOOKUP(\"tot_bp_movs\",valve_table,manual+1,FALSE))","v":0},"valves"]
["Total number of MOVs","tot_MOVs",{"$f":"tot_air_MOVs+tot_proc_MOVs+tot_bp_MOVs","v":0},"valves"]
["Number of manual valves for process line","tot_proc_man",{"$f":"VLOOKUP(\"proc_man_basin\",valve_table,manual+1,FALSE)*num_tanks+VLOOKUP(\"proc_man_pump\",valve_table,manual+1,FALSE)*total_pumps","v":6},"valves"]
["Number of manual valves for air line","tot_air_man",{"$f":"VLOOKUP(\"air_man_basin\",valve_table,manual+1,FALSE)*total_blowers+VLOOKUP(\"air_man_og\",valve_table,manual+1,FALSE)*CHOOSE(Offgas_Tech+1,0,tot_GAC_beds,tot_TOs,tot_COs)+IF(Offgas_Tech=0,0,VLOOKUP(\"add_man_og\",valve_table,manual+1,FALSE))","v":2},"valves"]
["Number of manual valves for bypass line","tot_bp_man",{"$f":"IF(bp_pct=0,0,VLOOKUP(\"tot_bp_man\",valve_table,manual+1,FALSE))","v":0},"valves"]
[]
["Number of check valves for process line","tot_proc_chv",{"$f":"proc_chv_pump*total_pumps","v":2},"valves"]
[]
["Size of flow meters for influent line","in_meter_size",{"$f":"in_out_pipe_diam","v":4},"inches"]
["Size of flow meters for process line","proc_meter_size",{"$f":"h2o_pipe_diam","v":4},"inches"]
["Number of flow meters for process line","tot_fm_proc",{"$f":"fm_proc*num_tanks","v":1},"units"]
["Number of flow meters for air line","tot_fm_air",{"$f":"fm_air*num_tanks","v":1},"units"]
[]
["Total high/low alarms","tot_basin_alarm",{"$f":"alarm_basin*num_tanks","v":1},"units"]
["Total pressure gauges","tot_gauges",{"$f":"gauges_blower*total_blowers","v":4},"units"]
["Total drive controllers","tot_switches",{"$f":"IF(manual=2,0,S_booster_pump*total_pumps+S_blower*total_blowers+S_TO*tot_TOs+S_CO*tot_COs)","v":4},"units"]
[]
["System Controls"]
["Flow meter lookup code - inlet/outlet","fm_lkp_io",{"$f":"IF(OUTPUT!L108=1,\"flow_op\",IF(OUTPUT!L109=1,\"flow_prop\",IF(OUTPUT!L110=1,\"flow_ven\",\"flow_mag\")))","v":"flow_prop"},null,"These codes are used to look up SCADA requirements, which depend on the type of flow meter selected."]
["Flow meter lookup code - process","fm_lkp_proc",{"$f":"IF(OUTPUT!L113=1,\"flow_op\",IF(OUTPUT!L114=1,\"flow_prop\",IF(OUTPUT!L115=1,\"flow_ven\",\"flow_mag\")))","v":"flow_prop"}]
["Total discrete inputs","discrete_inputs",{"$f":"VLOOKUP(fm_lkp_io,port_table,2,FALSE)*tot_fm_in+VLOOKUP(fm_lkp_proc,port_table,2,FALSE)*tot_fm_proc+VLOOKUP(\"flow_air\",port_table,2,FALSE)*tot_fm_air+VLOOKUP(\"alarm\",port_table,2,FALSE)*tot_basin_alarm+VLOOKUP(\"switch\",port_table,2,FALSE)*tot_switches+VLOOKUP(\"valve\",port_table,2,FALSE)*tot_MOVs+VLOOKUP(\"pH\",port_table,2,FALSE)*tot_ph+VLOOKUP(\"press\",port_table,2,FALSE)*tot_gauges+VLOOKUP(\"TO\",port_table,2,FALSE)*tot_TOs+VLOOKUP(\"CO\",port_table,2,FALSE)*tot_COs","v":13},"units"]
["Total discrete outputs","discrete_outputs",{"$f":"IF(manual=2,0,VLOOKUP(fm_lkp_io,port_table,3,FALSE)*tot_fm_in+VLOOKUP(fm_lkp_proc,port_table,3,FALSE)+VLOOKUP(\"flow_air\",port_table,3,FALSE)*tot_fm_air+VLOOKUP(\"alarm\",port_table,3,FALSE)*tot_basin_alarm+VLOOKUP(\"switch\",port_table,3,FALSE)*tot_switches+VLOOKUP(\"valve\",port_table,3,FALSE)*tot_MOVs+VLOOKUP(\"pH\",port_table,3,FALSE)*tot_ph+VLOOKUP(\"press\",port_table,3,FALSE)*tot_gauges+VLOOKUP(\"TO\",port_table,3,FALSE)*tot_TOs+VLOOKUP(\"CO\",port_table,3,FALSE)*tot_COs)","v":5},"units"]
["Total analog inputs","analog_inputs",{"$f":"VLOOKUP(fm_lkp_io,port_table,4,FALSE)*tot_fm_in+VLOOKUP(fm_lkp_proc,port_table,4,FALSE)*tot_fm_proc+VLOOKUP(\"flow_air\",port_table,4,FALSE)*tot_fm_air+VLOOKUP(\"alarm\",port_table,4,FALSE)*tot_basin_alarm+VLOOKUP(\"switch\",port_table,4,FALSE)*tot_switches+VLOOKUP(\"valve\",port_table,4,FALSE)*tot_MOVs+VLOOKUP(\"pH\",port_table,4,FALSE)*tot_ph+VLOOKUP(\"press\",port_table,4,FALSE)*tot_gauges+VLOOKUP(\"TO\",port_table,4,FALSE)*tot_TOs+VLOOKUP(\"CO\",port_table,4,FALSE)*tot_COs","v":9},"units"]
["Total analog outputs","analog_outputs",{"$f":"IF(manual=2,0,VLOOKUP(fm_lkp_io,port_table,5,FALSE)*tot_fm_in+VLOOKUP(fm_lkp_proc,port_table,5,FALSE)*tot_fm_proc+VLOOKUP(\"flow_air\",port_table,5,FALSE)*tot_fm_air+VLOOKUP(\"alarm\",port_table,5,FALSE)*tot_basin_alarm+VLOOKUP(\"switch\",port_table,5,FALSE)*tot_switches+VLOOKUP(\"valve\",port_table,5,FALSE)*tot_MOVs+VLOOKUP(\"pH\",port_table,5,FALSE)*tot_ph+VLOOKUP(\"press\",port_table,5,FALSE)*tot_gauges+VLOOKUP(\"TO\",port_table,5,FALSE)*tot_TOs+VLOOKUP(\"CO\",port_table,5,FALSE)*tot_COs)","v":0},"units"]
[]
["I/O Discrete Output Modules","plc_discrete_output",{"$f":"ROUNDUP(discrete_outputs/32,0)","v":1},"units"]
["I/O Discrete Input Modules","plc_discrete_input",{"$f":"ROUNDUP(discrete_inputs/32,0)","v":1},"units"]
["I/O Combination Analog Modules","plc_combination_analog",{"$f":"ROUNDUP((analog_inputs + analog_outputs)/12,0)","v":1},"units"]
["Total number of PLC slots used","plc_slots",{"$f":"plc_cpu + plc_ethernet + plc_discrete_input + plc_discrete_output +  plc_combination_analog","v":7},"units"]
["Expansions required","plc_expansions",{"$f":"IF(plc_slots<=9,0,ROUNDUP((plc_slots-9)/8,0))","v":0},"units"]
["PLC Rack/Power Supplies","plc_rack",{"$f":"1+plc_expansions","v":1},"units"]
["Base Expansion Modules","plc_base_expansion",{"$f":"plc_expansions","v":0},"units"]
["Base Expansion Controller Modules","plc_base_expansion_controller",{"$f":"plc_expansions","v":0},"units"]
["Number of computer workstations","workstations",{"$f":"ROUNDUP(Operator_LOE/2080/shifts_day/workstation_ratio,0)","v":1},"units"]
["Number of printers","printers",{"$f":"ROUNDUP(workstations/printer_ratio,0)","v":1},"units"]

{"sheet":"O&M","index":12,"n_rows":66,"n_cols":5,"rows_kept":66,"cut":false,"hidden":false,"merged":[]}
["Operation and Maintenance Calculations"]
[]
["Calculation","Range Name","Value","Units","Guidance"]
["Materials"]
["Maintenance Materials"]
["Pumps","pump_materials",{"$f":"pump_maint_rate*OUTPUT!J45","v":148.23228049553799},"/yr"]
["Blowers","blower_materials",{"$f":"IF(num_blowers=0,0,pump_maint_rate*SUMPRODUCT(OUTPUT!J46:J46,OUTPUT!L46:L46))","v":793.50143673567891},"/yr"]
[]
["Labor"]
["General Labor"]
["Number of process instruments for operation","tot_inst",{"$f":"tot_fm_in+tot_fm_proc+tot_fm_air+tot_ph","v":5},null,"Instruments requiring daily observation"]
["Total number of instruments for maintenance","tot_inst_maint",{"$f":"tot_fm_in+tot_fm_proc+tot_fm_air+tot_ph+tot_basin_alarm","v":6},null,"All instruments for preventative maintenance"]
["Number of process pumps, blowers, offgas units for operation","tot_pumps",{"$f":"num_pumps+num_blowers+CHOOSE(Offgas_Tech+1,0,op_GAC_beds,op_TOs,op_COs)","v":3},null,"Pumps requiring daily observation/adjustment; includes blowers & offgas units in this technology"]
["Total number of pumps for maintenance","tot_pumps_maint",{"$f":"num_pumps+num_blowers","v":3},null,"Large, frequently operated pumps require preventative maintenance; includes blowers in this technology"]
["Number of process valves","tot_valves",{"$f":"tot_proc_MOVs+tot_proc_man+tot_air_MOVs+tot_air_man+tot_bp_MOVs+tot_bp_man","v":8},null,"Main process valves require frequent operation and preventative maintenance"]
["Media changeouts per year","media_changes",{"$f":"IF(Offgas_Tech=1,op_GAC_beds*12/bed_life,0)","v":0},null,"For offgas GAC"]
[]
["Record system operating parameters (includes routine sampling)",null,{"$f":"IF(manual=1,tot_inst*uloe_inst*365/60,uloe_inst_auto*365/60)","v":152.08333333333334},"hr/yr"]
["Preventative maintenance and calibration of instruments",null,{"$f":"tot_inst_maint*uloe_inst_maint*12/60","v":12},"hr/yr"]
["Verify/adjust pump operating parameters",null,{"$f":"IF(OR(manual=1,manual=2),tot_pumps*uloe_pump*365/60,0)","v":91.25},"hr/yr"]
["Preventative maintenance of pumps",null,{"$f":"tot_pumps_maint*uloe_pump_maint","v":90.75},"hr/yr"]
["Verify/adjust valve positions",null,{"$f":"IF(OR(manual=1,manual=2),tot_valves*uloe_valve*52/60,0)","v":34.666666666666664},"hr/yr"]
["Preventative maintenance and inspection of valves",null,{"$f":"tot_valves*uloe_valve_maint/60","v":0.66666666666666663},"hr/yr"]
["Visual inspection of facility",null,{"$f":"(total_fp+offgas_fp)/100*uloe_fp*365/60","v":7.3},"hr/yr"]
["Managing media changeouts",null,{"$f":"media_changes*uloe_throwaway","v":0},"hr/yr","For offgas GAC"]
["General Operator Labor","General_Oper_Labor",{"$f":"SUM(C18:C25)","v":388.71666666666675},"hr/yr"]
["Annual Operator LOE","Operator_LOE",{"$f":"General_Oper_Labor","v":388.71666666666675},"hr/yr"]
[]
["Annual Manager LOE","Manager_LOE",{"$f":"Operator_LOE*Manager_percent","v":38.871666666666677},"hr/yr","Based on general operator labor and percentages in critical design assumptions"]
["Annual Administrative LOE","Clerical_LOE",{"$f":"Operator_LOE*Clerical_percent","v":38.871666666666677},"hr/yr","Based on general operator labor and percentages in critical design assumptions"]
[]
["Building Maintenance"]
["Cost for all buildings, excluding heating and cooling",null,{"$f":"building_matl_rate_cl*total_fp","v":677.20685670272712},"/yr","Labor and materials; includes routine in-house maintenance and major repairs"]
["Cost to maintain heating system, building 1",null,{"$f":"build1_need_heat*heating_matl_rate_cl*build1_fp","v":0},"/yr"]
["Cost to maintain cooling system, building 1",null,{"$f":"build1_need_cool*cooling_matl_rate_cl*build1_fp","v":0},"/yr"]
["Cost to maintain heating system, building 2",null,{"$f":"build2_need_heat*heating_matl_rate_cl*build2_fp","v":0},"/yr"]
["Cost to maintain cooling system, building 2",null,{"$f":"build2_need_cool*cooling_matl_rate_cl*build2_fp","v":0},"/yr"]
["Annual maintenance for all buildings","bldg_maint_cost",{"$f":"SUM(C33:C37)","v":677.20685670272712},null,"Includes labor and materials"]
[]
["Energy"]
["Booster Pumps"]
["Pump operating horsepower (all pumps)","pump_energy_hp",{"$f":"(average_flow_rate+bp_flow_rate*average_flow_rate/design_flow_rate)*pump_head/pump_effcy/14.7*33.9*8.34/550/60","v":3.8045196866625437},"hp"]
["Energy for all active booster pumps","pump_energy",{"$f":"IF(num_pumps=0,0,(0.7457/1000*24*365)*pump_energy_hp)","v":24.852385693815709},"MWh/yr"]
[]
["Blowers"]
["Blower operating pressure","blow_head",{"$f":"(max_h2odepth+add_blow_head/12)/2.307","v":1.6616095939893081},"psi"]
["Total blower operating horsepower","blower_hp",{"$f":"(average_flow_rate*air_water_ratio/7.48)*blow_head/(229*blower_effcy)","v":1.8092110352890738},"HP"]
["Energy","blower_energy",{"$f":"(24*365*0.7457/1000)*blower_hp","v":11.818367140571947},"MWh/yr"]
[]
["Building Lighting"]
["Lighting power per sf, building 1","lighting_energy_1",{"$f":"IF(OR(build1_fp<500,component_level=\"\"),lighting_power_low,CHOOSE(component_level,lighting_power_mid,lighting_power_high))*24*365/1000","v":8.76},"kWh/sf/yr"]
["Lighting power per sf, building 2","lighting_energy_2",{"$f":"IF(OR(build2_fp<500,component_level=\"\"),lighting_power_low,CHOOSE(component_level,lighting_power_mid,lighting_power_high))*24*365/1000","v":8.76},"kWh/sf/yr"]
["Lighting","lighting",{"$f":"MIN(1,Operator_LOE/(24*365))*(build1_fp*lighting_energy_1+build2_fp*lighting_energy_2)/1000","v":4.6646000000000007E-2},"MWh/yr"]
[]
["HVAC"]
["Heating energy usage for:"]
["Electric resistance","heating",{"$f":"IF(build1_heat=A57,VLOOKUP(A57,build1_heat_options, 7,FALSE),0)+IF(build2_heat=A57,VLOOKUP(A57,build2_heat_options, 7,FALSE),0)","v":0},"MWh/yr"]
["Natural gas non-condensing furnace","heating_gas_non",0,"therms/yr"]
["Natural gas condensing furnace","heating_gas",0,"therms/yr"]
["Standard efficiency oil furnace","heating_diesel_non",0,"gal/yr"]
["Mid-efficiency oil furnace","heating_diesel",0,"gal/yr"]
["Heat pump","heating_hp",0,"MWh/yr"]
[]
["Cooling energy usage for:"]
["Air conditioner","cooling",{"$f":"IF(build1_cool=A65,VLOOKUP(A65,build1_cool_options, 7,FALSE),0)+IF(build2_cool=A65,VLOOKUP(A65,build2_cool_options, 7,FALSE),0)","v":0},"MWh/yr"]
["Heat pump","cooling_hp",{"$f":"IF(build1_cool=A66,VLOOKUP(A66,build1_cool_options, 7,FALSE),0)+IF(build2_cool=A66,VLOOKUP(A66,build2_cool_options, 7,FALSE),0)","v":0},"MWh/yr"]

{"sheet":"HVAC","index":13,"n_rows":133,"n_cols":12,"rows_kept":133,"cut":false,"hidden":false,"merged":[[78,1,78,4],[87,1,87,4]]}
["Building Heating, Ventilating, and Air Conditioning Calculations"]
[]
["Calculation","Range Name","Value","Units","Guidance"]
["General information"]
["System size","ss_cat2",{"$f":"IF(design_flow<1,1,IF(design_flow<10,2,3))","v":1},"1 indicates small system, 2 indicates medium, 3 indicates large","ss_cat2 is used to select ventilation requirements and building type"]
["Buiding 1 length and width","build1_side",{"$f":"build1_fp^0.5","v":10.954451150103322},"ft"]
["Building 2 length and width","build2_side",{"$f":"build2_fp^0.5","v":0},"ft"]
[]
["Ventilation"]
["Building 1 weighted average air changes","air_changes_build1",{"$f":"IF(build2_fp=0,(Air_changes_contactor*basin_fp+Air_changes_pump*pump_fp+Air_changes_pump*blower_hp+Air_changes_office*office_fp)/build1_fp,Air_changes_contactor)","v":4.2182018392148457},"air changes/hr"]
["Building 2 weighted average air changes","air_changes_build2",{"$f":"IF(build2_fp=0,0,(Air_changes_pump*pump_fp+Air_changes_pump*blow_fp+Air_changes_office*office_fp)/build2_fp)","v":0},"air changes/hr"]
["Building 1 ventilation",null,{"$f":"CHOOSE(ss_cat2,fan_days_build1_small,fan_days_build1_medium,fan_days_build1_large)*24*0.746*Fan_pressure_drop*build1_fp*Building_height*air_changes_build1/33000","v":123.58257664794969},"kWh/yr"]
["Building 2 ventilation",null,{"$f":"CHOOSE(ss_cat2,fan_days_build2_small,fan_days_build2_medium,fan_days_build2_large)*24*0.746*Fan_pressure_drop*build2_fp*Building_height*air_changes_build2/33000","v":0},"kWh/yr"]
["Total ventilation","ventilation",{"$f":"SUM(C12:C13)/1000","v":0.12358257664794969},"MWh/yr"]
[]
["Building 1 air exchange rate","build1_cfm",{"$f":"build1_fp*Building_height*air_changes_build1/60","v":168.72807356859383},"cfm"]
["Building 2 air exchange rate","build2_cfm",{"$f":"build2_fp*Building_height*air_changes_build2/60","v":0},"cfm"]
[]
["Heating and Cooling"]
["Include heating for building 1","build1_need_heat",{"$f":"VLOOKUP(IF(component_level_I=\"\",\"low cost\",component_level_I),IF(build1_fp<500,heating_table_shed,heating_table),ss_cat2+2,FALSE)","v":0},"1 for yes, 0 for no","Based on system size, building floorplan, and component level input."]
["Include cooling for building 1","build1_need_cool",{"$f":"VLOOKUP(IF(component_level_I=\"\",\"low cost\",component_level_I),IF(build1_fp<500,cooling_table_shed,cooling_table),ss_cat2+2,FALSE)","v":0},"1 for yes, 0 for no"]
["Include heating for building 2","build2_need_heat",{"$f":"IF(build2_fp=0,0,VLOOKUP(IF(component_level_I=\"\",\"low cost\",component_level_I),IF(build2_fp<500,heating_table_shed,heating_table),ss_cat2+2,FALSE))","v":0},"1 for yes, 0 for no"]
["Include cooling for building 2","build2_need_cool",{"$f":"IF(build2_fp=0,0,VLOOKUP(IF(component_level_I=\"\",\"low cost\",component_level_I),IF(build2_fp<500,cooling_table_shed,cooling_table),ss_cat2+2,FALSE))","v":0},"1 for yes, 0 for no"]
[]
["Heating Requirements"]
["Building 1 side conductance heat loss",null,{"$f":"4*build1_side*Building_height*heat_DD*24/R_wall","v":7964863.4602277409},"BTU/yr"]
["Buiding 1 ceiling conductance heat loss",null,{"$f":"build1_fp*heat_DD*24/R_ceiling","v":373111.57894736843},"BTU/yr"]
["Building 1 air exchange heat loss",null,{"$f":"build1_cfm*heat_viload","v":28460882.721476838},"BTU/yr"]
["Building 1 total annual heat loss","build1_heat_loss_yr",{"$f":"SUM(C26:C28)","v":36798857.760651946},"BTU/yr"]
["Building 1 heating requirement in thousand BTU/hr","build1_heat_mbh",{"$f":"build1_heat_loss_yr/365.25/24/1000","v":4.1979075702317985},"MBH","thousands of BTU per hour"]
["Building 1 number of heating zones","build1_heat_zones",{"$f":"ROUNDUP(build1_heat_mbh/max_heat_cl,0)","v":1}]
[]
["Building 2 side conductance heat loss",null,{"$f":"4*build2_side*Building_height*heat_DD*24/R_wall","v":0},"BTU/yr"]
["Buiding 2 ceiling conductance heat loss",null,{"$f":"build2_fp*heat_DD*24/R_ceiling","v":0},"BTU/yr"]
["Building 2 air exchange heat loss",null,{"$f":"build2_cfm*heat_viload","v":0},"BTU/yr"]
["Building 2 total annual heat loss","build2_heat_loss_yr",{"$f":"SUM(C33:C35)","v":0},"BTU/yr"]
["Building 2 heating requirement in thousand BTU/hr","build2_heat_mbh",{"$f":"build2_heat_loss_yr/365.25/24/1000","v":0},"MBH"]
["Building 2 number of heating zones","build2_heat_zones",{"$f":"ROUNDUP(build2_heat_mbh/max_heat_cl,0)","v":0}]
[]
["Cooling Requirements"]
["Power lost: booster pumps","eloss_pumps",{"$f":"pump_energy_hp*(1-pump_effcy)*0.7457","v":0.70925758258606475},"kW"]
["Waste heat: booster pumps","waste_heat_pumps",{"$f":"eloss_pumps*3415","v":2422.1146445314112},"BTU/hr"]
["Power lost: blowers","eloss_blow",{"$f":"blower_hp*(1-blower_effcy)*0.7457","v":0.40473860070451878},"kW"]
["Waste heat: blowers","waste_heat_blow",{"$f":"eloss_blow*3415","v":1382.1823214059316},"BTU/hr"]
[]
["Building 1 side conductance cooling loss",null,{"$f":"4*build1_side*Building_height*cool_DD*24/R_wall","v":2745556.2242548191},"BTU/yr"]
["Buiding 1 ceiling conductance cooling loss",null,{"$f":"build1_fp*cool_DD*24/R_ceiling","v":128614.73684210527},"BTU/yr"]
["Building 1 air exchange cooling loss",null,{"$f":"build1_cfm*cool_viload","v":8735221.096719671},"BTU/yr"]
["Building 1 total annual cooling loss","build1_cooling_loss_yr",{"$f":"SUM(C46:C48)","v":11609392.057816595},"BTU/yr"]
["Building 1 cooling loss per hour","build1_cooling_loss_hr",{"$f":"build1_cooling_loss_yr/365.25/24","v":1324.3659659840971},"BTU/hr"]
[]
["Building 1 total cooling requirement","build1_cooling_req",{"$f":"build1_cooling_loss_hr+IF(fp_required<add_2nd_building,waste_heat_pumps+waste_heat_blow,0)","v":5128.6629319214398},"BTU/hr"]
["Building 1 annual cooling requirement","build1_cooling_yr",{"$f":"build1_cooling_req*365.25*24","v":44957859.261223346},"BTU/yr"]
["Building 1 total cooling requirement in tons","build1_cooling_tons",{"$f":"build1_cooling_req/12000","v":0.42738857766012001},"tons","1 ton cooling = 12,000 BTU/hr"]
["Building 1 number of cooling zones","build1_cool_zones",{"$f":"ROUNDUP(build1_cooling_tons/max_cool_cl,0)","v":1}]
[]
["Building 2 side conductance cooling loss",null,{"$f":"4*build2_side*Building_height*cool_DD*24/R_wall","v":0},"BTU/yr"]
["Buiding 2 ceiling conductance cooling loss",null,{"$f":"build2_fp*cool_DD*24/R_ceiling","v":0},"BTU/yr"]
["Building 2 air exchange cooling loss",null,{"$f":"build2_cfm*cool_viload","v":0},"BTU/yr"]
["Building 2 total annual cooling loss","build2_cooling_loss_yr",{"$f":"SUM(C57:C59)","v":0},"BTU/yr"]
["Building 2 cooling loss per hour","build2_cooling_loss_hr",{"$f":"build2_cooling_loss_yr/365.25/24","v":0},"BTU/hr"]
[]
["Building 2 total cooling requirement","build2_cooling_req",{"$f":"build2_cooling_loss_hr+IF(fp_required<add_2nd_building,0,waste_heat_pumps+waste_heat_blow)","v":0},"BTU/hr"]
["Building 2 annual cooling requirement","build2_cooling_yr",{"$f":"build2_cooling_req*365.25*24","v":0},"BTU/yr"]
["Building 2 total cooling requirement in tons","build2_cooling_tons",{"$f":"build2_cooling_req/12000","v":0},"tons","1 ton cooling = 12,000 BTU/hr"]
["Building 2 number of cooling zones","build2_cool_zones",{"$f":"ROUNDUP(build2_cooling_tons/max_cool_cl,0)","v":0}]
[]
["Heating Options"]
[]
["Building 1 number of HVAC zones","build1_zones",{"$f":"MAX(build1_heat_zones, build1_cool_zones)","v":1}]
["Building 2 number of HVAC zones","build2_zones",{"$f":"MAX(build2_heat_zones, build2_cool_zones)","v":0}]
[]
["Heat pump OK for building 1?","hp_ok_1",{"$f":"AND(build1_heat_mbh<=hp_max_heat_cl,build1_cooling_tons<=hp_max_cool_cl)","v":true},null,"For heat pumps, we check both heating and cooling capacities."]
["Heat pump OK for building 2?","hp_ok_2",{"$f":"AND(build2_heat_mbh<=hp_max_heat_cl,build2_cooling_tons<=hp_max_cool_cl)","v":true}]
[]
["Building 1","build1_heat_options"]
["Option","Size needed per zone (MBH)","Size selected (MBH)","Direct Cost Per Zone","Useful Life (yrs)","Annualized Capital Cost, All Zones","Energy/Yr",null,"Energy Unit Cost",null,"Annual Energy Cost","Total Annual Cost"]
["Electric resistance",{"$f":"build1_heat_mbh/build1_zones","v":4.1979075702317985},{"$f":"IF(curve=1,B78,VLOOKUP(B78,hvac_elec_cost_cl,2))","v":4.1979075702317985},{"$f":"IF(curve=1,hvac_elec_eq_1,VLOOKUP(B78,hvac_elec_cost_cl,3))","v":4117.6201050110849},{"$f":"VLOOKUP(B78,hvac_elec_cost_cl,IF(ss_cat=\"large\",4,5))","v":20},{"$f":"IF(D78=\"contact vendor\",\"n/a\",-PMT(Discount_rate,E78,D78)*build1_zones)","v":388.67420881124804},{"$f":"build1_heat_loss_yr/3412000/resist_eff","v":11.005232959498274},"MWh/yr",{"$f":"energy_cost_cl","v":0.10761526717557252},"/kwh",{"$f":"I78*G78*1000","v":1184.3310852658233},{"$f":"IF(OR(F78=\"n/a\",K78=\"n/a\"),\"n/a\",F78+K78)","v":1573.0052940770713}]
["Heat pump","capital costs are in the cooling table",null,null,null,"n/a",{"$f":"IF(hp_ok_1,build1_heat_loss_yr/3412000/COP,\"n/a\")","v":3.3703525938463463},"MWh/yr",{"$f":"energy_cost_cl","v":0.10761526717557252},"/kwh",{"$f":"IF(G79=\"n/a\",\"n/a\",I79*G79*1000)","v":362.70139486265839},"n/a"]
["Natural gas non-condensing furnace",{"$f":"build1_heat_mbh/build1_zones","v":4.1979075702317985},{"$f":"IF(curve=1,B80,VLOOKUP(B80,hvac_gas_non_cost_cl,2))","v":4.1979075702317985},{"$f":"IF(curve=1,hvac_gas_non_eq_1,VLOOKUP(B80,hvac_gas_non_cost_cl,3))","v":2385.0470867234221},{"$f":"VLOOKUP(B80,hvac_gas_non_cost_cl,IF(ss_cat=\"large\",4,5))","v":20},{"$f":"IF(D80=\"contact vendor\",\"n/a\",-PMT(Discount_rate,E80,D80)*build1_zones)","v":225.13157255125233},{"$f":"build1_heat_loss_yr/100000/gas_non_eff","v":459.98572200814931},"therms/yr",{"$f":"gas_cost_cl","v":0.64354043868972843},"/therm",{"$f":"I80*G80","v":296.01941333213585},521.15098588338822]
["Natural gas condensing furnace",{"$f":"build1_heat_mbh/build1_zones","v":4.1979075702317985},{"$f":"IF(curve=1,B81,VLOOKUP(B81,hvac_gas_cost_cl,2))","v":4.1979075702317985},{"$f":"IF(curve=1,hvac_gas_eq_1,VLOOKUP(B81,hvac_gas_cost_cl,3))","v":2385.0470867234221},{"$f":"VLOOKUP(B81,hvac_gas_cost_cl,IF(ss_cat=\"large\",4,5))","v":20},{"$f":"IF(D81=\"contact vendor\",\"n/a\",-PMT(Discount_rate,E81,D81)*build1_zones)","v":225.13157255125233},{"$f":"build1_heat_loss_yr/100000/gas_eff","v":387.35639748054683},"therms/yr",{"$f":"gas_cost_cl","v":0.64354043868972843},"/therm",{"$f":"I81*G81","v":249.27950596390392},474.41107851515625]
["Standard efficiency oil furnace",{"$f":"build1_heat_mbh/build1_zones","v":4.1979075702317985},{"$f":"IF(curve=1,B82,VLOOKUP(B82,hvac_oil_std_cost_cl,2))","v":4.1979075702317985},{"$f":"IF(curve=1,hvac_oil_std_eq_1,VLOOKUP(B82,hvac_oil_std_cost_cl,3))","v":2766.2167720677862},{"$f":"VLOOKUP(B82,hvac_oil_std_cost_cl,IF(ss_cat=\"large\",4,5))","v":20},{"$f":"IF(D82=\"contact vendor\",\"n/a\",-PMT(Discount_rate,E82,D82)*build1_zones)","v":261.11129435554301},{"$f":"build1_heat_loss_yr/diesel_heat_content/diesel_non_eff","v":339.41023575587479},"gal/yr",{"$f":"diesel_cost_cl","v":1.9400231874222376},"/gal",{"$f":"I82*G82","v":658.46372741484527},919.57502177038828]
["Mid-efficiency oil furnace",{"$f":"build1_heat_mbh/build1_zones","v":4.1979075702317985},{"$f":"IF(curve=1,B83,VLOOKUP(B83,hvac_oil_mid_cost_cl,2))","v":4.1979075702317985},{"$f":"IF(curve=1,hvac_oil_mid_eq_1,VLOOKUP(B83,hvac_oil_mid_cost_cl,3))","v":2766.2167720677862},{"$f":"VLOOKUP(B83,hvac_oil_mid_cost_cl,IF(ss_cat=\"large\",4,5))","v":20},{"$f":"IF(D83=\"contact vendor\",\"n/a\",-PMT(Discount_rate,E83,D83)*build1_zones)","v":261.11129435554301},{"$f":"build1_heat_loss_yr/diesel_heat_content/diesel_eff","v":311.45880457597923},"gal/yr",{"$f":"diesel_cost_cl","v":1.9400231874222376},"/gal",{"$f":"I83*G83","v":604.23730280421103},865.34859715975404]
[]
["Building 2","build2_heat_options"]
["Option","Size needed per zone (MBH)","Size selected (MBH)","Direct Cost Per Zone","Useful Life (yrs)","Annualized Capital Cost, All Zones","Energy/Yr",null,"Energy Unit Cost",null,"Annual Energy Cost","Total Annual Cost"]
["Electric resistance",{"$f":"IF(build2_zones=0,0,build2_heat_mbh/build2_zones)","v":0},{"$f":"IF(curve=1,B87,VLOOKUP(B87,hvac_elec_cost_cl,2))","v":0},{"$f":"IF(curve=1,hvac_elec_eq_2,VLOOKUP(B87,hvac_elec_cost_cl,3))","v":0},{"$f":"VLOOKUP(B87,hvac_elec_cost_cl,IF(ss_cat=\"large\",4,5))","v":20},{"$f":"IF(D87=\"contact vendor\",\"n/a\",-PMT(Discount_rate,E87,D87)*build2_zones)","v":0},{"$f":"build2_heat_loss_yr/3412000/resist_eff","v":0},"MWh/yr",{"$f":"energy_cost_cl","v":0.10761526717557252},"/kwh",{"$f":"I87*G87*1000","v":0},{"$f":"IF(F87=\"n/a\",\"n/a\",F87+K87)","v":0}]
["Heat pump","capital costs are in the cooling table",null,null,null,"n/a",{"$f":"IF(hp_ok_2,build2_heat_loss_yr/3412000/COP,\"n/a\")","v":0},"MWh/yr",{"$f":"energy_cost_cl","v":0.10761526717557252},"/kwh",{"$f":"IF(G88=\"n/a\",\"n/a\",I88*G88*1000)","v":0},{"$f":"IF(OR(F88=\"n/a\",K88=\"n/a\"),\"n/a\",F88+K88)","v":"n/a"}]
["Natural gas non-condensing furnace",{"$f":"IF(build2_zones=0,0,build2_heat_mbh/build2_zones)","v":0},{"$f":"IF(curve=1,B89,VLOOKUP(B89,hvac_gas_non_cost_cl,2))","v":0},{"$f":"IF(curve=1,hvac_gas_non_eq_2,VLOOKUP(B89,hvac_gas_non_cost_cl,3))","v":0},{"$f":"VLOOKUP(B89,hvac_gas_non_cost_cl,IF(ss_cat=\"large\",4,5))","v":20},{"$f":"IF(D89=\"contact vendor\",\"n/a\",-PMT(Discount_rate,E89,D89)*build2_zones)","v":0},{"$f":"build2_heat_loss_yr/100000/gas_non_eff","v":0},"therms/yr",{"$f":"gas_cost_cl","v":0.64354043868972843},"/therm",{"$f":"I89*G89","v":0},{"$f":"IF(F89=\"n/a\",\"n/a\",F89+K89)","v":0}]
["Natural gas condensing furnace",{"$f":"IF(build2_zones=0,0,build2_heat_mbh/build2_zones)","v":0},{"$f":"IF(curve=1,B90,VLOOKUP(B90,hvac_gas_cost_cl,2))","v":0},{"$f":"IF(curve=1,hvac_gas_eq_2,VLOOKUP(B90,hvac_gas_cost_cl,3))","v":0},{"$f":"VLOOKUP(B90,hvac_gas_cost_cl,IF(ss_cat=\"large\",4,5))","v":20},{"$f":"IF(D90=\"contact vendor\",\"n/a\",-PMT(Discount_rate,E90,D90)*build2_zones)","v":0},{"$f":"build2_heat_loss_yr/100000/gas_eff","v":0},"therms/yr",{"$f":"gas_cost_cl","v":0.64354043868972843},"/therm",{"$f":"I90*G90","v":0},{"$f":"IF(F90=\"n/a\",\"n/a\",F90+K90)","v":0}]
["Standard efficiency oil furnace",{"$f":"IF(build2_zones=0,0,build2_heat_mbh/build2_zones)","v":0},{"$f":"IF(curve=1,B91,VLOOKUP(B91,hvac_oil_std_cost_cl,2))","v":0},{"$f":"IF(curve=1,hvac_oil_std_eq_2,VLOOKUP(B91,hvac_oil_std_cost_cl,3))","v":0},{"$f":"VLOOKUP(B91,hvac_oil_std_cost_cl,IF(ss_cat=\"large\",4,5))","v":20},{"$f":"IF(D91=\"contact vendor\",\"n/a\",-PMT(Discount_rate,E91,D91)*build2_zones)","v":0},{"$f":"build2_heat_loss_yr/diesel_heat_content/diesel_non_eff","v":0},"gal/yr",{"$f":"diesel_cost_cl","v":1.9400231874222376},"/gal",{"$f":"I91*G91","v":0},{"$f":"IF(F91=\"n/a\",\"n/a\",F91+K91)","v":0}]
["Mid-efficiency oil furnace",{"$f":"IF(build2_zones=0,0,build2_heat_mbh/build2_zones)","v":0},{"$f":"IF(curve=1,B92,VLOOKUP(B92,hvac_oil_mid_cost_cl,2))","v":0},{"$f":"IF(curve=1,hvac_oil_mid_eq_2,VLOOKUP(B92,hvac_oil_mid_cost_cl,3))","v":0},{"$f":"VLOOKUP(B92,hvac_oil_mid_cost_cl,IF(ss_cat=\"large\",4,5))","v":20},{"$f":"IF(D92=\"contact vendor\",\"n/a\",-PMT(Discount_rate,E92,D92)*build2_zones)","v":0},{"$f":"build2_heat_loss_yr/diesel_heat_content/diesel_eff","v":0},"gal/yr",{"$f":"diesel_cost_cl","v":1.9400231874222376},"/gal",{"$f":"I92*G92","v":0},{"$f":"IF(F92=\"n/a\",\"n/a\",F92+K92)","v":0}]
[]
["Cooling Options"]
["Building 1","build1_cool_options"]
["Option","Size needed per zone (tons)","Size selected (tons)","Direct Cost Per Zone","Useful Life (yrs)","Annualized Capital Cost, All Zones","Energy/Yr",null,"Energy Unit Cost",null,"Annual Energy Cost","Total Annual Cost"]
["Air conditioner",{"$f":"build1_cooling_tons/build1_zones","v":0.42738857766012001},{"$f":"IF(curve=1,B97,VLOOKUP(B97,hvac_ac_cost_cl,2))","v":0.42738857766012001},{"$f":"IF(curve=1,hvac_ac_eq_1,VLOOKUP(B97,hvac_ac_cost_cl,3))","v":931.94620540999233},{"$f":"VLOOKUP(B97,hvac_ac_cost_cl,IF(ss_cat=\"large\",4,5))","v":20},{"$f":"IF(D97=\"contact vendor\",\"n/a\",-PMT(Discount_rate,E97,D97)*build1_zones)","v":87.969128963974327},{"$f":"build1_cooling_yr/EER/10^6","v":4.0870781146566673},"MWh/yr",{"$f":"energy_cost_cl","v":0.10761526717557252},"/kwh",{"$f":"I97*G97*1000","v":439.83200327621245},{"$f":"IF(F97=\"n/a\",\"n/a\",F97+K97)","v":527.8011322401868}]
["Heat pump",{"$f":"build1_cooling_tons/build1_zones","v":0.42738857766012001},{"$f":"IF(hp_ok_1,IF(curve=1,B98,VLOOKUP(B98,hvac_hp_cost_cl,2)),\"n/a\")","v":0.42738857766012001},{"$f":"IF(C98=\"n/a\",\"n/a\",IF(curve=1,hvac_hp_eq_1,VLOOKUP(B98,hvac_hp_cost_cl,3)))","v":3372.0876848253924},{"$f":"IF(C98=\"n/a\",\"n/a\",VLOOKUP(B98,hvac_hp_cost_cl,IF(ss_cat=\"large\",4,5)))","v":20},{"$f":"IF(OR(D98=\"contact vendor\",D98=\"n/a\"),\"n/a\",-PMT(Discount_rate,E98,D98)*build1_zones)","v":318.30122243347029},{"$f":"IF(C98=\"n/a\",\"n/a\",build1_cooling_yr/hp_EER/10^6)","v":4.4512731941805299},"MWh/yr",{"$f":"energy_cost_cl","v":0.10761526717557252},"/kwh",{"$f":"IF(C98=\"n/a\",\"n/a\",I98*G98*1000)","v":479.02495406320179},{"$f":"IF(F98=\"n/a\",\"n/a\",F98+K98)","v":797.32617649667213}]
[]
["Building 2","build2_cool_options"]
["Option","Size needed per zone (tons)","Size selected (tons)","Direct Cost Per Zone","Useful Life (yrs)","Annualized Capital Cost, All Zones","Energy/Yr",null,"Energy Unit Cost",null,"Annual Energy Cost","Total Annual Cost"]
["Air conditioner",{"$f":"IF(build2_zones=0,0,build2_cooling_tons/build2_zones)","v":0},{"$f":"IF(curve=1,B102,VLOOKUP(B102,hvac_ac_cost_cl,2))","v":0},{"$f":"IF(curve=1,hvac_ac_eq_2,VLOOKUP(B102,hvac_ac_cost_cl,3))","v":0},{"$f":"VLOOKUP(B102,hvac_ac_cost_cl,IF(ss_cat=\"large\",4,5))","v":20},{"$f":"IF(D102=\"contact vendor\",\"n/a\",-PMT(Discount_rate,E102,D102)*build2_zones)","v":0},{"$f":"build2_cooling_yr/EER/10^6","v":0},"MWh/yr",{"$f":"energy_cost_cl","v":0.10761526717557252},"/kwh",{"$f":"I102*G102*1000","v":0},{"$f":"IF(F102=\"n/a\",\"n/a\",F102+K102)","v":0}]
["Heat pump",{"$f":"IF(build2_zones=0,0,build2_cooling_tons/build2_zones)","v":0},{"$f":"IF(hp_ok_2,IF(curve=1,B103,VLOOKUP(B103,hvac_hp_cost_cl,2)),\"n/a\")","v":0},{"$f":"IF(C103=\"n/a\",\"n/a\",IF(curve=1,hvac_hp_eq_2,VLOOKUP(B103,hvac_hp_cost_cl,3)))","v":0},{"$f":"IF(C103=\"n/a\",\"n/a\",VLOOKUP(B103,hvac_hp_cost_cl,IF(ss_cat=\"large\",4,5)))","v":20},{"$f":"IF(OR(D103=\"contact vendor\",D103=\"n/a\"),\"n/a\",-PMT(Discount_rate,E103,D103)*build2_zones)","v":0},{"$f":"IF(C103=\"n/a\",\"n/a\",build2_cooling_yr/hp_EER/10^6)","v":0},"MWh/yr",{"$f":"energy_cost_cl","v":0.10761526717557252},"/kwh",{"$f":"IF(C103=\"n/a\",\"n/a\",I103*G103*1000)","v":0},{"$f":"IF(F103=\"n/a\",\"n/a\",F103+K103)","v":0}]
[]
[]
["Heating and Cooling Selection",null,null,null,"We will select the option with the lowest annual cost for each building."]
[]
["Building 1 Selection"]
["Heating option","Annual cost","Cooling option","Annual cost","Total annual cost"]
["Electric resistance",{"$f":"IF(build1_need_heat,VLOOKUP(A110,build1_heat_options,12,FALSE),0)","v":0},"Air conditioner",{"$f":"IF(build1_need_cool,VLOOKUP(C110,build1_cool_options,12,FALSE),0)","v":0},{"$f":"IF(OR(B110=\"n/a\",D110=\"n/a\"),\"n/a\",ROUND(B110+D110,0))","v":0}]
["Natural gas non-condensing furnace",{"$f":"IF(build1_need_heat,VLOOKUP(A111,build1_heat_options,12,FALSE),0)","v":0},"Air conditioner",{"$f":"IF(build1_need_cool,VLOOKUP(C111,build1_cool_options,12,FALSE),0)","v":0},0]
["Natural gas condensing furnace",{"$f":"IF(build1_need_heat,VLOOKUP(A112,build1_heat_options,12,FALSE),0)","v":0},"Air conditioner",{"$f":"IF(build1_need_cool,VLOOKUP(C112,build1_cool_options,12,FALSE),0)","v":0},0]
["Standard efficiency oil furnace",{"$f":"IF(build1_need_heat,VLOOKUP(A113,build1_heat_options,12,FALSE),0)","v":0},"Air conditioner",{"$f":"IF(build1_need_cool,VLOOKUP(C113,build1_cool_options,12,FALSE),0)","v":0},0]
["Mid-efficiency oil furnace",{"$f":"IF(build1_need_heat,VLOOKUP(A114,build1_heat_options,12,FALSE),0)","v":0},"Air conditioner",{"$f":"IF(build1_need_cool,VLOOKUP(C114,build1_cool_options,12,FALSE),0)","v":0},0]
["Heat pump",{"$f":"IF(AND(build1_need_heat, build1_need_cool),K79,\"n/a\")","v":"n/a"},"Heat pump",{"$f":"IF(AND(build1_need_heat,build1_need_cool),VLOOKUP(C115,build1_cool_options,12,FALSE),0)","v":0},"n/a"]
[]
["Row selected","build1_row",{"$f":"MATCH(MIN(E110:E115),E110:E115,0)","v":1}]
["Building 1 heating selection","build1_heat",{"$f":"IF(build1_need_heat,INDEX(A110:A115,build1_row),\"n/a\")","v":"n/a"}]
["Building 1 cooling selection","build1_cool",{"$f":"IF(build1_need_cool,INDEX(C110:C115,build1_row),\"n/a\")","v":"n/a"}]
[]
[]
["Building 2 Selection"]
["Heating option","Annual cost","Cooling option","Annual cost","Total annual cost"]
["Electric resistance",{"$f":"IF(build2_need_heat,VLOOKUP(A124,build2_heat_options,12,FALSE),0)","v":0},"Air conditioner",{"$f":"IF(build2_need_cool,VLOOKUP(C124,build2_cool_options,12,FALSE),0)","v":0},{"$f":"IF(OR(B124=\"n/a\",D124=\"n/a\"),\"n/a\",ROUND(B124+D124,0))","v":0}]
["Natural gas non-condensing furnace",{"$f":"IF(build2_need_heat,VLOOKUP(A125,build2_heat_options,12,FALSE),0)","v":0},"Air conditioner",{"$f":"IF(build2_need_cool,VLOOKUP(C125,build2_cool_options,12,FALSE),0)","v":0},0]
["Natural gas condensing furnace",{"$f":"IF(build2_need_heat,VLOOKUP(A126,build2_heat_options,12,FALSE),0)","v":0},"Air conditioner",{"$f":"IF(build2_need_cool,VLOOKUP(C126,build2_cool_options,12,FALSE),0)","v":0},0]
["Standard efficiency oil furnace",{"$f":"IF(build2_need_heat,VLOOKUP(A127,build2_heat_options,12,FALSE),0)","v":0},"Air conditioner",{"$f":"IF(build2_need_cool,VLOOKUP(C127,build2_cool_options,12,FALSE),0)","v":0},0]
["Mid-efficiency oil furnace",{"$f":"IF(build2_need_heat,VLOOKUP(A128,build2_heat_options,12,FALSE),0)","v":0},"Air conditioner",{"$f":"IF(build2_need_cool,VLOOKUP(C128,build2_cool_options,12,FALSE),0)","v":0},0]
["Heat pump",{"$f":"IF(AND(build2_need_heat, build2_need_cool),K88,\"n/a\")","v":"n/a"},"Heat pump",{"$f":"IF(AND(build1_need_heat,build2_need_cool),VLOOKUP(C129,build2_cool_options,12,FALSE),0)","v":0},"n/a"]
[]
["Row selected","build2_row",{"$f":"MATCH(MIN(E124:E129),E124:E129,0)","v":1}]
["Building 2 heating selection","build2_heat",{"$f":"IF(build2_need_heat,INDEX(A124:A129,build2_row),\"n/a\")","v":"n/a"}]
["Building 2 cooling selection","build2_cool",{"$f":"IF(build2_need_cool,INDEX(C124:C129,build2_row),\"n/a\")","v":"n/a"}]

{"sheet":"Indirect","index":14,"n_rows":89,"n_cols":5,"rows_kept":89,"cut":false,"hidden":false,"merged":[]}
["Indirect and Add-on Cost Calculations"]
[]
["Calculation","Range Name","Value","Units","Guidance"]
["Standby Power"]
["Blowers",null,{"$f":"blower_energy*design_flow/average_flow/365/24*1000","v":4.3774919579744047},"kW"]
["Pumps",null,{"$f":"pump_energy*design_flow/average_flow/365/24*1000","v":9.2052579867553099},"kW"]
["Offgas blowers",null,{"$f":"IF(Offgas_Tech=2,TO_power_yr,IF(Offgas_Tech=3,CO_power_yr,0))*design_flow/average_flow/365/24*1000","v":0},"kW"]
["Lighting",null,{"$f":"(build1_fp*lighting_energy_1+build2_fp*lighting_energy_2)/365/24","v":0.12000000000000001},"kW"]
["Building 1 ventilation",null,{"$f":"0.746*Fan_pressure_drop*build1_fp*Building_height*air_changes_build1/33000","v":5.7214155855532266E-2},"kW"]
["Building 2 ventilation",null,{"$f":"0.746*Fan_pressure_drop*build2_fp*Building_height*air_changes_build2/33000","v":0},"kW"]
["Total base standby power requirement","std_base",{"$f":"SUM(C5:C10)","v":13.759964100585247},"kW"]
[]
["Electric heating for Building 1?","build1_elec_heat",{"$f":"IF(build1_need_heat=1,VLOOKUP(build1_heat,build1_heat_options,8,FALSE)=\"MWh/yr\",FALSE)","v":false}]
["Power to heat Building 1","build1_elec_heat_power",{"$f":"IF(build1_elec_heat,VLOOKUP(build1_heat,build1_heat_options,7,FALSE),0)*365.25*24/1000","v":0},"kW"]
["Electric heating for Building 2?","build2_elec_heat",{"$f":"IF(build2_need_heat,(VLOOKUP(build2_heat,build2_heat_options,8,FALSE)=\"MWh/yr\"),FALSE)","v":false}]
["Power to heat Building 2","build2_elec_heat_power",{"$f":"IF(build2_elec_heat,VLOOKUP(build2_heat,build2_heat_options,7,FALSE),0)*365.25*24/1000","v":0},"kW"]
["Standby power for heating","std_heat",{"$f":"build1_elec_heat_power+build2_elec_heat_power","v":0},"kW"]
[]
["Electric cooling for Building 1?","build1_elec_cool",{"$f":"IF(build1_need_cool,(VLOOKUP(build1_cool,build1_cool_options,8,FALSE)=\"MWh/yr\"),FALSE)","v":false}]
["Power to cool Building 1","build1_elec_cool_power",{"$f":"IF(build1_elec_cool,VLOOKUP(build1_cool,build1_cool_options,7,FALSE),0)*365.25*24/1000","v":0},"kW"]
["Electric cooling for Building 2?","build2_elec_cool",{"$f":"IF(build2_need_cool,(VLOOKUP(build2_cool,build2_cool_options,8,FALSE)=\"MWh/yr\"),FALSE)","v":false}]
["Power to cool Building 2","build2_elec_cool_power",{"$f":"IF(build2_elec_cool,VLOOKUP(build2_cool,build2_cool_options,7,FALSE),0)*365.25*24/1000","v":0},"kW"]
["Standby power for cooling","std_cool",{"$f":"build1_elec_cool_power+build2_elec_cool_power","v":0},"kW"]
[]
["Total standby power requirements","std_power",{"$f":"ROUNDUP(2*MAX(min_standby,(IF(AND(need_heat=1,need_cool=1),MAX(std_heat,std_cool),need_heat*std_heat+need_cool*std_cool)+std_base)*(1+std_safety_factor)),0)/2","v":14},"kW"]
["Total standby power cost","std_power_cost",{"$f":"VLOOKUP(std_power,std_gen_cost_cl,3)*std_power","v":7176.6011342155007}]
[]
["Geotechnical & Sitework"]
["Total technology footprint","tech_fp",{"$f":"total_fp+offgas_fp","v":120},"square feet"]
["Maximum basin excavation depth","max_excav_depth",{"$f":"IF(design_type=1,0,tank_depth+conc_thick+overexcavate)","v":0},"feet"]
["Borehole depth","bore_depth",{"$f":"IF(design_type=1,bore_depth_p,IF(max_excav_depth>deep_bore_need,bore_depth_max,bore_depth_min))","v":10},"feet"]
["Number of test pits","num_pits",{"$f":"IF(OR(design_type=2,tech_fp>bore_need),0,ROUNDUP(tech_fp/hole_per_sf,0))","v":1}]
["Number of boreholes","num_holes",{"$f":"IF(AND(design_type=1,tech_fp<bore_need),0,IF(ROUNDUP(tech_fp/hole_per_sf,0)<min_holes,min_holes,ROUNDUP(tech_fp/hole_per_sf,0)))","v":0}]
[]
["Costs"]
["Borings, initial field stake out & determination of elevations",null,{"$f":"IF(num_pits>0,1,ROUNDUP(num_holes/hole_per_job,0))*VLOOKUP(0,stake_out_cost_cl,3)","v":1380.637896721483}]
["Borings, drawings showing boring details",null,{"$f":"ROUNDUP(num_holes/hole_per_job,0)*VLOOKUP(0,bore_draw_cost_cl,3)","v":0}]
["Borings, report and recommendations from P.E.",null,{"$f":"IF(num_pits>0,1,ROUNDUP(num_holes/hole_per_job,0))*VLOOKUP(0,bore_report_cost_cl,3)","v":1050.3676547606576}]
["Borings, mobilization and demobilization, minimum",null,{"$f":"IF(num_pits>0,0,1)*VLOOKUP(0,bore_mob_cost_cl,3)","v":0}]
["Borings, drill rig and crew with truck mounted auger",null,{"$f":"ROUNDUP(bore_depth*num_holes/hole_per_day,0)*VLOOKUP(0,bore_rig_cost_cl,3)","v":0}]
["Borings, cased borings in earth, w/samples, 2.5\" dia",null,{"$f":"num_holes*bore_depth*VLOOKUP(0,bore_cost_cl,3)","v":0}]
["Test pits",null,{"$f":"pit_width*pit_length*pit_depth/27*num_pits*VLOOKUP(0,pit_cost_cl,3)","v":1064.5650640689919}]
["Total geotechnical cost","geotech_cost",{"$f":"SUM(C36:C42)","v":3495.5706155511325}]
[]
["Total sitework cost","sitework_cost",{"$f":"tech_fp*sitework_sf_cl","v":1488.7912087912089}]
[]
["Yard Piping"]
["Actual yard piping diameter","yard_pipe_diam",{"$f":"SUMPRODUCT(OUTPUT!G61:G65,OUTPUT!L61:L65)","v":4},"in. diam","Based on output sheet selection for inlet and outlet pipe"]
["Trench depth to top of pipe","trench_depth",{"$f":"MAX(frost,min_trench_depth)","v":38},"inches"]
["Thrust force","thrust_force",{"$f":"VLOOKUP(yard_pipe_diam,thrust_block_table_cl,2)*2.2","v":2772.0192369119513},"lbs"]
["Bearing Area (L x H)","bearing_area",{"$f":"1.5*thrust_force/(soil_dens*(trench_depth/12+yard_pipe_diam/12)*Coeff_Kp*Reduction)","v":8.741975499023793},"square ft"]
["L",null,{"$f":"bearing_area/C53","v":4.1813814700464231},"ft"]
["H",null,{"$f":"(bearing_area/2)^0.5","v":2.0906907350232116},"ft"]
["F",null,{"$f":"MAX(0.5,yard_pipe_diam/12)","v":0.5},"ft","Pipe diameter with a minimum of 6 inches"]
["T",null,{"$f":"C52/2","v":2.0906907350232116},"ft"]
["Thrust block volume","block_vol",{"$f":"(C55+(yard_pipe_diam/12)/2)*(C52+C54)/2*C53/27","v":0.40913854075532363},"cy"]
["Trench Cross-section Area","trench_area",{"$f":"(yard_pipe_diam/12+2)*(bedding_depth/12+yard_pipe_diam/12+trench_depth/12)+(bedding_depth/12+yard_pipe_diam/12+trench_depth/12)^2*TAN(trench_angle)","v":25.333333333333332},"square ft"]
["Trench Volume Source Water",null,{"$f":"trench_area*yard_in/27","v":0},"cy"]
["Trench Volume Inlet & Outlet",null,{"$f":"((2*non_fire_buffer)+2*(total_fp^0.5)/4)*trench_area/27","v":23.904557329678102},"cy"]
["Trench Volume Between Buildings",null,{"$f":"IF(build2_fp=0,0,((2*non_fire_buffer)+2*(build2_fp^0.5)/4)*trench_area/27)","v":0},"cy"]
["Trench Volume to Distribution Network",null,{"$f":"trench_area*yard_out/27","v":0},"cy"]
["Trench Volume total","trench_vol",{"$f":"SUM(C58:C61)+block_vol","v":24.313695870433428},"cy"]
["Equivalent pipe length","yard_pipe_length",{"$f":"yard_in+yard_out+2*((2*non_fire_buffer)+2*(build1_fp^0.5)/4+IF(build2_fp=0,0,((2*non_fire_buffer)+2*(build2_fp^0.5)/4))+2*(trench_depth+yard_pipe_diam)/12)","v":64.954451150103324},"lf"]
["Bedding cross sectional surface area",null,{"$f":"(yard_pipe_diam/12+2)*(bedding_depth/12+yard_pipe_diam/12*bedding_pct)+(bedding_depth/12+yard_pipe_diam/12*bedding_pct)^2*TAN(trench_angle)-((yard_pipe_diam/12/2)^2*ACOS((yard_pipe_diam/12/2-bedding_pct*yard_pipe_diam/12)/(yard_pipe_diam/12/2))-(yard_pipe_diam/12/2-yard_pipe_diam/12*bedding_pct)*((2*yard_pipe_diam/12/2*yard_pipe_diam/12*bedding_pct-(yard_pipe_diam/12*bedding_pct)^2)^0.5))","v":1.6843281986304344},"square ft"]
["Bedding volume","bedding_vol",{"$f":"C64*yard_pipe_length/2/27","v":2.026011364790409},"cy"]
[]
["Costs"]
["Bedding cost",null,{"$f":"VLOOKUP(0,bedding_cost_cl,3)*bedding_vol","v":109.25487518197566}]
["Excavation cost",null,{"$f":"trench_vol*VLOOKUP(0,excavate_cost_cl,3)","v":731.43657596859669}]
["Backfill cost",null,{"$f":"trench_vol*VLOOKUP(0,backfill_cost_cl,3)","v":339.09636301237231}]
["Thrust block cost",null,{"$f":"block_vol*VLOOKUP(0,conc_basin_cost_cl,3)","v":238.15368476676721}]
["Pipe cost",null,{"$f":"yard_pipe_length*SUMPRODUCT(OUTPUT!I61:I65,OUTPUT!L61:L65)","v":311.48907757035573},null,"Based on output sheet selection for inlet and outlet pipe"]
["Total yard piping cost","yard_cost",{"$f":"SUM(C68:C72)","v":1729.4305765000674}]
[]
["Permits"]
["Building #1 value",null,{"$f":"SUMPRODUCT(OUTPUT!J155:J168,OUTPUT!L155:L168)","v":5344.205881257797},null,"Determined using Use? Column of output sheet"]
["Building #2 value",null,{"$f":"SUMPRODUCT(OUTPUT!J169:J182,OUTPUT!L169:L182)","v":0},null,"Determined using Use? Column of output sheet"]
["Building permit cost",null,{"$f":"BPCost_UBC97(C77)+BPCost_UBC97(C76)","v":125.25}]
["Storm water permit cost",null,{"$f":"VLOOKUP(land_required,SW_permit_cost_cl,2)","v":0},null,"Applies to systems requiring 1 acre of land or greater"]
["Risk management plan",null,0,null,"Not required for this technology"]
["NEPA compliance",null,{"$f":"IF(include_NEPA=2,0,IF(OR(component_level=2,include_NEPA=1),VLOOKUP(land_required,NEPA_cost_cl,2),0))","v":0},null,"Included only for high cost estimates, unless assumption \"include_NEPA\" is changed on CDA sheet"]
["Total permit cost","permit_cost",{"$f":"SUM(C78:C81)","v":125.25}]
[]
["Construction Management and General Contractor Job Overhead"]
["Builder's risk insurance percentage",null,{"$f":"br_ins_pct*direct_cost","v":487.37397084573678}]
["Performance bond cost",null,{"$f":"include_bond*(VLOOKUP(direct_cost,performance_bond_table_cl,3)+VLOOKUP(direct_cost,performance_bond_table_cl,4)*(direct_cost-VLOOKUP(direct_cost,performance_bond_table_cl,5)))","v":3150.1792831429566},null,"Bracket determined from direct capital cost"]
["Construction management percentage",null,{"$f":"VLOOKUP(direct_cost,construction_mgt_table_cl,3)","v":0.09},null,"Looked up from direct capital cost"]
["Construction management fee",null,{"$f":"CHOOSE(design_type,include_cm_pre,include_cm)*C87*direct_cost","v":0}]
["Total construction management/job overhead cost","cm_cost",{"$f":"SUM(C85:C86,C88)","v":3637.5532539886935}]

{"sheet":"Standard Inputs","index":15,"n_rows":131,"n_cols":28,"rows_kept":131,"cut":false,"hidden":false,"merged":[[5,0,5,1],[6,26,6,27],[5,2,5,5],[5,20,5,24],[5,13,5,19],[5,6,5,12]]}
["Standard Designs"]
["Default inputs represent typical options used to generate national average compliance costs."]
[]
[]
[]
["Design Indices",null,"System Size",null,null,null,"System Configuration",null,null,null,null,null,null,"Offgas",null,null,null,null,null,null,"Optional"]
["Contaminant Selection","Design #","Design flow (mgd)","Design Flow Units","Average Flow","Average flow units","Design Type","Number of Operating Basins","Air to Water Ratio","Maximum Water Depth","# of Stages","Pilot rate constant (Kla)","Pilot air intensity (AI)","Influent water concentration (ug/L)","Percent removal","VOC Release Limit (lbs/day)","Off-gas Pollution Control Technology","Heat Recovery Type","GAC Regeneration","GAC Bed Life","Number of Pumps","Number of Blowers","Number of Redundant Basins","Component level","System Automation","Contaminant Name","Internal Use"]
[null,null,"design_flow_I","df_units","average_flow_I","af_units","design_type_I","num_op_tanks","air_water_ratio","max_h2odepth","stages","pilot_k","pilot_phi","influent_conc","P_REM_I","max_VOC_release","Offgas_tech_I","og_opt1_I","og_opt2_I","og_opt3","num_pumps_I","num_blowers_I","NRD_I","component_level_I","manual_I"]
[1,1,0.03,"MGD",7.0000000000000001E-3,"MGD","pre-engineered package",1,20,3,6,null,null,null,null,null,null,null,null,null,null,null,null,null,null,"Radon",{"$f":"AND(C9:Y9=inp_used)","v":false},{"$f":"AND(C9:F9=inp_used_minimal)","v":false}]
[1,2,0.124,"MGD",3.5000000000000003E-2,"MGD","pre-engineered package",1,20,3,6,null,null,null,null,null,null,null,null,null,null,null,null,null,null,null,{"$f":"AND(C10:Y10=inp_used)","v":false},{"$f":"AND(C10:F10=inp_used_minimal)","v":false}]
[1,3,0.30499999999999999,"MGD",9.4E-2,"MGD","pre-engineered package",1,20,3,6,null,null,null,null,null,null,null,null,null,null,null,null,null,null,null,{"$f":"AND(C11:Y11=inp_used)","v":true},{"$f":"AND(C11:F11=inp_used_minimal)","v":true}]
[1,4,0.74,"MGD",0.251,"MGD","pre-engineered package",2,20,3,6,null,null,null,null,null,null,null,null,null,null,null,null,null,null,null,{"$f":"AND(C12:Y12=inp_used)","v":false},{"$f":"AND(C12:F12=inp_used_minimal)","v":false}]
[1,5,2.1520000000000001,"MGD",0.81899999999999995,"MGD","custom design",1,20,3,6,null,null,null,null,null,null,null,null,null,null,null,null,null,null,null,{"$f":"AND(C13:Y13=inp_used)","v":false},{"$f":"AND(C13:F13=inp_used_minimal)","v":false}]
[1,6,7.3650000000000002,"MGD",3.2,"MGD","custom design",3,20,3,6,null,null,null,null,null,null,null,null,null,null,null,null,null,null,null,{"$f":"AND(C14:Y14=inp_used)","v":false},{"$f":"AND(C14:F14=inp_used_minimal)","v":false}]
[1,7,22.614000000000001,"MGD",11.066000000000001,"MGD","custom design",8,20,3,6,null,null,null,null,null,null,null,null,null,null,null,null,null,null,null,{"$f":"AND(C15:Y15=inp_used)","v":false},{"$f":"AND(C15:F15=inp_used_minimal)","v":false}]
[1,8,75.072000000000003,"MGD",37.536000000000001,"MGD","custom design",24,20,3,6,null,null,null,null,null,null,null,null,null,null,null,null,null,null,null,{"$f":"AND(C16:Y16=inp_used)","v":false},{"$f":"AND(C16:F16=inp_used_minimal)","v":false}]
[2,1,0.03,"MGD",7.0000000000000001E-3,"MGD","pre-engineered package",1,40,3,8,0.17,2.54,5,null,1,"none",null,null,null,null,null,null,null,"fully automated","TCE",{"$f":"AND(C17:Y17=inp_used)","v":false},{"$f":"AND(C17:F17=inp_used_minimal)","v":false}]
[2,2,0.124,"MGD",3.5000000000000003E-2,"MGD","pre-engineered package",1,40,3,8,0.17,2.54,5,null,1,"none",null,null,null,null,null,null,null,"fully automated",null,{"$f":"AND(C18:Y18=inp_used)","v":false},{"$f":"AND(C18:F18=inp_used_minimal)","v":false}]
[2,3,0.30499999999999999,"MGD",9.4E-2,"MGD","pre-engineered package",2,40,3,8,0.17,2.54,5,null,1,"none",null,null,null,null,null,null,null,"fully automated",null,{"$f":"AND(C19:Y19=inp_used)","v":false},{"$f":"AND(C19:F19=inp_used_minimal)","v":true}]
[2,4,0.74,"MGD",0.251,"MGD","pre-engineered package",3,40,3,8,0.17,2.54,5,null,1,"none",null,null,null,null,null,null,null,"fully automated",null,{"$f":"AND(C20:Y20=inp_used)","v":false},{"$f":"AND(C20:F20=inp_used_minimal)","v":false}]
[2,5,2.1520000000000001,"MGD",0.81899999999999995,"MGD",null,null,null,null,null,null,null,null,null,null,null,null,null,null,null,null,null,null,null,null,{"$f":"AND(C21:Y21=inp_used)","v":false},{"$f":"AND(C21:F21=inp_used_minimal)","v":false}]
[2,6,7.3650000000000002,"MGD",3.2,"MGD",null,null,null,null,null,null,null,null,null,null,null,null,null,null,null,null,null,null,null,null,{"$f":"AND(C22:Y22=inp_used)","v":false},{"$f":"AND(C22:F22=inp_used_minimal)","v":false}]
[2,7,22.614000000000001,"MGD",11.066000000000001,"MGD",null,null,null,null,null,null,null,null,null,null,null,null,null,null,null,null,null,null,null,null,{"$f":"AND(C23:Y23=inp_used)","v":false},{"$f":"AND(C23:F23=inp_used_minimal)","v":false}]
[2,8,75.072000000000003,"MGD",37.536000000000001,"MGD",null,null,null,null,null,null,null,null,null,null,null,null,null,null,null,null,null,null,null,null,{"$f":"AND(C24:Y24=inp_used)","v":false},{"$f":"AND(C24:F24=inp_used_minimal)","v":false}]
[3,1,0.03,"MGD",7.0000000000000001E-3,"MGD","pre-engineered package",1,18,3,8,0.38900000000000001,2.54,5,null,1,"none",null,null,null,null,null,null,null,"fully automated","PCE",{"$f":"AND(C25:Y25=inp_used)","v":false},{"$f":"AND(C25:F25=inp_used_minimal)","v":false}]
[3,2,0.124,"MGD",3.5000000000000003E-2,"MGD","pre-engineered package",1,18,3,8,0.38900000000000001,2.54,5,null,1,"none",null,null,null,null,null,null,null,"fully automated",null,{"$f":"AND(C26:Y26=inp_used)","v":false},{"$f":"AND(C26:F26=inp_used_minimal)","v":false}]
[3,3,0.30499999999999999,"MGD",9.4E-2,"MGD","pre-engineered package",1,18,3,8,0.38900000000000001,2.54,5,null,1,"none",null,null,null,null,null,null,null,"fully automated",null,{"$f":"AND(C27:Y27=inp_used)","v":false},{"$f":"AND(C27:F27=inp_used_minimal)","v":true}]
[3,4,0.74,"MGD",0.251,"MGD","pre-engineered package",2,18,3,8,0.38900000000000001,2.54,5,null,1,"none",null,null,null,null,null,null,null,"fully automated",null,{"$f":"AND(C28:Y28=inp_used)","v":false},{"$f":"AND(C28:F28=inp_used_minimal)","v":false}]
[3,5,2.1520000000000001,"MGD",0.81899999999999995,"MGD",null,null,null,null,null,null,null,null,null,null,null,null,null,null,null,null,null,null,null,null,{"$f":"AND(C29:Y29=inp_used)","v":false},{"$f":"AND(C29:F29=inp_used_minimal)","v":false}]
[3,6,7.3650000000000002,"MGD",3.2,"MGD",null,null,null,null,null,null,null,null,null,null,null,null,null,null,null,null,null,null,null,null,{"$f":"AND(C30:Y30=inp_used)","v":false},{"$f":"AND(C30:F30=inp_used_minimal)","v":false}]
[3,7,22.614000000000001,"MGD",11.066000000000001,"MGD",null,null,null,null,null,null,null,null,null,null,null,null,null,null,null,null,null,null,null,null,{"$f":"AND(C31:Y31=inp_used)","v":false},{"$f":"AND(C31:F31=inp_used_minimal)","v":false}]
[3,8,75.072000000000003,"MGD",37.536000000000001,"MGD",null,null,null,null,null,null,null,null,null,null,null,null,null,null,null,null,null,null,null,null,{"$f":"AND(C32:Y32=inp_used)","v":false},{"$f":"AND(C32:F32=inp_used_minimal)","v":false}]
[4,1,0.03,"MGD",7.0000000000000001E-3,"MGD","pre-engineered package",1,6,3,8,0.64700000000000002,2.54,2,null,1,"none",null,null,null,null,null,null,null,"fully automated","Vinyl Chloride",{"$f":"AND(C33:Y33=inp_used)","v":false},{"$f":"AND(C33:F33=inp_used_minimal)","v":false}]
[4,2,0.124,"MGD",3.5000000000000003E-2,"MGD","pre-engineered package",1,6,3,8,0.64700000000000002,2.54,2,null,1,"none",null,null,null,null,null,null,null,"fully automated",null,{"$f":"AND(C34:Y34=inp_used)","v":false},{"$f":"AND(C34:F34=inp_used_minimal)","v":false}]
[4,3,0.30499999999999999,"MGD",9.4E-2,"MGD","pre-engineered package",1,6,3,8,0.64700000000000002,2.54,2,null,1,"none",null,null,null,null,null,null,null,"fully automated",null,{"$f":"AND(C35:Y35=inp_used)","v":false},{"$f":"AND(C35:F35=inp_used_minimal)","v":true}]
[4,4,0.74,"MGD",0.251,"MGD","pre-engineered package",1,6,3,8,0.64700000000000002,2.54,2,null,1,"none",null,null,null,null,null,null,null,"fully automated",null,{"$f":"AND(C36:Y36=inp_used)","v":false},{"$f":"AND(C36:F36=inp_used_minimal)","v":false}]
[4,5,2.1520000000000001,"MGD",0.81899999999999995,"MGD",null,null,null,null,null,null,null,null,null,null,null,null,null,null,null,null,null,null,null,null,{"$f":"AND(C37:Y37=inp_used)","v":false},{"$f":"AND(C37:F37=inp_used_minimal)","v":false}]
[4,6,7.3650000000000002,"MGD",3.2,"MGD",null,null,null,null,null,null,null,null,null,null,null,null,null,null,null,null,null,null,null,null,{"$f":"AND(C38:Y38=inp_used)","v":false},{"$f":"AND(C38:F38=inp_used_minimal)","v":false}]
[4,7,22.614000000000001,"MGD",11.066000000000001,"MGD",null,null,null,null,null,null,null,null,null,null,null,null,null,null,null,null,null,null,null,null,{"$f":"AND(C39:Y39=inp_used)","v":false},{"$f":"AND(C39:F39=inp_used_minimal)","v":false}]
[4,8,75.072000000000003,"MGD",37.536000000000001,"MGD",null,null,null,null,null,null,null,null,null,null,null,null,null,null,null,null,null,null,null,null,{"$f":"AND(C40:Y40=inp_used)","v":false},{"$f":"AND(C40:F40=inp_used_minimal)","v":false}]
[5,1,0.03,"MGD",7.0000000000000001E-3,"MGD","pre-engineered package",1,12,3,8,0.56899999999999995,2.54,5,null,1,"none",null,null,null,null,null,null,null,"fully automated","Carbon Tetrachloride",{"$f":"AND(C41:Y41=inp_used)","v":false},{"$f":"AND(C41:F41=inp_used_minimal)","v":false}]
[5,2,0.124,"MGD",3.5000000000000003E-2,"MGD","pre-engineered package",1,12,3,8,0.56899999999999995,2.54,5,null,1,"none",null,null,null,null,null,null,null,"fully automated",null,{"$f":"AND(C42:Y42=inp_used)","v":false},{"$f":"AND(C42:F42=inp_used_minimal)","v":false}]
[5,3,0.30499999999999999,"MGD",9.4E-2,"MGD","pre-engineered package",1,12,3,8,0.56899999999999995,2.54,5,null,1,"none",null,null,null,null,null,null,null,"fully automated",null,{"$f":"AND(C43:Y43=inp_used)","v":false},{"$f":"AND(C43:F43=inp_used_minimal)","v":true}]
[5,4,0.74,"MGD",0.251,"MGD","pre-engineered package",1,12,3,8,0.56899999999999995,2.54,5,null,1,"none",null,null,null,null,null,null,null,"fully automated",null,{"$f":"AND(C44:Y44=inp_used)","v":false},{"$f":"AND(C44:F44=inp_used_minimal)","v":false}]
[5,5,2.1520000000000001,"MGD",0.81899999999999995,"MGD",null,null,null,null,null,null,null,null,null,null,null,null,null,null,null,null,null,null,null,null,{"$f":"AND(C45:Y45=inp_used)","v":false},{"$f":"AND(C45:F45=inp_used_minimal)","v":false}]
[5,6,7.3650000000000002,"MGD",3.2,"MGD",null,null,null,null,null,null,null,null,null,null,null,null,null,null,null,null,null,null,null,null,{"$f":"AND(C46:Y46=inp_used)","v":false},{"$f":"AND(C46:F46=inp_used_minimal)","v":false}]
[5,7,22.614000000000001,"MGD",11.066000000000001,"MGD",null,null,null,null,null,null,null,null,null,null,null,null,null,null,null,null,null,null,null,null,{"$f":"AND(C47:Y47=inp_used)","v":false},{"$f":"AND(C47:F47=inp_used_minimal)","v":false}]
[5,8,75.072000000000003,"MGD",37.536000000000001,"MGD",null,null,null,null,null,null,null,null,null,null,null,null,null,null,null,null,null,null,null,null,{"$f":"AND(C48:Y48=inp_used)","v":false},{"$f":"AND(C48:F48=inp_used_minimal)","v":false}]
[6,1,0.03,"MGD",7.0000000000000001E-3,"MGD","pre-engineered package",1,29,3,8,0.23599999999999999,2.54,5,null,1,"none",null,null,null,null,null,null,null,"fully automated","Benzene",{"$f":"AND(C49:Y49=inp_used)","v":false},{"$f":"AND(C49:F49=inp_used_minimal)","v":false}]
[6,2,0.124,"MGD",3.5000000000000003E-2,"MGD","pre-engineered package",1,29,3,8,0.23599999999999999,2.54,5,null,1,"none",null,null,null,null,null,null,null,"fully automated",null,{"$f":"AND(C50:Y50=inp_used)","v":false},{"$f":"AND(C50:F50=inp_used_minimal)","v":false}]
[6,3,0.30499999999999999,"MGD",9.4E-2,"MGD","pre-engineered package",1,29,3,8,0.23599999999999999,2.54,5,null,1,"none",null,null,null,null,null,null,null,"fully automated",null,{"$f":"AND(C51:Y51=inp_used)","v":false},{"$f":"AND(C51:F51=inp_used_minimal)","v":true}]
[6,4,0.74,"MGD",0.251,"MGD","pre-engineered package",2,29,3,8,0.23599999999999999,2.54,5,null,1,"none",null,null,null,null,null,null,null,"fully automated",null,{"$f":"AND(C52:Y52=inp_used)","v":false},{"$f":"AND(C52:F52=inp_used_minimal)","v":false}]
[6,5,2.1520000000000001,"MGD",0.81899999999999995,"MGD",null,null,null,null,null,null,null,null,null,null,null,null,null,null,null,null,null,null,null,null,{"$f":"AND(C53:Y53=inp_used)","v":false},{"$f":"AND(C53:F53=inp_used_minimal)","v":false}]
[6,6,7.3650000000000002,"MGD",3.2,"MGD",null,null,null,null,null,null,null,null,null,null,null,null,null,null,null,null,null,null,null,null,{"$f":"AND(C54:Y54=inp_used)","v":false},{"$f":"AND(C54:F54=inp_used_minimal)","v":false}]
[6,7,22.614000000000001,"MGD",11.066000000000001,"MGD",null,null,null,null,null,null,null,null,null,null,null,null,null,null,null,null,null,null,null,null,{"$f":"AND(C55:Y55=inp_used)","v":false},{"$f":"AND(C55:F55=inp_used_minimal)","v":false}]
[6,8,75.072000000000003,"MGD",37.536000000000001,"MGD",null,null,null,null,null,null,null,null,null,null,null,null,null,null,null,null,null,null,null,null,{"$f":"AND(C56:Y56=inp_used)","v":false},{"$f":"AND(C56:F56=inp_used_minimal)","v":false}]
[7,1,0.03,"MGD",7.0000000000000001E-3,"MGD","pre-engineered package",1,66,3,8,0.13,3.17,5,null,1,"none",null,null,null,null,null,null,null,"fully automated","1,2-DCP",{"$f":"AND(C57:Y57=inp_used)","v":false},{"$f":"AND(C57:F57=inp_used_minimal)","v":false}]
[7,2,0.124,"MGD",3.5000000000000003E-2,"MGD","pre-engineered package",1,66,3,8,0.13,3.17,5,null,1,"none",null,null,null,null,null,null,null,"fully automated",null,{"$f":"AND(C58:Y58=inp_used)","v":false},{"$f":"AND(C58:F58=inp_used_minimal)","v":false}]
[7,3,0.30499999999999999,"MGD",9.4E-2,"MGD","pre-engineered package",2,66,3,8,0.13,3.17,5,null,1,"none",null,null,null,null,null,null,null,"fully automated",null,{"$f":"AND(C59:Y59=inp_used)","v":false},{"$f":"AND(C59:F59=inp_used_minimal)","v":true}]
[7,4,0.74,"MGD",0.251,"MGD","pre-engineered package",5,66,3,8,0.13,3.17,5,null,1,"none",null,null,null,null,null,null,null,"fully automated",null,{"$f":"AND(C60:Y60=inp_used)","v":false},{"$f":"AND(C60:F60=inp_used_minimal)","v":false}]
[7,5,2.1520000000000001,"MGD",0.81899999999999995,"MGD",null,null,null,null,null,null,null,null,null,null,null,null,null,null,null,null,null,null,null,null,{"$f":"AND(C61:Y61=inp_used)","v":false},{"$f":"AND(C61:F61=inp_used_minimal)","v":false}]
[7,6,7.3650000000000002,"MGD",3.2,"MGD",null,null,null,null,null,null,null,null,null,null,null,null,null,null,null,null,null,null,null,null,{"$f":"AND(C62:Y62=inp_used)","v":false},{"$f":"AND(C62:F62=inp_used_minimal)","v":false}]
[7,7,22.614000000000001,"MGD",11.066000000000001,"MGD",null,null,null,null,null,null,null,null,null,null,null,null,null,null,null,null,null,null,null,null,{"$f":"AND(C63:Y63=inp_used)","v":false},{"$f":"AND(C63:F63=inp_used_minimal)","v":false}]
[7,8,75.072000000000003,"MGD",37.536000000000001,"MGD",null,null,null,null,null,null,null,null,null,null,null,null,null,null,null,null,null,null,null,null,{"$f":"AND(C64:Y64=inp_used)","v":false},{"$f":"AND(C64:F64=inp_used_minimal)","v":false}]
[8,1,0.03,"MGD",7.0000000000000001E-3,"MGD","pre-engineered package",1,60,3,8,0.14199999999999999,3.17,5,null,1,"none",null,null,null,null,null,null,null,"fully automated","Methylene Chloride",{"$f":"AND(C65:Y65=inp_used)","v":false},{"$f":"AND(C65:F65=inp_used_minimal)","v":false}]
[8,2,0.124,"MGD",3.5000000000000003E-2,"MGD","pre-engineered package",1,60,3,8,0.14199999999999999,3.17,5,null,1,"none",null,null,null,null,null,null,null,"fully automated",null,{"$f":"AND(C66:Y66=inp_used)","v":false},{"$f":"AND(C66:F66=inp_used_minimal)","v":false}]
[8,3,0.30499999999999999,"MGD",9.4E-2,"MGD","pre-engineered package",2,60,3,8,0.14199999999999999,3.17,5,null,1,"none",null,null,null,null,null,null,null,"fully automated",null,{"$f":"AND(C67:Y67=inp_used)","v":false},{"$f":"AND(C67:F67=inp_used_minimal)","v":true}]
[8,4,0.74,"MGD",0.251,"MGD","pre-engineered package",4,60,3,8,0.14199999999999999,3.17,5,null,1,"none",null,null,null,null,null,null,null,"fully automated",null,{"$f":"AND(C68:Y68=inp_used)","v":false},{"$f":"AND(C68:F68=inp_used_minimal)","v":false}]
[8,5,2.1520000000000001,"MGD",0.81899999999999995,"MGD",null,null,null,null,null,null,null,null,null,null,null,null,null,null,null,null,null,null,null,null,{"$f":"AND(C69:Y69=inp_used)","v":false},{"$f":"AND(C69:F69=inp_used_minimal)","v":false}]
[8,6,7.3650000000000002,"MGD",3.2,"MGD",null,null,null,null,null,null,null,null,null,null,null,null,null,null,null,null,null,null,null,null,{"$f":"AND(C70:Y70=inp_used)","v":false},{"$f":"AND(C70:F70=inp_used_minimal)","v":false}]
[8,7,22.614000000000001,"MGD",11.066000000000001,"MGD",null,null,null,null,null,null,null,null,null,null,null,null,null,null,null,null,null,null,null,null,{"$f":"AND(C71:Y71=inp_used)","v":false},{"$f":"AND(C71:F71=inp_used_minimal)","v":false}]
[8,8,75.072000000000003,"MGD",37.536000000000001,"MGD",null,null,null,null,null,null,null,null,null,null,null,null,null,null,null,null,null,null,null,null,{"$f":"AND(C72:Y72=inp_used)","v":false},{"$f":"AND(C72:F72=inp_used_minimal)","v":false}]
[9,1,0.03,"MGD",7.0000000000000001E-3,"MGD","pre-engineered package",1,104,3,8,8.2000000000000003E-2,3.17,5,null,1,"none",null,null,null,null,null,null,null,"fully automated","1,2-DCA",{"$f":"AND(C73:Y73=inp_used)","v":false},{"$f":"AND(C73:F73=inp_used_minimal)","v":false}]
[9,2,0.124,"MGD",3.5000000000000003E-2,"MGD","pre-engineered package",2,104,3,8,8.2000000000000003E-2,3.17,5,null,1,"none",null,null,null,null,null,null,null,"fully automated",null,{"$f":"AND(C74:Y74=inp_used)","v":false},{"$f":"AND(C74:F74=inp_used_minimal)","v":false}]
[9,3,0.30499999999999999,"MGD",9.4E-2,"MGD","pre-engineered package",3,104,3,8,8.2000000000000003E-2,3.17,5,null,1,"none",null,null,null,null,null,null,null,"fully automated",null,{"$f":"AND(C75:Y75=inp_used)","v":false},{"$f":"AND(C75:F75=inp_used_minimal)","v":true}]
[9,4,0.74,"MGD",0.251,"MGD","pre-engineered package",7,104,3,8,8.2000000000000003E-2,3.17,5,null,1,"none",null,null,null,null,null,null,null,"fully automated",null,{"$f":"AND(C76:Y76=inp_used)","v":false},{"$f":"AND(C76:F76=inp_used_minimal)","v":false}]
[9,5,2.1520000000000001,"MGD",0.81899999999999995,"MGD",null,null,null,null,null,null,null,null,null,null,null,null,null,null,null,null,null,null,null,null,{"$f":"AND(C77:Y77=inp_used)","v":false},{"$f":"AND(C77:F77=inp_used_minimal)","v":false}]
[9,6,7.3650000000000002,"MGD",3.2,"MGD",null,null,null,null,null,null,null,null,null,null,null,null,null,null,null,null,null,null,null,null,{"$f":"AND(C78:Y78=inp_used)","v":false},{"$f":"AND(C78:F78=inp_used_minimal)","v":false}]
[9,7,22.614000000000001,"MGD",11.066000000000001,"MGD",null,null,null,null,null,null,null,null,null,null,null,null,null,null,null,null,null,null,null,null,{"$f":"AND(C79:Y79=inp_used)","v":false},{"$f":"AND(C79:F79=inp_used_minimal)","v":false}]
[9,8,75.072000000000003,"MGD",37.536000000000001,"MGD",null,null,null,null,null,null,null,null,null,null,null,null,null,null,null,null,null,null,null,null,{"$f":"AND(C80:Y80=inp_used)","v":false},{"$f":"AND(C80:F80=inp_used_minimal)","v":false}]
[10,1,0.03,"MGD",7.0000000000000001E-3,"MGD","pre-engineered package",1,7,3,8,0.97499999999999998,2.54,5,null,1,"none",null,null,null,null,null,null,null,"fully automated","1,3-Butadiene",{"$f":"AND(C81:Y81=inp_used)","v":false},{"$f":"AND(C81:F81=inp_used_minimal)","v":false}]
[10,2,0.124,"MGD",3.5000000000000003E-2,"MGD","pre-engineered package",1,7,3,8,0.97499999999999998,2.54,5,null,1,"none",null,null,null,null,null,null,null,"fully automated",null,{"$f":"AND(C82:Y82=inp_used)","v":false},{"$f":"AND(C82:F82=inp_used_minimal)","v":false}]
[10,3,0.30499999999999999,"MGD",9.4E-2,"MGD","pre-engineered package",1,7,3,8,0.97499999999999998,2.54,5,null,1,"none",null,null,null,null,null,null,null,"fully automated",null,{"$f":"AND(C83:Y83=inp_used)","v":false},{"$f":"AND(C83:F83=inp_used_minimal)","v":true}]
[10,4,0.74,"MGD",0.251,"MGD","pre-engineered package",1,7,3,8,0.97499999999999998,2.54,5,null,1,"none",null,null,null,null,null,null,null,"fully automated",null,{"$f":"AND(C84:Y84=inp_used)","v":false},{"$f":"AND(C84:F84=inp_used_minimal)","v":false}]
[10,5,2.1520000000000001,"MGD",0.81899999999999995,"MGD",null,null,null,null,null,null,null,null,null,null,null,null,null,null,null,null,null,null,null,null,{"$f":"AND(C85:Y85=inp_used)","v":false},{"$f":"AND(C85:F85=inp_used_minimal)","v":false}]
[10,6,7.3650000000000002,"MGD",3.2,"MGD",null,null,null,null,null,null,null,null,null,null,null,null,null,null,null,null,null,null,null,null,{"$f":"AND(C86:Y86=inp_used)","v":false},{"$f":"AND(C86:F86=inp_used_minimal)","v":false}]
[10,7,22.614000000000001,"MGD",11.066000000000001,"MGD",null,null,null,null,null,null,null,null,null,null,null,null,null,null,null,null,null,null,null,null,{"$f":"AND(C87:Y87=inp_used)","v":false},{"$f":"AND(C87:F87=inp_used_minimal)","v":false}]
[10,8,75.072000000000003,"MGD",37.536000000000001,"MGD",null,null,null,null,null,null,null,null,null,null,null,null,null,null,null,null,null,null,null,null,{"$f":"AND(C88:Y88=inp_used)","v":false},{"$f":"AND(C88:F88=inp_used_minimal)","v":false}]
[11,1,0.03,"MGD",7.0000000000000001E-3,"MGD","pre-engineered package",1,32,3,8,0.26600000000000001,3.17,5,null,1,"none",null,null,null,null,null,null,null,"fully automated","1,1-DCA",{"$f":"AND(C89:Y89=inp_used)","v":false},{"$f":"AND(C89:F89=inp_used_minimal)","v":false}]
[11,2,0.124,"MGD",3.5000000000000003E-2,"MGD","pre-engineered package",1,32,3,8,0.26600000000000001,3.17,5,null,1,"none",null,null,null,null,null,null,null,"fully automated",null,{"$f":"AND(C90:Y90=inp_used)","v":false},{"$f":"AND(C90:F90=inp_used_minimal)","v":false}]
[11,3,0.30499999999999999,"MGD",9.4E-2,"MGD","pre-engineered package",1,32,3,8,0.26600000000000001,3.17,5,null,1,"none",null,null,null,null,null,null,null,"fully automated",null,{"$f":"AND(C91:Y91=inp_used)","v":false},{"$f":"AND(C91:F91=inp_used_minimal)","v":true}]
[11,4,0.74,"MGD",0.251,"MGD","pre-engineered package",3,32,3,8,0.26600000000000001,3.17,5,null,1,"none",null,null,null,null,null,null,null,"fully automated",null,{"$f":"AND(C92:Y92=inp_used)","v":false},{"$f":"AND(C92:F92=inp_used_minimal)","v":false}]
[11,5,2.1520000000000001,"MGD",0.81899999999999995,"MGD",null,null,null,null,null,null,null,null,null,null,null,null,null,null,null,null,null,null,null,null,{"$f":"AND(C93:Y93=inp_used)","v":false},{"$f":"AND(C93:F93=inp_used_minimal)","v":false}]
[11,6,7.3650000000000002,"MGD",3.2,"MGD",null,null,null,null,null,null,null,null,null,null,null,null,null,null,null,null,null,null,null,null,{"$f":"AND(C94:Y94=inp_used)","v":false},{"$f":"AND(C94:F94=inp_used_minimal)","v":false}]
[11,7,22.614000000000001,"MGD",11.066000000000001,"MGD",null,null,null,null,null,null,null,null,null,null,null,null,null,null,null,null,null,null,null,null,{"$f":"AND(C95:Y95=inp_used)","v":false},{"$f":"AND(C95:F95=inp_used_minimal)","v":false}]
[11,8,75.072000000000003,"MGD",37.536000000000001,"MGD",null,null,null,null,null,null,null,null,null,null,null,null,null,null,null,null,null,null,null,null,{"$f":"AND(C96:Y96=inp_used)","v":false},{"$f":"AND(C96:F96=inp_used_minimal)","v":false}]
[12,1,0.03,"MGD",7.0000000000000001E-3,"MGD","pre-engineered package",1,60,3,8,0.14199999999999999,3.17,5,null,1,"none",null,null,null,null,null,null,null,"fully automated","1,1,1,2-TCA",{"$f":"AND(C97:Y97=inp_used)","v":false},{"$f":"AND(C97:F97=inp_used_minimal)","v":false}]
[12,2,0.124,"MGD",3.5000000000000003E-2,"MGD","pre-engineered package",1,60,3,8,0.14199999999999999,3.17,5,null,1,"none",null,null,null,null,null,null,null,"fully automated",null,{"$f":"AND(C98:Y98=inp_used)","v":false},{"$f":"AND(C98:F98=inp_used_minimal)","v":false}]
[12,3,0.30499999999999999,"MGD",9.4E-2,"MGD","pre-engineered package",3,60,3,8,0.14199999999999999,3.17,5,null,1,"none",null,null,null,null,null,null,null,"fully automated",null,{"$f":"AND(C99:Y99=inp_used)","v":false},{"$f":"AND(C99:F99=inp_used_minimal)","v":true}]
[12,4,0.74,"MGD",0.251,"MGD","pre-engineered package",4,60,3,8,0.14199999999999999,3.17,5,null,1,"none",null,null,null,null,null,null,null,"fully automated",null,{"$f":"AND(C100:Y100=inp_used)","v":false},{"$f":"AND(C100:F100=inp_used_minimal)","v":false}]
[12,5,2.1520000000000001,"MGD",0.81899999999999995,"MGD",null,null,null,null,null,null,null,null,null,null,null,null,null,null,null,null,null,null,null,null,{"$f":"AND(C101:Y101=inp_used)","v":false},{"$f":"AND(C101:F101=inp_used_minimal)","v":false}]
[12,6,7.3650000000000002,"MGD",3.2,"MGD",null,null,null,null,null,null,null,null,null,null,null,null,null,null,null,null,null,null,null,null,{"$f":"AND(C102:Y102=inp_used)","v":false},{"$f":"AND(C102:F102=inp_used_minimal)","v":false}]
[12,7,22.614000000000001,"MGD",11.066000000000001,"MGD",null,null,null,null,null,null,null,null,null,null,null,null,null,null,null,null,null,null,null,null,{"$f":"AND(C103:Y103=inp_used)","v":false},{"$f":"AND(C103:F103=inp_used_minimal)","v":false}]
[12,8,75.072000000000003,"MGD",37.536000000000001,"MGD",null,null,null,null,null,null,null,null,null,null,null,null,null,null,null,null,null,null,null,null,{"$f":"AND(C104:Y104=inp_used)","v":false},{"$f":"AND(C104:F104=inp_used_minimal)","v":false}]
[13,1,0.03,"MGD",7.0000000000000001E-3,"MGD","pre-engineered package",1,270,3,8,4.5999999999999999E-2,5.23,5,null,1,"none",null,null,null,null,null,null,null,"fully automated","1,1,2,2-TCA",{"$f":"AND(C105:Y105=inp_used)","v":false},{"$f":"AND(C105:F105=inp_used_minimal)","v":false}]
[13,2,0.124,"MGD",3.5000000000000003E-2,"MGD","pre-engineered package",4,270,3,8,4.5999999999999999E-2,5.23,5,null,1,"none",null,null,null,null,null,null,null,"fully automated",null,{"$f":"AND(C106:Y106=inp_used)","v":false},{"$f":"AND(C106:F106=inp_used_minimal)","v":false}]
[13,3,0.30499999999999999,"MGD",9.4E-2,"MGD","pre-engineered package",8,270,3,8,4.5999999999999999E-2,5.23,5,null,1,"none",null,null,null,null,null,null,null,"fully automated",null,{"$f":"AND(C107:Y107=inp_used)","v":false},{"$f":"AND(C107:F107=inp_used_minimal)","v":true}]
[13,4,0.74,"MGD",0.251,"MGD","pre-engineered package",18,270,3,8,4.5999999999999999E-2,5.23,5,null,1,"none",null,null,null,null,null,null,null,"fully automated",null,{"$f":"AND(C108:Y108=inp_used)","v":false},{"$f":"AND(C108:F108=inp_used_minimal)","v":false}]
[13,5,2.1520000000000001,"MGD",0.81899999999999995,"MGD",null,null,null,null,null,null,null,null,null,null,null,null,null,null,null,null,null,null,null,null,{"$f":"AND(C109:Y109=inp_used)","v":false},{"$f":"AND(C109:F109=inp_used_minimal)","v":false}]
[13,6,7.3650000000000002,"MGD",3.2,"MGD",null,null,null,null,null,null,null,null,null,null,null,null,null,null,null,null,null,null,null,null,{"$f":"AND(C110:Y110=inp_used)","v":false},{"$f":"AND(C110:F110=inp_used_minimal)","v":false}]
[13,7,22.614000000000001,"MGD",11.066000000000001,"MGD",null,null,null,null,null,null,null,null,null,null,null,null,null,null,null,null,null,null,null,null,{"$f":"AND(C111:Y111=inp_used)","v":false},{"$f":"AND(C111:F111=inp_used_minimal)","v":false}]
[13,8,75.072000000000003,"MGD",37.536000000000001,"MGD",null,null,null,null,null,null,null,null,null,null,null,null,null,null,null,null,null,null,null,null,{"$f":"AND(C112:Y112=inp_used)","v":false},{"$f":"AND(C112:F112=inp_used_minimal)","v":false}]
[14,1,0.03,"MGD",7.0000000000000001E-3,"MGD","pre-engineered package",1,253,3,8,1.9E-2,3.17,5,null,1,"none",null,null,null,null,null,null,null,"fully automated","1,2,3-TCP",{"$f":"AND(C113:Y113=inp_used)","v":false},{"$f":"AND(C113:F113=inp_used_minimal)","v":false}]
[14,2,0.124,"MGD",3.5000000000000003E-2,"MGD","pre-engineered package",3,253,3,8,1.9E-2,3.17,5,null,1,"none",null,null,null,null,null,null,null,"fully automated",null,{"$f":"AND(C114:Y114=inp_used)","v":false},{"$f":"AND(C114:F114=inp_used_minimal)","v":false}]
[14,3,0.30499999999999999,"MGD",9.4E-2,"MGD","pre-engineered package",7,253,3,8,1.9E-2,3.17,5,null,1,"none",null,null,null,null,null,null,null,"fully automated",null,{"$f":"AND(C115:Y115=inp_used)","v":false},{"$f":"AND(C115:F115=inp_used_minimal)","v":true}]
[14,4,0.74,"MGD",0.251,"MGD","pre-engineered package",17,253,3,8,1.9E-2,3.17,5,null,1,"none",null,null,null,null,null,null,null,"fully automated",null,{"$f":"AND(C116:Y116=inp_used)","v":false},{"$f":"AND(C116:F116=inp_used_minimal)","v":false}]
[14,5,2.1520000000000001,"MGD",0.81899999999999995,"MGD",null,null,null,null,null,null,null,null,null,null,null,null,null,null,null,null,null,null,null,null,{"$f":"AND(C117:Y117=inp_used)","v":false},{"$f":"AND(C117:F117=inp_used_minimal)","v":false}]
[14,6,7.3650000000000002,"MGD",3.2,"MGD",null,null,null,null,null,null,null,null,null,null,null,null,null,null,null,null,null,null,null,null,{"$f":"AND(C118:Y118=inp_used)","v":false},{"$f":"AND(C118:F118=inp_used_minimal)","v":false}]
[14,7,22.614000000000001,"MGD",11.066000000000001,"MGD",null,null,null,null,null,null,null,null,null,null,null,null,null,null,null,null,null,null,null,null,{"$f":"AND(C119:Y119=inp_used)","v":false},{"$f":"AND(C119:F119=inp_used_minimal)","v":false}]
[14,8,75.072000000000003,"MGD",37.536000000000001,"MGD",null,null,null,null,null,null,null,null,null,null,null,null,null,null,null,null,null,null,null,null,{"$f":"AND(C120:Y120=inp_used)","v":false},{"$f":"AND(C120:F120=inp_used_minimal)","v":false}]
[15,1,0.03,"MGD",7.0000000000000001E-3,"MGD",null,null,null,null,null,null,null,null,null,null,null,null,null,null,null,null,null,null,null,null,{"$f":"AND(C121:Y121=inp_used)","v":false},{"$f":"AND(C121:F121=inp_used_minimal)","v":false}]
[15,2,0.124,"MGD",3.5000000000000003E-2,"MGD",null,null,null,null,null,null,null,null,null,null,null,null,null,null,null,null,null,null,null,null,{"$f":"AND(C122:Y122=inp_used)","v":false},{"$f":"AND(C122:F122=inp_used_minimal)","v":false}]
[15,3,0.30499999999999999,"MGD",9.4E-2,"MGD",null,null,null,null,null,null,null,null,null,null,null,null,null,null,null,null,null,null,null,null,{"$f":"AND(C123:Y123=inp_used)","v":false},{"$f":"AND(C123:F123=inp_used_minimal)","v":true}]
[15,4,0.74,"MGD",0.251,"MGD",null,null,null,null,null,null,null,null,null,null,null,null,null,null,null,null,null,null,null,null,{"$f":"AND(C124:Y124=inp_used)","v":false},{"$f":"AND(C124:F124=inp_used_minimal)","v":false}]
[15,5,2.1520000000000001,"MGD",0.81899999999999995,"MGD",null,null,null,null,null,null,null,null,null,null,null,null,null,null,null,null,null,null,null,null,{"$f":"AND(C125:Y125=inp_used)","v":false},{"$f":"AND(C125:F125=inp_used_minimal)","v":false}]
[15,6,7.3650000000000002,"MGD",3.2,"MGD",null,null,null,null,null,null,null,null,null,null,null,null,null,null,null,null,null,null,null,null,{"$f":"AND(C126:Y126=inp_used)","v":false},{"$f":"AND(C126:F126=inp_used_minimal)","v":false}]
[15,7,22.614000000000001,"MGD",11.066000000000001,"MGD",null,null,null,null,null,null,null,null,null,null,null,null,null,null,null,null,null,null,null,null,{"$f":"AND(C127:Y127=inp_used)","v":false},{"$f":"AND(C127:F127=inp_used_minimal)","v":false}]
[15,8,75.072000000000003,"MGD",37.536000000000001,"MGD",null,null,null,null,null,null,null,null,null,null,null,null,null,null,null,null,null,null,null,null,{"$f":"AND(C128:Y128=inp_used)","v":false},{"$f":"AND(C128:F128=inp_used_minimal)","v":false}]
[]
[{"$f":"IF(LEN(contam)=0,\"\",contam)","v":1},null,{"$f":"IF(LEN(design_flow_I)=0,\"\",design_flow_I)","v":0.30499999999999999},{"$f":"IF(LEN(df_units)=0,\"\",df_units)","v":"MGD"},{"$f":"IF(LEN(average_flow_I)=0,\"\",average_flow_I)","v":9.4E-2},{"$f":"IF(LEN(af_units)=0,\"\",af_units)","v":"MGD"},{"$f":"IF(LEN(design_type_I)=0,\"\",design_type_I)","v":"pre-engineered package"},{"$f":"IF(LEN(num_op_tanks)=0,\"\",num_op_tanks)","v":1},{"$f":"IF(LEN(air_water_ratio)=0,\"\",air_water_ratio)","v":20},{"$f":"IF(LEN(max_h2odepth)=0,\"\",max_h2odepth)","v":3},{"$f":"IF(LEN(stages)=0,\"\",stages)","v":6},{"$f":"IF(LEN(pilot_k)=0,\"\",pilot_k)","v":""},{"$f":"IF(LEN(pilot_phi)=0,\"\",pilot_phi)","v":""},{"$f":"IF(LEN(influent_conc)=0,\"\",influent_conc)","v":""},{"$f":"IF(LEN(P_REM_I)=0,\"\",P_REM_I)","v":""},{"$f":"IF(LEN(max_VOC_release)=0,\"\",max_VOC_release)","v":""},{"$f":"IF(LEN(Offgas_Tech_I)=0,\"\",Offgas_Tech_I)","v":""},{"$f":"IF(LEN(og_opt1_I)=0,\"\",og_opt1_I)","v":""},{"$f":"IF(LEN(og_opt2_I)=0,\"\",og_opt2_I)","v":""},{"$f":"IF(LEN(og_opt3)=0,\"\",og_opt3)","v":""},{"$f":"IF(LEN(num_pumps_I)=0,\"\",num_pumps_I)","v":""},{"$f":"IF(LEN(num_blowers_I)=0,\"\",num_blowers_I)","v":""},{"$f":"IF(LEN(NRD_I)=0,\"\",NRD_I)","v":""},{"$f":"IF(LEN(component_level_I)=0,\"\",component_level_I)","v":""},{"$f":"IF(LEN(manual_I)=0,\"\",manual_I)","v":""},"<--current inputs"]
[null,null,0.30499999999999999,"MGD",9.4E-2,"MGD","pre-engineered package",1,20,3,6,null,null,null,null,null,null,null,null,null,null,null,null,null,null,"<--inputs used at last \"Generate Results\"",{"$f":"AND(C131:Y131=inp_used)","v":true}]

{"sheet":"Cost Equations","index":16,"n_rows":128,"n_cols":17,"rows_kept":128,"cut":false,"hidden":false,"merged":[]}
["Cost Equations"]
["This sheet is used internally to calculate component costs using the cost equations method; see model documentation for more details on the development of cost equations"]
[]
["Component",null,"Result","Variable",null,2,3,4,5,6,7,8,9,10,11,16,17]
["Aeration Basins"]
["Custom Designed"]
["Concrete, excavation and backfill, cover","no equation"]
["Baffles","baffle_eq",{"$f":"IF(OR(D8>P8,D8<Q8),\"contact vendor\",F8*D8^G8+H8*LN(D8)+I8+J8*EXP(K8*D8)+L8*D8^3+M8*D8^2+N8*D8+O8)","v":180.28288053},{"$f":"baffle_area","v":25},"baffle_eq",{"$f":"VLOOKUP($E8,eq_table_cl,F$4,FALSE)","v":0},0,0,0,0,0,1.4999999999999999E-8,-2.7636700000000002E-4,4.6000189929999999,65.454900705,9963.76,0]
["Pre-engineered package"]
["Stainless Steel","ss_tank_eq",{"$f":"IF(D10=0,0,IF(OR(D10>P10,D10<Q10),\"contact vendor\",F10*D10^G10+H10*LN(D10)+I10+J10*EXP(K10*D10)+L10*D10^3+M10*D10^2+N10*D10+O10))","v":34947.51163572001},{"$f":"tank_sf","v":360},"ss_basin_eq",{"$f":"VLOOKUP($E10,eq_table_cl,F$4,FALSE)","v":0},0,0,0,0,0,1.2317809999999999E-3,-1.01945011,300.50956248900002,1414.82905968,1200,0]
["Plastic","pl_tank_eq",{"$f":"IF(D11=0,0,IF(OR(D11>P11,D11<Q11),\"contact vendor\",F11*D11^G11+H11*LN(D11)+I11+J11*EXP(K11*D11)+L11*D11^3+M11*D11^2+N11*D11+O11))","v":"contact vendor"},{"$f":"tank_sf","v":360},"pl_basin_eq",0.45323892500000001,1.948695284,0,0,0,0,0,0,0,0,239,0]
["Fiberglass","fg_tank_eq",17989.949379603644,{"$f":"tank_sf","v":360},"fg_basin_eq",159.37662144500001,0.802958697,0,0,0,0,0,0,0,0,1200,0]
["Aerators"]
["Diffusers","diffuser_eq",{"$f":"IF(D14=0,0,IF(OR(D14>P14,D14<Q14),\"contact vendor\",F14*D14^G14+H14*LN(D14)+I14+J14*EXP(K14*D14)+L14*D14^3+M14*D14^2+N14*D14+O14))","v":55.471022139220096},{"$f":"diffuser_size","v":31.462500825245925},"diffuser_eq",{"$f":"VLOOKUP($E14,eq_table_cl,F$4,FALSE)","v":0},0,0,0,43.721542005000003,7.5651909999999998E-3,0,0,0,0,44.1,0]
["Pumps and Blowers"]
["Booster Pumps","pump_eq",{"$f":"IF(D16=0,0,IF(OR(D16>P16,D16<Q16),\"contact vendor\",F16*D16^G16+H16*LN(D16)+I16+J16*EXP(K16*D16)+L16*D16^3+M16*D16^2+N16*D16+O16))","v":7411.6140247768999},{"$f":"pump_rating","v":132.37847222222223},"dis75_pump_eq",{"$f":"VLOOKUP($E16,eq_table_cl,F$4,FALSE)","v":0},0,0,0,0,0,0,-7.9081699999999997E-4,18.716239246000001,4947.8451921300002,10001,0]
["Centrifugal Blowers","cent_blow_eq",39675.071836783944,{"$f":"blower_rating","v":707.90626856803328},"cent_blow_eq",0,0,0,0,0,0,8.5700000000000001E-7,-5.7551010000000003E-3,20.870654318,27480.641816621999,5001,0]
["Piping"]
["Process Piping"]
["Ductile Iron","di_pipe_eq_h2o",{"$f":"IF(D20=0,0,IF(OR(D20>P20,D20<Q20),\"contact vendor\",F20*D20^G20+H20*LN(D20)+I20+J20*EXP(K20*D20)+L20*D20^3+M20*D20^2+N20*D20+O20))","v":32.406244669000003},{"$f":"h2o_pipe_diam","v":4},"di_pipe_eq",{"$f":"VLOOKUP($E20,eq_table_cl,F$4,FALSE)","v":0},0,0,0,0,0,0,9.4775899999999996E-2,4.7903279550000004,11.728518448999999,48.1,4]
["CPVC","cpvc_pipe_eq_h2o",22.326215179000002,{"$f":"h2o_pipe_diam","v":4},"cpvc_pipe_eq",0,0,0,0,0,0,9.2529199999999995E-3,0.54323701800000002,3.0243661820000001,0.94477128300000002,18.100000000000001,0]
["PVC","pvc_pipe_eq_h2o",4.7955001090000007,{"$f":"h2o_pipe_diam","v":4},"pvc_pipe_eq",0,0,0,0,0,0,0,0.104376414,0.21217371199999999,2.2767826370000002,48.1,0]
["Stainless Steel","ss_pipe_eq_h2o",119.13106183815646,{"$f":"h2o_pipe_diam","v":4},"ss_pipe_eq",30.645488513,0.979401509,0,0,0,0,0,0,0,0,48.1,0]
["Steel","st_pipe_eq_h2o",69.323338454999998,{"$f":"h2o_pipe_diam","v":4},"st_pipe_eq",0,0,0,0,0,0,6.6341309999999997E-3,-0.638131479,21.062710183,-5.1419829970000004,48.1,1]
["Air Piping"]
["Ductile Iron","di_pipe_eq_air",{"$f":"IF(D26=0,0,IF(OR(D26>P26,D26<Q26),\"contact vendor\",F26*D26^G26+H26*LN(D26)+I26+J26*EXP(K26*D26)+L26*D26^3+M26*D26^2+N26*D26+O26))","v":32.406244669000003},{"$f":"air_pipe_diam","v":4},"di_pipe_eq",{"$f":"VLOOKUP($E26,eq_table_cl,F$4,FALSE)","v":0},0,0,0,0,0,0,9.4775899999999996E-2,4.7903279550000004,11.728518448999999,48.1,4]
["CPVC","cpvc_pipe_eq_air",22.326215179000002,{"$f":"air_pipe_diam","v":4},"cpvc_pipe_eq",0,0,0,0,0,0,9.2529199999999995E-3,0.54323701800000002,3.0243661820000001,0.94477128300000002,18.100000000000001,0]
["PVC","pvc_pipe_eq_air",4.7955001090000007,{"$f":"air_pipe_diam","v":4},"pvc_pipe_eq",0,0,0,0,0,0,0,0.104376414,0.21217371199999999,2.2767826370000002,48.1,0]
["Stainless Steel","ss_pipe_eq_air",119.13106183815646,{"$f":"air_pipe_diam","v":4},"ss_pipe_eq",30.645488513,0.979401509,0,0,0,0,0,0,0,0,48.1,0]
["Steel","st_pipe_eq_air",69.323338454999998,{"$f":"air_pipe_diam","v":4},"st_pipe_eq",0,0,0,0,0,0,6.6341309999999997E-3,-0.638131479,21.062710183,-5.1419829970000004,48.1,1]
["Inlet and Outlet Piping"]
["Ductile Iron","di_pipe_eq_in_out",{"$f":"IF(D32=0,0,IF(OR(D32>P32,D32<Q32),\"contact vendor\",F32*D32^G32+H32*LN(D32)+I32+J32*EXP(K32*D32)+L32*D32^3+M32*D32^2+N32*D32+O32))","v":32.406244669000003},{"$f":"in_out_pipe_diam","v":4},"di_pipe_eq",{"$f":"VLOOKUP($E32,eq_table_cl,F$4,FALSE)","v":0},0,0,0,0,0,0,9.4775899999999996E-2,4.7903279550000004,11.728518448999999,48.1,4]
["CPVC","cpvc_pipe_eq_in_out",22.326215179000002,{"$f":"in_out_pipe_diam","v":4},"cpvc_pipe_eq",0,0,0,0,0,0,9.2529199999999995E-3,0.54323701800000002,3.0243661820000001,0.94477128300000002,18.100000000000001,0]
["PVC","pvc_pipe_eq_in_out",4.7955001090000007,{"$f":"in_out_pipe_diam","v":4},"pvc_pipe_eq",0,0,0,0,0,0,0,0.104376414,0.21217371199999999,2.2767826370000002,48.1,0]
["Stainless Steel","ss_pipe_eq_in_out",119.13106183815646,{"$f":"in_out_pipe_diam","v":4},"ss_pipe_eq",30.645488513,0.979401509,0,0,0,0,0,0,0,0,48.1,0]
["Steel","st_pipe_eq_in_out",69.323338454999998,{"$f":"in_out_pipe_diam","v":4},"st_pipe_eq",0,0,0,0,0,0,6.6341309999999997E-3,-0.638131479,21.062710183,-5.1419829970000004,48.1,1]
["Bypass Piping"]
["Ductile Iron","di_pipe_eq_bp",{"$f":"IF(D38=0,0,IF(OR(D38>P38,D38<Q38),\"contact vendor\",F38*D38^G38+H38*LN(D38)+I38+J38*EXP(K38*D38)+L38*D38^3+M38*D38^2+N38*D38+O38))","v":0},{"$f":"bp_pipe_diam","v":0},"di_pipe_eq",{"$f":"VLOOKUP($E38,eq_table_cl,F$4,FALSE)","v":0},0,0,0,0,0,0,9.4775899999999996E-2,4.7903279550000004,11.728518448999999,48.1,4]
["CPVC","cpvc_pipe_eq_bp",0,{"$f":"bp_pipe_diam","v":0},"cpvc_pipe_eq",0,0,0,0,0,0,9.2529199999999995E-3,0.54323701800000002,3.0243661820000001,0.94477128300000002,18.100000000000001,0]
["PVC","pvc_pipe_eq_bp",0,{"$f":"bp_pipe_diam","v":0},"pvc_pipe_eq",0,0,0,0,0,0,0,0.104376414,0.21217371199999999,2.2767826370000002,48.1,0]
["Stainless Steel","ss_pipe_eq_bp",0,{"$f":"bp_pipe_diam","v":0},"ss_pipe_eq",30.645488513,0.979401509,0,0,0,0,0,0,0,0,48.1,0]
["Steel","st_pipe_eq_bp",0,{"$f":"bp_pipe_diam","v":0},"st_pipe_eq",0,0,0,0,0,0,6.6341309999999997E-3,-0.638131479,21.062710183,-5.1419829970000004,48.1,1]
["Valves"]
["Motor/Air Operated"]
["Polypropylene/PVC - Process","pp_mov_eq_tank",{"$f":"IF(D45=0,0,IF(OR(D45>P45,D45<Q45),\"contact vendor\",F45*D45^G45+H45*LN(D45)+I45+J45*EXP(K45*D45)+L45*D45^3+M45*D45^2+N45*D45+O45))","v":1028.6846024468764},{"$f":"tank_valve_size","v":4},{"$f":"IF(D45>12,\"pp_mov_eq_large\",\"pp_mov_eq_small\")","v":"pp_mov_eq_small"},{"$f":"VLOOKUP($E45,eq_table_cl,F$4,FALSE)","v":0},0,0,0,439.38534717800002,0.21266484199999999,0,0,0,0,12,0]
["Stainless Steel - Process","ss_mov_eq_tank",2957.5805624539998,{"$f":"tank_valve_size","v":4},"ss_mov_eq",0,0,0,0,0,0,0,75.658217563999997,386.97780231600001,199.13787216599999,48.1,0]
["Cast Iron - Process","ci_mov_eq_tank",1742.297567655,{"$f":"tank_valve_size","v":4},"ci_mov_eq",0,0,0,0,0,0,-6.4880836999999997E-2,28.444500948999998,68.996848447999994,1015.350532247,48.1,1]
["Polypropylene/PVC - Air","pp_mov_eq_air",1028.6846024468764,{"$f":"air_valve_size","v":4},{"$f":"IF(D48>12,\"pp_mov_eq_large\",\"pp_mov_eq_small\")","v":"pp_mov_eq_small"},0,0,0,0,439.38534717800002,0.21266484199999999,0,0,0,0,12,0]
["Stainless Steel - Air","ss_mov_eq_air",2957.5805624539998,{"$f":"air_valve_size","v":4},"ss_mov_eq",0,0,0,0,0,0,0,75.658217563999997,386.97780231600001,199.13787216599999,48.1,0]
["Cast Iron - Air","ci_mov_eq_air",1742.297567655,{"$f":"air_valve_size","v":4},"ci_mov_eq",0,0,0,0,0,0,-6.4880836999999997E-2,28.444500948999998,68.996848447999994,1015.350532247,48.1,1]
["Polypropylene/PVC - Bypass","pp_mov_eq_bp",0,{"$f":"bypass_valve_size","v":0},{"$f":"IF(D51>12,\"pp_mov_eq_large\",\"pp_mov_eq_small\")","v":"pp_mov_eq_small"},0,0,0,0,439.38534717800002,0.21266484199999999,0,0,0,0,12,0]
["Stainless Steel - Bypass","ss_mov_eq_bp",0,{"$f":"bypass_valve_size","v":0},"ss_mov_eq",0,0,0,0,0,0,0,75.658217563999997,386.97780231600001,199.13787216599999,48.1,0]
["Cast Iron - Bypass","ci_mov_eq_bp",0,{"$f":"bypass_valve_size","v":0},"ci_mov_eq",0,0,0,0,0,0,-6.4880836999999997E-2,28.444500948999998,68.996848447999994,1015.350532247,48.1,1]
["Manual"]
["Polypropylene/PVC - Inlet and Outlet","pp_man_eq",{"$f":"IF(D55=0,0,IF(OR(D55>P55,D55<Q55),\"contact vendor\",F55*D55^G55+H55*LN(D55)+I55+J55*EXP(K55*D55)+L55*D55^3+M55*D55^2+N55*D55+O55))","v":445.98257081700001},{"$f":"in_valve_size","v":4},{"$f":"IF(D55>12,\"pp_man_eq_large\",\"pp_man_eq_small\")","v":"pp_man_eq_small"},{"$f":"VLOOKUP($E55,eq_table_cl,F$4,FALSE)","v":0},0,0,0,0,0,2.7271295270000002,-29.269386283999999,178.38020961699999,26.235623165,12,0]
["Stainless Steel - Inlet and Outlet","ss_man_eq",2273.0662210826185,{"$f":"in_valve_size","v":4},"ss_man_eq",219.908790627,1.6848312670000001,0,0,0,0,0,0,0,0,12.1,1]
["Cast Iron - Inlet and Outlet","ci_bfv_eq",692.69121776000009,{"$f":"in_valve_size","v":4},{"$f":"IF(D57>12,\"ci_bfv_eq_large\",\"ci_bfv_eq_small\")","v":"ci_bfv_eq_small"},0,0,0,0,0,0,-0.443473112,12.768802421,121.700143858,29.972082759999999,12,1]
["Polypropylene/PVC - Process","pp_man_eq_tank",445.98257081700001,{"$f":"tank_valve_size","v":4},{"$f":"IF(D58>12,\"pp_man_eq_large\",\"pp_man_eq_small\")","v":"pp_man_eq_small"},0,0,0,0,0,0,2.7271295270000002,-29.269386283999999,178.38020961699999,26.235623165,12,0]
["Stainless Steel - Process","ss_man_eq_tank",2273.0662210826185,{"$f":"tank_valve_size","v":4},"ss_man_eq",219.908790627,1.6848312670000001,0,0,0,0,0,0,0,0,12.1,1]
["Cast Iron - Process","ci_bfv_eq_tank",692.69121776000009,{"$f":"tank_valve_size","v":4},{"$f":"IF(D60>12,\"ci_bfv_eq_large\",\"ci_bfv_eq_small\")","v":"ci_bfv_eq_small"},0,0,0,0,0,0,-0.443473112,12.768802421,121.700143858,29.972082759999999,12,1]
["Polypropylene/PVC - Air","pp_man_eq_air",445.98257081700001,{"$f":"air_valve_size","v":4},{"$f":"IF(D61>12,\"pp_man_eq_large\",\"pp_man_eq_small\")","v":"pp_man_eq_small"},0,0,0,0,0,0,2.7271295270000002,-29.269386283999999,178.38020961699999,26.235623165,12,0]
["Stainless Steel - Air","ss_man_eq_air",2273.0662210826185,{"$f":"air_valve_size","v":4},"ss_man_eq",219.908790627,1.6848312670000001,0,0,0,0,0,0,0,0,12.1,1]
["Cast Iron - Air","ci_bfv_eq_air",692.69121776000009,{"$f":"air_valve_size","v":4},{"$f":"IF(D63>12,\"ci_bfv_eq_large\",\"ci_bfv_eq_small\")","v":"ci_bfv_eq_small"},0,0,0,0,0,0,-0.443473112,12.768802421,121.700143858,29.972082759999999,12,1]
["Polypropylene/PVC - Bypass","pp_man_eq_bp",0,{"$f":"bypass_valve_size","v":0},{"$f":"IF(D64>12,\"pp_man_eq_large\",\"pp_man_eq_small\")","v":"pp_man_eq_small"},0,0,0,0,0,0,2.7271295270000002,-29.269386283999999,178.38020961699999,26.235623165,12,0]
["Stainless Steel - Bypass","ss_man_eq_bp",0,{"$f":"bypass_valve_size","v":0},"ss_man_eq",219.908790627,1.6848312670000001,0,0,0,0,0,0,0,0,12.1,1]
["Cast Iron - Bypass","ci_man_eq_bp",0,{"$f":"bypass_valve_size","v":0},{"$f":"IF(D66>12,\"ci_bfv_eq_large\",\"ci_bfv_eq_small\")","v":"ci_bfv_eq_small"},0,0,0,0,0,0,-0.443473112,12.768802421,121.700143858,29.972082759999999,12,1]
["Check"]
["Polypropylene/PVC - Inlet and Outlet","pp_chv_eq",{"$f":"IF(D68=0,0,IF(OR(D68>P68,D68<Q68),\"contact vendor\",F68*D68^G68+H68*LN(D68)+I68+J68*EXP(K68*D68)+L68*D68^3+M68*D68^2+N68*D68+O68))","v":671.53562907499997},{"$f":"in_valve_size","v":4},"pp_chv_eq",{"$f":"VLOOKUP($E68,eq_table_cl,F$4,FALSE)","v":0},0,0,0,0,0,0,29.057432393999999,41.157186721000002,41.987963886999999,12.1,0]
["Stainless Steel - Inlet and Outlet","ss_chv_eq",1798.4960475039998,{"$f":"in_valve_size","v":4},"ss_chv_eq",0,0,0,0,0,0,0,31.220161333,300.84320452899999,95.600648059999997,48.1,0]
["Cast Iron - Inlet and Outlet","ci_chv_eq",1066.7369679929998,{"$f":"in_valve_size","v":4},"ci_chv_eq",0,0,0,0,0,0,0.99855227800000002,-6.0986689119999999,403.85014798499998,-514.99226714700001,24.1,2]
["Polypropylene/PVC - Inlet and Outlet","pp_chv_eq_proc",671.53562907499997,{"$f":"tank_valve_size","v":4},"pp_chv_eq",0,0,0,0,0,0,0,29.057432393999999,41.157186721000002,41.987963886999999,12.1,0]
["Stainless Steel - Inlet and Outlet","ss_chv_eq_proc",1798.4960475039998,{"$f":"tank_valve_size","v":4},"ss_chv_eq",0,0,0,0,0,0,0,31.220161333,300.84320452899999,95.600648059999997,48.1,0]
["Cast Iron - Inlet and Outlet","ci_chv_eq_proc",1066.7369679929998,{"$f":"tank_valve_size","v":4},"ci_chv_eq",0,0,0,0,0,0,0.99855227800000002,-6.0986689119999999,403.85014798499998,-514.99226714700001,24.1,2]
["Polypropylene/PVC - bypass","pp_chv_eq_bp",0,{"$f":"bypass_valve_size","v":0},"pp_chv_eq",0,0,0,0,0,0,0,29.057432393999999,41.157186721000002,41.987963886999999,12.1,0]
["Stainless Steel - bypass","ss_chv_eq_bp",0,{"$f":"bypass_valve_size","v":0},"ss_chv_eq",0,0,0,0,0,0,0,31.220161333,300.84320452899999,95.600648059999997,48.1,0]
["Cast Iron - bypass","ci_chv_eq_bp",0,{"$f":"bypass_valve_size","v":0},"ci_chv_eq",0,0,0,0,0,0,0.99855227800000002,-6.0986689119999999,403.85014798499998,-514.99226714700001,24.1,2]
["Instrumentation"]
["Flow Meters - Inlet and Outlet"]
["Orifice Plate","op_fm_eq_in",{"$f":"IF(D79=0,0,IF(OR(D79>P79,D79<Q79),\"contact vendor\",F79*D79^G79+H79*LN(D79)+I79+J79*EXP(K79*D79)+L79*D79^3+M79*D79^2+N79*D79+O79))","v":3896.6768649380001},{"$f":"in_meter_size","v":4},"op_fm_eq",{"$f":"VLOOKUP($E79,eq_table_cl,F$4,FALSE)","v":0},0,0,0,0,0,9.7957252999999994E-2,-4.3835991869999997,363.647694102,2505.9544113299999,60.1,0]
["Propeller","prop_fm_eq_in",3570.9842611929994,{"$f":"in_meter_size","v":4},"prop_fm_eq",0,0,0,0,0,0,8.7451079239999991,-168.97460075800001,1267.9447276149999,643.112055725,14.1,0]
["Venturi","ven_fm_eq_in",9485.8524846820001,{"$f":"in_meter_size","v":4},"ven_fm_eq",0,0,0,0,0,0,8.2282792489999999,-257.28572106299998,3322.365776822,-213.648957534,24.1,0]
["Magnetic","mag_fm_eq_in",5194.1199590280003,{"$f":"in_meter_size","v":4},"mag_fm_eq",0,0,0,0,0,0,0,56.418741707000002,185.44349340400001,3549.6461181,20.100000000000001,0]
["Flow Meters - Process"]
["Orifice Plate","op_fm_eq_proc",{"$f":"IF(D84=0,0,IF(OR(D84>P84,D84<Q84),\"contact vendor\",F84*D84^G84+H84*LN(D84)+I84+J84*EXP(K84*D84)+L84*D84^3+M84*D84^2+N84*D84+O84))","v":3896.6768649380001},{"$f":"proc_meter_size","v":4},"op_fm_eq",{"$f":"VLOOKUP($E84,eq_table_cl,F$4,FALSE)","v":0},0,0,0,0,0,9.7957252999999994E-2,-4.3835991869999997,363.647694102,2505.9544113299999,60.1,0]
["Propeller","prop_fm_eq_proc",3570.9842611929994,{"$f":"proc_meter_size","v":4},"prop_fm_eq",0,0,0,0,0,0,8.7451079239999991,-168.97460075800001,1267.9447276149999,643.112055725,14.1,0]
["Venturi","ven_fm_eq_proc",9485.8524846820001,{"$f":"proc_meter_size","v":4},"ven_fm_eq",0,0,0,0,0,0,8.2282792489999999,-257.28572106299998,3322.365776822,-213.648957534,24.1,0]
["Magnetic","mag_fm_eq_proc",5194.1199590280003,{"$f":"proc_meter_size","v":4},"mag_fm_eq",0,0,0,0,0,0,0,56.418741707000002,185.44349340400001,3549.6461181,20.100000000000001,0]
["Offgas Pollution Control Equipment"]
["Gas-phase GAC Adsorber","og_gac_eq",{"$f":"IF(D89=0,0,IF(OR(D89>P89,D89<Q89),\"contact vendor\",F89*D89^G89+H89*LN(D89)+I89+J89*EXP(K89*D89)+L89*D89^3+M89*D89^2+N89*D89+O89))","v":0},{"$f":"GAC_bed_size","v":0},"og_gac_eq",{"$f":"VLOOKUP($E89,eq_table_cl,F$4,FALSE)","v":0},0,0,0,0,0,0,-2.1812607000000001E-2,74.089604886000004,8121.5701776039996,1333.4,0]
["Thermal Oxidizer - No Heat Recovery","og_TO_eq",0,{"$f":"TO_size","v":0},"og_TO_eq",0,0,0,0,0,0,3.5000000000000002E-8,-2.1254120000000001E-3,52.361085914,30681.117017678,25001,0]
["Thermal Oxidizer - Recuperative","og_torec_eq",0,{"$f":"TO_size","v":0},"og_torec_eq",0,0,0,0,0,0,0,2.6862750000000001E-3,45.223629926999998,46950.673799914999,7258,0]
["Thermal Oxidizer - Regenerative/Flameless","og_toreg_eq",0,{"$f":"TO_size","v":0},"og_toreg_eq",0,0,0,0,0,0,0,5.9304E-5,26.210057340999999,122071.855844007,736001,0]
["Catalytic Oxidizer - No Heat Recovery","og_co_eq",0,{"$f":"CO_size","v":0},"og_co_eq",0,0,0,0,0,0,0,3.1549999999999999E-6,67.695342436000004,25787.160349064001,736001,0]
["Catalytic Oxidizer - Recuperative","og_corec_eq",0,{"$f":"CO_size","v":0},"og_corec_eq",0,0,0,0,0,0,0,1.03841E-4,75.339488552999995,34677.900839536,736001,0]
["Catalytic Oxidizer - Regenerative","og_coreg_eq",0,{"$f":"CO_size","v":0},"og_coreg_eq",0,0,0,0,0,0,0,1.05624E-4,86.176707340999997,39578.613226704001,736001,0]
["Initial GAC charge","gac_eq",0,{"$f":"IF(GAC>P96,P96,GAC)","v":0},"gac_eq",0,0,0,0,0,0,0,0,-6.3409999999999999E-6,1.904824233,40000,0]
[]
["O&M Chemicals"]
["Virgin GAC","replace_gac_eq",{"$f":"IF(D99=0,0,IF(OR(D99>P99,D99<Q99),\"contact vendor\",F99*D99^G99+H99*LN(D99)+I99+J99*EXP(K99*D99)+L99*D99^3+M99*D99^2+N99*D99+O99))","v":0},{"$f":"IF(GAC_makeup>P99,P99,GAC_makeup)","v":0},"gac_eq",{"$f":"VLOOKUP($E99,eq_table_cl,F$4,FALSE)","v":0},0,0,0,0,0,0,0,-6.3409999999999999E-6,1.904824233,40000,0]
["Off-site GAC regeneration","off_regen_eq",0,{"$f":"IF(regen_yr>P100,P100,regen_yr)","v":0},"off_regen_eq",0,0,0,0,0,0,0,0,-5.2000000000000002E-6,1.221341695,40000,0]
[]
["Building Structures and HVAC"]
["Building 1"]
["Low Quality Structure","bldg_lo_eq_1",{"$f":"IF(D104=0,0,IF(OR(D104>P104,D104<Q104),\"contact vendor\",F104*D104^G104+H104*LN(D104)+I104+J104*EXP(K104*D104)+L104*D104^3+M104*D104^2+N104*D104+O104))","v":94.604808353902811},{"$f":"build1_fp","v":120},"bldg_lo_eq",{"$f":"VLOOKUP($E104,eq_table_cl,F$4,FALSE)","v":150.466390674},-9.6925793999999996E-2,0,0,0,0,0,0,0,0,200000.1,0]
["Medium Quality Structure","bldg_mid_eq_1",115.38737595795907,{"$f":"build1_fp","v":120},"bldg_mid_eq",184.678993655,-9.8240209999999994E-2,0,0,0,0,0,0,0,0,200000.1,0]
["High Quality Structure","bldg_hi_eq_1",172.07348315616306,{"$f":"build1_fp","v":120},"bldg_hi_eq",324.18264690900003,-0.13230006499999999,0,0,0,0,0,0,0,0,200000.1,0]
["Heating System"]
["Electric resistance","hvac_elec_eq_1",{"$f":"IF(D108=0,0,IF(OR(D108>P108,D108<Q108),\"contact vendor\",F108*D108^G108+H108*LN(D108)+I108+J108*EXP(K108*D108)+L108*D108^3+M108*D108^2+N108*D108+O108))","v":4117.6201050110849},{"$f":"build1_heat_mbh/build1_zones","v":4.1979075702317985},"hvac_elec_eq",{"$f":"VLOOKUP($E108,eq_table_cl,F$4,FALSE)","v":1399.0154329059999},0.75248641199999999,0,0,0,0,0,0,0,0,6148.1,0]
["Natural gas non-condensing furnace","hvac_gas_non_eq_1",2385.0470867234221,{"$f":"build1_heat_mbh/build1_zones","v":4.1979075702317985},"hvac_gas_non_eq",780.31994296400001,0.77881003199999999,0,0,0,0,0,0,0,0,5032.1000000000004,0]
["Natural gas condensing furnace","hvac_gas_eq_1",2385.0470867234221,{"$f":"build1_heat_mbh/build1_zones","v":4.1979075702317985},"hvac_gas_eq",780.31994296400001,0.77881003199999999,0,0,0,0,0,0,0,0,5032.1000000000004,0]
["Standard efficiency oil furnace","hvac_oil_std_eq_1",2766.2167720677862,{"$f":"build1_heat_mbh/build1_zones","v":4.1979075702317985},"hvac_oil_std_eq",931.18410081100001,0.75894977500000005,0,0,0,0,0,0,0,0,3350.1,0]
["Mid-efficiency oil furnace","hvac_oil_mid_eq_1",2766.2167720677862,{"$f":"build1_heat_mbh/build1_zones","v":4.1979075702317985},"hvac_oil_mid_eq",931.18410081100001,0.75894977500000005,0,0,0,0,0,0,0,0,3350.1,0]
["Cooling System"]
["Air conditioning system","hvac_ac_eq_1",{"$f":"IF(D114=0,0,IF(OR(D114>P114,D114<Q114),\"contact vendor\",F114*D114^G114+H114*LN(D114)+I114+J114*EXP(K114*D114)+L114*D114^3+M114*D114^2+N114*D114+O114))","v":931.94620540999233},{"$f":"build1_cooling_tons/build1_zones","v":0.42738857766012001},"hvac_ac_eq",{"$f":"VLOOKUP($E114,eq_table_cl,F$4,FALSE)","v":2517.0380804209999},1.168812894,0,0,0,0,0,0,0,0,113.33,0]
["Heat pump","hvac_hp_eq_1",3372.0876848253924,{"$f":"build1_cooling_tons/build1_zones","v":0.42738857766012001},{"$f":"IF(D115>12,\"hvac_hp_eq_large\",\"hvac_hp_eq_small\")","v":"hvac_hp_eq_small"},0,0,0,0,3162.0654825800002,0.15046400200000001,0,0,0,0,12,0]
["Building 2"]
["Low Quality Structure","bldg_lo_eq_2",{"$f":"IF(D117=0,0,IF(OR(D117>P117,D117<Q117),\"contact vendor\",F117*D117^G117+H117*LN(D117)+I117+J117*EXP(K117*D117)+L117*D117^3+M117*D117^2+N117*D117+O117))","v":0},{"$f":"build2_fp","v":0},"bldg_lo_eq",{"$f":"VLOOKUP($E117,eq_table_cl,F$4,FALSE)","v":150.466390674},-9.6925793999999996E-2,0,0,0,0,0,0,0,0,200000.1,0]
["Medium Quality Structure","bldg_mid_eq_2",0,{"$f":"build2_fp","v":0},"bldg_mid_eq",184.678993655,-9.8240209999999994E-2,0,0,0,0,0,0,0,0,200000.1,0]
["High Quality Structure","bldg_hi_eq_2",0,{"$f":"build2_fp","v":0},"bldg_hi_eq",324.18264690900003,-0.13230006499999999,0,0,0,0,0,0,0,0,200000.1,0]
["Heating System"]
["Electric resistance","hvac_elec_eq_2",0,{"$f":"IF(build2_zones=0,0,build2_heat_mbh/build2_zones)","v":0},"hvac_elec_eq",{"$f":"VLOOKUP($E121,eq_table_cl,F$4,FALSE)","v":1399.0154329059999},0.75248641199999999,0,0,0,0,0,0,0,0,6148.1,0]
["Natural gas non-condensing furnace","hvac_gas_non_eq_2",0,{"$f":"IF(build2_zones=0,0,build2_heat_mbh/build2_zones)","v":0},"hvac_gas_non_eq",780.31994296400001,0.77881003199999999,0,0,0,0,0,0,0,0,5032.1000000000004,0]
["Natural gas condensing furnace","hvac_gas_eq_2",0,{"$f":"IF(build2_zones=0,0,build2_heat_mbh/build2_zones)","v":0},"hvac_gas_eq",780.31994296400001,0.77881003199999999,0,0,0,0,0,0,0,0,5032.1000000000004,0]
["Standard efficiency oil furnace","hvac_oil_std_eq_2",0,{"$f":"IF(build2_zones=0,0,build2_heat_mbh/build2_zones)","v":0},"hvac_oil_std_eq",931.18410081100001,0.75894977500000005,0,0,0,0,0,0,0,0,3350.1,0]
["Mid-efficiency oil furnace","hvac_oil_mid_eq_2",0,{"$f":"IF(build2_zones=0,0,build2_heat_mbh/build2_zones)","v":0},"hvac_oil_mid_eq",931.18410081100001,0.75894977500000005,0,0,0,0,0,0,0,0,3350.1,0]
["Cooling System"]
["Air conditioning system","hvac_ac_eq_2",0,{"$f":"IF(build2_zones=0,0,build2_cooling_tons/build2_zones)","v":0},"hvac_ac_eq",{"$f":"VLOOKUP($E127,eq_table_cl,F$4,FALSE)","v":2517.0380804209999},1.168812894,0,0,0,0,0,0,0,0,113.33,0]
["Heat pump","hvac_hp_eq_2",0,{"$f":"IF(build2_zones=0,0,build2_cooling_tons/build2_zones)","v":0},{"$f":"IF(D128>12,\"hvac_hp_eq_large\",\"hvac_hp_eq_small\")","v":"hvac_hp_eq_small"},0,0,0,0,3162.0654825800002,0.15046400200000001,0,0,0,0,12,0]

{"sheet":"Cost Coefficients","index":17,"n_rows":53,"n_cols":17,"rows_kept":53,"cut":false,"hidden":false,"merged":[]}
["Coefficients for Component Cost Equations"]
["This sheet is used internally to calculate component costs using the cost equations method; see model documentation for more details on the development of cost equations"]
[]
[null,"Power: C1*x^C2",null,"Logarithmic: C3*Ln(x) + C4",null,"Exponential: C5*e^(C6*x)",null,"Polynomial: C7*x^3 + C8*x^2 + C9*x + C10",null,null,null,"NOTES"]
["Equation Lookup Name","C1","C2","C3","C4","C5","C6","C7","C8","C9","C10","Pct deviation of fit equation","Modified by","Last modified","Rsq of fit equation","max size used to gen curve","min size for which curve fits are valid"]
["baffle_eq",0,0,0,0,0,0,1.4999999999999999E-8,-2.7636700000000002E-4,4.6000189929999999,65.454900705,7.5975866282759333E-2,null," 6/23/2017 2:09:51 PM",0.99895568601152007,9963.76,0]
["bldg_hi_eq",324.18264690900003,-0.13230006499999999,0,0,0,0,0,0,0,0,3.9891100445136697E-2,null," 6/23/2017 3:04:02 PM",0.95292288207252096,200000.1,0]
["bldg_lo_eq",150.466390674,-9.6925793999999996E-2,0,0,0,0,0,0,0,0,2.5518207619233565E-2,null," 6/23/2017 3:03:10 PM",0.96714729333927008,200000.1,0]
["bldg_mid_eq",184.678993655,-9.8240209999999994E-2,0,0,0,0,0,0,0,0,2.751136169037021E-2,null," 6/23/2017 3:03:32 PM",0.96388247777818237,200000.1,0]
["cent_blow_eq",0,0,0,0,0,0,8.5700000000000001E-7,-5.7551010000000003E-3,20.870654318,27480.641816621999,1.8314057068716118E-2,null," 6/21/2017 4:27:51 PM",0.99879993877279705,5001,0]
["ci_bfv_eq_large",50.765126983000002,1.589939094,0,0,0,0,0,0,0,0,6.0540207280493086E-2,null," 6/21/2017 3:59:11 PM",0.98913990776606864,48.1,14]
["ci_bfv_eq_small",0,0,0,0,0,0,-0.443473112,12.768802421,121.700143858,29.972082759999999,4.4240388936903539E-2,null," 6/21/2017 3:58:12 PM",0.99017268458265773,12,1]
["ci_chv_eq",0,0,0,0,0,0,0.99855227800000002,-6.0986689119999999,403.85014798499998,-514.99226714700001,0.10500660342474012,null," 6/21/2017 4:03:19 PM",0.99427270853636784,24.1,2]
["ci_mov_eq",0,0,0,0,0,0,-6.4880836999999997E-2,28.444500948999998,68.996848447999994,1015.350532247,9.8676464810979456E-2,null," 6/23/2017 10:28:52 AM",0.97024910323219449,48.1,1]
["cpvc_pipe_eq",0,0,0,0,0,0,9.2529199999999995E-3,0.54323701800000002,3.0243661820000001,0.94477128300000002,9.9480248445665748E-2,null," 6/21/2017 12:21:08 PM",0.99695752040892482,18.100000000000001,0]
["di_pipe_eq",0,0,0,0,0,0,0,9.4775899999999996E-2,4.7903279550000004,11.728518448999999,5.5571183335001967E-2,null," 6/21/2017 10:56:31 AM",0.98982170795736724,48.1,4]
["diffuser_eq",0,0,0,0,43.721542005000003,7.5651909999999998E-3,0,0,0,0,0.14166483517536249,null," 6/23/2017 2:09:05 PM",0.31363372267426115,44.1,0]
["dis75_pump_eq",0,0,0,0,0,0,0,-7.9081699999999997E-4,18.716239246000001,4947.8451921300002,0.22378978836894614,null," 6/21/2017 4:12:10 PM",0.94883623956122876,10001,0]
["fg_basin_eq",159.37662144500001,0.802958697,0,0,0,0,0,0,0,0,5.653277852965205E-2,null," 6/23/2017 2:10:44 PM",0.94799228828448334,1200,0]
["gac_eq",0,0,0,0,0,0,0,0,-6.3409999999999999E-6,1.904824233,6.5250253863471529E-4,null," 6/23/2017 1:27:52 PM",0.99986840639324026,40000,0]
["hvac_ac_eq",2517.0380804209999,1.168812894,0,0,0,0,0,0,0,0,4.4402508043847592E-2,null," 10/17/2017 10:32:24 AM",0.99405924702166593,113.33,0]
["hvac_elec_eq",1399.0154329059999,0.75248641199999999,0,0,0,0,0,0,0,0,0.1993648078141734,null," 10/17/2017 10:33:04 AM",0.972280792485123,6148.1,0]
["hvac_gas_eq",780.31994296400001,0.77881003199999999,0,0,0,0,0,0,0,0,0.13370701384870753,null," 10/17/2017 10:34:00 AM",0.94231975089749642,5032.1000000000004,0]
["hvac_gas_non_eq",780.31994296400001,0.77881003199999999,0,0,0,0,0,0,0,0,0.13370701384870753,null," 10/17/2017 10:33:37 AM",0.94231975089749642,5032.1000000000004,0]
["hvac_hp_eq_large",2100.9557421660002,0.87499681299999998,0,0,0,0,0,0,0,0,5.2692442650527464E-2,null," 6/23/2017 3:08:16 PM",0.9865271457488286,50.01,12]
["hvac_hp_eq_small",0,0,0,0,3162.0654825800002,0.15046400200000001,0,0,0,0,8.947680135850776E-2,null," 6/23/2017 3:07:28 PM",0.97324811259994926,12,0]
["hvac_oil_mid_eq",931.18410081100001,0.75894977500000005,0,0,0,0,0,0,0,0,8.4960799755244856E-2,null," 10/17/2017 10:34:48 AM",0.98796386653059987,3350.1,0]
["hvac_oil_std_eq",931.18410081100001,0.75894977500000005,0,0,0,0,0,0,0,0,8.4960799755244856E-2,null," 10/17/2017 10:34:25 AM",0.98796386653059987,3350.1,0]
["mag_fm_eq",0,0,0,0,0,0,0,56.418741707000002,185.44349340400001,3549.6461181,9.845957139525971E-2,null," 6/23/2017 1:20:53 PM",0.989238737203601,20.100000000000001,0]
["off_regen_eq",0,0,0,0,0,0,0,0,-5.2000000000000002E-6,1.221341695,1.0989176869638693E-3,null," 6/23/2017 1:29:08 PM",0.99977848309930495,40000,0]
["og_co_eq",0,0,0,0,0,0,0,3.1549999999999999E-6,67.695342436000004,25787.160349064001,8.3978372631828668E-2,null," 6/23/2017 2:40:14 PM",0.99798031464609238,736001,0]
["og_corec_eq",0,0,0,0,0,0,0,1.03841E-4,75.339488552999995,34677.900839536,9.0678443292547914E-2,null," 6/23/2017 2:46:47 PM",0.99993409472278982,736001,0]
["og_coreg_eq",0,0,0,0,0,0,0,1.05624E-4,86.176707340999997,39578.613226704001,8.0545392832659393E-2,null," 6/23/2017 2:46:09 PM",0.99995758916100774,736001,0]
["og_gac_eq",0,0,0,0,0,0,0,-2.1812607000000001E-2,74.089604886000004,8121.5701776039996,0.14139570980283278,null," 6/23/2017 2:31:15 PM",0.95524832955240147,1333.4,0]
["og_to_eq",0,0,0,0,0,0,3.5000000000000002E-8,-2.1254120000000001E-3,52.361085914,30681.117017678,0.11454111924591823,null," 6/23/2017 2:31:52 PM",0.94945741294996744,25001,0]
["og_torec_eq",0,0,0,0,0,0,0,2.6862750000000001E-3,45.223629926999998,46950.673799914999,9.6942436098629292E-2,null," 6/23/2017 2:32:11 PM",0.98677137313316554,7258,0]
["og_toreg_eq",0,0,0,0,0,0,0,5.9304E-5,26.210057340999999,122071.855844007,0.37407272508143402,null," 6/23/2017 2:33:05 PM",0.97348276648093457,736001,0]
["op_fm_eq",0,0,0,0,0,0,9.7957252999999994E-2,-4.3835991869999997,363.647694102,2505.9544113299999,4.7791309506009412E-2,null," 6/23/2017 1:19:01 PM",0.99931649808325451,60.1,0]
["pl_basin_eq",0.45323892500000001,1.948695284,0,0,0,0,0,0,0,0,0.4416501311540828,null," 6/23/2017 2:10:20 PM",0.77302232311642305,239,0]
["pp_chv_eq",0,0,0,0,0,0,0,29.057432393999999,41.157186721000002,41.987963886999999,0.19758395970443127,null," 6/21/2017 4:02:12 PM",0.98230455794176574,12.1,0]
["pp_man_eq_large",0,0,0,0,0,0,22.300257887000001,-1282.044463316,25673.264317214998,-162055.444357634,1.2711121317148773E-2,null," 6/21/2017 3:55:57 PM",0.99884822319398192,24.1,14]
["pp_man_eq_small",0,0,0,0,0,0,2.7271295270000002,-29.269386283999999,178.38020961699999,26.235623165,0.13585161746959062,null," 6/21/2017 3:55:11 PM",0.97214624222774304,12,0]
["pp_mov_eq_large",0,0,0,0,0,0,9.3985164300000008,-558.72746474899998,12544.513583182999,-82391.131099701,1.3437677995945946E-2,null," 6/23/2017 11:56:12 AM",0.9984129383946081,24.1,14]
["pp_mov_eq_small",0,0,0,0,439.38534717800002,0.21266484199999999,0,0,0,0,0.13053452232412066,null," 6/23/2017 11:55:40 AM",0.97486149212967976,12,0]
["prop_fm_eq",0,0,0,0,0,0,8.7451079239999991,-168.97460075800001,1267.9447276149999,643.112055725,0.10526889307193545,null," 6/23/2017 1:19:43 PM",0.91999535097551344,14.1,0]
["pvc_pipe_eq",0,0,0,0,0,0,0,0.104376414,0.21217371199999999,2.2767826370000002,0.3254887165822471,null," 6/21/2017 11:02:23 AM",0.99507354311573715,48.1,0]
["ss_basin_eq",0,0,0,0,0,0,1.2317809999999999E-3,-1.01945011,300.50956248900002,1414.82905968,4.0252237395946813E-2,null," 6/23/2017 2:11:38 PM",0.99174576571671758,1200,0]
["ss_chv_eq",0,0,0,0,0,0,0,31.220161333,300.84320452899999,95.600648059999997,0.18389968521419006,null," 6/21/2017 4:01:20 PM",0.9931010155115626,48.1,0]
["ss_man_eq",219.908790627,1.6848312670000001,0,0,0,0,0,0,0,0,0.43173099091354272,null," 6/21/2017 3:40:26 PM",0.90686073864578676,12.1,1]
["ss_mov_eq",0,0,0,0,0,0,0,75.658217563999997,386.97780231600001,199.13787216599999,0.15750419279467587,null," 6/23/2017 12:02:57 PM",0.99605947823708585,48.1,0]
["ss_pipe_eq",30.645488513,0.979401509,0,0,0,0,0,0,0,0,0.48766312996419464,null," 6/21/2017 11:03:32 AM",0.93038803077554544,48.1,0]
["st_pipe_eq",0,0,0,0,0,0,6.6341309999999997E-3,-0.638131479,21.062710183,-5.1419829970000004,0.13809065616805388,null," 6/21/2017 11:04:26 AM",0.94000861486434051,48.1,1]
["ven_fm_eq",0,0,0,0,0,0,8.2282792489999999,-257.28572106299998,3322.365776822,-213.648957534,2.7904579731755034E-2,null," 6/23/2017 1:19:18 PM",0.99967368374901222,24.1,0]

{"sheet":"Cost Data","index":18,"n_rows":1249,"n_cols":7,"rows_kept":1249,"cut":false,"hidden":false,"merged":[]}
["Cost Data"]
["This sheet is used internally and contains component cost data extracted from the central cost database"]
["To maintain vendor confidentiality, the central cost database itself is not provided here"]
[]
["bls118","Alarms (High/Low Pressure Alarms, Level Switch/Alarms, Low Alarms)"]
[43,null,null,"Unit Cost","Useful Life (large)","Useful Life (small)"]
["alarm_cost_cl",0,0,580.58711311592128,15,14]
[]
[]
["bls1141","Centrifugal Pumps (Backwash)"]
[30,"Size needed (gpm)","Size selected (gpm)","Avg. Unit Cost","Useful Life (large)","Useful Life (small)"]
["back_pump_cost_cl",0,10,5569.3884955742142,20,17]
[null,11,30,5795.5507406017077,20,17]
[null,31,50,6608.4783657838652,20,17]
[null,51,55,7767.8599401083775,20,17]
[null,56,75,8244.055402912285,20,17]
[null,76,100,8244.055402912285,20,17]
[null,101,120,10543.373269362453,20,17]
[null,121,125,8886.1187947329745,20,17]
[null,126,140,10543.373269362453,20,17]
[null,141,200,9860.8553353628813,20,17]
[null,201,250,10403.831912339216,20,17]
[null,251,300,10950.756520321143,20,17]
[null,301,500,14817.74953427314,20,17]
[null,501,750,15245.234456192235,20,17]
[null,751,1000,17479.380929028201,20,17]
[null,1001,1500,20907.303159775358,20,17]
[null,1501,2000,31037.800609660451,20,17]
[null,2001,3000,35660.896102217455,20,17]
[null,3001,3500,40615.454496523613,20,17]
[null,3501,4000,42599.858223068601,20,17]
[null,4001,6000,88269.221898713586,20,17]
[null,6001,10000,79060.747372874335,20,17]
[null,10001,"contact vendor","contact vendor",20,17]
[]
[]
["BCI","Backfill and Compaction"]
[3,null,null,"Avg. Unit Cost (per cy)","Useful Life (large)","Useful Life (small)"]
["backfill_cost_cl",0,0,13.946722243273967,"N/A","N/A"]
[]
[]
["BCI","Baffles (used for chlorine and hypochlorite contact tanks and multistage bubble aeration tanks)"]
[3,"Size needed (sf)","Size Selected (sf)","Avg. Unit Cost ","Useful Life (large)","Useful Life (small)"]
["baffle_cost_cl",0,2.42,82.862676200557772,10,7]
[null,2.4300000000000002,3.38,85.969509751006456,10,7]
[null,3.39,8,100.72509655021901,10,7]
[null,8.01,12.5,110.79928000050586,10,7]
[null,12.51,14.58,122.78277769240083,10,7]
[null,14.59,121.2,719.29896423343689,10,7]
[null,121.21,238.25,1243.1912838363005,10,7]
[null,238.26,390,1674.6167681161289,10,7]
[null,390.01,606.54999999999995,2570.9567207516779,10,7]
[null,606.55999999999995,1193.675,5479.099875301843,10,7]
[null,1193.6849999999999,2421.25,10523.39188572121,10,7]
[null,2421.2600000000002,4700.5,16469.621667517025,10,7]
[null,4700.51,9963.75,33735.44270262833,10,7]
[null,9963.76,"contact vendor","contact vendor",10,7]
[]
[]
["CCI","Pipe bedding costs (crushed stone and sand)"]
[2,null,null,"Avg. Unit Cost (per day)","Useful Life (large)","Useful Life (small)"]
["bedding_cost_cl",0,0,53.926091966062629,"N/A","N/A"]
[]
[]
["bore_rig_cost",0,0,2896.6324499842881,"N/A","N/A"]
[null,"Borings, cased borings in earth, w/samples, 2.5\" dia",null,"Avg. Unit Cost (per lf)","Useful Life (large)","Useful Life (small)"]
["bore_cost_cl",0,0,77.965434167801391,"N/A","N/A"]
[]
[]
["stake_out_cost",0,0,1380.637896721483,"N/A","N/A"]
[null,"Borings, drawings showing boring details",null,"Avg. Unit Cost (per job)","Useful Life (large)","Useful Life (small)"]
["bore_draw_cost_cl",0,0,460.21263224049437,"N/A","N/A"]
[]
[]
["bore_report_cost",0,0,1050.3676547606576,"N/A","N/A"]
[null,"Borings, mobilization and demobilization, minimum",null,"Avg. Unit Cost","Useful Life (large)","Useful Life (small)"]
["bore_mob_cost_cl",0,0,725.51167906148521,"N/A","N/A"]
[]
[]
["bore_draw_cost",0,0,460.21263224049437,"N/A","N/A"]
[null,"Borings, report and recommendations from P.E.",null,"Avg. Unit Cost (per job)","Useful Life (large)","Useful Life (small)"]
["bore_report_cost_cl",0,0,1050.3676547606576,"N/A","N/A"]
[]
[]
["bore_mob_cost",0,0,725.51167906148521,"N/A","N/A"]
[null,"Borings, drill rig and crew with truck mounted auger",null,"Avg. Unit Cost (per day)","Useful Life (large)","Useful Life (small)"]
["bore_rig_cost_cl",0,0,2896.6324499842881,"N/A","N/A"]
[]
[]
["bls11470145","Centrifugal Blowers"]
[33,"Size needed (cfm)","Size selected (cfm)","Avg. Unit Cost","Useful Life (large)","Useful Life (small)"]
["cent_blow_cost_cl",0,40,28502.991413533462,25,20]
[null,41,70,28876.458332052112,25,20]
[null,71,290,31978.520247249151,25,20]
[null,291,500,37851.495873168366,25,20]
[null,501,710,40641.328512987966,25,20]
[null,711,860,41551.041887683794,25,20]
[null,861,1000,42600.348048563479,25,20]
[null,1001,2500,56825.160815984796,25,20]
[null,2501,3750,70489.907750042592,25,20]
[null,3751,5000,94885.07066716667,25,20]
[null,5001,"contact vendor","contact vendor",25,20]
[]
[]
["bls1149","Cast Iron Manual Valves"]
[35,"Size needed (in. diam)","Size selected (in. diam)","Avg. Unit Cost","Useful Life (large)","Useful Life (small)"]
["ci_bfv_cost_cl",0,1,163.41465020195926,25,20]
[null,1.1000000000000001,2,326.2838172865379,25,20]
[null,2.1,2.5,396.60474961955606,25,20]
[null,2.6,3,520.87648901523835,25,20]
[null,3.1,4,668.02710232903587,25,20]
[null,4.0999999999999996,6,1153.642011885715,25,20]
[null,6.1,8,1503.3067137305588,25,20]
[null,8.1,10,2285.9769232597791,25,20]
[null,10.1,12,2485.0676582867968,25,20]
[null,12.1,14,3443.1660742863614,25,20]
[null,14.1,16,4148.3831244660805,25,20]
[null,16.100000000000001,18,4890.0594141022457,25,20]
[null,18.100000000000001,20,6530.081187998956,25,20]
[null,20.100000000000001,24,7632.0400948106735,25,20]
[null,24.1,30,10234.202153595586,25,20]
[null,30.1,48,25372.686405564091,25,20]
[null,48.1,"contact vendor","contact vendor",25,20]
[]
[]
["bls1149","Cast Iron Check Valves"]
[35,"Size needed (in. diam)","Size selected (in. diam)","Avg. Unit Cost","Useful Life (large)","Useful Life (small)"]
["ci_chv_cost_cl",0,2,293.38504103189678,25,20]
[null,2.1,2.5,447.19870051684711,25,20]
[null,2.6,3,583.91671500871735,25,20]
[null,3.1,4,1411.9897959183672,25,20]
[null,4.0999999999999996,6,1908.8010204081634,25,20]
[null,6.1,8,2980.8673469387754,25,20]
[null,8.1,12,4758.9285714285716,25,20]
[null,12.1,16,8105.8673469387759,25,20]
[null,16.100000000000001,18,11818.877551020409,25,20]
[null,18.100000000000001,24,19244.897959183672,25,20]
[null,24.1,"contact vendor","contact vendor",25,20]
[]
[]
["bls1149","Cast Iron Motor/Air Operated Valves (on/off)"]
[35,"Size needed (in. diam)","Size selected (in. diam)","Avg. Unit Cost","Useful Life (large)","Useful Life (small)"]
["ci_mov_cost_cl",0,1,1146.4686159393152,25,20]
[null,1.1000000000000001,2,1162.812385896372,25,20]
[null,2.1,3,1527.0638682351384,25,20]
[null,3.1,4,1824.8299262982382,25,20]
[null,4.0999999999999996,6,2616.7545051807206,25,20]
[null,6.1,8,3144.6322122754063,25,20]
[null,8.1,10,4703.7651103986154,25,20]
[null,10.1,12,5985.6660046135112,25,20]
[null,12.1,14,7620.7114691616607,25,20]
[null,14.1,16,8188.056409834594,25,20]
[null,16.100000000000001,18,9477.0527231807864,25,20]
[null,18.100000000000001,20,14568.979847065868,25,20]
[null,20.100000000000001,24,18675.784720821197,25,20]
[null,24.1,30,36189.261983860473,25,20]
[null,30.1,48,58830.817539416035,25,20]
[null,48.1,"contact vendor","contact vendor",25,20]
[]
[]
["BCI","Concrete for Basins"]
[3,null,null,"Avg. Unit Cost (per cy)","Useful Life (large)","Useful Life (small)"]
["conc_basin_cost_cl",0,0,582.0856776951498,40,37]
[]
[]
["BCI","Concrete Pad"]
[3,null,null,"Avg. Unit Cost (per cy)","Useful Life (large)","Useful Life (small)"]
["conc_pad_cost_cl",0,0,627.3046027303194,40,37]
[]
[]
["bls072106033","CPVC Piping"]
[15,"Size needed (in. diam)","Size selected (in. diam)","Avg. Unit Cost ($/lf)","Useful Life (large)","Useful Life (small)"]
["cpvc_pipe_cost_cl",0,0.5,2.5997035457880622,22,17]
[null,0.6,0.75,3.7349687295106184,22,17]
[null,0.76,1,4.4284676185664642,22,17]
[null,1.1000000000000001,1.5,6.638723315437943,22,17]
[null,1.6,2,7.4981939090364333,22,17]
[null,2.1,2.5,13.607067742567169,22,17]
[null,2.6,3,17.938282877578786,22,17]
[null,3.1,4,27.149602596685952,22,17]
[null,4.0999999999999996,6,41.141682586974326,22,17]
[null,6.1,8,60.732025983026269,22,17]
[null,8.1,10,85.662688859676763,22,17]
[null,10.1,12,126.99495141757002,22,17]
[null,12.1,14,185.31119346883756,22,17]
[null,14.1,16,236.73017469104963,22,17]
[null,16.100000000000001,18,286.67102882118735,22,17]
[null,18.100000000000001,"contact vendor","contact vendor",22,17]
[]
[]
[]
["Current Year","current_year_cl",2016]
[]
[]
["bls10150211","Ductile Iron Piping"]
[19,"Size needed (in. diam)","Size selected (in. diam)","Avg. Unit Cost ($/lf)","Useful Life (large)","Useful Life (small)"]
["di_pipe_cost_cl",0,4,34.692358150213195,40,35]
[null,4.0999999999999996,6,41.228599540833073,40,35]
[null,6.1,8,53.295506723515921,40,35]
[null,8.1,10,68.881928501147939,40,35]
[null,10.1,12,79.943260085273877,40,35]
[null,12.1,14,100.55755985569041,40,35]
[null,14.1,16,117.65234503115778,40,35]
[null,16.100000000000001,18,132.73597900951134,40,35]
[null,18.100000000000001,20,155.86421777632015,40,35]
[null,20.100000000000001,24,193.07051492292561,40,35]
[null,24.1,30,226.95463842279506,40,35]
[null,30.1,36,280.45018955360371,40,35]
[null,36.1,48,486.21735850801105,40,35]
[null,48.1,"contact vendor","contact vendor",40,35]
[]
[]
["bls114","Diffusers"]
[29,"Size Needed (cfm)","Size Selected (cfm)","Avg. Unit Cost","Useful Life (large)","Useful Life (small)"]
["diffuser_cost_cl",0,7,51.245187089824157,10,10]
[null,7.1,10,62.309492132382616,10,10]
[null,10.1,14,40.908806042359096,10,10]
[null,14.1,15,40.908806042359096,10,10]
[null,15.1,17,47.087031816666141,10,10]
[null,17.100000000000001,23,48.246102101233191,10,10]
[null,23.1,34,56.881255960406747,10,10]
[null,34.1,44,66.867566439730382,10,10]
[null,44.1,"contact vendor","contact vendor",45,40]
[]
[]
["bls1141","75 PSI Pumps for Pumping to Distribution"]
[30,"Size needed in (gpm)","Size Selected (gpm)","Avg. Unit Cost","Useful Life(large)","Useful Life (small)"]
["dis75_pump_cost_cl",0,10,3574.7616987333868,20,17]
[null,11,30,5831.2465988980503,20,17]
[null,31,50,5895.4673851899297,20,17]
[null,51,75,6663.016401408745,20,17]
[null,76,100,6994.3372761418486,20,17]
[null,101,125,12320.283848393374,20,17]
[null,126,200,12904.10917831955,20,17]
[null,201,250,13382.845948859012,20,17]
[null,251,300,13382.845948859012,20,17]
[null,301,500,16853.831102388864,20,17]
[null,501,750,19499.28962861684,20,17]
[null,751,1000,35519.456681791067,20,17]
[null,1001,1500,29228.738751836536,20,17]
[null,1501,2000,33579.697023111352,20,17]
[null,2001,3000,42909.225795331622,20,17]
[null,3001,3500,53939.145840961872,20,17]
[null,3501,4000,55740.24698378412,20,17]
[null,4001,6000,104588.91233870712,20,17]
[null,6001,10000,129154.82265867572,20,17]
[null,10001,"Contact Vendor","contact vendor",20,17]
[]
[]
["bls1154","Dot Matrix Printer"]
[38,null,null,"Avg. Unit Cost","Useful Life (large)","Useful Life (small)"]
["dotmatrix_printer_cost_cl",0,0,623.12307296553922,10,8]
[]
[]
["bls118","Electrical Enclosure"]
[43,null,null,"Avg. Unit Cost","Useful Life (large)","Useful Life (small)"]
["elec_encl_cost_cl",0,0,1178.801719505642,22,17]
[]
[]
["BCI","Excavation"]
[3,null,null,"Avg. Unit Cost (per cy)","Useful Life (large)","Useful Life (small)"]
["excavate_cost_cl",0,0,30.083315176203104,"N/A","N/A"]
[]
[]
["bls07210606","Fiberglass Aeration Basins"]
[16,"Size needed (sf)","Size Selected (sf)","Avg. Unit Cost ","Useful Life (large)","Useful Life (small)"]
["fg_basin_cost_cl",0,93,6066.9037000211219,25,20]
[null,94,94,6169.8283659646468,25,20]
[null,95,96,6412.3867505882936,25,20]
[null,97,102,6324.6753780721237,25,20]
[null,103,108,7210.2270595019427,25,20]
[null,109,111,6908.7541281930917,25,20]
[null,112,114,6695.5445852310349,25,20]
[null,115,120,6696.3266076577547,25,20]
[null,121,123,8532.3641184032294,25,20]
[null,124,188,10997.863966487525,25,20]
[null,189,216,11702.617320153438,25,20]
[null,217,"contact vendor","contact vendor",25,20]
[]
[]
["bls1399","Granular Activated Carbon - Material and Delivery Cost"]
[45,"Quantity Needed (lb)","Quantity Selected (lb)","Avg. Unit Cost ($/lb)","Useful Life(large)","Useful Life (small)"]
["gac_cost_cl",0,1000,1.8993984142164704,"N/A","N/A"]
[null,2000,21000,1.7700227484297997,"N/A","N/A"]
[null,40000,40000,1.6518971405376224,"N/A","N/A"]
[]
[]
["bls118","Gas Flow Meters (Rotameters)"]
[43,null,null,"Avg. Unit Cost","Useful Life (large)","Useful Life (small)"]
["gas_fm_cost_cl",0,0,2320.9866720792493,15,14]
[]
[]
["bls118","Pressure Gauges"]
[43,null,null,"Avg. Unit Cost","Useful Life (large)","Useful Life (small)"]
["gauge_cost_cl",0,0,282.8233199189691,15,14]
[]
[]
["bls1154","Laser Jet Printer"]
[38,null,null,"Avg. Unit Cost","Useful Life (large)","Useful Life (small)"]
["laser_printer_cost_cl",0,0,608.80486915637061,10,8]
[]
[]
["bls118","Magnetic Flow Meters"]
[43,"Size needed (in. diam)","Size selected (in. diam)","Avg. Unit Cost","Useful Life (large)","Useful Life (small)"]
["mag_fm_cost_cl",0,0.75,5161.9805217900648,15,14]
[null,0.76,1,3662.7980893127765,15,14]
[null,1.1000000000000001,1.5,3754.8425353801968,15,14]
[null,1.6,2,4124.9829564881011,15,14]
[null,2.1,2.5,4023.8195371008878,15,14]
[null,2.6,3,4391.5803710668997,15,14]
[null,3.1,4,4620.099669761923,15,14]
[null,4.0999999999999996,6,7584.8181380101014,15,14]
[null,6.1,8,9770.5011146076995,15,14]
[null,8.1,10,11830.127163362988,15,14]
[null,10.1,12,14064.65176479902,15,14]
[null,12.1,14,17254.833359837939,15,14]
[null,14.1,16,21073.29314637035,15,14]
[null,16.100000000000001,18,24607.688074016798,15,14]
[null,18.100000000000001,20,27695.287520098893,15,14]
[null,20.100000000000001,"contact vendor","contact vendor",15,14]
[]
[]
["CCI","Metalwork"]
[2,null,"Units","Avg. Unit Cost","Useful Life (large)","Useful Life (small)"]
["metal_cost_cl","Aluminum Railing","lf",36.004870639991616,40,35]
[null,"Aluminum Stairs","riser",541.42662616528742,40,35]
[null,"Checkered Plate Platform","sf",47.422204619252113,40,35]
[null,"Grating","sf",44.396983345553572,40,35]
[]
[]
["CPI","Off-site GAC Regeneration"]
[5,"Quantity Needed (lb)","Quantity Selected (lb)","Avg. Unit Cost ($/lb)","Useful Life(large)","Useful Life (small)"]
["off_regen_cost_cl",0,1000,1.2151381546471351,"N/A","N/A"]
[null,2000,21000,1.113876641759874,"N/A","N/A"]
[null,40000,40000,1.0126151288726126,"N/A","N/A"]
[]
[]
["CPI","Catalytic Oxidizer - No heat recovery"]
[5,"Size needed (scfm)","Size selected (scfm)","Avg. Unit Cost","Useful Life (large)","Useful Life (small)"]
["og_co_cost_cl",0,478,65427.428113960457,25,20]
[null,479,1373,101775.99928838293,25,20]
[null,1374,2991,225361.14128141932,25,20]
[null,2992,7257,501610.28220703016,25,20]
[null,7258,21040,1570258.2747350507,25,20]
[null,21041,72226,5016102.8220703015,25,20]
[null,72227,221767,16720342.740234338,25,20]
[null,221768,736000,50161028.220703013,25,20]
[null,736001,"contact vendor","contact vendor",25,20]
[]
[]
["CPI","Catalytic Oxidizer - Recuperative"]
[5,"Size needed (scfm)","Size selected (scfm)","Avg. Unit Cost","Useful Life (large)","Useful Life (small)"]
["og_corec_cost_cl",0,478,79966.856583729445,25,20]
[null,479,1373,116315.4277581519,25,20]
[null,1374,2991,270433.36953770323,25,20]
[null,2992,7257,581577.13879075949,25,20]
[null,7258,21040,1895941.4724578762,25,20]
[null,21041,72226,6019323.3864843613,25,20]
[null,72227,221767,20064411.288281206,25,20]
[null,221768,736000,60193233.864843622,25,20]
[null,736001,"contact vendor","contact vendor",25,20]
[]
[]
["CPI","Catalytic Oxidizer - Regenerative"]
[5,"Size needed (scfm)","Size selected (scfm)","Avg. Unit Cost","Useful Life (large)","Useful Life (small)"]
["og_coreg_cost_cl",0,478,90144.456512567733,25,20]
[null,479,1373,135216.68476885161,25,20]
[null,1374,2991,301693.14074770652,25,20]
[null,2992,7257,676083.42384425795,25,20]
[null,7258,21040,2132934.1565151107,25,20]
[null,21041,72226,6771011.8383714184,25,20]
[null,72227,221767,22572462.699316353,25,20]
[null,221768,736000,67717388.097949073,25,20]
[null,736001,"contact vendor","contact vendor",25,20]
[]
[]
["CPI","Gas-Phase GAC Adsorber"]
[5,"Size needed (cu ft)","Size selected (cu ft)","Avg. Unit Cost","Useful Life (large)","Useful Life (small)"]
["og_gac_cost_cl",0,41.7,10367.079004496609,25,20]
[null,41.8,66.7,12978.047050073534,25,20]
[null,66.8,100,20119.812586504529,25,20]
[null,100.1,333.3,25802.507744524897,25,20]
[null,333.4,666.7,56741.711152833326,25,20]
[null,666.8,1333.3,66698.714587818744,25,20]
[null,1333.4,"contact vendor","contact vendor",25,20]
[]
[]
["CPI","Thermal Oxidizer - No heat recovery"]
[5,"Size needed (scfm)","Size selected (scfm)","Avg. Unit Cost","Useful Life (large)","Useful Life (small)"]
["og_to_cost_cl",0,478,58157.713879075949,25,20]
[null,479,1373,87236.570818613924,25,20]
[null,1374,2991,203551.99857676585,25,20]
[null,2992,5000,222036.81079420401,25,20]
[null,5001,7257,407103.9971535317,25,20]
[null,7258,7500,297190.02088205458,25,20]
[null,7501,10000,371152.68506752333,25,20]
[null,10001,15000,446157.07691757614,25,20]
[null,15001,25000,562532.93887539627,25,20]
[null,25001,"contact vendor","contact vendor",25,20]
[]
[]
["CPI","Thermal Oxidizer - Recuperative"]
[5,"Size needed (scfm)","Size selected (scfm)","Avg. Unit Cost","Useful Life (large)","Useful Life (small)"]
["og_torec_cost_cl",0,478,72697.142348844936,25,20]
[null,479,1373,101775.99928838293,25,20]
[null,1374,2991,239900.56975118833,25,20]
[null,2992,7257,501610.28220703016,25,20]
[null,7258,"contact vendor","contact vendor",25,20]
[]
[]
["CPI","Thermal Oxidizer - Regenerative/Flameless"]
[5,"Size needed (scfm)","Size selected (scfm)","Avg. Unit Cost","Useful Life (large)","Useful Life (small)"]
["og_toreg_cost_cl",0,478,109045.71352326742,25,20]
[null,479,500,290788.56939537975,25,20]
[null,501,1373,109045.71352326742,25,20]
[null,1374,1500,363485.71174422477,25,20]
[null,1501,2991,247170.28398607281,25,20]
[null,2992,3000,472531.42526749213,25,20]
[null,3001,5000,237067.45281177413,25,20]
[null,5001,7257,581577.13879075949,25,20]
[null,7258,7500,448982.3561743602,25,20]
[null,7501,10000,405529.69799879752,25,20]
[null,10001,15000,505833.19027446344,25,20]
[null,15001,20000,872365.70818613935,25,20]
[null,20001,21040,1672034.2740234337,25,20]
[null,21041,25000,593635.95057512051,25,20]
[null,25001,75000,1817428.558721124,25,20]
[null,75001,221767,16720342.740234338,25,20]
[null,221768,736000,50161028.220703013,25,20]
[null,736001,"contact vendor","contact vendor",25,20]
[]
[]
["bls118","Orifice Plate Flow Meters"]
[43,"Size needed (in. diam)","Size selected (in. diam)","Avg. Unit Cost","Useful Life (large)","Useful Life (small)"]
["op_fm_cost_cl",0,2,3273.7920911213764,15,14]
[null,2.1,3,3379.627548946592,15,14]
[null,3.1,6,4985.9842502656074,15,14]
[null,6.1,12,6091.5288934885393,15,14]
[null,12.1,24,10222.824325925792,15,14]
[null,48.1,60,29662.510948917716,15,14]
[null,60.1,"contact vendor","contact vendor",15,14]
[]
[]
["bls117507","Operator Interface Software"]
[42,null,null,"Avg. Unit Cost","Useful Life (large)","Useful Life (small)"]
["op_interface_software_cost_cl",0,0,180.29842453713528,10,8]
[]
[]
["bls11510114","PC Workstation"]
[37,null,null,"Avg. Unit Cost","Useful Life (large)","Useful Life (small)"]
["pc_workstation_cost_cl",0,0,1028.6562542174795,10,8]
[]
[]
["bls118","pH Meters/Controllers"]
[43,null,null,"Avg. Unit Cost","Useful Life (large)","Useful Life (small)"]
["pH_meter_cost_cl",0,0,2579.2658773019957,15,14]
[]
[]
["bore_cost",0,0,77.965434167801391,"N/A","N/A"]
[null,"Hand Dug Test Pits",null,"Avg. Unit Cost (per cy)","Useful Life (large)","Useful Life (small)"]
["pit_cost_cl",0,0,256.63622080234626,"N/A","N/A"]
[]
[]
["bls07210606","Plastic Aeration Basins"]
[16,"Size needed (sf)","Size Selected (sf)","Avg. Unit Cost ","Useful Life (large)","Useful Life (small)"]
["pl_basin_cost_cl",0,54,851.68156725072788,25,20]
[null,55,61,843.79562681322102,25,20]
[null,62,62,1715.1789019236533,25,20]
[null,63,64,1185.5197124385131,25,20]
[null,65,65,1167.1191847509974,25,20]
[null,66,66,1893.0638128037012,25,20]
[null,67,70,1937.3127008141557,25,20]
[null,71,72,2043.1157350173712,25,20]
[null,73,75,9200.2638437578626,25,20]
[null,76,80,2187.0341480018692,25,20]
[null,81,81,3053.1732727213594,25,20]
[null,82,88,2890.8543320493454,25,20]
[null,89,90,2080.5739520955281,25,20]
[null,91,96,3046.6016556901041,25,20]
[null,97,104,3244.4073283308981,25,20]
[null,105,108,2102.9174500017971,25,20]
[null,109,126,2641.1328848616322,25,20]
[null,127,129,13406.098743761459,25,20]
[null,130,182,17086.2042812646,25,20]
[null,183,204,11159.262880775163,25,20]
[null,205,210,16058.403377576225,25,20]
[null,211,238,18855.283586078614,25,20]
[null,239,"contact vendor","contact vendor",25,20]
[]
[]
["bls115","Plant Intelligence Software"]
[36,null,null,"Avg. Unit Cost","Useful Life (large)","Useful Life (small)"]
["plant_intel_software_cost_cl",0,0,11389.158237904454,10,8]
[]
[]
["bls115","Expansion Base Controller Module"]
[36,null,null,"Avg. Unit Cost","Useful Life (large)","Useful Life (small)"]
["plc_base_expansion_controller_cost_cl",0,0,85.720842037036689,10,8]
[]
[]
["bls117507","Base Expansion Module"]
[42,null,null,"Avg. Unit Cost","Useful Life (large)","Useful Life (small)"]
["plc_base_expansion_cost_cl",0,0,116.47910851149946,10,8]
[]
[]
["bls117507","I/O Combination Analog Module"]
[42,null,null,"Avg. Unit Cost","Useful Life (large)","Useful Life (small)"]
["plc_combination_analog_cost_cl",0,0,642.24196698280605,10,8]
[]
[]
["bls117507","CPU"]
[42,null,null,"Avg. Unit Cost","Useful Life (large)","Useful Life (small)"]
["plc_cpu_cost_cl",0,0,618.14492116364784,10,8]
[]
[]
["bls117507","PLC Data Collection Software"]
[42,null,null,"Avg. Unit Cost","Useful Life (large)","Useful Life (small)"]
["plc_data_software_cost_cl",0,0,679.18732836164361,10,8]
[]
[]
["bls117507","I/O Discrete Input Module"]
[42,null,null,"Avg. Unit Cost","Useful Life (large)","Useful Life (small)"]
["plc_discrete_input_cost_cl",0,0,301.96506666689612,10,8]
[]
[]
["bls117507","I/O Discrete Output Module"]
[42,null,null,"Avg. Unit Cost","Useful Life (large)","Useful Life (small)"]
["plc_discrete_output_cost_cl",0,0,368.94751294756935,10,8]
[]
[]
["bls117507","Ethernet Module"]
[42,null,null,"Avg. Unit Cost","Useful Life (large)","Useful Life (small)"]
["plc_ethernet_cost_cl",0,0,851.38813944588287,10,8]
[]
[]
["bls115","Operator Interface Unit"]
[36,"System Size",null,"Avg. Unit Cost","Useful Life (large)","Useful Life (small)"]
["plc_op_interface_cost_cl","small","small",1956.6973443540548,10,8]
[null,"large","large",460.12283271511131,10,8]
[]
[]
["bls115","PLC Rack/Power Supply"]
[36,null,null,"Avg. Unit Cost","Useful Life (large)","Useful Life (small)"]
["plc_rack_cost_cl",0,0,340.32753899046696,10,8]
[]
[]
["bls117507","PLC  Programming Software"]
[42,null,null,"Avg. Unit Cost","Useful Life (large)","Useful Life (small)"]
["plc_software_cost_cl",0,0,466.11887438232026,10,8]
[]
[]
["bls1149","PVC Check Valves"]
[35,"Size needed (in. diam)","Size selected (in. diam)","Avg. Unit Cost","Useful Life (large)","Useful Life (small)"]
["pp_chv_cost_cl",0,0.5,78.966836734693871,25,20]
[null,0.6,0.75,86.288265306122454,25,20]
[null,0.76,1,103.02295918367346,25,20]
[null,1.1000000000000001,1.5,156.88775510204081,25,20]
[null,1.51,2,206.04591836734693,25,20]
[null,2.1,2.5,834.85847121606685,25,20]
[null,2.6,3,507.2704081632653,25,20]
[null,3.1,4,700.76530612244903,25,20]
[null,4.0999999999999996,6,1441.7964730019314,25,20]
[null,6.1,8,2132.6875834667753,25,20]
[null,8.1,10,3178.1785811094187,25,20]
[null,10.1,12,4456.8269087159224,25,20]
[null,12.1,"contact vendor","contact vendor",25,20]
[]
[]
["bls1149","Polypropylene/PVC Manual Valves"]
[35,"Size needed (in. diam)","Size selected (in. diam)","Avg. Unit Cost","Useful Life (large)","Useful Life (small)"]
["pp_man_cost_cl",0,0.5,120.97624083884864,25,20]
[null,0.6,0.75,133.66152648053756,25,20]
[null,0.76,1,150.81313998655642,25,20]
[null,1.1000000000000001,1.5,320.34852290609871,25,20]
[null,1.6,2,324.80120175694356,25,20]
[null,2.1,3,353.30793774228283,25,20]
[null,3.1,4,464.29529410866712,25,20]
[null,4.0999999999999996,6,547.93089683324877,25,20]
[null,6.1,8,1112.3356705186295,25,20]
[null,8.1,10,1865.5213700945071,25,20]
[null,10.1,12,2412.2083142432461,25,20]
[null,12.1,14,7297.0145307716721,25,20]
[null,14.1,16,11705.063660566921,25,20]
[null,16.100000000000001,18,15067.867098050701,25,20]
[null,18.100000000000001,20,16788.141590473595,25,20]
[null,20.100000000000001,24,23966.030102078883,25,20]
[null,24.1,"contact vendor","contact vendor",25,20]
[]
[]
["bls1149","Polypropylene/PVC Motor/Air Operated Valves (on/off)"]
[35,"Size needed (in. diam)","Size selected (in. diam)","Avg. Unit Cost","Useful Life (large)","Useful Life (small)"]
["pp_mov_cost_cl",0,1.5,692.93602994131879,25,20]
[null,1.6,2,692.93602994131879,25,20]
[null,2.1,2.5,564.61120550717055,25,20]
[null,2.6,3,864.89561887997615,25,20]
[null,3.1,4,1094.415936300677,25,20]
[null,4.0999999999999996,6,1540.3201838527702,25,20]
[null,6.1,8,2370.4794962951873,25,20]
[null,8.1,10,4231.9628905604131,25,20]
[null,10.1,12,5163.4311809772917,25,20]
[null,12.1,14,9534.9946053551539,25,20]
[null,14.1,16,13600.157796671978,25,20]
[null,16.100000000000001,18,17603.393797883175,25,20]
[null,18.100000000000001,20,19934.156001311945,25,20]
[null,20.100000000000001,24,26822.726245874321,25,20]
[null,24.1,"contact vendor","contact vendor",25,20]
[]
[]
["bls118","Propeller Flow Meters"]
[43,"Size needed (in. diam)","Size selected (in. diam)","Avg. Unit Cost","Useful Life (large)","Useful Life (small)"]
["prop_fm_cost_cl",0,2,2638.3115978130345,15,14]
[null,2.1,3,3329.1558117820819,15,14]
[null,3.1,4,3100.078155222338,15,14]
[null,4.0999999999999996,6,4364.6299496133752,15,14]
[null,6.1,8,4952.1634805810227,15,14]
[null,8.1,10,5299.8424393860041,15,14]
[null,10.1,12,5686.6845336477927,15,14]
[null,12.1,14,10737.043683087666,15,14]
[null,14.1,"contact vendor","contact vendor",15,14]
[]
[]
["bls1141","Centrifugal Pumps (Booster)"]
[30,"Size needed (gpm)","Size selected (gpm)","Avg. Unit Cost","Useful Life (large)","Useful Life (small)"]
["pump_cost_cl",0,10,5569.3884955742142,20,17]
[null,11,30,5795.5507406017077,20,17]
[null,31,50,6608.4783657838652,20,17]
[null,51,55,7767.8599401083775,20,17]
[null,56,75,8244.055402912285,20,17]
[null,76,100,8244.055402912285,20,17]
[null,101,120,10543.373269362453,20,17]
[null,121,125,8886.1187947329745,20,17]
[null,126,140,10543.373269362453,20,17]
[null,141,200,9860.8553353628813,20,17]
[null,201,250,10403.831912339216,20,17]
[null,251,300,10950.756520321143,20,17]
[null,301,500,14817.74953427314,20,17]
[null,501,750,15245.234456192235,20,17]
[null,751,1000,17479.380929028201,20,17]
[null,1001,1500,20907.303159775358,20,17]
[null,1501,2000,31037.800609660451,20,17]
[null,2001,3000,35660.896102217455,20,17]
[null,3001,3500,40615.454496523613,20,17]
[null,3501,4000,42599.858223068601,20,17]
[null,4001,6000,88269.221898713586,20,17]
[null,6001,10000,79060.747372874335,20,17]
[null,10001,"contact vendor","contact vendor",20,17]
[]
[]
["bls072106033","PVC Piping"]
[15,"Size needed (in. diam)","Size selected (in. diam)","Avg. Unit Cost ($/lf)","Useful Life (large)","Useful Life (small)"]
["pvc_pipe_cost_cl",0,0.5,2.8946541326676147,22,17]
[null,0.6,0.75,3.7808146773277085,22,17]
[null,0.76,1,5.5983120477418034,22,17]
[null,1.1000000000000001,1.5,8.7268562863438071,22,17]
[null,1.6,2,1.8181060606060608,22,17]
[null,2.1,2.5,2.8418939393939397,22,17]
[null,2.6,3,4.6335227272727275,22,17]
[null,3.1,4,7.8107954545454552,22,17]
[null,4.0999999999999996,6,11.47348484848485,22,17]
[null,6.1,8,16.239393939393938,22,17]
[null,8.1,10,24.270833333333336,22,17]
[null,10.1,12,30.890151515151519,22,17]
[null,12.1,14,22.50568181818182,22,17]
[null,14.1,16,28.683712121212125,22,17]
[null,16.100000000000001,18,36.185606060606062,22,17]
[null,18.100000000000001,20,44.128787878787882,22,17]
[null,20.100000000000001,24,60.456439393939398,22,17]
[null,24.1,30,104.14393939393941,22,17]
[null,30.1,36,147.39015151515153,22,17]
[null,36.1,42,196.81439393939397,22,17]
[null,42.1,48,247.12121212121215,22,17]
[null,48.1,"contact vendor","contact vendor",22,17]
[]
[]
[3,null,null,"Avg. Unit Cost (per sf)","Useful Life (large)"]
["sitework_sf_cl","Sitework unit cost","sitework_sf_cl",12.406593406593407,"N/A"]
[]
[]
["bls1072","Stainless Steel Aeration Basins"]
[23,"Size needed (sf)","Size Selected (sf)","Avg. Unit Cost ","Useful Life (large)","Useful Life (small)"]
["ss_basin_cost_cl",0,53,14818.375138510293,35,30]
[null,54,100,21169.107340728988,35,30]
[null,101,122,26834.956658394687,35,30]
[null,123,362,34866.765031788927,35,30]
[null,363,470,45451.318702153418,35,30]
[null,471,"contact vendor","contact vendor",35,30]
[]
[]
["bls1149","Stainless Steel Check Valves"]
[35,"Size needed (in. diam)","Size selected (in. diam)","Avg. Unit Cost","Useful Life (large)","Useful Life (small)"]
["ss_chv_cost_cl",0,0.5,290.01541080475738,25,20]
[null,0.6,0.75,271.18613139554441,25,20]
[null,0.76,1,501.56303271382831,25,20]
[null,1.1000000000000001,1.5,773.638993380648,25,20]
[null,1.6,2,831.15579717429205,25,20]
[null,2.1,2.5,810.59811094879706,25,20]
[null,2.6,3,2152.4263572466148,25,20]
[null,3.1,4,2937.1221874453986,25,20]
[null,4.0999999999999996,6,3158.4666687873764,25,20]
[null,6.1,8,4841.2387467025665,25,20]
[null,8.1,10,4791.3957054389175,25,20]
[null,10.1,12,7330.9868053155278,25,20]
[null,12.1,14,9770.562248975255,25,20]
[null,14.1,16,12868.405806842762,25,20]
[null,16.100000000000001,18,15391.00528818927,25,20]
[null,18.100000000000001,20,20302.83987406017,25,20]
[null,20.100000000000001,24,30901.137716062232,25,20]
[null,24.1,30,42506.043999802758,25,20]
[null,30.1,36,50899.818737194953,25,20]
[null,36.1,42,69086.330668211376,25,20]
[null,42.1,48,83075.955230531705,25,20]
[null,48.1,"contact vendor","contact vendor",25,20]
[]
[]
["bls1149","Stainless Steel Manual Valves"]
[35,"Size needed (in. diam)","Size selected (in. diam)","Avg. Unit Cost","Useful Life (large)","Useful Life (small)"]
["ss_man_cost_cl",0,1,273.73819962872886,25,20]
[null,1.1000000000000001,1.5,308.72709277326186,25,20]
[null,1.6,2,353.57159927046263,25,20]
[null,2.1,3,2502.87360836586,25,20]
[null,3.1,4,3740.6370418295046,25,20]
[null,4.0999999999999996,6,5473.1545922115865,25,20]
[null,6.1,8,6660.036684231969,25,20]
[null,8.1,10,8641.8978013128562,25,20]
[null,10.1,12,12384.324661767663,25,20]
[null,12.1,"contact vendor","contact vendor",25,20]
[]
[]
["bls1149","Stainless Steel Motor/Air Operated Valves (on/off)"]
[35,"Size needed (in. diam)","Size selected (in. diam)","Avg. Unit Cost","Useful Life (large)","Useful Life (small)"]
["ss_mov_cost_cl",0,1,896.29631859504059,25,20]
[null,1.1000000000000001,1.5,908.54054833323357,25,20]
[null,1.6,2,934.86564227034819,25,20]
[null,2.1,3,2442.8614163691632,25,20]
[null,3.1,4,3739.6413809963801,25,20]
[null,4.0999999999999996,6,5801.8997662328784,25,20]
[null,6.1,8,8839.7270217761034,25,20]
[null,8.1,14,21151.829810794432,25,20]
[null,14.1,16,24432.805224950796,25,20]
[null,16.100000000000001,20,40120.430023402849,25,20]
[null,20.100000000000001,24,56200.676421632204,25,20]
[null,24.1,30,69348.572475929424,25,20]
[null,30.1,48,191410.6355729409,25,20]
[null,48.1,"contact vendor","contact vendor",25,20]
[]
[]
["bls10170674","Stainless Steel Piping"]
[21,"Size needed (in. diam)","Size selected (in. diam)","Avg. Unit Cost ($/lf)","Useful Life (large)","Useful Life (small)"]
["ss_pipe_cost_cl",0,0.5,18.821917808219176,45,40]
[null,0.6,0.75,24.199608610567513,45,40]
[null,0.76,1,27.336594911937375,45,40]
[null,1.1000000000000001,1.25,32.266144814090019,45,40]
[null,1.26,1.5,40.780821917808218,45,40]
[null,1.6,2,58.258317025440313,45,40]
[null,2.1,2.5,75.7358121330724,45,40]
[null,2.6,3,92.317025440313103,45,40]
[null,3.1,4,111.13894324853229,45,40]
[null,4.0999999999999996,6,199.87084148727982,45,40]
[null,6.1,8,291.29158512720153,45,40]
[null,8.1,10,407.8082191780822,45,40]
[null,10.1,12,519.84344422700588,45,40]
[null,12.1,16,162.24829602456663,45,40]
[null,16.100000000000001,36,1060.4479428347518,45,40]
[null,36.1,48,1619.5913402149581,45,40]
[null,48.1,"contact vendor","contact vendor",45,40]
[]
[]
["bls107411","Steel Piping"]
[25,"Size needed (in. diam)","Size selected (in. diam)","Avg. Unit Cost ($/lf)","Useful Life (large)","Useful Life (small)"]
["st_pipe_cost_cl",0,1,18.719356435643565,35,33]
[null,1.1000000000000001,1.5,23.833663366336634,35,33]
[null,1.6,2,29.792079207920793,35,33]
[null,2.1,2.5,42.205445544554458,35,33]
[null,2.6,3,48.163861386138613,35,33]
[null,3.1,4,59.584158415841586,35,33]
[null,4.0999999999999996,6,103.27920792079208,35,33]
[null,6.1,8,144.98811881188118,35,33]
[null,8.1,10,182.72475247524753,35,33]
[null,10.1,12,221.45445544554454,35,33]
[null,12.1,36,210.45107122266231,35,33]
[null,36.1,48,286.60952696100981,35,33]
[null,48.1,"contact vendor","contact vendor",35,33]
[]
[]
["CCI","Geotechnical costs"]
[2,"Borings, initial field stake out & determination of elevations",null,"Avg. Unit Cost (per day)","Useful Life (large)","Useful Life (small)"]
["stake_out_cost_cl",0,0,1380.637896721483,"N/A","N/A"]
[]
[]
["bls1173","Standby Generators for Standby Power Calculations"]
[40,"Size needed (kW)","Size selected (kW)","Avg. Unit Cost ($/kW)","Useful Life (large)","Useful Life (small)"]
["std_gen_cost_cl",0,30,512.61436672967864]
[null,31,50,515.08837429111531]
[null,51,125,300.83931947069942]
[null,126,150,315.68336483931949]
[null,151,175,298.86011342155012]
[null,176,200,281.54206049149337]
[null,201,250,238.49432892249527]
[null,251,300,211.92348771266541]
[null,301,350,204.35302457466918]
[null,351,400,217.2178638941399]
[null,401,500,215.68397920604914]
[null,501,750,223.20496219281665]
[null,751,1000,209.00415879017012]
[]
[]
["bls118","Drive Controllers"]
[43,null,null,"Avg. Unit Cost","Useful Life (large)","Useful Life (small)"]
["switch_cost_cl",0,0,1050.7602875287325,15,14]
[]
[]
["bls117507","UPS"]
[42,null,null,"Avg. Unit Cost","Useful Life (large)","Useful Life (small)"]
["ups_cost_cl",0,0,554.1500546321148,10,8]
[]
[]
["bls118","Venturi Flow Meters"]
[43,"Size needed (in. diam)","Size selected (in. diam)","Avg. Unit Cost","Useful Life (large)","Useful Life (small)"]
["ven_fm_cost_cl",0,2,5355.7411274588712,15,14]
[null,2.1,3,8053.1426378269425,15,14]
[null,3.1,6,11862.405314631382,15,14]
[null,6.1,12,16976.925535525312,15,14]
[null,12.1,24,45004.531826520462,15,14]
[null,24.1,"contact vendor","contact vendor",15,14]
[]
[]
["BCI","High Quality, No Heating or Cooling"]
[3,"Size needed (sf)","Size selected (sf)","Avg. Unit Cost","Useful Life (large)","Useful Life (small)"]
["bldg_hi_cost_cl",0,500,159.07908338693841,40,37]
[null,500.1,1000,134.48989773181236,40,37]
[null,1000.1,2000,119.99061567532515,40,37]
[null,2000.1,3000,113.05522708745617,40,37]
[null,3000.1,4000,106.56398111474454,40,37]
[null,4000.1,5000,101.26097504978043,40,37]
[null,5000.1000000000004,7500,96.230452398690204,40,37]
[null,7500.1,8000,95.462656603464197,40,37]
[null,8000.1,10000,91.434111432887718,40,37]
[null,10000.1,12000,91.42645385658453,40,37]
[null,12000.1,15000,87.464178798799722,40,37]
[null,15000.1,18000,86.039219362928449,40,37]
[null,18000.099999999999,20000,83.791438710432772,40,37]
[null,20000.099999999999,24000,85.13575829499753,40,37]
[null,24000.1,25000,81.955906140092466,40,37]
[null,25000.1,30000,81.321635182269304,40,37]
[null,30000.1,36000,81.113956213091924,40,37]
[null,36000.1,42000,78.820692492194596,40,37]
[null,42000.1,48000,78.442476390741092,40,37]
[null,48000.1,50000,77.50328603606313,40,37]
[null,50000.1,54000,77.670676674084788,40,37]
[null,54000.1,60000,77.536387587302769,40,37]
[null,60000.1,100000,74.194750116152491,40,37]
[null,100000.1,200000,71.645659476510929,40,37]
[null,200000.1,"contact vendor"]
[]
[]
["BCI","Low Quality, No Heating or Cooling"]
[3,"Size needed (sf)","Size selected (sf)","Avg. Unit Cost","Useful Life (large)","Useful Life (small)"]
["bldg_lo_cost_cl",0,500,87.995785986471901,40,37]
[null,500.1,1000,77.621462890510927,40,37]
[null,1000.1,2000,72.708529355935639,40,37]
[null,2000.1,3000,70.448126773803963,40,37]
[null,3000.1,4000,67.10586719809551,40,37]
[null,4000.1,5000,64.083332472303539,40,37]
[null,5000.1000000000004,7500,62.434992707695244,40,37]
[null,7500.1,8000,62.039898758338346,40,37]
[null,8000.1,10000,59.601904884277673,40,37]
[null,10000.1,12000,60.141213921311682,40,37]
[null,12000.1,15000,58.049478649126854,40,37]
[null,15000.1,18000,57.038238046894868,40,37]
[null,18000.099999999999,20000,55.747779628728985,40,37]
[null,20000.099999999999,24000,56.7476648499348,40,37]
[null,24000.1,25000,54.954566251469601,40,37]
[null,25000.1,30000,54.543501965211384,40,37]
[null,30000.1,36000,54.620213823951723,40,37]
[null,36000.1,42000,53.166293359731071,40,37]
[null,42000.1,48000,52.973026700809307,40,37]
[null,48000.1,50000,52.540388459087275,40,37]
[null,50000.1,54000,52.553834255644766,40,37]
[null,54000.1,60000,52.709397172651471,40,37]
[null,60000.1,100000,50.821176793453027,40,37]
[null,100000.1,200000,49.386195901973075,40,37]
[null,200000.1,"contact vendor"]
[]
[]
["BCI","Mid Quality, No Heating or Cooling"]
[3,"Size needed (sf)","Size selected (sf)","Avg. Unit Cost","Useful Life (large)","Useful Life (small)"]
["bldg_mid_cost_cl",0,500,107.33255707277601,40,37]
[null,500.1,1000,94.997668571176817,40,37]
[null,1000.1,2000,88.799580495613213,40,37]
[null,2000.1,3000,85.480400414744835,40,37]
[null,3000.1,4000,81.513874168064731,40,37]
[null,4000.1,5000,77.947857047263511,40,37]
[null,5000.1000000000004,7500,75.369230925707001,40,37]
[null,7500.1,8000,74.924930463810057,40,37]
[null,8000.1,10000,72.198626248586834,40,37]
[null,10000.1,12000,72.531408178813038,40,37]
[null,12000.1,15000,70.043868657921522,40,37]
[null,15000.1,18000,68.866368293667662,40,37]
[null,18000.099999999999,20000,67.453437592014495,40,37]
[null,20000.099999999999,24000,68.497461988820163,40,37]
[null,24000.1,25000,66.425629355850404,40,37]
[null,25000.1,30000,65.987269571697894,40,37]
[null,30000.1,36000,66.045749729227992,40,37]
[null,36000.1,42000,64.392614702025625,40,37]
[null,42000.1,48000,64.183335801111227,40,37]
[null,48000.1,50000,63.686652755242086,40,37]
[null,50000.1,54000,63.71982198890921,40,37]
[null,54000.1,60000,63.838974048679063,40,37]
[null,60000.1,100000,61.671705532780635,40,37]
[null,100000.1,200000,60.042345492267373,40,37]
[null,200000.1,"contact vendor"]
[]
[]
["BCI","Small Low Cost Shed"]
[3,"Size needed (sf)","Size selected (sf)","Avg. Unit Cost","Useful Life (large)","Useful Life (small)"]
["bldg_shed_cost_cl",0,500,44.535049010481643,25,20]
[null,500.1,"contact vendor","contact vendor"]
[]
[]
["bls1148","Air conditioning system"]
[34,"Size needed (tons)","Size selected (tons)","Avg. Unit Cost","Useful Life (large)","Useful Life (small)"]
["hvac_ac_cost_cl",0,3.33,10838.899103872505,25,20]
[null,3.34,6.66,21973.94299200382,25,20]
[null,6.67,16.66,67521.010811009022,25,20]
[null,16.670000000000002,33.33,148072.39212940581,25,20]
[null,33.339999999999996,66.66,325759.26268469275,25,20]
[null,66.67,113.32,675210.10811009037,25,20]
[null,113.33,"contact vendor","contact vendor",25,20]
[]
[]
["bls106","Electric resistance heaters"]
[22,"Size needed (MBH)","Size selected (MBH)","Avg. Unit Cost","Useful Life (large)","Useful Life (small)"]
["hvac_elec_cost_cl",0,41,25390.80635367483,25,20]
[null,41.1,103,53576.930838029468,25,20]
[null,103.1,461,92088.960497115258,25,20]
[null,461.1,820,199574.06737165977,25,20]
[null,820.1,1010,255631.84305066755,25,20]
[null,1010.1,1432,352629.38218525652,25,20]
[null,1432.1,2273,446295.83388078545,25,20]
[null,2273.1,3071,657256.1637714142,25,20]
[null,3071.1,6148,1131859.2525888835,25,20]
[null,6148.1,"contact vendor","contact vendor",25,20]
[]
[]
["bls106","Natural gas condensing furnace"]
[22,"Size needed (MBH)","Size selected (MBH)","Avg. Unit Cost","Useful Life (large)","Useful Life (small)"]
["hvac_gas_cost_cl",0,80,28387.695840973975,25,20]
[null,80.099999999999994,163,37474.697702062273,25,20]
[null,163.1,544,94596.657659136501,25,20]
[null,544.1,1088,164963.29423365206,25,20]
[null,1088.0999999999999,3264,385356.91067458765,25,20]
[null,3264.1,5032,737270.2117085224,25,20]
[null,5032.1000000000004,"contact vendor","contact vendor",25,20]
[]
[]
["bls106","Natural gas non-condensing furnace"]
[22,"Size needed (MBH)","Size selected (MBH)","Avg. Unit Cost","Useful Life (large)","Useful Life (small)"]
["hvac_gas_non_cost_cl",0,80,28387.695840973975,25,20]
[null,80.099999999999994,163,37474.697702062273,25,20]
[null,163.1,544,94596.657659136501,25,20]
[null,544.1,1088,164963.29423365206,25,20]
[null,1088.0999999999999,3264,385356.91067458765,25,20]
[null,3264.1,5032,737270.2117085224,25,20]
[null,5032.1000000000004,"contact vendor","contact vendor",25,20]
[]
[]
["bls1148","Heat pump"]
[34,"Size needed (MBH)","Size selected (MBH)","Avg. Unit Cost","Useful Life (large)","Useful Life (small)"]
["hvac_hp_cost_cl",0,0.5,3823.0657511890076,25,20]
[null,0.51,0.75,4170.6171831152806,25,20]
[null,0.76,1,3627.5680707304782,25,20]
[null,1.01,1.5,3757.899857702831,25,20]
[null,1.51,2,4018.5634316475362,25,20]
[null,2.0099999999999998,2.5,4322.6709345830259,25,20]
[null,2.5099999999999998,3,4605.0564730231217,25,20]
[null,3.01,3.5,5104.6616564171409,25,20]
[null,3.51,4,5495.6570173341979,25,20]
[null,4.01,5,6060.4280942143923,25,20]
[null,5.01,7.5,11686.416898520942,25,20]
[null,7.51,10,15270.541040260636,25,20]
[null,10.01,12,18072.674460166218,25,20]
[null,12.01,15,24328.600234839138,25,20]
[null,15.01,20,26587.684542359915,25,20]
[null,20.010000000000002,25,36145.348920332435,25,20]
[null,25.01,30,39620.863239595164,25,20]
[null,30.01,40,55955.780540130014,25,20]
[null,40.01,50,63254.36061058176,25,20]
[null,50.01,"contact vendor","contact vendor"]
[]
[]
["bls106","Mid-efficiency oil furnace"]
[22,"Size needed (MBH)","Size selected (MBH)","Avg. Unit Cost","Useful Life (large)","Useful Life (small)"]
["hvac_oil_mid_cost_cl",0,109,36714.704707426987,25,20]
[null,109.1,235,53617.68935706107,25,20]
[null,235.1,940,150823.31746008739,25,20]
[null,940.1,1600,240940.24964248959,25,20]
[null,1600.1,2480,374418.88559466694,25,20]
[null,2480.1,3350,469814.63388817233,25,20]
[null,3350.1,"contact vendor","contact vendor",25,20]
[]
[]
["bls106","Standard efficiency oil furnace"]
[22,"Size needed (MBH)","Size selected (MBH)","Avg. Unit Cost","Useful Life (large)","Useful Life (small)"]
["hvac_oil_std_cost_cl",0,109,36714.704707426987,25,20]
[null,109.1,235,53617.68935706107,25,20]
[null,235.1,940,150823.31746008739,25,20]
[null,940.1,1600,240940.24964248959,25,20]
[null,1600.1,2480,374418.88559466694,25,20]
[null,2480.1,3350,469814.63388817233,25,20]
[null,3350.1,"contact vendor","contact vendor",25,20]
[]
[]
[null,"Building maintenance (labor and materials)","building_matl_rate_cl",5.643390472522726,"/sf/yr"]
[]
[]
[null,"Cooling system maintenance (labor and materials)","cooling_matl_rate_cl",7.1731463720223335E-2,"/sf/yr"]
[]
[]
[null,"Heating oil cost","diesel_cost_cl",1.9400231874222376,"/gal"]
[]
[]
[null,"Energy cost","energy_cost_cl",0.10761526717557252,"/kwh"]
[]
[]
[null,"Natural gas cost","gas_cost_cl",0.64354043868972843,"/therm"]
[]
[]
[null,"Heating system maintenance (labor and materials)","heating_matl_rate_cl",0.12941275589372611,"/sf/yr"]
[]
[]
["ECI","Labor Costs",null,null,"Inf. Adj. Rates"]
[4,"Design Flow Needed (mgd)","Design Flow (mgd)","Average Water Treatment Plant Operators3","Technical Rate (Loaded)","Managerial Rate (Loaded)","Clerical Rate (Loaded)"]
["labor_table_cl",0,0.03,1,31.124974886390817,44.119913896197083,29.723303037550828]
[null,3.1E-2,0.124,1,31.124974886390817,44.119913896197083,29.723303037550828]
[null,0.1241,0.30499999999999999,1.2,31.124974886390817,44.119913896197083,29.723303037550828]
[null,0.30509999999999998,0.74,1.2,31.124974886390817,44.119913896197083,29.723303037550828]
[null,0.74099999999999999,2.1520000000000001,1.6,33.207833054293232,50.460186558239663,29.723303037550828]
[null,2.1520999999999999,7.3650000000000002,2.8,35.054895957904812,56.210971059555128,38.382229131786652]
[null,7.3651,22.614000000000001,3.8,36.587565175795262,65.590382683568521,38.382229131786652]
[null,22.614100000000001,75.069999999999993,7.8,42.75754125807223,70.07049270509448,38.382229131786652]
[]
[]
[null,"Land Costs"]
["CPI","Land Costs"]
[5,"System Size  greater than (MGD)","Assumed Population","Unit Cost ($/acre)"]
["land_cost_cl",0,"25-100",21610.62374777492]
[null,3.1E-2,"101-500",21587.224712714382]
[null,0.1241,"501-1,000",16179.597388061276]
[null,0.30509999999999998,"1,001-3,300",19306.234049498013]
[null,0.74099999999999999,"3,301-10,000",35434.32768559036]
[null,2.1520999999999999,"10,001-50,000",45561.091826416829]
[null,7.3651,"50,001-100,000",50936.822968903063]
[null,22.614100000000001,"100,001-1,000,000",109103.28856201684]
[]
[]
[null,"NEPA Compliance Costs"]
[null,"Land area (acres)","Permit Cost (inf. adj.)"]
["NEPA_cost_cl",0,1648.4209532231273]
[null,1.0009999999999999,6490.6575033160634]
[]
[]
[null,"Non-hazardous waste disposal","nonhaz_disposal_cost_cl",68.203416939606896,"/ton"]
[]
[]
[null,"Non-hazardous waste transportation","nonhaz_transportation_cost_cl",0.51491517153097799,"/ton-mile"]
[]
[]
[null,"Pilot Studies"]
["ECI","Pilot study costs"]
[4,"Small systems"]
[null,"Model ","Total (current yr $)"]
["pilot_cost_small","GAC",15187.385470429072]
[null,"AA",15187.385470429072]
[null,"AAFS-50",15187.385470429072]
[null,"G2",15187.385470429072]
[null,"SORB33",15187.385470429072]
[null,"GFH",15187.385470429072]
[null,"GF",15187.385470429072]
[null,"AX",15187.385470429072]
[null,"CX",15187.385470429072]
[null,"Lime",585.22935652173919]
[null,"RO",1297.0579868069935]
[null,"NF",1297.0579868069935]
[null,"EDR",839.95288379342082]
[null,"PLPM",54446.282049274036]
[null,"SLPM",54446.282049274036]
[null,"confilt",2549.2860872640613]
[null,"dirfilt",2549.2860872640613]
[null,"UV",0]
[null,"PTA",0]
[null,"MSBA",15474.928381613428]
[null,"Tray Aeration",15474.928381613428]
[null,"Diffuse Aeration",14171.617783573663]
[null,"O3_PX",2177.4450039756166]
[null,"O3_D",26923.042009717843]
[null,"RCF for Cr(VI) Removal",4802.331052181351]
[null,"BIO",129444.98639138286]
[null,"Medium systems"]
["pilot_cost_medium","GAC",68018.238030490378]
[null,"AA",68018.238030490378]
[null,"AAFS-50",68018.238030490378]
[null,"G2",68018.238030490378]
[null,"SORB33",68018.238030490378]
[null,"GFH",68018.238030490378]
[null,"GF",68018.238030490378]
[null,"AX",68018.238030490378]
[null,"CX",68018.238030490378]
[null,"Lime",585.22935652173919]
[null,"RO",62483.494827849783]
[null,"NF",62483.494827849783]
[null,"EDR",63543.36485163492]
[null,"PLPM",97491.340526613421]
[null,"SLPM",97491.340526613421]
[null,"confilt",72782.178465376768]
[null,"dirfilt",72782.178465376768]
[null,"UV",19137.991228480849]
[null,"PTA",0]
[null,"MSBA",35492.720326123235]
[null,"Tray Aeration",35492.720326123235]
[null,"Diffuse Aeration",33302.319784010746]
[null,"O3_PX",3266.1675059634254]
[null,"O3_D",39847.213950722056]
[null,"RCF for Cr(VI) Removal",166485.69646395289]
[null,"BIO",206990.07077423073]
[null,"Large systems"]
["pilot_cost_large_cl","GAC",68018.238030490378]
[null,"AA",68018.238030490378]
[null,"AAFS-50",68018.238030490378]
[null,"G2",68018.238030490378]
[null,"SORB33",68018.238030490378]
[null,"GFH",68018.238030490378]
[null,"GF",68018.238030490378]
[null,"AX",68018.238030490378]
[null,"CX",68018.238030490378]
[null,"Lime",585.22935652173919]
[null,"RO",129724.46911532956]
[null,"NF",129724.46911532956]
[null,"EDR",133957.00618317962]
[null,"PLPM",200273.78090263117]
[null,"SLPM",200273.78090263117]
[null,"confilt",132391.8105366368]
[null,"dirfilt",132391.8105366368]
[null,"UV",37627.611747076604]
[null,"PTA",0]
[null,"MSBA",68147.708121384334]
[null,"Tray Aeration",68147.708121384334]
[null,"Diffuse Aeration",65957.307579271845]
[null,"O3_PX",4354.8900079512332]
[null,"O3_D",39847.213950722056]
[null,"RCF for Cr(VI) Removal",195533.94282836688]
[null,"BIO",339563.63640337437]
[]
[]
[null,"Pilot Studies"]
["ECI","Pilot study costs"]
[4,"Small systems"]
[null,"Model ","Total (current yr $)"]
["pilot_cost_small","GAC",15187.385470429072]
[null,"AA",15187.385470429072]
[null,"AAFS-50",15187.385470429072]
[null,"G2",15187.385470429072]
[null,"SORB33",15187.385470429072]
[null,"GFH",15187.385470429072]
[null,"GF",15187.385470429072]
[null,"AX",15187.385470429072]
[null,"CX",15187.385470429072]
[null,"Lime",585.22935652173919]
[null,"RO",1297.0579868069935]
[null,"NF",1297.0579868069935]
[null,"EDR",839.95288379342082]
[null,"PLPM",54446.282049274036]
[null,"SLPM",54446.282049274036]
[null,"confilt",2549.2860872640613]
[null,"dirfilt",2549.2860872640613]
[null,"UV",0]
[null,"PTA",0]
[null,"MSBA",15474.928381613428]
[null,"Tray Aeration",15474.928381613428]
[null,"Diffuse Aeration",14171.617783573663]
[null,"O3_PX",2177.4450039756166]
[null,"O3_D",26923.042009717843]
[null,"RCF for Cr(VI) Removal",4802.331052181351]
[null,"BIO",129444.98639138286]
[null,"Medium systems"]
["pilot_cost_medium_cl","GAC",68018.238030490378]
[null,"AA",68018.238030490378]
[null,"AAFS-50",68018.238030490378]
[null,"G2",68018.238030490378]
[null,"SORB33",68018.238030490378]
[null,"GFH",68018.238030490378]
[null,"GF",68018.238030490378]
[null,"AX",68018.238030490378]
[null,"CX",68018.238030490378]
[null,"Lime",585.22935652173919]
[null,"RO",62483.494827849783]
[null,"NF",62483.494827849783]
[null,"EDR",63543.36485163492]
[null,"PLPM",97491.340526613421]
[null,"SLPM",97491.340526613421]
[null,"confilt",72782.178465376768]
[null,"dirfilt",72782.178465376768]
[null,"UV",19137.991228480849]
[null,"PTA",0]
[null,"MSBA",35492.720326123235]
[null,"Tray Aeration",35492.720326123235]
[null,"Diffuse Aeration",33302.319784010746]
[null,"O3_PX",3266.1675059634254]
[null,"O3_D",39847.213950722056]
[null,"RCF for Cr(VI) Removal",166485.69646395289]
[null,"BIO",206990.07077423073]
[]
[]
[null,"Pilot Studies"]
["ECI","Pilot study costs"]
[4,"Small systems"]
[null,"Model ","Total (current yr $)"]
["pilot_cost_small_cl","GAC",15187.385470429072]
[null,"AA",15187.385470429072]
[null,"AAFS-50",15187.385470429072]
[null,"G2",15187.385470429072]
[null,"SORB33",15187.385470429072]
[null,"GFH",15187.385470429072]
[null,"GF",15187.385470429072]
[null,"AX",15187.385470429072]
[null,"CX",15187.385470429072]
[null,"Lime",585.22935652173919]
[null,"RO",1297.0579868069935]
[null,"NF",1297.0579868069935]
[null,"EDR",839.95288379342082]
[null,"PLPM",54446.282049274036]
[null,"SLPM",54446.282049274036]
[null,"confilt",2549.2860872640613]
[null,"dirfilt",2549.2860872640613]
[null,"UV",0]
[null,"PTA",0]
[null,"MSBA",15474.928381613428]
[null,"Tray Aeration",15474.928381613428]
[null,"Diffuse Aeration",14171.617783573663]
[null,"O3_PX",2177.4450039756166]
[null,"O3_D",26923.042009717843]
[null,"RCF for Cr(VI) Removal",4802.331052181351]
[null,"BIO",129444.98639138286]
[]
[]
[null,"Storm Water Permit Costs"]
[null,"Land area (acres)","Permit Cost (inf. adj.)"]
["SW_permit_cost_cl",0,0]
[null,1,2266.5788106818]
[null,5,2369.6051202582453]

{"sheet":"Engineering Data","index":19,"n_rows":153,"n_cols":6,"rows_kept":153,"cut":false,"hidden":false,"merged":[]}
["Engineering Data"]
["This sheet is used internally and contains engineering reference and indirect cost data extracted from the central cost database"]
[]
["Architectural Fee"]
["Building cost lookup","Corresponds to the range","Architectural fee"]
[0,"<$250,000",0.09]
[250000,"$250,000 to $500,000",0.08]
[500000,"$500,000 to $1,000,000",7.0000000000000007E-2]
[1000000,"$1,000,000 to $5,000,000",6.2E-2]
[5000000,"$5,000,000 to $10,000,000",5.2999999999999999E-2]
[10000000,"$10,000,000 to $50,000,000",4.9000000000000002E-2]
[50000000,">$50,000,000",4.4999999999999998E-2]
[]
[]
["Catalytic Oxidizer Dimensions"]
["Rating needed (cfm)","Rating selected (cfm)","Length (in)","Width (in)","Length (ft)","Width (ft)"]
[0,1000,96,54,8,4.5]
[1001,1500,96,54,8,4.5]
[1501,2000,120,66,10,5.5]
[2001,3000,120,66,10,5.5]
[3001,4000,120,78,10,6.5]
[4001,5000,120,90,10,7.5]
[5001,10000,144,96,12,8]
[10001,20000,168,120,14,10]
[20001,40000,192,192,16,16]
[40001,80000,384,384,32,32]
[80001,120000,576,576,48,48]
[]
[]
["Construction Management Fee"]
["Building cost lookup","Corresponds to the range","Construction management fee"]
[0,"<$100,000",0.1]
[100000,"$100,000 to $250,000",0.09]
[250000,"$250,000 to $1,000,000",0.06]
[1000000,"$1,000,000 to $5,000,000",0.05]
[5000000,"$5,000,000 to $10,000,000",0.04]
[10000000,">$10,000,000",3.2000000000000001E-2]
[]
[]
["Contingency Factors"]
["Project direct cost","Corresponds to the range","Default contingency (prior to application of technology complexity factor)"]
[0,"<$500,000",6.7000000000000004E-2]
[500000,"$500,000 to $3,000,000",5.8000000000000003E-2]
[3000000,"$3,000,000 to $15,000,000",4.9000000000000002E-2]
[15000000,"$15,000,000 to $50,000,000",4.1000000000000002E-2]
[50000000,"$50,000,000 to $100,000,000",3.2000000000000001E-2]
[100000000,">$100,000,000",5.8000000000000003E-2]
[]
[]
["Diffuser dimensions"]
["Size Needed (cfm)","Size Selected (cfm)","Diameter (in)","Length (in)"]
[0,14,2.6,24]
[14.1,15,2.6,26]
[15.1,17,2.6,30]
[17.100000000000001,23,2.6,39]
[23.1,34,3.7,39]
[34.1,44,3.7,39]
[]
[]
["Maximum cooling capacity for heat pump","hp_max_cool_cl",50,"tons"]
[]
[]
["Maximum heating capacity for heat pump","hp_max_heat_cl",200,"MBH"]
[]
[]
["Maximum cooling capacity","max_cool_cl",113.32,"tons"]
[]
[]
["Maximum heating capacity","max_heat_cl",6148,"MBH"]
[]
[]
["Performance Bond"]
["Direct cost lookup","Corresponds to the range","Base cost","Plus fraction","Of amount over"]
[0,"<$100,000",0,2.5000000000000001E-2,0]
[100000,"$100,000 to $500,000",2500,1.4999999999999999E-2,100000]
[500000,"$500,000 to $2,500,000",8500,0.01,500000]
[2500000,"$2,500,000 to $5,000,000",28500,7.4999999999999997E-3,2500000]
[5000000,"$5,000,000 to $7,500,000",47250,7.0000000000000001E-3,5000000]
[7500000,">$7,500,000",64750,6.0000000000000001E-3,7500000]
[]
[]
["Pipe Size Selection"]
["Flow (GPM)","Diameter (inch)","Maximum Flow (GPM)"]
[0,0.5,2]
[2.1,0.75,4]
[4.0999999999999996,1,7]
[7.1,1.5,21]
[21.1,2,41]
[41.1,2.5,66]
[66.099999999999994,3,116]
[116.1,4,238]
[238.1,6,697]
[697.1,8,1435]
[1435.1,10,2608]
[2608.1,12,4132]
[4132.1000000000004,14,5299]
[5299.1,16,7528]
[7528.1,18,10265]
[10265.1,20,13643]
[13643.1,24,22174]
[22174.1,30,50561]
[50561.1,36,81777]
[81777.100000000006,42,122025]
[122025.1,48]
[]
[]
["Pump Dimensions (for centrifugal pumps)"]
["Pump Rating Needed (gpm)","Pump Rating Selected (gpm)","Length (ft)","Width (ft)"]
[0,350,2.5,2.5]
[351,1740,3.75,3.75]
[1741,7000,5,5]
[7001,35000,7.083333333333333,7.083333333333333]
[]
[]
["Thrust Blocks for Yard Piping"]
["Pipe Diameter (inches)"," Thrust Force","Based on 90 degree angles"]
["Size Needed","kg","Size Selected"]
[0,347.63563037472028,2]
[2.1,681.91181843044774,3]
[3.1,1260.0087440508869,4]
[4.0999999999999996,2835.0196741144964,6]
[6.1,4990.7439767005962,8]
[8.1,7813.4106239126322,10]
[10.1,11192.326806056015,12]
[12.1,15314.284822868764,14]
[14.1,20002.331197216343,16]
[16.100000000000001,25315.450421476933,18]
[18.100000000000001,31130.717767160371,20]
[20.100000000000001,45064.326572600447,24]
[24.1,61050.596681665913,28]
[28.1,70505.385478216151,30]
[30.1,124768.59941751491,40]
[40.1,137828.56340581886,42]
[42.1,180257.30629040179,48]
[]
[]
["Thermal Oxidizer Dimensions"]
["Rating needed (cfm)","Rating selected (cfm)","Length (in)","Width (in)","Length (ft)","Width (ft)"]
[0,100,72,54,6,4.5]
[101,300,84,54,7,4.5]
[301,500,144,54,12,4.5]
[501,1000,120,66,10,5.5]
[1001,1500,144,66,12,5.5]
[1501,2000,144,66,12,5.5]
[2001,3000,144,78,12,6.5]
[3001,4000,168,78,14,6.5]
[4001,5000,72,72,6,6]
[5001,10000,84,84,7,7]
[10001,15000,96,96,8,8]
[15001,20000,96,96,8,8]
[20001,40000,192,192,16,16]
[40001,80000,384,384,32,32]
[80001,120000,576,576,48,48]

{"sheet":"Lookup Tables","index":20,"n_rows":39,"n_cols":1,"rows_kept":39,"cut":false,"hidden":false,"merged":[]}
["Lookup Tables and Input Validation"]
["This sheet is used internally to perform certain reference calculations and support input sheet data validation"]
[]
["comp_level_valid"]
["low cost"]
["mid cost"]
["high cost"]
[]
[]
["system_automation_valid"]
["manual"]
["semi-automated"]
["fully automated"]
[]
[]
["contam_list"]
["Radon"]
["TCE"]
["PCE"]
["Vinyl Chloride"]
["Carbon Tetrachloride"]
["Benzene"]
["1,2-Dichloropropane"]
["Methylene Chloride"]
["1,2-Dichloroethane"]
["1,3-Butadiene"]
["1,1-Dichloroethane"]
["1,1,1,2-Tetrachloroethane"]
["1,1,2,2-Tetrachloroethane"]
["1,2,3-Trichloropropane"]
["Other"]
[]
["og_tech_list"]
[{"$f":"IF(contam=1,\"\",\"none\")","v":""}]
[{"$f":"IF(contam=1,\"\",\"GAC\")","v":""}]
[{"$f":"IF(contam=1,\"\",\"Thermal Oxidation\")","v":""}]
[{"$f":"IF(contam=1,\"\",\"Catalytic Oxidation\")","v":""}]
[]
[true]